Workbook

Sheet Introduction
B3: =Benchmarking!C1&" Data" -> 2022-23 Data | E3: ="Kent LA Schools' Benchmarking Data "&Benchmarking!C1 -> Kent LA Schools' Benchmarking Data 2022-23
E5: THIS BENCHMARKING SHEET IS FOR PRIMARY SCHOOLS ONLY
E7: ="The Benchmarking spreadsheet shows the income and expenditure information for the "&Benchmarking!C1&" financial year at subjective account level i.e. CFR codes. It shows all revenue income and expenditure including standards funds. Capital income and expenditure is excluded." -> The Benchmarking spreadsheet shows the income and expenditure information for the 2022-23 financial year at subjective account level i.e. CFR codes. It shows all revenue income and expenditure including standards funds. Capital income and expenditure is excluded.
E12: Enter your DFE number in the pink shaded box.
E14: Select Schools with or without Nursery places, School type and Pupil options from the drop down boxes.
E17: Your school is shown compared to schools based on your selections and to the overall primary school average.
E20: The sheet is formatted to print on one page.
E22: CFR = Consistent Financial Reporting

Sheet Benchmarking
B1: Subjective Analysis of | C1: 2022-23 | D1: Income and Expenditure Compared to selected and Kent Primary Averages
F3: Nursery | G3: R to Yr 6 | I3: Benchmark against schools with Nursery's
C4: Enter last 4 digits of your DfE No. | E4: Pupil Roll | F4: =IF(ISERROR(VLOOKUP(D4,'2022-23 Data'!A3:C262,3,0)),"",VLOOKUP(D4,'2022-23 Data'!A3:C262,3,0)) ->  | G4: =IF(ISERROR(VLOOKUP(D4,'2022-23 Data'!A3:D262,4,0)),"",VLOOKUP(D4,'2022-23 Data'!A3:D262,4,0)) -> 
I5: Select type of School
B6: =B1&C1&D1 -> Subjective Analysis of 2022-23 Income and Expenditure Compared to selected and Kent Primary Averages
I7: Select Pupil Roll to Benchmark against
N9: =IF(I6="","",IF(I4=I6,"you have already selected this school","")) -> 
E10: Your School | I10: Your selection includes: | M10: All Kent Primary Schools
E11: =IF(D4="","","Total Pupil Roll : "&VLOOKUP($D$4,'2022-23 Data'!A3:I262,9,FALSE)) ->  | I11: =SUM('2022-23 Data'!M3:M262)&" Schools" -> 0 Schools
B12: =IF(D4="","",VLOOKUP($D$4,'2022-23 Data'!A3:B262,2,0)) ->  | D12: total Exp. / Inc. | E12: amount per Pupil | F12: % of total Exp. | G12: % of Exp / total inc. | I12: =E12 -> amount per Pupil | J12: =F12 -> % of total Exp. | K12: =G12 -> % of Exp / total inc. | M12: =E12 -> amount per Pupil | N12: =F12 -> % of total Exp. | O12: =G12 -> % of Exp / total inc.
B13: (Total Revenue) | D13: £ | E13: £ | F13: % | G13: % | I13: £ | J13: % | K13: % | M13: £ | N13: % | O13: %
B15: EXPENDITURE
B16: Teaching staff | C16: E01 | D16: =IF(ISERROR(INDEX('2022-23 Data'!$B$3:$BP$262,MATCH($D$4,dfenums,0),MATCH(C16,'2022-23 Data'!$B$2:$BP$2,0))),"",INDEX('2022-23 Data'!$B$3:$BP$262,MATCH($D$4,dfenums,0),MATCH(C16,'2022-23 Data'!$B$2:$BP$2,0))) ->  | E16: =IF(ISERROR(D16/($F$4+$G$4)),"",D16/($F$4+$G$4)) ->  | F16: =IF(ISERROR(D16/$D$49),"",D16/$D$49) ->  | G16: =IF(ISERROR(D16/$D$75),"",D16/-$D$75) ->  | I16: =IF(ISERROR(IF(D4>0,SUMIF('2022-23 Data'!$M$3:$M$262,1,'2022-23 Data'!$N$3:$N$262)/(SUMIF('2022-23 Data'!$M$3:$M$262,1,'2022-23 Data'!$C$3:$C$262)+SUMIF('2022-23 Data'!$M$3:$M$262,1,'2022-23 Data'!$D$3:$D$262)),"")),"",IF(D4>0,SUMIF('2022-23 Data'!$M$3:$M$262,1,'2022-23 Data'!$N$3:$N$262)/(SUMIF('2022-23 Data'!$M$3:$M$262,1,'2022-23 Data'!$C$3:$C$262)+SUMIF('2022-23 Data'!$M$3:$M$262,1,'2022-23 Data'!$D$3:$D$262)),"")) ->  | J16: =IF(ISERROR(I16/$I$49),"",I16/$I$49) ->  | K16: =IF(ISERROR(I16/$I$75),"",I16/-$I$75) ->  | M16: =IF(ISERROR(SUM('2022-23 Data'!$N$3:$N$262)/SUM('2022-23 Data'!$C$3:$D$262)),"",SUM('2022-23 Data'!$N$3:$N$262)/SUM('2022-23 Data'!$C$3:$D$262)) -> 2763.012217 | N16: =IF(ISERROR(M16/$M$49),"",M16/$M$49) -> 0.4584983695 | O16: =IF(ISERROR(M16/-$M$75),"",M16/-$M$75) -> 0.4736741788
B17: Supply teaching staff | C17: E02 | D17: =IF(ISERROR(INDEX('2022-23 Data'!$B$3:$BP$262,MATCH($D$4,dfenums,0),MATCH(C17,'2022-23 Data'!$B$2:$BP$2,0))),"",INDEX('2022-23 Data'!$B$3:$BP$262,MATCH($D$4,dfenums,0),MATCH(C17,'2022-23 Data'!$B$2:$BP$2,0))) ->  | E17: =IF(ISERROR(D17/($F$4+$G$4)),"",D17/($F$4+$G$4)) ->  | I17: =IF(ISERROR(IF(D4>0,SUMIF('2022-23 Data'!$M$3:$M$262,1,'2022-23 Data'!$O$3:$O$262)/(SUMIF('2022-23 Data'!$M$3:$M$262,1,'2022-23 Data'!$C$3:$C$262)+SUMIF('2022-23 Data'!$M$3:$M$262,1,'2022-23 Data'!$D$3:$D$262)),"")),"",IF(D4>0,SUMIF('2022-23 Data'!$M$3:$M$262,1,'2022-23 Data'!$O$3:$O$262)/(SUMIF('2022-23 Data'!$M$3:$M$262,1,'2022-23 Data'!$C$3:$C$262)+SUMIF('2022-23 Data'!$M$3:$M$262,1,'2022-23 Data'!$D$3:$D$262)),"")) ->  | M17: =IF(ISERROR(SUM('2022-23 Data'!$O$3:$O$262)/SUM('2022-23 Data'!$C$3:$D$262)),"",SUM('2022-23 Data'!$O$3:$O$262)/SUM('2022-23 Data'!$C$3:$D$262)) -> 29.21856374 | N17: 0.00484857206 | O17: 0.005009054648
B18: Education support staff | C18: E03 | D18: =IF(ISERROR(INDEX('2022-23 Data'!$B$3:$BP$262,MATCH($D$4,dfenums,0),MATCH(C18,'2022-23 Data'!$B$2:$BP$2,0))),"",INDEX('2022-23 Data'!$B$3:$BP$262,MATCH($D$4,dfenums,0),MATCH(C18,'2022-23 Data'!$B$2:$BP$2,0))) ->  | I18: =IF(ISERROR(IF(D4>0,SUMIF('2022-23 Data'!$M$3:$M$262,1,'2022-23 Data'!$P$3:$P$262)/(SUMIF('2022-23 Data'!$M$3:$M$262,1,'2022-23 Data'!$C$3:$C$262)+SUMIF('2022-23 Data'!$M$3:$M$262,1,'2022-23 Data'!$D$3:$D$262)),"")),"",IF(D4>0,SUMIF('2022-23 Data'!$M$3:$M$262,1,'2022-23 Data'!$P$3:$P$262)/(SUMIF('2022-23 Data'!$M$3:$M$262,1,'2022-23 Data'!$C$3:$C$262)+SUMIF('2022-23 Data'!$M$3:$M$262,1,'2022-23 Data'!$D$3:$D$262)),"")) ->  | M18: =IF(ISERROR(SUM('2022-23 Data'!$P$3:$P$262)/SUM('2022-23 Data'!$C$3:$D$262)),"",SUM('2022-23 Data'!$P$3:$P$262)/SUM('2022-23 Data'!$C$3:$D$262)) -> 1118.087529 | N18: 0.1855371128 | O18: 0.1916781942
B19: Premises staff | C19: E04 | D19: =IF(ISERROR(INDEX('2022-23 Data'!$B$3:$BP$262,MATCH($D$4,dfenums,0),MATCH(C19,'2022-23 Data'!$B$2:$BP$2,0))),"",INDEX('2022-23 Data'!$B$3:$BP$262,MATCH($D$4,dfenums,0),MATCH(C19,'2022-23 Data'!$B$2:$BP$2,0))) ->  | I19: =IF(ISERROR(IF(D4>0,SUMIF('2022-23 Data'!$M$3:$M$262,1,'2022-23 Data'!$Q$3:$Q$262)/(SUMIF('2022-23 Data'!$M$3:$M$262,1,'2022-23 Data'!$C$3:$C$262)+SUMIF('2022-23 Data'!$M$3:$M$262,1,'2022-23 Data'!$D$3:$D$262)),"")),"",IF(D4>0,SUMIF('2022-23 Data'!$M$3:$M$262,1,'2022-23 Data'!$Q$3:$Q$262)/(SUMIF('2022-23 Data'!$M$3:$M$262,1,'2022-23 Data'!$C$3:$C$262)+SUMIF('2022-23 Data'!$M$3:$M$262,1,'2022-23 Data'!$D$3:$D$262)),"")) ->  | M19: =IF(ISERROR(SUM('2022-23 Data'!$Q$3:$Q$262)/SUM('2022-23 Data'!$C$3:$D$262)),"",SUM('2022-23 Data'!$Q$3:$Q$262)/SUM('2022-23 Data'!$C$3:$D$262)) -> 137.3193631 | N19: 0.02278697999 | O19: 0.02354120483
B20: Administrative and clerical staff | C20: E05 | D20: =IF(ISERROR(INDEX('2022-23 Data'!$B$3:$BP$262,MATCH($D$4,dfenums,0),MATCH(C20,'2022-23 Data'!$B$2:$BP$2,0))),"",INDEX('2022-23 Data'!$B$3:$BP$262,MATCH($D$4,dfenums,0),MATCH(C20,'2022-23 Data'!$B$2:$BP$2,0))) ->  | I20: =IF(ISERROR(IF(D4>0,SUMIF('2022-23 Data'!$M$3:$M$262,1,'2022-23 Data'!$R$3:$R$262)/(SUMIF('2022-23 Data'!$M$3:$M$262,1,'2022-23 Data'!$C$3:$C$262)+SUMIF('2022-23 Data'!$M$3:$M$262,1,'2022-23 Data'!$D$3:$D$262)),"")),"",IF(D4>0,SUMIF('2022-23 Data'!$M$3:$M$262,1,'2022-23 Data'!$R$3:$R$262)/(SUMIF('2022-23 Data'!$M$3:$M$262,1,'2022-23 Data'!$C$3:$C$262)+SUMIF('2022-23 Data'!$M$3:$M$262,1,'2022-23 Data'!$D$3:$D$262)),"")) ->  | M20: =IF(ISERROR(SUM('2022-23 Data'!$R$3:$R$262)/SUM('2022-23 Data'!$C$3:$D$262)),"",SUM('2022-23 Data'!$R$3:$R$262)/SUM('2022-23 Data'!$C$3:$D$262)) -> 271.552111 | N20: 0.04506176244 | O20: 0.04655325893
B21: Catering staff | C21: E06 | D21: =IF(ISERROR(INDEX('2022-23 Data'!$B$3:$BP$262,MATCH($D$4,dfenums,0),MATCH(C21,'2022-23 Data'!$B$2:$BP$2,0))),"",INDEX('2022-23 Data'!$B$3:$BP$262,MATCH($D$4,dfenums,0),MATCH(C21,'2022-23 Data'!$B$2:$BP$2,0))) ->  | I21: =IF(ISERROR(IF(D4>0,SUMIF('2022-23 Data'!$M$3:$M$262,1,'2022-23 Data'!$S$3:$S$262)/(SUMIF('2022-23 Data'!$M$3:$M$262,1,'2022-23 Data'!$C$3:$C$262)+SUMIF('2022-23 Data'!$M$3:$M$262,1,'2022-23 Data'!$D$3:$D$262)),"")),"",IF(D4>0,SUMIF('2022-23 Data'!$M$3:$M$262,1,'2022-23 Data'!$S$3:$S$262)/(SUMIF('2022-23 Data'!$M$3:$M$262,1,'2022-23 Data'!$C$3:$C$262)+SUMIF('2022-23 Data'!$M$3:$M$262,1,'2022-23 Data'!$D$3:$D$262)),"")) ->  | M21: =IF(ISERROR(SUM('2022-23 Data'!$S$3:$S$262)/SUM('2022-23 Data'!$C$3:$D$262)),"",SUM('2022-23 Data'!$S$3:$S$262)/SUM('2022-23 Data'!$C$3:$D$262)) -> 22.42139195 | N21: 0.003720639231 | O21: 0.00384378844
B22: Cost of other staff | C22: E07 | D22: =IF(ISERROR(INDEX('2022-23 Data'!$B$3:$BP$262,MATCH($D$4,dfenums,0),MATCH(C22,'2022-23 Data'!$B$2:$BP$2,0))),"",INDEX('2022-23 Data'!$B$3:$BP$262,MATCH($D$4,dfenums,0),MATCH(C22,'2022-23 Data'!$B$2:$BP$2,0))) ->  | I22: =IF(ISERROR(IF(D4>0,SUMIF('2022-23 Data'!$M$3:$M$262,1,'2022-23 Data'!$T$3:$T$262)/(SUMIF('2022-23 Data'!$M$3:$M$262,1,'2022-23 Data'!$C$3:$C$262)+SUMIF('2022-23 Data'!$M$3:$M$262,1,'2022-23 Data'!$D$3:$D$262)),"")),"",IF(D4>0,SUMIF('2022-23 Data'!$M$3:$M$262,1,'2022-23 Data'!$T$3:$T$262)/(SUMIF('2022-23 Data'!$M$3:$M$262,1,'2022-23 Data'!$C$3:$C$262)+SUMIF('2022-23 Data'!$M$3:$M$262,1,'2022-23 Data'!$D$3:$D$262)),"")) ->  | M22: =IF(ISERROR(SUM('2022-23 Data'!$T$3:$T$262)/SUM('2022-23 Data'!$C$3:$D$262)),"",SUM('2022-23 Data'!$T$3:$T$262)/SUM('2022-23 Data'!$C$3:$D$262)) -> 154.6781543 | N22: 0.02566752369 | O22: 0.02651709147
B23: Indirect employee expenses | C23: E08 | D23: =IF(ISERROR(INDEX('2022-23 Data'!$B$3:$BP$262,MATCH($D$4,dfenums,0),MATCH(C23,'2022-23 Data'!$B$2:$BP$2,0))),"",INDEX('2022-23 Data'!$B$3:$BP$262,MATCH($D$4,dfenums,0),MATCH(C23,'2022-23 Data'!$B$2:$BP$2,0))) ->  | I23: =IF(ISERROR(IF(D4>0,SUMIF('2022-23 Data'!$M$3:$M$262,1,'2022-23 Data'!$U$3:$U$262)/(SUMIF('2022-23 Data'!$M$3:$M$262,1,'2022-23 Data'!$C$3:$C$262)+SUMIF('2022-23 Data'!$M$3:$M$262,1,'2022-23 Data'!$D$3:$D$262)),"")),"",IF(D4>0,SUMIF('2022-23 Data'!$M$3:$M$262,1,'2022-23 Data'!$U$3:$U$262)/(SUMIF('2022-23 Data'!$M$3:$M$262,1,'2022-23 Data'!$C$3:$C$262)+SUMIF('2022-23 Data'!$M$3:$M$262,1,'2022-23 Data'!$D$3:$D$262)),"")) ->  | M23: =IF(ISERROR(SUM('2022-23 Data'!$U$3:$U$262)/SUM('2022-23 Data'!$C$3:$D$262)),"",SUM('2022-23 Data'!$U$3:$U$262)/SUM('2022-23 Data'!$C$3:$D$262)) -> 20.55051301 | N23: 0.00341018279 | O23: 0.00352305622
B24: Development and training | C24: E09 | D24: =IF(ISERROR(INDEX('2022-23 Data'!$B$3:$BP$262,MATCH($D$4,dfenums,0),MATCH(C24,'2022-23 Data'!$B$2:$BP$2,0))),"",INDEX('2022-23 Data'!$B$3:$BP$262,MATCH($D$4,dfenums,0),MATCH(C24,'2022-23 Data'!$B$2:$BP$2,0))) ->  | I24: =IF(ISERROR(IF(D4>0,SUMIF('2022-23 Data'!$M$3:$M$262,1,'2022-23 Data'!$V$3:$V$262)/(SUMIF('2022-23 Data'!$M$3:$M$262,1,'2022-23 Data'!$C$3:$C$262)+SUMIF('2022-23 Data'!$M$3:$M$262,1,'2022-23 Data'!$D$3:$D$262)),"")),"",IF(D4>0,SUMIF('2022-23 Data'!$M$3:$M$262,1,'2022-23 Data'!$V$3:$V$262)/(SUMIF('2022-23 Data'!$M$3:$M$262,1,'2022-23 Data'!$C$3:$C$262)+SUMIF('2022-23 Data'!$M$3:$M$262,1,'2022-23 Data'!$D$3:$D$262)),"")) ->  | M24: =IF(ISERROR(SUM('2022-23 Data'!$V$3:$V$262)/SUM('2022-23 Data'!$C$3:$D$262)),"",SUM('2022-23 Data'!$V$3:$V$262)/SUM('2022-23 Data'!$C$3:$D$262)) -> 28.96321146 | N24: 0.004806198521 | O24: 0.00496527859
B25: Supply teacher insurance | C25: E10 | D25: =IF(ISERROR(INDEX('2022-23 Data'!$B$3:$BP$262,MATCH($D$4,dfenums,0),MATCH(C25,'2022-23 Data'!$B$2:$BP$2,0))),"",INDEX('2022-23 Data'!$B$3:$BP$262,MATCH($D$4,dfenums,0),MATCH(C25,'2022-23 Data'!$B$2:$BP$2,0))) ->  | I25: =IF(ISERROR(IF(D4>0,SUMIF('2022-23 Data'!$M$3:$M$262,1,'2022-23 Data'!$W$3:$W$262)/(SUMIF('2022-23 Data'!$M$3:$M$262,1,'2022-23 Data'!$C$3:$C$262)+SUMIF('2022-23 Data'!$M$3:$M$262,1,'2022-23 Data'!$D$3:$D$262)),"")),"",IF(D4>0,SUMIF('2022-23 Data'!$M$3:$M$262,1,'2022-23 Data'!$W$3:$W$262)/(SUMIF('2022-23 Data'!$M$3:$M$262,1,'2022-23 Data'!$C$3:$C$262)+SUMIF('2022-23 Data'!$M$3:$M$262,1,'2022-23 Data'!$D$3:$D$262)),"")) ->  | M25: =IF(ISERROR(SUM('2022-23 Data'!$W$3:$W$262)/SUM('2022-23 Data'!$C$3:$D$262)),"",SUM('2022-23 Data'!$W$3:$W$262)/SUM('2022-23 Data'!$C$3:$D$262)) -> 15.67060947 | N25: 0.002600404315 | O25: 0.002686474937
B26: Staff related insurance | C26: E11 | D26: =IF(ISERROR(INDEX('2022-23 Data'!$B$3:$BP$262,MATCH($D$4,dfenums,0),MATCH(C26,'2022-23 Data'!$B$2:$BP$2,0))),"",INDEX('2022-23 Data'!$B$3:$BP$262,MATCH($D$4,dfenums,0),MATCH(C26,'2022-23 Data'!$B$2:$BP$2,0))) ->  | I26: =IF(ISERROR(IF(D4>0,SUMIF('2022-23 Data'!$M$3:$M$262,1,'2022-23 Data'!$X$3:$X$262)/(SUMIF('2022-23 Data'!$M$3:$M$262,1,'2022-23 Data'!$C$3:$C$262)+SUMIF('2022-23 Data'!$M$3:$M$262,1,'2022-23 Data'!$D$3:$D$262)),"")),"",IF(D4>0,SUMIF('2022-23 Data'!$M$3:$M$262,1,'2022-23 Data'!$X$3:$X$262)/(SUMIF('2022-23 Data'!$M$3:$M$262,1,'2022-23 Data'!$C$3:$C$262)+SUMIF('2022-23 Data'!$M$3:$M$262,1,'2022-23 Data'!$D$3:$D$262)),"")) ->  | M26: =IF(ISERROR(SUM('2022-23 Data'!$X$3:$X$262)/SUM('2022-23 Data'!$C$3:$D$262)),"",SUM('2022-23 Data'!$X$3:$X$262)/SUM('2022-23 Data'!$C$3:$D$262)) -> 23.37048845 | N26: 0.00387813372 | O26: 0.004006495829
B27: Building maintenance and improvement | C27: E12 | D27: =IF(ISERROR(INDEX('2022-23 Data'!$B$3:$BP$262,MATCH($D$4,dfenums,0),MATCH(C27,'2022-23 Data'!$B$2:$BP$2,0))),"",INDEX('2022-23 Data'!$B$3:$BP$262,MATCH($D$4,dfenums,0),MATCH(C27,'2022-23 Data'!$B$2:$BP$2,0))) ->  | I27: =IF(ISERROR(IF(D4>0,SUMIF('2022-23 Data'!$M$3:$M$262,1,'2022-23 Data'!$Y$3:$Y$262)/(SUMIF('2022-23 Data'!$M$3:$M$262,1,'2022-23 Data'!$C$3:$C$262)+SUMIF('2022-23 Data'!$M$3:$M$262,1,'2022-23 Data'!$D$3:$D$262)),"")),"",IF(D4>0,SUMIF('2022-23 Data'!$M$3:$M$262,1,'2022-23 Data'!$Y$3:$Y$262)/(SUMIF('2022-23 Data'!$M$3:$M$262,1,'2022-23 Data'!$C$3:$C$262)+SUMIF('2022-23 Data'!$M$3:$M$262,1,'2022-23 Data'!$D$3:$D$262)),"")) ->  | M27: =IF(ISERROR(SUM('2022-23 Data'!$Y$3:$Y$262)/SUM('2022-23 Data'!$C$3:$D$262)),"",SUM('2022-23 Data'!$Y$3:$Y$262)/SUM('2022-23 Data'!$C$3:$D$262)) -> 69.57677354 | N27: 0.0115456736 | O27: 0.01192782314
B28: Grounds maintenance and improvement | C28: E13 | D28: =IF(ISERROR(INDEX('2022-23 Data'!$B$3:$BP$262,MATCH($D$4,dfenums,0),MATCH(C28,'2022-23 Data'!$B$2:$BP$2,0))),"",INDEX('2022-23 Data'!$B$3:$BP$262,MATCH($D$4,dfenums,0),MATCH(C28,'2022-23 Data'!$B$2:$BP$2,0))) ->  | I28: =IF(ISERROR(IF(D4>0,SUMIF('2022-23 Data'!$M$3:$M$262,1,'2022-23 Data'!$Z$3:$Z$262)/(SUMIF('2022-23 Data'!$M$3:$M$262,1,'2022-23 Data'!$C$3:$C$262)+SUMIF('2022-23 Data'!$M$3:$M$262,1,'2022-23 Data'!$D$3:$D$262)),"")),"",IF(D4>0,SUMIF('2022-23 Data'!$M$3:$M$262,1,'2022-23 Data'!$Z$3:$Z$262)/(SUMIF('2022-23 Data'!$M$3:$M$262,1,'2022-23 Data'!$C$3:$C$262)+SUMIF('2022-23 Data'!$M$3:$M$262,1,'2022-23 Data'!$D$3:$D$262)),"")) ->  | M28: =IF(ISERROR(SUM('2022-23 Data'!$Z$3:$Z$262)/SUM('2022-23 Data'!$C$3:$D$262)),"",SUM('2022-23 Data'!$Z$3:$Z$262)/SUM('2022-23 Data'!$C$3:$D$262)) -> 29.48178281 | N28: 0.004892251024 | O28: 0.005054179339
B29: Cleaning and caretaking | C29: E14 | D29: =IF(ISERROR(INDEX('2022-23 Data'!$B$3:$BP$262,MATCH($D$4,dfenums,0),MATCH(C29,'2022-23 Data'!$B$2:$BP$2,0))),"",INDEX('2022-23 Data'!$B$3:$BP$262,MATCH($D$4,dfenums,0),MATCH(C29,'2022-23 Data'!$B$2:$BP$2,0))) ->  | I29: =IF(ISERROR(IF(D4>0,SUMIF('2022-23 Data'!$M$3:$M$262,1,'2022-23 Data'!$AA$3:$AA$262)/(SUMIF('2022-23 Data'!$M$3:$M$262,1,'2022-23 Data'!$C$3:$C$262)+SUMIF('2022-23 Data'!$M$3:$M$262,1,'2022-23 Data'!$D$3:$D$262)),"")),"",IF(D4>0,SUMIF('2022-23 Data'!$M$3:$M$262,1,'2022-23 Data'!$AA$3:$AA$262)/(SUMIF('2022-23 Data'!$M$3:$M$262,1,'2022-23 Data'!$C$3:$C$262)+SUMIF('2022-23 Data'!$M$3:$M$262,1,'2022-23 Data'!$D$3:$D$262)),"")) ->  | M29: =IF(ISERROR(SUM('2022-23 Data'!$AA$3:$AA$262)/SUM('2022-23 Data'!$C$3:$D$262)),"",SUM('2022-23 Data'!$AA$3:$AA$262)/SUM('2022-23 Data'!$C$3:$D$262)) -> 64.65743069 | N29: 0.01072935051 | O29: 0.01108448063
B30: Water and sewerage | C30: E15 | D30: =IF(ISERROR(INDEX('2022-23 Data'!$B$3:$BP$262,MATCH($D$4,dfenums,0),MATCH(C30,'2022-23 Data'!$B$2:$BP$2,0))),"",INDEX('2022-23 Data'!$B$3:$BP$262,MATCH($D$4,dfenums,0),MATCH(C30,'2022-23 Data'!$B$2:$BP$2,0))) ->  | I30: =IF(ISERROR(IF(D4>0,SUMIF('2022-23 Data'!$M$3:$M$262,1,'2022-23 Data'!$AB$3:$AB$262)/(SUMIF('2022-23 Data'!$M$3:$M$262,1,'2022-23 Data'!$C$3:$C$262)+SUMIF('2022-23 Data'!$M$3:$M$262,1,'2022-23 Data'!$D$3:$D$262)),"")),"",IF(D4>0,SUMIF('2022-23 Data'!$M$3:$M$262,1,'2022-23 Data'!$AB$3:$AB$262)/(SUMIF('2022-23 Data'!$M$3:$M$262,1,'2022-23 Data'!$C$3:$C$262)+SUMIF('2022-23 Data'!$M$3:$M$262,1,'2022-23 Data'!$D$3:$D$262)),"")) ->  | M30: =IF(ISERROR(SUM('2022-23 Data'!$AB$3:$AB$262)/SUM('2022-23 Data'!$C$3:$D$262)),"",SUM('2022-23 Data'!$AB$3:$AB$262)/SUM('2022-23 Data'!$C$3:$D$262)) -> 21.78733613 | N30: 0.003615423063 | O30: 0.003735089728
B31: Energy | C31: E16 | D31: =IF(ISERROR(INDEX('2022-23 Data'!$B$3:$BP$262,MATCH($D$4,dfenums,0),MATCH(C31,'2022-23 Data'!$B$2:$BP$2,0))),"",INDEX('2022-23 Data'!$B$3:$BP$262,MATCH($D$4,dfenums,0),MATCH(C31,'2022-23 Data'!$B$2:$BP$2,0))) ->  | I31: =IF(ISERROR(IF(D4>0,SUMIF('2022-23 Data'!$M$3:$M$262,1,'2022-23 Data'!$AC$3:$AC$262)/(SUMIF('2022-23 Data'!$M$3:$M$262,1,'2022-23 Data'!$C$3:$C$262)+SUMIF('2022-23 Data'!$M$3:$M$262,1,'2022-23 Data'!$D$3:$D$262)),"")),"",IF(D4>0,SUMIF('2022-23 Data'!$M$3:$M$262,1,'2022-23 Data'!$AC$3:$AC$262)/(SUMIF('2022-23 Data'!$M$3:$M$262,1,'2022-23 Data'!$C$3:$C$262)+SUMIF('2022-23 Data'!$M$3:$M$262,1,'2022-23 Data'!$D$3:$D$262)),"")) ->  | M31: =IF(ISERROR(SUM('2022-23 Data'!$AC$3:$AC$262)/SUM('2022-23 Data'!$C$3:$D$262)),"",SUM('2022-23 Data'!$AC$3:$AC$262)/SUM('2022-23 Data'!$C$3:$D$262)) -> 113.7335034 | N31: 0.01887310723 | O31: 0.01949778705
B32: Rates | C32: E17 | D32: =IF(ISERROR(INDEX('2022-23 Data'!$B$3:$BP$262,MATCH($D$4,dfenums,0),MATCH(C32,'2022-23 Data'!$B$2:$BP$2,0))),"",INDEX('2022-23 Data'!$B$3:$BP$262,MATCH($D$4,dfenums,0),MATCH(C32,'2022-23 Data'!$B$2:$BP$2,0))) ->  | I32: =IF(ISERROR(IF(D4>0,SUMIF('2022-23 Data'!$M$3:$M$262,1,'2022-23 Data'!$AD$3:$AD$262)/(SUMIF('2022-23 Data'!$M$3:$M$262,1,'2022-23 Data'!$C$3:$C$262)+SUMIF('2022-23 Data'!$M$3:$M$262,1,'2022-23 Data'!$D$3:$D$262)),"")),"",IF(D4>0,SUMIF('2022-23 Data'!$M$3:$M$262,1,'2022-23 Data'!$AD$3:$AD$262)/(SUMIF('2022-23 Data'!$M$3:$M$262,1,'2022-23 Data'!$C$3:$C$262)+SUMIF('2022-23 Data'!$M$3:$M$262,1,'2022-23 Data'!$D$3:$D$262)),"")) ->  | M32: =IF(ISERROR(SUM('2022-23 Data'!$AD$3:$AD$262)/SUM('2022-23 Data'!$C$3:$D$262)),"",SUM('2022-23 Data'!$AD$3:$AD$262)/SUM('2022-23 Data'!$C$3:$D$262)) -> 90.03411376 | N32: 0.01494039516 | O32: 0.01543490638
B33: Other occupation costs | C33: E18 | D33: =IF(ISERROR(INDEX('2022-23 Data'!$B$3:$BP$262,MATCH($D$4,dfenums,0),MATCH(C33,'2022-23 Data'!$B$2:$BP$2,0))),"",INDEX('2022-23 Data'!$B$3:$BP$262,MATCH($D$4,dfenums,0),MATCH(C33,'2022-23 Data'!$B$2:$BP$2,0))) ->  | I33: =IF(ISERROR(IF(D4>0,SUMIF('2022-23 Data'!$M$3:$M$262,1,'2022-23 Data'!$AE$3:$AE$262)/(SUMIF('2022-23 Data'!$M$3:$M$262,1,'2022-23 Data'!$C$3:$C$262)+SUMIF('2022-23 Data'!$M$3:$M$262,1,'2022-23 Data'!$D$3:$D$262)),"")),"",IF(D4>0,SUMIF('2022-23 Data'!$M$3:$M$262,1,'2022-23 Data'!$AE$3:$AE$262)/(SUMIF('2022-23 Data'!$M$3:$M$262,1,'2022-23 Data'!$C$3:$C$262)+SUMIF('2022-23 Data'!$M$3:$M$262,1,'2022-23 Data'!$D$3:$D$262)),"")) ->  | M33: =IF(ISERROR(SUM('2022-23 Data'!$AE$3:$AE$262)/SUM('2022-23 Data'!$C$3:$D$262)),"",SUM('2022-23 Data'!$AE$3:$AE$262)/SUM('2022-23 Data'!$C$3:$D$262)) -> 40.1424763 | N33: 0.006661302408 | O33: 0.006881784445
B34: Learning resources (not ICT equipment) | C34: E19 | D34: =IF(ISERROR(INDEX('2022-23 Data'!$B$3:$BP$262,MATCH($D$4,dfenums,0),MATCH(C34,'2022-23 Data'!$B$2:$BP$2,0))),"",INDEX('2022-23 Data'!$B$3:$BP$262,MATCH($D$4,dfenums,0),MATCH(C34,'2022-23 Data'!$B$2:$BP$2,0))) ->  | I34: =IF(ISERROR(IF(D4>0,SUMIF('2022-23 Data'!$M$3:$M$262,1,'2022-23 Data'!$AF$3:$AF$262)/(SUMIF('2022-23 Data'!$M$3:$M$262,1,'2022-23 Data'!$C$3:$C$262)+SUMIF('2022-23 Data'!$M$3:$M$262,1,'2022-23 Data'!$D$3:$D$262)),"")),"",IF(D4>0,SUMIF('2022-23 Data'!$M$3:$M$262,1,'2022-23 Data'!$AF$3:$AF$262)/(SUMIF('2022-23 Data'!$M$3:$M$262,1,'2022-23 Data'!$C$3:$C$262)+SUMIF('2022-23 Data'!$M$3:$M$262,1,'2022-23 Data'!$D$3:$D$262)),"")) ->  | M34: =IF(ISERROR(SUM('2022-23 Data'!$AF$3:$AF$262)/SUM('2022-23 Data'!$C$3:$D$262)),"",SUM('2022-23 Data'!$AF$3:$AF$262)/SUM('2022-23 Data'!$C$3:$D$262)) -> 276.4864451 | N34: 0.0458805732 | O34: 0.04739917146
B35: ICT learning resources | C35: E20 | D35: =IF(ISERROR(INDEX('2022-23 Data'!$B$3:$BP$262,MATCH($D$4,dfenums,0),MATCH(C35,'2022-23 Data'!$B$2:$BP$2,0))),"",INDEX('2022-23 Data'!$B$3:$BP$262,MATCH($D$4,dfenums,0),MATCH(C35,'2022-23 Data'!$B$2:$BP$2,0))) ->  | I35: =IF(ISERROR(IF(D4>0,SUMIF('2022-23 Data'!$M$3:$M$262,1,'2022-23 Data'!$AG$3:$AG$262)/(SUMIF('2022-23 Data'!$M$3:$M$262,1,'2022-23 Data'!$C$3:$C$262)+SUMIF('2022-23 Data'!$M$3:$M$262,1,'2022-23 Data'!$D$3:$D$262)),"")),"",IF(D4>0,SUMIF('2022-23 Data'!$M$3:$M$262,1,'2022-23 Data'!$AG$3:$AG$262)/(SUMIF('2022-23 Data'!$M$3:$M$262,1,'2022-23 Data'!$C$3:$C$262)+SUMIF('2022-23 Data'!$M$3:$M$262,1,'2022-23 Data'!$D$3:$D$262)),"")) ->  | M35: =IF(ISERROR(SUM('2022-23 Data'!$AG$3:$AG$262)/SUM('2022-23 Data'!$C$3:$D$262)),"",SUM('2022-23 Data'!$AG$3:$AG$262)/SUM('2022-23 Data'!$C$3:$D$262)) -> 61.26462406 | N35: 0.01016634312 | O35: 0.01050283828
B36: Exam fees | C36: E21 | D36: =IF(ISERROR(INDEX('2022-23 Data'!$B$3:$BP$262,MATCH($D$4,dfenums,0),MATCH(C36,'2022-23 Data'!$B$2:$BP$2,0))),"",INDEX('2022-23 Data'!$B$3:$BP$262,MATCH($D$4,dfenums,0),MATCH(C36,'2022-23 Data'!$B$2:$BP$2,0))) ->  | I36: =IF(ISERROR(IF(D4>0,SUMIF('2022-23 Data'!$M$3:$M$262,1,'2022-23 Data'!$AH$3:$AH$262)/(SUMIF('2022-23 Data'!$M$3:$M$262,1,'2022-23 Data'!$C$3:$C$262)+SUMIF('2022-23 Data'!$M$3:$M$262,1,'2022-23 Data'!$D$3:$D$262)),"")),"",IF(D4>0,SUMIF('2022-23 Data'!$M$3:$M$262,1,'2022-23 Data'!$AH$3:$AH$262)/(SUMIF('2022-23 Data'!$M$3:$M$262,1,'2022-23 Data'!$C$3:$C$262)+SUMIF('2022-23 Data'!$M$3:$M$262,1,'2022-23 Data'!$D$3:$D$262)),"")) ->  | M36: =IF(ISERROR(SUM('2022-23 Data'!$AH$3:$AH$262)/SUM('2022-23 Data'!$C$3:$D$262)),"",SUM('2022-23 Data'!$AH$3:$AH$262)/SUM('2022-23 Data'!$C$3:$D$262)) -> 0.01520805389 | N36: 2.523647153e-06 | O36: 2.607177194e-06
B37: Administrative supplies | C37: E22 | D37: =IF(ISERROR(INDEX('2022-23 Data'!$B$3:$BP$262,MATCH($D$4,dfenums,0),MATCH(C37,'2022-23 Data'!$B$2:$BP$2,0))),"",INDEX('2022-23 Data'!$B$3:$BP$262,MATCH($D$4,dfenums,0),MATCH(C37,'2022-23 Data'!$B$2:$BP$2,0))) ->  | I37: =IF(ISERROR(IF(D4>0,SUMIF('2022-23 Data'!$M$3:$M$262,1,'2022-23 Data'!$AI$3:$AI$262)/(SUMIF('2022-23 Data'!$M$3:$M$262,1,'2022-23 Data'!$C$3:$C$262)+SUMIF('2022-23 Data'!$M$3:$M$262,1,'2022-23 Data'!$D$3:$D$262)),"")),"",IF(D4>0,SUMIF('2022-23 Data'!$M$3:$M$262,1,'2022-23 Data'!$AI$3:$AI$262)/(SUMIF('2022-23 Data'!$M$3:$M$262,1,'2022-23 Data'!$C$3:$C$262)+SUMIF('2022-23 Data'!$M$3:$M$262,1,'2022-23 Data'!$D$3:$D$262)),"")) ->  | M37: =IF(ISERROR(SUM('2022-23 Data'!$AI$3:$AI$262)/SUM('2022-23 Data'!$C$3:$D$262)),"",SUM('2022-23 Data'!$AI$3:$AI$262)/SUM('2022-23 Data'!$C$3:$D$262)) -> 67.99050503 | N37: 0.01128244584 | O37: 0.01165588282
B38: Other insurance premiums | C38: E23 | D38: =IF(ISERROR(INDEX('2022-23 Data'!$B$3:$BP$262,MATCH($D$4,dfenums,0),MATCH(C38,'2022-23 Data'!$B$2:$BP$2,0))),"",INDEX('2022-23 Data'!$B$3:$BP$262,MATCH($D$4,dfenums,0),MATCH(C38,'2022-23 Data'!$B$2:$BP$2,0))) ->  | I38: =IF(ISERROR(IF(D4>0,SUMIF('2022-23 Data'!$M$3:$M$262,1,'2022-23 Data'!$AJ$3:$AJ$262)/(SUMIF('2022-23 Data'!$M$3:$M$262,1,'2022-23 Data'!$C$3:$C$262)+SUMIF('2022-23 Data'!$M$3:$M$262,1,'2022-23 Data'!$D$3:$D$262)),"")),"",IF(D4>0,SUMIF('2022-23 Data'!$M$3:$M$262,1,'2022-23 Data'!$AJ$3:$AJ$262)/(SUMIF('2022-23 Data'!$M$3:$M$262,1,'2022-23 Data'!$C$3:$C$262)+SUMIF('2022-23 Data'!$M$3:$M$262,1,'2022-23 Data'!$D$3:$D$262)),"")) ->  | M38: =IF(ISERROR(SUM('2022-23 Data'!$AJ$3:$AJ$262)/SUM('2022-23 Data'!$C$3:$D$262)),"",SUM('2022-23 Data'!$AJ$3:$AJ$262)/SUM('2022-23 Data'!$C$3:$D$262)) -> 35.96307255 | N38: 0.005967765914 | O38: 0.006165292631
B39: Special facilities | C39: E24 | D39: =IF(ISERROR(INDEX('2022-23 Data'!$B$3:$BP$262,MATCH($D$4,dfenums,0),MATCH(C39,'2022-23 Data'!$B$2:$BP$2,0))),"",INDEX('2022-23 Data'!$B$3:$BP$262,MATCH($D$4,dfenums,0),MATCH(C39,'2022-23 Data'!$B$2:$BP$2,0))) ->  | I39: =IF(ISERROR(IF(D4>0,SUMIF('2022-23 Data'!$M$3:$M$262,1,'2022-23 Data'!$AK$3:$AK$262)/(SUMIF('2022-23 Data'!$M$3:$M$262,1,'2022-23 Data'!$C$3:$C$262)+SUMIF('2022-23 Data'!$M$3:$M$262,1,'2022-23 Data'!$D$3:$D$262)),"")),"",IF(D4>0,SUMIF('2022-23 Data'!$M$3:$M$262,1,'2022-23 Data'!$AK$3:$AK$262)/(SUMIF('2022-23 Data'!$M$3:$M$262,1,'2022-23 Data'!$C$3:$C$262)+SUMIF('2022-23 Data'!$M$3:$M$262,1,'2022-23 Data'!$D$3:$D$262)),"")) ->  | M39: =IF(ISERROR(SUM('2022-23 Data'!$AK$3:$AK$262)/SUM('2022-23 Data'!$C$3:$D$262)),"",SUM('2022-23 Data'!$AK$3:$AK$262)/SUM('2022-23 Data'!$C$3:$D$262)) -> 43.32269542 | N39: 0.007189032713 | O39: 0.007426982064
B40: Catering supplies | C40: E25 | D40: =IF(ISERROR(INDEX('2022-23 Data'!$B$3:$BP$262,MATCH($D$4,dfenums,0),MATCH(C40,'2022-23 Data'!$B$2:$BP$2,0))),"",INDEX('2022-23 Data'!$B$3:$BP$262,MATCH($D$4,dfenums,0),MATCH(C40,'2022-23 Data'!$B$2:$BP$2,0))) ->  | I40: =IF(ISERROR(IF(D4>0,SUMIF('2022-23 Data'!$M$3:$M$262,1,'2022-23 Data'!$AL$3:$AL$262)/(SUMIF('2022-23 Data'!$M$3:$M$262,1,'2022-23 Data'!$C$3:$C$262)+SUMIF('2022-23 Data'!$M$3:$M$262,1,'2022-23 Data'!$D$3:$D$262)),"")),"",IF(D4>0,SUMIF('2022-23 Data'!$M$3:$M$262,1,'2022-23 Data'!$AL$3:$AL$262)/(SUMIF('2022-23 Data'!$M$3:$M$262,1,'2022-23 Data'!$C$3:$C$262)+SUMIF('2022-23 Data'!$M$3:$M$262,1,'2022-23 Data'!$D$3:$D$262)),"")) ->  | M40: =IF(ISERROR(SUM('2022-23 Data'!$AL$3:$AL$262)/SUM('2022-23 Data'!$C$3:$D$262)),"",SUM('2022-23 Data'!$AL$3:$AL$262)/SUM('2022-23 Data'!$C$3:$D$262)) -> 185.1125976 | N40: 0.03071786062 | O40: 0.03173458919
B41: Agency supply teaching staff | C41: E26 | D41: =IF(ISERROR(INDEX('2022-23 Data'!$B$3:$BP$262,MATCH($D$4,dfenums,0),MATCH(C41,'2022-23 Data'!$B$2:$BP$2,0))),"",INDEX('2022-23 Data'!$B$3:$BP$262,MATCH($D$4,dfenums,0),MATCH(C41,'2022-23 Data'!$B$2:$BP$2,0))) ->  | I41: =IF(ISERROR(IF(D4>0,SUMIF('2022-23 Data'!$M$3:$M$262,1,'2022-23 Data'!$AM$3:$AM$262)/(SUMIF('2022-23 Data'!$M$3:$M$262,1,'2022-23 Data'!$C$3:$C$262)+SUMIF('2022-23 Data'!$M$3:$M$262,1,'2022-23 Data'!$D$3:$D$262)),"")),"",IF(D4>0,SUMIF('2022-23 Data'!$M$3:$M$262,1,'2022-23 Data'!$AM$3:$AM$262)/(SUMIF('2022-23 Data'!$M$3:$M$262,1,'2022-23 Data'!$C$3:$C$262)+SUMIF('2022-23 Data'!$M$3:$M$262,1,'2022-23 Data'!$D$3:$D$262)),"")) ->  | M41: =IF(ISERROR(SUM('2022-23 Data'!$AM$3:$AM$262)/SUM('2022-23 Data'!$C$3:$D$262)),"",SUM('2022-23 Data'!$AM$3:$AM$262)/SUM('2022-23 Data'!$C$3:$D$262)) -> 64.50031121 | N41: 0.01070327787 | O41: 0.01105754501
B42: Bought in professional services - curriculum | C42: E27 | D42: =IF(ISERROR(INDEX('2022-23 Data'!$B$3:$BP$262,MATCH($D$4,dfenums,0),MATCH(C42,'2022-23 Data'!$B$2:$BP$2,0))),"",INDEX('2022-23 Data'!$B$3:$BP$262,MATCH($D$4,dfenums,0),MATCH(C42,'2022-23 Data'!$B$2:$BP$2,0))) ->  | I42: =IF(ISERROR(IF(D4>0,SUMIF('2022-23 Data'!$M$3:$M$262,1,'2022-23 Data'!$AN$3:$AN$262)/(SUMIF('2022-23 Data'!$M$3:$M$262,1,'2022-23 Data'!$C$3:$C$262)+SUMIF('2022-23 Data'!$M$3:$M$262,1,'2022-23 Data'!$D$3:$D$262)),"")),"",IF(D4>0,SUMIF('2022-23 Data'!$M$3:$M$262,1,'2022-23 Data'!$AN$3:$AN$262)/(SUMIF('2022-23 Data'!$M$3:$M$262,1,'2022-23 Data'!$C$3:$C$262)+SUMIF('2022-23 Data'!$M$3:$M$262,1,'2022-23 Data'!$D$3:$D$262)),"")) ->  | M42: =IF(ISERROR(SUM('2022-23 Data'!$AN$3:$AN$262)/SUM('2022-23 Data'!$C$3:$D$262)),"",SUM('2022-23 Data'!$AN$3:$AN$262)/SUM('2022-23 Data'!$C$3:$D$262)) -> 84.9394261 | N42: 0.01409497509 | O42: 0.0145615038
B43: Bought in professional services other - Non PFI | C43: E28 | D43: =IF(ISERROR(INDEX('2022-23 Data'!$B$3:$BP$262,MATCH($D$4,dfenums,0),MATCH(C43,'2022-23 Data'!$B$2:$BP$2,0))),"",INDEX('2022-23 Data'!$B$3:$BP$262,MATCH($D$4,dfenums,0),MATCH(C43,'2022-23 Data'!$B$2:$BP$2,0))) ->  | E43: =IF(ISERROR(D43/($F$4+$G$4)),"",D43/($F$4+$G$4)) ->  | I43: =IF(ISERROR(IF(D4>0,SUMIF('2022-23 Data'!$M$3:$M$262,1,'2022-23 Data'!$AO$3:$AO$262)/(SUMIF('2022-23 Data'!$M$3:$M$262,1,'2022-23 Data'!$C$3:$C$262)+SUMIF('2022-23 Data'!$M$3:$M$262,1,'2022-23 Data'!$D$3:$D$262)),"")),"",IF(D4>0,SUMIF('2022-23 Data'!$M$3:$M$262,1,'2022-23 Data'!$AO$3:$AO$262)/(SUMIF('2022-23 Data'!$M$3:$M$262,1,'2022-23 Data'!$C$3:$C$262)+SUMIF('2022-23 Data'!$M$3:$M$262,1,'2022-23 Data'!$D$3:$D$262)),"")) ->  | M43: =IF(ISERROR(SUM('2022-23 Data'!$AO$3:$AO$262)/SUM('2022-23 Data'!$C$3:$D$262)),"",SUM('2022-23 Data'!$AO$3:$AO$262)/SUM('2022-23 Data'!$C$3:$D$262)) -> 103.4592455 | N43: 0.01716818156 | O43: 0.01773643014
B44: Bought in professional services other - PFI only | C44: E28b | D44: =IF(ISERROR(INDEX('2022-23 Data'!$B$3:$BP$262,MATCH($D$4,dfenums,0),MATCH(C44,'2022-23 Data'!$B$2:$BP$2,0))),"",INDEX('2022-23 Data'!$B$3:$BP$262,MATCH($D$4,dfenums,0),MATCH(C44,'2022-23 Data'!$B$2:$BP$2,0))) ->  | I44: =IF(ISERROR(IF(D4>0,SUMIF('2022-23 Data'!$M$3:$M$262,1,'2022-23 Data'!$AP$3:$AP$262)/(SUMIF('2022-23 Data'!$M$3:$M$262,1,'2022-23 Data'!$C$3:$C$262)+SUMIF('2022-23 Data'!$M$3:$M$262,1,'2022-23 Data'!$D$3:$D$262)),"")),"",IF(D4>0,SUMIF('2022-23 Data'!$M$3:$M$262,1,'2022-23 Data'!$AP$3:$AP$262)/(SUMIF('2022-23 Data'!$M$3:$M$262,1,'2022-23 Data'!$C$3:$C$262)+SUMIF('2022-23 Data'!$M$3:$M$262,1,'2022-23 Data'!$D$3:$D$262)),"")) ->  | M44: =IF(ISERROR(SUM('2022-23 Data'!$AP$3:$AP$262)/SUM('2022-23 Data'!$C$3:$D$262)),"",SUM('2022-23 Data'!$AP$3:$AP$262)/SUM('2022-23 Data'!$C$3:$D$262)) -> 0 | N44: 0 | O44: 0
B45: Loan interest | C45: E29 | D45: =IF(ISERROR(INDEX('2022-23 Data'!$B$3:$BP$262,MATCH($D$4,dfenums,0),MATCH(C45,'2022-23 Data'!$B$2:$BP$2,0))),"",INDEX('2022-23 Data'!$B$3:$BP$262,MATCH($D$4,dfenums,0),MATCH(C45,'2022-23 Data'!$B$2:$BP$2,0))) ->  | I45: =IF(ISERROR(IF(D4>0,SUMIF('2022-23 Data'!$M$3:$M$262,1,'2022-23 Data'!$AQ$3:$AQ$262)/(SUMIF('2022-23 Data'!$M$3:$M$262,1,'2022-23 Data'!$C$3:$C$262)+SUMIF('2022-23 Data'!$M$3:$M$262,1,'2022-23 Data'!$D$3:$D$262)),"")),"",IF(D4>0,SUMIF('2022-23 Data'!$M$3:$M$262,1,'2022-23 Data'!$AQ$3:$AQ$262)/(SUMIF('2022-23 Data'!$M$3:$M$262,1,'2022-23 Data'!$C$3:$C$262)+SUMIF('2022-23 Data'!$M$3:$M$262,1,'2022-23 Data'!$D$3:$D$262)),"")) ->  | M45: =IF(ISERROR(SUM('2022-23 Data'!$AQ$3:$AQ$262)/SUM('2022-23 Data'!$C$3:$D$262)),"",SUM('2022-23 Data'!$AQ$3:$AQ$262)/SUM('2022-23 Data'!$C$3:$D$262)) -> 0.1318455835 | N45: 2.187865283e-05 | O45: 2.260281301e-05
B46: Direct revenue financing (rev contrib. to cap) | C46: E30 | D46: =IF(ISERROR(INDEX('2022-23 Data'!$B$3:$BP$262,MATCH($D$4,dfenums,0),MATCH(C46,'2022-23 Data'!$B$2:$BP$2,0))),"",INDEX('2022-23 Data'!$B$3:$BP$262,MATCH($D$4,dfenums,0),MATCH(C46,'2022-23 Data'!$B$2:$BP$2,0))) ->  | I46: =IF(ISERROR(IF(D4>0,SUMIF('2022-23 Data'!$M$3:$M$262,1,'2022-23 Data'!$AR$3:$AR$262)/(SUMIF('2022-23 Data'!$M$3:$M$262,1,'2022-23 Data'!$C$3:$C$262)+SUMIF('2022-23 Data'!$M$3:$M$262,1,'2022-23 Data'!$D$3:$D$262)),"")),"",IF(D4>0,SUMIF('2022-23 Data'!$M$3:$M$262,1,'2022-23 Data'!$AR$3:$AR$262)/(SUMIF('2022-23 Data'!$M$3:$M$262,1,'2022-23 Data'!$C$3:$C$262)+SUMIF('2022-23 Data'!$M$3:$M$262,1,'2022-23 Data'!$D$3:$D$262)),"")) ->  | M46: =IF(ISERROR(SUM('2022-23 Data'!$AR$3:$AR$262)/SUM('2022-23 Data'!$C$3:$D$262)),"",SUM('2022-23 Data'!$AR$3:$AR$262)/SUM('2022-23 Data'!$C$3:$D$262)) -> 76.39322276 | N46: 0.01267680536 | O46: 0.01309639416
B47: Community focussed extended school staff | C47: E31 | D47: =IF(ISERROR(INDEX('2022-23 Data'!$B$3:$BP$262,MATCH($D$4,dfenums,0),MATCH(C47,'2022-23 Data'!$B$2:$BP$2,0))),"",INDEX('2022-23 Data'!$B$3:$BP$262,MATCH($D$4,dfenums,0),MATCH(C47,'2022-23 Data'!$B$2:$BP$2,0))) ->  | I47: =IF(ISERROR(IF(D4>0,SUMIF('2022-23 Data'!$M$3:$M$262,1,'2022-23 Data'!$AS$3:$AS$262)/(SUMIF('2022-23 Data'!$M$3:$M$262,1,'2022-23 Data'!$C$3:$C$262)+SUMIF('2022-23 Data'!$M$3:$M$262,1,'2022-23 Data'!$D$3:$D$262)),"")),"",IF(D4>0,SUMIF('2022-23 Data'!$M$3:$M$262,1,'2022-23 Data'!$AS$3:$AS$262)/(SUMIF('2022-23 Data'!$M$3:$M$262,1,'2022-23 Data'!$C$3:$C$262)+SUMIF('2022-23 Data'!$M$3:$M$262,1,'2022-23 Data'!$D$3:$D$262)),"")) ->  | M47: =IF(ISERROR(SUM('2022-23 Data'!$AS$3:$AS$262)/SUM('2022-23 Data'!$C$3:$D$262)),"",SUM('2022-23 Data'!$AS$3:$AS$262)/SUM('2022-23 Data'!$C$3:$D$262)) -> 9.886749054 | N47: 0.001640621888 | O47: 0.001694924731
B48: Community focussed extended school costs | C48: E32 | D48: =IF(ISERROR(INDEX('2022-23 Data'!$B$3:$BP$262,MATCH($D$4,dfenums,0),MATCH(C48,'2022-23 Data'!$B$2:$BP$2,0))),"",INDEX('2022-23 Data'!$B$3:$BP$262,MATCH($D$4,dfenums,0),MATCH(C48,'2022-23 Data'!$B$2:$BP$2,0))) ->  | I48: =IF(ISERROR(IF(D4>0,SUMIF('2022-23 Data'!$M$3:$M$262,1,'2022-23 Data'!$AT$3:$AT$262)/(SUMIF('2022-23 Data'!$M$3:$M$262,1,'2022-23 Data'!$C$3:$C$262)+SUMIF('2022-23 Data'!$M$3:$M$262,1,'2022-23 Data'!$D$3:$D$262)),"")),"",IF(D4>0,SUMIF('2022-23 Data'!$M$3:$M$262,1,'2022-23 Data'!$AT$3:$AT$262)/(SUMIF('2022-23 Data'!$M$3:$M$262,1,'2022-23 Data'!$C$3:$C$262)+SUMIF('2022-23 Data'!$M$3:$M$262,1,'2022-23 Data'!$D$3:$D$262)),"")) ->  | M48: =IF(ISERROR(SUM('2022-23 Data'!$AT$3:$AT$262)/SUM('2022-23 Data'!$C$3:$D$262)),"",SUM('2022-23 Data'!$AT$3:$AT$262)/SUM('2022-23 Data'!$C$3:$D$262)) -> 2.496858771 | N48: 0.0004143324695 | O48: 0.0004280464344
B49: Total Expenditure | D49: =IF(ISERROR(SUM(D16:D48)),"",SUM(D16:D48)) -> 0 | E49: =IF(ISERROR(SUM(E16:E48)),"",SUM(E16:E48)) -> 0 | F49: =IF(ISERROR(SUM(F16:F48)),"",SUM(F16:F48)) -> 0 | G49: =IF(ISERROR(SUM(G16:G48)),"",SUM(G16:G48)) -> 0 | I49: =IF(ISERROR(SUM(I16:I48)),"",SUM(I16:I48)) -> 0 | J49: =IF(ISERROR(SUM(J16:J48)),"",SUM(J16:J48)) -> 0 | K49: =IF(ISERROR(SUM(K16:K48)),"",SUM(K16:K48)) -> 0 | M49: =IF(ISERROR(SUM(M16:M48)),"",SUM(M16:M48)) -> 6026.220376 | N49: =IF(ISERROR(SUM(N16:N48)),"",SUM(N16:N48)) -> 1 | O49: =IF(ISERROR(SUM(O16:O48)),"",SUM(O16:O48)) -> 1.033098938
B51: INCOME
B52: Funds delegated by the LEA (excluding High Needs) | C52: I01 | D52: =IF(ISERROR(INDEX('2022-23 Data'!$B$3:$BP$262,MATCH($D$4,dfenums,0),MATCH(B52,'2022-23 Data'!$B$2:$BP$2,0))),"",INDEX('2022-23 Data'!$B$3:$BP$262,MATCH($D$4,dfenums,0),MATCH(B52,'2022-23 Data'!$B$2:$BP$2,0))) ->  | E52: =IF(ISERROR(D52/($F$4+$G$4-VLOOKUP($D$4,'2022-23 Data'!$A$3:$E$262,5,0))),"",D52/($F$4+$G$4-VLOOKUP($D$4,'2022-23 Data'!$A$3:$E$262,5,0))) ->  | F52: =IF(ISERROR(D52/$D$75),"",D52/$D$75) ->  | I52: =IF(ISERROR(IF(D4>0,SUMIF('2022-23 Data'!$M$3:$M$262,1,'2022-23 Data'!$AU$3:$AU$262)/(SUMIF('2022-23 Data'!$M$3:$M$262,1,'2022-23 Data'!$C$3:$C$262)-SUMIF('2022-23 Data'!M3:M262,1,'2022-23 Data'!E3:E262)+SUMIF('2022-23 Data'!$M$3:$M$262,1,'2022-23 Data'!$D$3:$D$262)),"")),"",IF(D4>0,SUMIF('2022-23 Data'!$M$3:$M$262,1,'2022-23 Data'!$AU$3:$AU$262)/(SUMIF('2022-23 Data'!$M$3:$M$262,1,'2022-23 Data'!$C$3:$C$262)-SUMIF('2022-23 Data'!M3:M262,1,'2022-23 Data'!E3:E262)+SUMIF('2022-23 Data'!$M$3:$M$262,1,'2022-23 Data'!$D$3:$D$262)),"")) ->  | J52: =IF(ISERROR(I52/$I$75),"",I52/$I$75) ->  | M52: =IF(ISERROR(SUM('2022-23 Data'!$AU$3:$AU$262)/(SUM('2022-23 Data'!$C$3:$D$262)-SUM('2022-23 Data'!$E$3:$E$262))),"", SUM('2022-23 Data'!$AU$3:$AU$262)/(SUM('2022-23 Data'!$C$3:$D$262)-SUM('2022-23 Data'!$E$3:$E$262))) -> -4083.34071 | N52: =IF(ISERROR(M52/$M$75),"",M52/$M$75) -> 0.7000233462
B53: Notional SEN Budget | C53: I01 | D53: =IF(ISERROR(INDEX('2022-23 Data'!$B$3:$BP$262,MATCH($D$4,dfenums,0),MATCH(B53,'2022-23 Data'!$B$2:$BP$2,0))),"",INDEX('2022-23 Data'!$B$3:$BP$262,MATCH($D$4,dfenums,0),MATCH(B53,'2022-23 Data'!$B$2:$BP$2,0))) ->  | E53: =IF(ISERROR(D53/($G$4-VLOOKUP($D$4,'2022-23 Data'!$A$3:$E$262,5,0))),"",D53/($G$4-VLOOKUP($D$4,'2022-23 Data'!$A$3:$E$262,5,0))) ->  | F53: =IF(ISERROR(D53/$D$75),"",D53/$D$75) ->  | I53: =IF(ISERROR(IF(D4>0,SUMIF('2022-23 Data'!$M$3:$M$262,1,'2022-23 Data'!$AV$3:$AV$262)/(SUMIF('2022-23 Data'!$M$3:$M$262,1,'2022-23 Data'!$D$3:$D$262)-SUMIF('2022-23 Data'!$M$3:$M$262,1,'2022-23 Data'!$E$3:$E$262)),"")),"",IF(D4>0,SUMIF('2022-23 Data'!$M$3:$M$262,1,'2022-23 Data'!$AV$3:$AV$262)/(SUMIF('2022-23 Data'!$M$3:$M$262,1,'2022-23 Data'!$D$3:$D$262)-SUMIF('2022-23 Data'!$M$3:$M$262,1,'2022-23 Data'!$E$3:$E$262)),"")) ->  | J53: =IF(ISERROR(I53/$I$75),"",I53/$I$75) ->  | M53: =IF(ISERROR(SUM('2022-23 Data'!$AV$3:$AV$262)/(SUM('2022-23 Data'!$D$3:$D$262)-SUM('2022-23 Data'!$E$3:$E$262))),"", SUM('2022-23 Data'!$AV$3:$AV$262)/(SUM('2022-23 Data'!$D$3:$D$262)-SUM('2022-23 Data'!$E$3:$E$262))) -> -659.3458536 | N53: =IF(ISERROR(M53/$M$75),"",M53/$M$75) -> 0.1130342833
B54: Funding for sixth form students (excluding High Needs) | C54: I02 | D54: =IF(D4>0,0,"") ->  | E54: =IF(D4>0,0,"") ->  | F54: =IF(D4>0,0,"") ->  | I54: =IF(D4>0,0,"") ->  | J54: =IF(D4>0,0,"") ->  | M54: =IF(D4>0,0,"") ->  | N54: =IF(D4>0,0,"") -> 
B55: Specially Rescourced Provision (Unit) Funding | C55: I01/2/3 | D55: =IF(ISERROR(INDEX('2022-23 Data'!$B$3:$BP$262,MATCH($D$4,dfenums,0),MATCH(B55,'2022-23 Data'!$B$2:$BP$2,0))),"",INDEX('2022-23 Data'!$B$3:$BP$262,MATCH($D$4,dfenums,0),MATCH(B55,'2022-23 Data'!$B$2:$BP$2,0))) ->  | E55: Meaningful comparison is not possible in this area
B56: Funding for High Needs Pupils | C56: I01/2/3 | D56: =IF(ISERROR(INDEX('2022-23 Data'!$B$3:$BP$262,MATCH($D$4,dfenums,0),MATCH(B56,'2022-23 Data'!$B$2:$BP$2,0))),"",INDEX('2022-23 Data'!$B$3:$BP$262,MATCH($D$4,dfenums,0),MATCH(B56,'2022-23 Data'!$B$2:$BP$2,0))) -> 
B57: Funding for minority ethnic pupils | C57: I04 | D57: =IF(ISERROR(INDEX('2022-23 Data'!$B$3:$BP$262,MATCH($D$4,dfenums,0),MATCH(C57,'2022-23 Data'!$B$2:$BP$2,0))),"",INDEX('2022-23 Data'!$B$3:$BP$262,MATCH($D$4,dfenums,0),MATCH(C57,'2022-23 Data'!$B$2:$BP$2,0))) ->  | E57: =IF(ISERROR(D57/($F$4+$G$4)),"",D57/($F$4+$G$4)) ->  | I57: =IF(ISERROR(IF(D4>0,SUMIF('2022-23 Data'!$M$3:$M$262,1,'2022-23 Data'!$AY$3:$AY$262)/(SUMIF('2022-23 Data'!$M$3:$M$262,1,'2022-23 Data'!$C$3:$C$262)+SUMIF('2022-23 Data'!$M$3:$M$262,1,'2022-23 Data'!$D$3:$D$262)),"")),"",IF(D4>0,SUMIF('2022-23 Data'!$M$3:$M$262,1,'2022-23 Data'!$AY$3:$AY$262)/(SUMIF('2022-23 Data'!$M$3:$M$262,1,'2022-23 Data'!$C$3:$C$262)+SUMIF('2022-23 Data'!$M$3:$M$262,1,'2022-23 Data'!$D$3:$D$262)),"")) ->  | M57: =IF(ISERROR(SUM('2022-23 Data'!$AY$3:$AY$262)/SUM('2022-23 Data'!$C$3:$D$262)),"",SUM('2022-23 Data'!$AY$3:$AY$262)/SUM('2022-23 Data'!$C$3:$D$262)) -> 0 | N57: 0
B58: Pupil Premium | C58: I05 | D58: =IF(ISERROR(INDEX('2022-23 Data'!$B$3:$BP$262,MATCH($D$4,dfenums,0),MATCH(C58,'2022-23 Data'!$B$2:$BP$2,0))),"",INDEX('2022-23 Data'!$B$3:$BP$262,MATCH($D$4,dfenums,0),MATCH(C58,'2022-23 Data'!$B$2:$BP$2,0))) ->  | E58: =IF(ISERROR(D58/($F$4+$G$4)),"",D58/($F$4+$G$4)) ->  | I58: =IF(ISERROR(IF(D4>0,SUMIF('2022-23 Data'!$M$3:$M$262,1,'2022-23 Data'!$AZ$3:$AZ$262)/(SUMIF('2022-23 Data'!$M$3:$M$262,1,'2022-23 Data'!$C$3:$C$262)+SUMIF('2022-23 Data'!$M$3:$M$262,1,'2022-23 Data'!$D$3:$D$262)),"")),"",IF(D4>0,SUMIF('2022-23 Data'!$M$3:$M$262,1,'2022-23 Data'!$AZ$3:$AZ$262)/(SUMIF('2022-23 Data'!$M$3:$M$262,1,'2022-23 Data'!$C$3:$C$262)+SUMIF('2022-23 Data'!$M$3:$M$262,1,'2022-23 Data'!$D$3:$D$262)),"")) ->  | M58: =IF(ISERROR(SUM('2022-23 Data'!$AZ$3:$AZ$262)/SUM('2022-23 Data'!$C$3:$D$262)),"",SUM('2022-23 Data'!$AZ$3:$AZ$262)/SUM('2022-23 Data'!$C$3:$D$262)) -> -307.0101557 | N58: 0.05263197263
B59: Other government grants | C59: I06 | D59: =IF(ISERROR(INDEX('2022-23 Data'!$B$3:$BP$262,MATCH($D$4,dfenums,0),MATCH(C59,'2022-23 Data'!$B$2:$BP$2,0))),"",INDEX('2022-23 Data'!$B$3:$BP$262,MATCH($D$4,dfenums,0),MATCH(C59,'2022-23 Data'!$B$2:$BP$2,0))) ->  | I59: =IF(ISERROR(IF(D4>0,SUMIF('2022-23 Data'!$M$3:$M$262,1,'2022-23 Data'!$BA$3:$BA$262)/(SUMIF('2022-23 Data'!$M$3:$M$262,1,'2022-23 Data'!$C$3:$C$262)+SUMIF('2022-23 Data'!$M$3:$M$262,1,'2022-23 Data'!$D$3:$D$262)),"")),"",IF(D4>0,SUMIF('2022-23 Data'!$M$3:$M$262,1,'2022-23 Data'!$BA$3:$BA$262)/(SUMIF('2022-23 Data'!$M$3:$M$262,1,'2022-23 Data'!$C$3:$C$262)+SUMIF('2022-23 Data'!$M$3:$M$262,1,'2022-23 Data'!$D$3:$D$262)),"")) ->  | M59: =IF(ISERROR(SUM('2022-23 Data'!$BA$3:$BA$262)/SUM('2022-23 Data'!$C$3:$D$262)),"",SUM('2022-23 Data'!$BA$3:$BA$262)/SUM('2022-23 Data'!$C$3:$D$262)) -> -5.855994755 | N59: 0.001003916483
B60: Other grants and payments | C60: I07 | D60: =IF(ISERROR(INDEX('2022-23 Data'!$B$3:$BP$262,MATCH($D$4,dfenums,0),MATCH(C60,'2022-23 Data'!$B$2:$BP$2,0))),"",INDEX('2022-23 Data'!$B$3:$BP$262,MATCH($D$4,dfenums,0),MATCH(C60,'2022-23 Data'!$B$2:$BP$2,0))) ->  | I60: =IF(ISERROR(IF(D4>0,SUMIF('2022-23 Data'!$M$3:$M$262,1,'2022-23 Data'!$BB$3:$BB$262)/(SUMIF('2022-23 Data'!$M$3:$M$262,1,'2022-23 Data'!$C$3:$C$262)+SUMIF('2022-23 Data'!$M$3:$M$262,1,'2022-23 Data'!$D$3:$D$262)),"")),"",IF(D4>0,SUMIF('2022-23 Data'!$M$3:$M$262,1,'2022-23 Data'!$BB$3:$BB$262)/(SUMIF('2022-23 Data'!$M$3:$M$262,1,'2022-23 Data'!$C$3:$C$262)+SUMIF('2022-23 Data'!$M$3:$M$262,1,'2022-23 Data'!$D$3:$D$262)),"")) ->  | M60: =IF(ISERROR(SUM('2022-23 Data'!$BB$3:$BB$262)/SUM('2022-23 Data'!$C$3:$D$262)),"",SUM('2022-23 Data'!$BB$3:$BB$262)/SUM('2022-23 Data'!$C$3:$D$262)) -> -48.30322427 | N60: 0.008280813943
B61: Income from Letting premises | C61: I08 | D61: =IF(ISERROR(INDEX('2022-23 Data'!$B$3:$BP$262,MATCH($D$4,dfenums,0),MATCH(C61,'2022-23 Data'!$B$2:$BP$2,0))),"",INDEX('2022-23 Data'!$B$3:$BP$262,MATCH($D$4,dfenums,0),MATCH(C61,'2022-23 Data'!$B$2:$BP$2,0))) ->  | E61: =IF(ISERROR(D61/($F$4+$G$4)),"",D61/($F$4+$G$4)) ->  | F61: =IF(ISERROR(D61/$D$75),"",D61/$D$75) ->  | I61: =IF(ISERROR(IF(D4>0,SUMIF('2022-23 Data'!$M$3:$M$262,1,'2022-23 Data'!$BC$3:$BC$262)/(SUMIF('2022-23 Data'!$M$3:$M$262,1,'2022-23 Data'!$C$3:$C$262)+SUMIF('2022-23 Data'!$M$3:$M$262,1,'2022-23 Data'!$D$3:$D$262)),"")),"",IF(D4>0,SUMIF('2022-23 Data'!$M$3:$M$262,1,'2022-23 Data'!$BC$3:$BC$262)/(SUMIF('2022-23 Data'!$M$3:$M$262,1,'2022-23 Data'!$C$3:$C$262)+SUMIF('2022-23 Data'!$M$3:$M$262,1,'2022-23 Data'!$D$3:$D$262)),"")) ->  | J61: =IF(ISERROR(I61/$I$75),"",I61/$I$75) ->  | M61: =IF(ISERROR(SUM('2022-23 Data'!$BD$3:$BD$262)/SUM('2022-23 Data'!$C$3:$D$262)),"",SUM('2022-23 Data'!$BD$3:$BD$262)/SUM('2022-23 Data'!$C$3:$D$262)) -> -145.531371 | N61: =IF(ISERROR(M61/$M$75),"",M61/$M$75) -> 0.02494902202
B62: Other income from facilities and services | C62: I08b | D62: =IF(ISERROR(INDEX('2022-23 Data'!$B$3:$BP$262,MATCH($D$4,dfenums,0),MATCH(C62,'2022-23 Data'!$B$2:$BP$2,0))),"",INDEX('2022-23 Data'!$B$3:$BP$262,MATCH($D$4,dfenums,0),MATCH(C62,'2022-23 Data'!$B$2:$BP$2,0))) ->  | I62: =IF(ISERROR(IF(D4>0,SUMIF('2022-23 Data'!$M$3:$M$262,1,'2022-23 Data'!$BD$3:$BD$262)/(SUMIF('2022-23 Data'!$M$3:$M$262,1,'2022-23 Data'!$C$3:$C$262)+SUMIF('2022-23 Data'!$M$3:$M$262,1,'2022-23 Data'!$D$3:$D$262)),"")),"",IF(D4>0,SUMIF('2022-23 Data'!$M$3:$M$262,1,'2022-23 Data'!$BD$3:$BD$262)/(SUMIF('2022-23 Data'!$M$3:$M$262,1,'2022-23 Data'!$C$3:$C$262)+SUMIF('2022-23 Data'!$M$3:$M$262,1,'2022-23 Data'!$D$3:$D$262)),"")) ->  | M62: =IF(ISERROR(SUM('2022-23 Data'!$BD$3:$BD$262)/SUM('2022-23 Data'!$C$3:$D$262)),"",SUM('2022-23 Data'!$BD$3:$BD$262)/SUM('2022-23 Data'!$C$3:$D$262)) -> -145.531371 | N62: 0.02494902202
B63: Income from catering | C63: I09 | D63: =IF(ISERROR(INDEX('2022-23 Data'!$B$3:$BP$262,MATCH($D$4,dfenums,0),MATCH(C63,'2022-23 Data'!$B$2:$BP$2,0))),"",INDEX('2022-23 Data'!$B$3:$BP$262,MATCH($D$4,dfenums,0),MATCH(C63,'2022-23 Data'!$B$2:$BP$2,0))) ->  | I63: =IF(ISERROR(IF(D4>0,SUMIF('2022-23 Data'!$M$3:$M$262,1,'2022-23 Data'!$BE$3:$BE$262)/(SUMIF('2022-23 Data'!$M$3:$M$262,1,'2022-23 Data'!$C$3:$C$262)+SUMIF('2022-23 Data'!$M$3:$M$262,1,'2022-23 Data'!$D$3:$D$262)),"")),"",IF(D4>0,SUMIF('2022-23 Data'!$M$3:$M$262,1,'2022-23 Data'!$BE$3:$BE$262)/(SUMIF('2022-23 Data'!$M$3:$M$262,1,'2022-23 Data'!$C$3:$C$262)+SUMIF('2022-23 Data'!$M$3:$M$262,1,'2022-23 Data'!$D$3:$D$262)),"")) ->  | M63: =IF(ISERROR(SUM('2022-23 Data'!$BE$3:$BE$262)/SUM('2022-23 Data'!$C$3:$D$262)),"",SUM('2022-23 Data'!$BE$3:$BE$262)/SUM('2022-23 Data'!$C$3:$D$262)) -> -24.43962669 | N63: 0.004189782453
B64: Receipts from supply teachers insurance claims | C64: I10 | D64: =IF(ISERROR(INDEX('2022-23 Data'!$B$3:$BP$262,MATCH($D$4,dfenums,0),MATCH(C64,'2022-23 Data'!$B$2:$BP$2,0))),"",INDEX('2022-23 Data'!$B$3:$BP$262,MATCH($D$4,dfenums,0),MATCH(C64,'2022-23 Data'!$B$2:$BP$2,0))) ->  | I64: =IF(ISERROR(IF(D4>0,SUMIF('2022-23 Data'!$M$3:$M$262,1,'2022-23 Data'!$BF$3:$BF$262)/(SUMIF('2022-23 Data'!$M$3:$M$262,1,'2022-23 Data'!$C$3:$C$262)+SUMIF('2022-23 Data'!$M$3:$M$262,1,'2022-23 Data'!$D$3:$D$262)),"")),"",IF(D4>0,SUMIF('2022-23 Data'!$M$3:$M$262,1,'2022-23 Data'!$BF$3:$BF$262)/(SUMIF('2022-23 Data'!$M$3:$M$262,1,'2022-23 Data'!$C$3:$C$262)+SUMIF('2022-23 Data'!$M$3:$M$262,1,'2022-23 Data'!$D$3:$D$262)),"")) ->  | M64: =IF(ISERROR(SUM('2022-23 Data'!$BF$3:$BF$262)/SUM('2022-23 Data'!$C$3:$D$262)),"",SUM('2022-23 Data'!$BF$3:$BF$262)/SUM('2022-23 Data'!$C$3:$D$262)) -> -9.443423055 | N64: 0.001618923591
B65: Receipts from other insurance claims | C65: I11 | D65: =IF(ISERROR(INDEX('2022-23 Data'!$B$3:$BP$262,MATCH($D$4,dfenums,0),MATCH(C65,'2022-23 Data'!$B$2:$BP$2,0))),"",INDEX('2022-23 Data'!$B$3:$BP$262,MATCH($D$4,dfenums,0),MATCH(C65,'2022-23 Data'!$B$2:$BP$2,0))) ->  | I65: =IF(ISERROR(IF(D4>0,SUMIF('2022-23 Data'!$M$3:$M$262,1,'2022-23 Data'!$BG$3:$BG$262)/(SUMIF('2022-23 Data'!$M$3:$M$262,1,'2022-23 Data'!$C$3:$C$262)+SUMIF('2022-23 Data'!$M$3:$M$262,1,'2022-23 Data'!$D$3:$D$262)),"")),"",IF(D4>0,SUMIF('2022-23 Data'!$M$3:$M$262,1,'2022-23 Data'!$BG$3:$BG$262)/(SUMIF('2022-23 Data'!$M$3:$M$262,1,'2022-23 Data'!$C$3:$C$262)+SUMIF('2022-23 Data'!$M$3:$M$262,1,'2022-23 Data'!$D$3:$D$262)),"")) ->  | M65: =IF(ISERROR(SUM('2022-23 Data'!$BG$3:$BG$262)/SUM('2022-23 Data'!$C$3:$D$262)),"",SUM('2022-23 Data'!$BG$3:$BG$262)/SUM('2022-23 Data'!$C$3:$D$262)) -> -20.07712779 | N65: 0.003441901906
B66: Income from contributions to visits etc. | C66: I12 | D66: =IF(ISERROR(INDEX('2022-23 Data'!$B$3:$BP$262,MATCH($D$4,dfenums,0),MATCH(C66,'2022-23 Data'!$B$2:$BP$2,0))),"",INDEX('2022-23 Data'!$B$3:$BP$262,MATCH($D$4,dfenums,0),MATCH(C66,'2022-23 Data'!$B$2:$BP$2,0))) ->  | I66: =IF(ISERROR(IF(D4>0,SUMIF('2022-23 Data'!$M$3:$M$262,1,'2022-23 Data'!$BH$3:$BH$262)/(SUMIF('2022-23 Data'!$M$3:$M$262,1,'2022-23 Data'!$C$3:$C$262)+SUMIF('2022-23 Data'!$M$3:$M$262,1,'2022-23 Data'!$D$3:$D$262)),"")),"",IF(D4>0,SUMIF('2022-23 Data'!$M$3:$M$262,1,'2022-23 Data'!$BH$3:$BH$262)/(SUMIF('2022-23 Data'!$M$3:$M$262,1,'2022-23 Data'!$C$3:$C$262)+SUMIF('2022-23 Data'!$M$3:$M$262,1,'2022-23 Data'!$D$3:$D$262)),"")) ->  | M66: =IF(ISERROR(SUM('2022-23 Data'!$BH$3:$BH$262)/SUM('2022-23 Data'!$C$3:$D$262)),"",SUM('2022-23 Data'!$BH$3:$BH$262)/SUM('2022-23 Data'!$C$3:$D$262)) -> -68.79992917 | N66: 0.01179464562
B67: Donations and/or voluntary funds | C67: I13 | D67: =IF(ISERROR(INDEX('2022-23 Data'!$B$3:$BP$262,MATCH($D$4,dfenums,0),MATCH(C67,'2022-23 Data'!$B$2:$BP$2,0))),"",INDEX('2022-23 Data'!$B$3:$BP$262,MATCH($D$4,dfenums,0),MATCH(C67,'2022-23 Data'!$B$2:$BP$2,0))) ->  | I67: =IF(ISERROR(IF(D4>0,SUMIF('2022-23 Data'!$M$3:$M$262,1,'2022-23 Data'!$BI$3:$BI$262)/(SUMIF('2022-23 Data'!$M$3:$M$262,1,'2022-23 Data'!$C$3:$C$262)+SUMIF('2022-23 Data'!$M$3:$M$262,1,'2022-23 Data'!$D$3:$D$262)),"")),"",IF(D4>0,SUMIF('2022-23 Data'!$M$3:$M$262,1,'2022-23 Data'!$BI$3:$BI$262)/(SUMIF('2022-23 Data'!$M$3:$M$262,1,'2022-23 Data'!$C$3:$C$262)+SUMIF('2022-23 Data'!$M$3:$M$262,1,'2022-23 Data'!$D$3:$D$262)),"")) ->  | M67: =IF(ISERROR(SUM('2022-23 Data'!$BI$3:$BI$262)/SUM('2022-23 Data'!$C$3:$D$262)),"",SUM('2022-23 Data'!$BI$3:$BI$262)/SUM('2022-23 Data'!$C$3:$D$262)) -> -35.52313023 | N67: 0.006089871567
B68: Pupil focussed extended school funding &/or grants | C68: I15 | D68: =IF(ISERROR(INDEX('2022-23 Data'!$B$3:$BP$262,MATCH($D$4,dfenums,0),MATCH(C68,'2022-23 Data'!$B$2:$BP$2,0))),"",INDEX('2022-23 Data'!$B$3:$BP$262,MATCH($D$4,dfenums,0),MATCH(C68,'2022-23 Data'!$B$2:$BP$2,0))) ->  | I68: =IF(ISERROR(IF(D4>0,SUMIF('2022-23 Data'!$M$3:$M$262,1,'2022-23 Data'!$BJ$3:$BJ$262)/(SUMIF('2022-23 Data'!$M$3:$M$262,1,'2022-23 Data'!$C$3:$C$262)+SUMIF('2022-23 Data'!$M$3:$M$262,1,'2022-23 Data'!$D$3:$D$262)),"")),"",IF(D4>0,SUMIF('2022-23 Data'!$M$3:$M$262,1,'2022-23 Data'!$BJ$3:$BJ$262)/(SUMIF('2022-23 Data'!$M$3:$M$262,1,'2022-23 Data'!$C$3:$C$262)+SUMIF('2022-23 Data'!$M$3:$M$262,1,'2022-23 Data'!$D$3:$D$262)),"")) ->  | M68: =IF(ISERROR(SUM('2022-23 Data'!$BJ$3:$BJ$262)/SUM('2022-23 Data'!$C$3:$D$262)),"",SUM('2022-23 Data'!$BJ$3:$BJ$262)/SUM('2022-23 Data'!$C$3:$D$262)) -> 0 | N68: 0
B69: Com focussed extended school funding &/or grants | C69: I16 | D69: =IF(ISERROR(INDEX('2022-23 Data'!$B$3:$BP$262,MATCH($D$4,dfenums,0),MATCH(C69,'2022-23 Data'!$B$2:$BP$2,0))),"",INDEX('2022-23 Data'!$B$3:$BP$262,MATCH($D$4,dfenums,0),MATCH(C69,'2022-23 Data'!$B$2:$BP$2,0))) ->  | I69: =IF(ISERROR(IF(D4>0,SUMIF('2022-23 Data'!$M$3:$M$262,1,'2022-23 Data'!$BK$3:$BK$262)/(SUMIF('2022-23 Data'!$M$3:$M$262,1,'2022-23 Data'!$C$3:$C$262)+SUMIF('2022-23 Data'!$M$3:$M$262,1,'2022-23 Data'!$D$3:$D$262)),"")),"",IF(D4>0,SUMIF('2022-23 Data'!$M$3:$M$262,1,'2022-23 Data'!$BK$3:$BK$262)/(SUMIF('2022-23 Data'!$M$3:$M$262,1,'2022-23 Data'!$C$3:$C$262)+SUMIF('2022-23 Data'!$M$3:$M$262,1,'2022-23 Data'!$D$3:$D$262)),"")) ->  | M69: =IF(ISERROR(SUM('2022-23 Data'!$BK$3:$BK$262)/SUM('2022-23 Data'!$C$3:$D$262)),"",SUM('2022-23 Data'!$BK$3:$BK$262)/SUM('2022-23 Data'!$C$3:$D$262)) -> 0 | N69: 0
B70: Com focussed extended school facilities income | C70: I17 | D70: =IF(ISERROR(INDEX('2022-23 Data'!$B$3:$BP$262,MATCH($D$4,dfenums,0),MATCH(C70,'2022-23 Data'!$B$2:$BP$2,0))),"",INDEX('2022-23 Data'!$B$3:$BP$262,MATCH($D$4,dfenums,0),MATCH(C70,'2022-23 Data'!$B$2:$BP$2,0))) ->  | I70: =IF(ISERROR(IF(D4>0,SUMIF('2022-23 Data'!$M$3:$M$262,1,'2022-23 Data'!$BL$3:$BL$262)/(SUMIF('2022-23 Data'!$M$3:$M$262,1,'2022-23 Data'!$C$3:$C$262)+SUMIF('2022-23 Data'!$M$3:$M$262,1,'2022-23 Data'!$D$3:$D$262)),"")),"",IF(D4>0,SUMIF('2022-23 Data'!$M$3:$M$262,1,'2022-23 Data'!$BL$3:$BL$262)/(SUMIF('2022-23 Data'!$M$3:$M$262,1,'2022-23 Data'!$C$3:$C$262)+SUMIF('2022-23 Data'!$M$3:$M$262,1,'2022-23 Data'!$D$3:$D$262)),"")) ->  | M70: =IF(ISERROR(SUM('2022-23 Data'!$BL$3:$BL$262)/SUM('2022-23 Data'!$C$3:$D$262)),"",SUM('2022-23 Data'!$BL$3:$BL$262)/SUM('2022-23 Data'!$C$3:$D$262)) -> -14.12566757 | N70: 0.002421619399
B71: Additional Grant for Schools | C71: I18 | D71: =IF(ISERROR(INDEX('2022-23 Data'!$B$3:$BP$262,MATCH($D$4,dfenums,0),MATCH(C71,'2022-23 Data'!$B$2:$BP$2,0))),"",INDEX('2022-23 Data'!$B$3:$BP$262,MATCH($D$4,dfenums,0),MATCH(C71,'2022-23 Data'!$B$2:$BP$2,0))) ->  | I71: =IF(ISERROR(IF(D4>0,SUMIF('2022-23 Data'!$M$3:$M$262,1,'2022-23 Data'!$BM$3:$BM$262)/(SUMIF('2022-23 Data'!$M$3:$M$262,1,'2022-23 Data'!$C$3:$C$262)+SUMIF('2022-23 Data'!$M$3:$M$262,1,'2022-23 Data'!$D$3:$D$262)),"")),"",IF(D4>0,SUMIF('2022-23 Data'!$M$3:$M$262,1,'2022-23 Data'!$BM$3:$BM$262)/(SUMIF('2022-23 Data'!$M$3:$M$262,1,'2022-23 Data'!$C$3:$C$262)+SUMIF('2022-23 Data'!$M$3:$M$262,1,'2022-23 Data'!$D$3:$D$262)),"")) ->  | M71: =IF(ISERROR(SUM('2022-23 Data'!$BM$3:$BM$262)/SUM('2022-23 Data'!$C$3:$D$262)),"",SUM('2022-23 Data'!$BM$3:$BM$262)/SUM('2022-23 Data'!$C$3:$D$262)) -> -204.2273195 | N71: 0.03501150203
B72: Covid-19 furloughed Staff | C72: I18A | D72: =IF(ISERROR(INDEX('2022-23 Data'!$B$3:$BP$262,MATCH($D$4,dfenums,0),MATCH(C72,'2022-23 Data'!$B$2:$BP$2,0))),"",INDEX('2022-23 Data'!$B$3:$BP$262,MATCH($D$4,dfenums,0),MATCH(C72,'2022-23 Data'!$B$2:$BP$2,0))) ->  | E72: =IF(ISERROR(D72/($F$4+$G$4)),"",D72/($F$4+$G$4)) ->  | F72: =IF(ISERROR(D72/$D$75),"",D72/$D$75) ->  | I72: =IF(ISERROR(IF(D4>0,SUMIF('2022-23 Data'!$M$3:$M$262,1,'2022-23 Data'!$BN$3:$BN$262)/(SUMIF('2022-23 Data'!$M$3:$M$262,1,'2022-23 Data'!$C$3:$C$262)+SUMIF('2022-23 Data'!$M$3:$M$262,1,'2022-23 Data'!$D$3:$D$262)),"")),"",IF(D4>0,SUMIF('2022-23 Data'!$M$3:$M$262,1,'2022-23 Data'!$BN$3:$BN$262)/(SUMIF('2022-23 Data'!$M$3:$M$262,1,'2022-23 Data'!$C$3:$C$262)+SUMIF('2022-23 Data'!$M$3:$M$262,1,'2022-23 Data'!$D$3:$D$262)),"")) ->  | J72: =IF(ISERROR(I72/$I$75),"",I72/$I$75) ->  | M72: =IF(ISERROR(SUM('2022-23 Data'!$BN$3:$BN$262)/SUM('2022-23 Data'!$C$3:$D$262)),"",SUM('2022-23 Data'!$BN$3:$BN$262)/SUM('2022-23 Data'!$C$3:$D$262)) -> 0 | N72: =IF(ISERROR(M72/$M$75),"",M72/$M$75) -> 0
B73: Covid-19 any other Covid-19 related grant | C73: I18B | D73: =IF(ISERROR(INDEX('2022-23 Data'!$B$3:$BP$262,MATCH($D$4,dfenums,0),MATCH(C73,'2022-23 Data'!$B$2:$BP$2,0))),"",INDEX('2022-23 Data'!$B$3:$BP$262,MATCH($D$4,dfenums,0),MATCH(C73,'2022-23 Data'!$B$2:$BP$2,0))) ->  | E73: =IF(ISERROR(D73/($F$4+$G$4)),"",D73/($F$4+$G$4)) ->  | F73: =IF(ISERROR(D73/$D$75),"",D73/$D$75) ->  | I73: =IF(ISERROR(IF(D4>0,SUMIF('2022-23 Data'!$M$3:$M$262,1,'2022-23 Data'!$BO$3:$BO$262)/(SUMIF('2022-23 Data'!$M$3:$M$262,1,'2022-23 Data'!$C$3:$C$262)+SUMIF('2022-23 Data'!$M$3:$M$262,1,'2022-23 Data'!$D$3:$D$262)),"")),"",IF(D4>0,SUMIF('2022-23 Data'!$M$3:$M$262,1,'2022-23 Data'!$BO$3:$BO$262)/(SUMIF('2022-23 Data'!$M$3:$M$262,1,'2022-23 Data'!$C$3:$C$262)+SUMIF('2022-23 Data'!$M$3:$M$262,1,'2022-23 Data'!$D$3:$D$262)),"")) ->  | J73: =IF(ISERROR(I73/$I$75),"",I73/$I$75) ->  | M73: =IF(ISERROR(SUM('2022-23 Data'!$BO$3:$BO$262)/SUM('2022-23 Data'!$C$3:$D$262)),"",SUM('2022-23 Data'!$BO$3:$BO$262)/SUM('2022-23 Data'!$C$3:$D$262)) -> -0.9527429054 | N73: =IF(ISERROR(M73/$M$75),"",M73/$M$75) -> 0.0001633325074
B74: Covid-19 £1bn package | C74: I18C | D74: =IF(ISERROR(INDEX('2022-23 Data'!$B$3:$BP$262,MATCH($D$4,dfenums,0),MATCH(C74,'2022-23 Data'!$B$2:$BP$2,0))),"",INDEX('2022-23 Data'!$B$3:$BP$262,MATCH($D$4,dfenums,0),MATCH(C74,'2022-23 Data'!$B$2:$BP$2,0))) ->  | I74: =IF(ISERROR(IF(D4>0,SUMIF('2022-23 Data'!$M$3:$M$262,1,'2022-23 Data'!$BP$3:$BP$262)/(SUMIF('2022-23 Data'!$M$3:$M$262,1,'2022-23 Data'!$C$3:$C$262)+SUMIF('2022-23 Data'!$M$3:$M$262,1,'2022-23 Data'!$D$3:$D$262)),"")),"",IF(D4>0,SUMIF('2022-23 Data'!$M$3:$M$262,1,'2022-23 Data'!$BP$3:$BP$262)/(SUMIF('2022-23 Data'!$M$3:$M$262,1,'2022-23 Data'!$C$3:$C$262)+SUMIF('2022-23 Data'!$M$3:$M$262,1,'2022-23 Data'!$D$3:$D$262)),"")) ->  | M74: =IF(ISERROR(SUM('2022-23 Data'!$BP$3:$BP$262)/SUM('2022-23 Data'!$C$3:$D$262)),"",SUM('2022-23 Data'!$BP$3:$BP$262)/SUM('2022-23 Data'!$C$3:$D$262)) -> -60.6416789 | N74: 0.01039604432
B75: Total Income (excluding reserves and high needs) | D75: =IF(ISERROR(SUM(D52:D74)),"",SUM(D52:D54)+SUM(D57:D74)) -> 0 | E75: =IF(ISERROR(SUM(E52:E74)),"",SUM(E52:E54)+SUM(E57:E74)) -> 0 | F75: =IF(ISERROR(SUM(F52:F74)),"",SUM(F52:F54)+SUM(F57:F74)) -> 0 | I75: =IF(ISERROR(SUM(I52:I74)),"",SUM(I52:I54)+SUM(I57:I74)) -> 0 | J75: =IF(ISERROR(SUM(J52:J74)),"",SUM(J52:J54)+SUM(J57:J74)) -> 0 | M75: =IF(ISERROR(SUM(M52:M74)),"",SUM(M52:M54)+SUM(M57:M74)) -> -5833.149326 | N75: =IF(ISERROR(SUM(N52:N74)),"",SUM(N52:N54)+SUM(N57:N74)) -> 1

Sheet 2022-23 Data (hidden)
B1: PFI School | C1: ="Autumn "&LEFT(Benchmarking!C1,4)&" Roll" -> Autumn 2022 Roll | D1: =Benchmarking!C1&" School Budget Templates" -> 2022-23 School Budget Templates | E1: KCC Finance & Procurement | G1: Self generating | N1: ="From "&Benchmarking!C1&" Checking Spreadsheet" -> From 2022-23 Checking Spreadsheet | AU1: Self generating | AV1: KCC Finance & Procurement All Negative figures | AW1: Self generating (HNOU, HNTU & HN3U) | AX1: Self generating (HNMT & HN3M) | AY1: =N1 -> From 2022-23 Checking Spreadsheet | BR1: ="From March 20"&RIGHT(Benchmarking!C1,2)&" Advances" -> From March 2023 Advances | BU1: Self generating | BV1: ="From March 20"&RIGHT(Benchmarking!C1,2)&" Advances" -> From March 2023 Advances | BX1: Self generating
A2: DFE | B2: SCHOOL | C2: NURSERY NUMS | D2: YR R-6 INC SRP | E2: SRP FTE | F2: HNP FTE | G2: NURSERY | H2: PHASE | I2: SIZE CLASS | J2: NURSERY SELECTA | K2: PHASE SELECTA | L2: SIZE SELECTA | M2: OVERALL SLECTA | N2: E01 | O2: E02 | P2: E03 | Q2: E04 | R2: E05 | S2: E06 | T2: E07 | U2: E08 | V2: E09 | W2: E10 | X2: E11 | Y2: E12 | Z2: E13 | AA2: E14 | AB2: E15 | AC2: E16 | AD2: E17 | AE2: E18 | AF2: E19 | AG2: E20 | AH2: E21 | AI2: E22 | AJ2: E23 | AK2: E24 | AL2: E25 | AM2: E26 | AN2: E27 | AO2: E28 | AP2: E28B | AQ2: E29 | AR2: E30 | AS2: E31 | AT2: E32 | AU2: Funds delegated by the LEA (excluding High Needs) | AV2: Notional SEN Budget | AW2: Specially Rescourced Provision (Unit) Funding | AX2: Funding for High Needs Pupils | AY2: I04 | AZ2: I05 | BA2: I06 | BB2: I07 | BC2: I08 | BD2: I08b | BE2: I09 | BF2: I10 | BG2: I11 | BH2: I12 | BI2: I13 | BJ2: I15 | BK2: I16 | BL2: I17 | BM2: I18 | BN2: I18A | BO2: I18B | BP2: I18C | BQ2: I01 + I03 | BR2: HNOU | BS2: HNTU | BT2: HN3U | BU2: AV Total | BV2: HNMT | BW2: HN3M | BX2: AW Total
A3: 2000 | B3: St Johns CE Primary School, Canterbury | C3: 28 | D3: 374 | E3: 0 | F3: 13.83333333 | G3: =IF(C3=0,"No","Yes") -> Yes | H3: Primary | I3: =IFERROR(VLOOKUP($D3,$D$264:$F$269,3,TRUE),0) -> 300-399 | J3: =IF(G3=Benchmarking!$I$4,1,0) -> 0 | K3: =IF(Benchmarking!$I$6="All",1,IF(Benchmarking!$I$6=H3,1,0)) -> 0 | L3: =SUBTOTAL(9,C3:K3) -> 415.8333333 | M3: =IF(SUM(J3:L3)=3,1,0) -> 0 | N3: 1240016.45 | O3: 0 | P3: 458262.23 | Q3: 71169.89 | R3: 109136.45 | S3: 0 | T3: 130245.42 | U3: 16033.07 | V3: 11192.29 | W3: 733.04 | X3: 8751.96 | Y3: 15454.08 | Z3: 4501.63 | AA3: 32274.95 | AB3: 8005.24 | AC3: 67606.06 | AD3: 24576 | AE3: 15591.35 | AF3: 79592.43 | AG3: 10971.35 | AH3: 0 | AI3: 24772.85 | AJ3: 13708.42 | AK3: 3766.68 | AL3: 112789.96 | AM3: 137908.31 | AN3: 58893.2 | AO3: 31655.42 | AP3: 0 | AQ3: 0 | AR3: 0 | AS3: 0 | AT3: 0 | AU3: =BQ3-AV3-AW3-AX3 -> -1612882.99 | AV3: -392995.98 | AW3: =-BU3 -> 0 | AX3: =-BX3 -> -100739.57 | AY3: 0 | AZ3: -296610 | BA3: -514.27 | BB3: -72897.73 | BC3: -30362.75 | BD3: -17794.34 | BE3: -3057.92 | BF3: 0 | BG3: -14129.43 | BH3: -13404.6 | BI3: -4582.26 | BJ3: 0 | BK3: 0 | BL3: 0 | BM3: -53183 | BN3: 0 | BO3: -17917.34 | BP3: -37752.68 | BQ3: -2106618.54 | BR3: 0 | BS3: 0 | BT3: 0 | BU3: =SUM(BR3:BT3) -> 0 | BV3: 0 | BW3: 100739.57 | BX3: =SUM(BV3:BW3) -> 100739.57
A4: 2002 | B4: Repton Manor Primary School | C4: 0 | D4: 477 | E4: 0 | F4: 16.25 | G4: No | H4: Primary | I4: 400-499 | J4: =IF(G4=Benchmarking!$I$4,1,0) -> 0 | K4: =IF(Benchmarking!$I$6="All",1,IF(Benchmarking!$I$6=H4,1,0)) -> 0 | L4: =IF(Benchmarking!$I$8="All",1,IF(Benchmarking!$I$8=I4,1,0)) -> 0 | M4: 0 | N4: 1272078.89 | O4: 1778.23 | P4: 460513.93 | Q4: 29218.09 | R4: 111859.12 | S4: 0 | T4: 180674.15 | U4: 1457.05 | V4: 7509.65 | W4: 934.92 | X4: 11009.16 | Y4: 40797.84 | Z4: 21041.71 | AA4: 47386.87 | AB4: 4601.34 | AC4: 56347.77 | AD4: 10650 | AE4: 16257.13 | AF4: 121481.16 | AG4: 31258.53 | AH4: 0 | AI4: 27402.63 | AJ4: 16871.49 | AK4: 19644.9 | AL4: 126585.25 | AM4: 89911.4 | AN4: 34860.54 | AO4: 14325.3 | AP4: 0 | AQ4: 0 | AR4: 120000 | AS4: 0 | AT4: 0 | AU4: -1751660.42 | AV4: -353467.19 | AW4: 0 | AX4: -97309.46 | AY4: 0 | AZ4: -147220 | BA4: 0 | BB4: -99546.7 | BC4: -15984.73 | BD4: -95217.05 | BE4: -50594.32 | BF4: 0 | BG4: 0 | BH4: -25301.47 | BI4: -11181.36 | BJ4: 0 | BK4: 0 | BL4: 0 | BM4: -77262 | BN4: 0 | BO4: 0 | BP4: -31918.26 | BQ4: -2202437.07 | BR4: 0 | BS4: 0 | BT4: 0 | BU4: 0 | BV4: 0 | BW4: 97309.46 | BX4: 97309.46
A5: 2065 | B5: Discovery School, The | C5: 0 | D5: 624 | E5: 0 | F5: 15.41666667 | G5: No | H5: Primary | I5: 500+ | J5: =IF(G5=Benchmarking!$I$4,1,0) -> 0 | K5: =IF(Benchmarking!$I$6="All",1,IF(Benchmarking!$I$6=H5,1,0)) -> 0 | L5: =IF(Benchmarking!$I$8="All",1,IF(Benchmarking!$I$8=I5,1,0)) -> 0 | M5: 0 | N5: 1620714.13 | O5: 0 | P5: 682550.31 | Q5: 87786.47 | R5: 143215.42 | S5: 0 | T5: 203732.33 | U5: 15430.03 | V5: 15150.7 | W5: 1223.04 | X5: 14401.96 | Y5: 39470.29 | Z5: 7534.49 | AA5: 3479.41 | AB5: 8702.46 | AC5: 39317.75 | AD5: 75264 | AE5: 20730.62 | AF5: 121420.53 | AG5: 43281.82 | AH5: 0 | AI5: 51021.71 | AJ5: 22149.54 | AK5: 22656.54 | AL5: 159172.02 | AM5: 32819.34 | AN5: 13922.98 | AO5: 49580.38 | AP5: 0 | AQ5: 0 | AR5: 15000 | AS5: 0 | AT5: 0 | AU5: -2265292.67 | AV5: -538477.33 | AW5: 0 | AX5: -155590.76 | AY5: 0 | AZ5: -60266 | BA5: -1200 | BB5: -44918.28 | BC5: -27064.45 | BD5: -89594.76 | BE5: -72928.63 | BF5: 0 | BG5: -8209.14 | BH5: -46779.93 | BI5: -18592.75 | BJ5: 0 | BK5: 0 | BL5: 0 | BM5: -120109 | BN5: 0 | BO5: -23113.45 | BP5: -14148.97 | BQ5: -2959360.76 | BR5: 0 | BS5: 0 | BT5: 0 | BU5: 0 | BV5: 0 | BW5: 155590.76 | BX5: 155590.76
A6: 2066 | B6: Maypole Primary School | C6: 0 | D6: 407 | E6: 0 | F6: 6 | G6: No | H6: Primary | I6: 400-499 | J6: =IF(G6=Benchmarking!$I$4,1,0) -> 0 | K6: =IF(Benchmarking!$I$6="All",1,IF(Benchmarking!$I$6=H6,1,0)) -> 0 | L6: =IF(Benchmarking!$I$8="All",1,IF(Benchmarking!$I$8=I6,1,0)) -> 0 | M6: 0 | N6: 1005013.76 | O6: 0 | P6: 362030.04 | Q6: 51145.22 | R6: 79426.7 | S6: 0 | T6: 82336.16 | U6: 6301.19 | V6: 18106.21 | W6: 827.47 | X6: 9563.52 | Y6: 38707.33 | Z6: 34133.89 | AA6: 5237.14 | AB6: 4942.58 | AC6: 64712.49 | AD6: 38144 | AE6: 15271.39 | AF6: 152336.42 | AG6: 12935.65 | AH6: 0 | AI6: 26422.22 | AJ6: 15369.61 | AK6: 5950.64 | AL6: 70173.38 | AM6: 135937.22 | AN6: 36278.14 | AO6: 49094.72 | AP6: 0 | AQ6: 0 | AR6: 257447.99 | AS6: 0 | AT6: 0 | AU6: -1608696.5 | AV6: -243507.46 | AW6: 0 | AX6: -48848.18 | AY6: 0 | AZ6: -90635 | BA6: 0 | BB6: -23383.33 | BC6: -886.5 | BD6: -68812.36 | BE6: 0 | BF6: 0 | BG6: -13111.8 | BH6: -47060.26 | BI6: -6524.58 | BJ6: 0 | BK6: 0 | BL6: 0 | BM6: -69445 | BN6: 0 | BO6: 0 | BP6: -23585.57 | BQ6: -1901052.14 | BR6: 0 | BS6: 0 | BT6: 0 | BU6: 0 | BV6: 0 | BW6: 48848.18 | BX6: 48848.18
A7: 2079 | B7: Woodlands Primary School | C7: 0 | D7: 639 | E7: 0 | F7: 8.916666667 | G7: No | H7: Primary | I7: 500+ | J7: =IF(G7=Benchmarking!$I$4,1,0) -> 0 | K7: =IF(Benchmarking!$I$6="All",1,IF(Benchmarking!$I$6=H7,1,0)) -> 0 | L7: =IF(Benchmarking!$I$8="All",1,IF(Benchmarking!$I$8=I7,1,0)) -> 0 | M7: 0 | N7: 1633180.21 | O7: 27161.91 | P7: 605585.03 | Q7: 60413.49 | R7: 111456.52 | S7: 0 | T7: 1697.8 | U7: 15707.27 | V7: 17667.06 | W7: 4033.44 | X7: 14748.12 | Y7: 158533.49 | Z7: 64342.4 | AA7: 46985.84 | AB7: 19170.94 | AC7: 64910.41 | AD7: 57856 | AE7: 26292.72 | AF7: 218793.66 | AG7: 31256.51 | AH7: 0 | AI7: 34643.07 | AJ7: 22601.43 | AK7: 11294.2 | AL7: 95914.59 | AM7: 8051 | AN7: 11303.87 | AO7: 39632.44 | AP7: 0 | AQ7: 0 | AR7: 10912 | AS7: 0 | AT7: 0 | AU7: -2356807.25 | AV7: -515064.61 | AW7: 0 | AX7: -92580.36 | AY7: 0 | AZ7: -176398.57 | BA7: 0 | BB7: 0 | BC7: -31244.9 | BD7: -17842.07 | BE7: 0 | BF7: 0 | BG7: 0 | BH7: -74629.38 | BI7: -4191.62 | BJ7: 0 | BK7: 0 | BL7: 0 | BM7: -102765 | BN7: 0 | BO7: 0 | BP7: -38058.48 | BQ7: -2964452.22 | BR7: 0 | BS7: 0 | BT7: 0 | BU7: 0 | BV7: 0 | BW7: 92580.36 | BX7: 92580.36
A8: 2088 | B8: Crockenhill Primary School | C8: 0 | D8: 203 | E8: 0 | F8: 4.416666667 | G8: No | H8: Primary | I8: 200-299 | J8: =IF(G8=Benchmarking!$I$4,1,0) -> 0 | K8: =IF(Benchmarking!$I$6="All",1,IF(Benchmarking!$I$6=H8,1,0)) -> 0 | L8: =IF(Benchmarking!$I$8="All",1,IF(Benchmarking!$I$8=I8,1,0)) -> 0 | M8: 0 | N8: 577816.47 | O8: 7753.26 | P8: 120423.74 | Q8: 35016.48 | R8: 61815.85 | S8: 0 | T8: 40179.29 | U8: 4056.36 | V8: 5247.5 | W8: 3391.72 | X8: 4685.28 | Y8: 4993.8 | Z8: 3455.21 | AA8: 4227.57 | AB8: 5277.93 | AC8: 29103.7 | AD8: 24116.67 | AE8: 3969.32 | AF8: 56937 | AG8: 5889.76 | AH8: 0 | AI8: 15794.39 | AJ8: 7326.82 | AK8: 3751.98 | AL8: 40476.72 | AM8: 83032.16 | AN8: 36215.3 | AO8: 26821.05 | AP8: 0 | AQ8: 0 | AR8: 0 | AS8: 0 | AT8: 0 | AU8: -874069.55 | AV8: -102067.64 | AW8: 0 | AX8: -30013.66 | AY8: 0 | AZ8: -81870 | BA8: -1200 | BB8: 0 | BC8: -1764 | BD8: -35856.23 | BE8: 0 | BF8: 0 | BG8: -12342.75 | BH8: -16033.83 | BI8: -8246.29 | BJ8: 0 | BK8: 0 | BL8: 0 | BM8: -40389 | BN8: 0 | BO8: 0 | BP8: -14492 | BQ8: -1006150.85 | BR8: 0 | BS8: 0 | BT8: 0 | BU8: 0 | BV8: 0 | BW8: 30013.66 | BX8: 30013.66
A9: 2089 | B9: Anthony Roper Primary School, The | C9: 0 | D9: 299 | E9: 0 | F9: 2.75 | G9: No | H9: Primary | I9: 200-299 | J9: =IF(G9=Benchmarking!$I$4,1,0) -> 0 | K9: =IF(Benchmarking!$I$6="All",1,IF(Benchmarking!$I$6=H9,1,0)) -> 0 | L9: =IF(Benchmarking!$I$8="All",1,IF(Benchmarking!$I$8=I9,1,0)) -> 0 | M9: 0 | N9: 802516.38 | O9: 34126.17 | P9: 256641.1 | Q9: 0 | R9: 59158.15 | S9: 0 | T9: 64014.24 | U9: 218 | V9: 7533.59 | W9: 7726.45 | X9: 6900.96 | Y9: 11464.73 | Z9: 6300 | AA9: 24835.19 | AB9: 1628.03 | AC9: 35563.69 | AD9: 6656 | AE9: 22838.28 | AF9: 94529.81 | AG9: 24369.06 | AH9: 0 | AI9: 16878.66 | AJ9: 10791.7 | AK9: 10872.09 | AL9: 55425.03 | AM9: 10437 | AN9: 0 | AO9: 35952.07 | AP9: 0 | AQ9: 0 | AR9: 8103 | AS9: 0 | AT9: 0 | AU9: -1186508.06 | AV9: -151215.32 | AW9: 0 | AX9: -12968.82 | AY9: 0 | AZ9: -52935 | BA9: -1200 | BB9: -25738.76 | BC9: -16460.13 | BD9: -621.5 | BE9: 0 | BF9: -5220 | BG9: -2442.73 | BH9: -48367.5 | BI9: -35734.42 | BJ9: 0 | BK9: 0 | BL9: 0 | BM9: -65956 | BN9: 0 | BO9: 0 | BP9: -10847.95 | BQ9: -1350692.2 | BR9: 0 | BS9: 0 | BT9: 0 | BU9: 0 | BV9: 0 | BW9: 12968.82 | BX9: 12968.82
A10: 2094 | B10: Cobham Primary School | C10: 0 | D10: 219 | E10: 0 | F10: 4.833333333 | G10: No | H10: Primary | I10: 200-299 | J10: =IF(G10=Benchmarking!$I$4,1,0) -> 0 | K10: =IF(Benchmarking!$I$6="All",1,IF(Benchmarking!$I$6=H10,1,0)) -> 0 | L10: =IF(Benchmarking!$I$8="All",1,IF(Benchmarking!$I$8=I10,1,0)) -> 0 | M10: 0 | N10: 553330.58 | O10: 0 | P10: 266533.63 | Q10: 18823.05 | R10: 37577.92 | S10: 0 | T10: 13530.42 | U10: 4210.02 | V10: 5460 | W10: 1723.28 | X10: 5054.52 | Y10: 6613.02 | Z10: 7131.75 | AA10: 4374.51 | AB10: 1245.46 | AC10: 23589.85 | AD10: 17216 | AE10: 7768.77 | AF10: 66471.38 | AG10: 7933.01 | AH10: 0 | AI10: 7916.95 | AJ10: 7746.03 | AK10: 7456.43 | AL10: 31665.08 | AM10: 0 | AN10: 27984.94 | AO10: 19471.05 | AP10: 0 | AQ10: 0 | AR10: 23392 | AS10: 0 | AT10: 0 | AU10: -869952.45 | AV10: -114259.59 | AW10: 0 | AX10: -23860.21 | AY10: 0 | AZ10: -28670 | BA10: -1200 | BB10: -23718.05 | BC10: 0 | BD10: -20147.33 | BE10: 0 | BF10: 0 | BG10: -16378.53 | BH10: -26420.49 | BI10: -11597.66 | BJ10: 0 | BK10: 0 | BL10: 0 | BM10: -47388 | BN10: 0 | BO10: 0 | BP10: -5079 | BQ10: -1008072.25 | BR10: 0 | BS10: 0 | BT10: 0 | BU10: 0 | BV10: 0 | BW10: 23860.21 | BX10: 23860.21
A11: 2095 | B11: Cecil Road Primary School | C11: 54 | D11: 375 | E11: 0 | F11: 17.08333333 | G11: Yes | H11: Primary | I11: 300-399 | J11: =IF(G11=Benchmarking!$I$4,1,0) -> 0 | K11: =IF(Benchmarking!$I$6="All",1,IF(Benchmarking!$I$6=H11,1,0)) -> 0 | L11: =IF(Benchmarking!$I$8="All",1,IF(Benchmarking!$I$8=I11,1,0)) -> 0 | M11: 0 | N11: 1090391.16 | O11: 0 | P11: 671009.6 | Q11: 41074.88 | R11: 78402.55 | S11: 0 | T11: 16160.53 | U11: 487.68 | V11: 9198.48 | W11: 12164.78 | X11: 8859 | Y11: 19399.19 | Z11: 514.23 | AA11: 46977.8 | AB11: 6892.45 | AC11: 46647.93 | AD11: 34048.4 | AE11: 9981.99 | AF11: 72158.91 | AG11: 13980.28 | AH11: 0 | AI11: 35995.92 | AJ11: 14079.75 | AK11: 5328.3 | AL11: 58846.79 | AM11: 17628.59 | AN11: 21592.19 | AO11: 27322.81 | AP11: 0 | AQ11: 0 | AR11: 19780.15 | AS11: 0 | AT11: 0 | AU11: -1719504.1 | AV11: -258131.09 | AW11: 0 | AX11: -117336.12 | AY11: 0 | AZ11: -103831 | BA11: -1200 | BB11: -4285.03 | BC11: -31970 | BD11: -9316.84 | BE11: 0 | BF11: -6974.5 | BG11: -6247.76 | BH11: -11875.16 | BI11: -2298.05 | BJ11: 0 | BK11: 0 | BL11: 0 | BM11: -63709 | BN11: 0 | BO11: 0 | BP11: -20206.33 | BQ11: -2094971.31 | BR11: 0 | BS11: 0 | BT11: 0 | BU11: 0 | BV11: 0 | BW11: 117336.12 | BX11: 117336.12
A12: 2109 | B12: Higham Primary School | C12: 0 | D12: 208 | E12: 0 | F12: 7.75 | G12: No | H12: Primary | I12: 200-299 | J12: =IF(G12=Benchmarking!$I$4,1,0) -> 0 | K12: =IF(Benchmarking!$I$6="All",1,IF(Benchmarking!$I$6=H12,1,0)) -> 0 | L12: =IF(Benchmarking!$I$8="All",1,IF(Benchmarking!$I$8=I12,1,0)) -> 0 | M12: 0 | N12: 551206.24 | O12: 6454.35 | P12: 195268.05 | Q12: 54745.58 | R12: 78816.38 | S12: 36680.85 | T12: 40440.09 | U12: 5082.13 | V12: 5504 | W12: 6986.21 | X12: 4800.6 | Y12: 7562.07 | Z12: 3942.23 | AA12: 2596.97 | AB12: 3371.98 | AC12: 29327.51 | AD12: 22330 | AE12: 4480.8 | AF12: 61637.22 | AG12: 46870.45 | AH12: 0 | AI12: 11270.3 | AJ12: 7356.92 | AK12: 2123.33 | AL12: 23035.39 | AM12: 34345 | AN12: 1740 | AO12: 14055.28 | AP12: 0 | AQ12: 0 | AR12: 0 | AS12: 0 | AT12: 0 | AU12: -859494.24 | AV12: -98693.95 | AW12: 0 | AX12: -62547.07 | AY12: 0 | AZ12: -46155 | BA12: -32776 | BB12: -720 | BC12: -2562.25 | BD12: -35366.01 | BE12: -19314.43 | BF12: -1652 | BG12: -295.87 | BH12: -18506.53 | BI12: -23328.48 | BJ12: 0 | BK12: 0 | BL12: 0 | BM12: -54852 | BN12: 0 | BO12: 0 | BP12: -5098.41 | BQ12: -1020735.26 | BR12: 0 | BS12: 0 | BT12: 0 | BU12: 0 | BV12: 0 | BW12: 62547.07 | BX12: 62547.07
A13: 2116 | B13: Lawn Primary School | C13: 21 | D13: 188 | E13: 0 | F13: 3.833333333 | G13: Yes | H13: Primary | I13: 100-199 | J13: =IF(G13=Benchmarking!$I$4,1,0) -> 0 | K13: =IF(Benchmarking!$I$6="All",1,IF(Benchmarking!$I$6=H13,1,0)) -> 0 | L13: =IF(Benchmarking!$I$8="All",1,IF(Benchmarking!$I$8=I13,1,0)) -> 0 | M13: 0 | N13: 629070.64 | O13: 5716.81 | P13: 391345.87 | Q13: 61014.7 | R13: 81787.23 | S13: 55357.46 | T13: 64205.22 | U13: 2645.34 | V13: 14280.4 | W13: 368.48 | X13: 4419 | Y13: 6017.03 | Z13: 3501.26 | AA13: 930.35 | AB13: 2.57 | AC13: 29530 | AD13: 20708.5 | AE13: 8468.64 | AF13: 79510.25 | AG13: 7299.52 | AH13: 0 | AI13: 17636.99 | AJ13: 6969.52 | AK13: 1541.83 | AL13: 22437.33 | AM13: 0 | AN13: 14875.04 | AO13: 49559.57 | AP13: 0 | AQ13: 0 | AR13: 3449.16 | AS13: 0 | AT13: 0 | AU13: -928348.62 | AV13: -231116.73 | AW13: 0 | AX13: -27007.43 | AY13: 0 | AZ13: -156320 | BA13: -1200 | BB13: -44875 | BC13: 0 | BD13: -17976.35 | BE13: -13165.6 | BF13: 0 | BG13: -3525.65 | BH13: -8317.6 | BI13: 0 | BJ13: 0 | BK13: 0 | BL13: 0 | BM13: -32216 | BN13: 0 | BO13: 0 | BP13: -23992.25 | BQ13: -1186472.78 | BR13: 0 | BS13: 0 | BT13: 0 | BU13: 0 | BV13: 0 | BW13: 27007.43 | BX13: 27007.43
A14: 2119 | B14: Shears Green Infant School | C14: 0 | D14: 334 | E14: 0 | F14: 0 | G14: No | H14: Primary | I14: 300-399 | J14: =IF(G14=Benchmarking!$I$4,1,0) -> 0 | K14: =IF(Benchmarking!$I$6="All",1,IF(Benchmarking!$I$6=H14,1,0)) -> 0 | L14: =IF(Benchmarking!$I$8="All",1,IF(Benchmarking!$I$8=I14,1,0)) -> 0 | M14: 0 | N14: 196698.13 | O14: 0 | P14: 65273.06 | Q14: 14949.79 | R14: 22718.73 | S14: 0 | T14: 10351.74 | U14: 233.55 | V14: 6331.62 | W14: 654.64 | X14: 1927.17 | Y14: 13933.09 | Z14: 3109.81 | AA14: 0 | AB14: 0 | AC14: 6833.87 | AD14: 0 | AE14: 5612.09 | AF14: 32173.1 | AG14: 1724.92 | AH14: 0 | AI14: 5748.74 | AJ14: 7805.57 | AK14: 232550 | AL14: 13260.17 | AM14: 20728.74 | AN14: 2338.21 | AO14: 6335 | AP14: 0 | AQ14: 0 | AR14: 0 | AS14: 0 | AT14: 0 | AU14: -158218.73 | AV14: -215078.75 | AW14: 0 | AX14: -15519.33 | AY14: 0 | AZ14: -18157.5 | BA14: 0 | BB14: 0 | BC14: 0 | BD14: -5307.98 | BE14: 0 | BF14: 0 | BG14: -1109.86 | BH14: -4744.41 | BI14: 0 | BJ14: 0 | BK14: 0 | BL14: 0 | BM14: -22819 | BN14: 0 | BO14: 0 | BP14: -5540.63 | BQ14: -388816.81 | BR14: 0 | BS14: 0 | BT14: 0 | BU14: 0 | BV14: 0 | BW14: 15519.33 | BX14: 15519.33
A15: 2120 | B15: Bean Primary School | C15: 0 | D15: 192 | E15: 0 | F15: 4.5 | G15: No | H15: Infant | I15: 100-199 | J15: =IF(G15=Benchmarking!$I$4,1,0) -> 0 | K15: =IF(Benchmarking!$I$6="All",1,IF(Benchmarking!$I$6=H15,1,0)) -> 0 | L15: =IF(Benchmarking!$I$8="All",1,IF(Benchmarking!$I$8=I15,1,0)) -> 0 | M15: 0 | N15: 551421.75 | O15: 0 | P15: 185426.64 | Q15: 32448.41 | R15: 55554.17 | S15: 0 | T15: 27084.99 | U15: 3272.32 | V15: 7253.97 | W15: 390.36 | X15: 4431.36 | Y15: 15423.04 | Z15: 3708.88 | AA15: 17457.13 | AB15: 2586.43 | AC15: 24385.62 | AD15: 16092 | AE15: 8336.51 | AF15: 83033.79 | AG15: 13214.89 | AH15: 0 | AI15: 20451.81 | AJ15: 6929.76 | AK15: 1216.57 | AL15: 35417.16 | AM15: 1483.2 | AN15: 14831.69 | AO15: 15819.59 | AP15: 0 | AQ15: 0 | AR15: 52753.18 | AS15: 0 | AT15: 0 | AU15: -816986.95 | AV15: -102134.85 | AW15: 0 | AX15: -53550 | AY15: 0 | AZ15: -56785 | BA15: 0 | BB15: -9700 | BC15: -945 | BD15: -20543.59 | BE15: 0 | BF15: 0 | BG15: 0 | BH15: -17730.43 | BI15: 0 | BJ15: 0 | BK15: 0 | BL15: 0 | BM15: -38954 | BN15: 0 | BO15: 0 | BP15: -12450.38 | BQ15: -972671.8 | BR15: 0 | BS15: 0 | BT15: 0 | BU15: 0 | BV15: 0 | BW15: 53550 | BX15: 53550
A16: 2128 | B16: Capel Primary School | C16: 0 | D16: 206 | E16: 0 | F16: 4.583333333 | G16: No | H16: Primary | I16: 200-299 | J16: =IF(G16=Benchmarking!$I$4,1,0) -> 0 | K16: =IF(Benchmarking!$I$6="All",1,IF(Benchmarking!$I$6=H16,1,0)) -> 0 | L16: =IF(Benchmarking!$I$8="All",1,IF(Benchmarking!$I$8=I16,1,0)) -> 0 | M16: 0 | N16: 476959.75 | O16: 0 | P16: 223328.89 | Q16: 33230.17 | R16: 70615.85 | S16: 35084.14 | T16: 54420.09 | U16: 8370.88 | V16: 5155.56 | W16: 1651.19 | X16: 4754.52 | Y16: 2474.12 | Z16: 4001.88 | AA16: 2490.08 | AB16: 6524.58 | AC16: 29446.35 | AD16: 21456 | AE16: 8898.26 | AF16: 64196.57 | AG16: 17219.78 | AH16: 0 | AI16: 10147.85 | AJ16: 7286.26 | AK16: 2976.98 | AL16: 27261.08 | AM16: 1870 | AN16: 18705.7 | AO16: 12028.55 | AP16: 0 | AQ16: 0 | AR16: 0 | AS16: 0 | AT16: 0 | AU16: -836987.87 | AV16: -91374.32 | AW16: 0 | AX16: -37528.7 | AY16: 0 | AZ16: -44320 | BA16: 0 | BB16: -3757.2 | BC16: -100 | BD16: -39474.43 | BE16: -17106.12 | BF16: -8039.53 | BG16: 0 | BH16: -17294.01 | BI16: -4919.2 | BJ16: 0 | BK16: 0 | BL16: 0 | BM16: -50035 | BN16: 0 | BO16: 0 | BP16: -9534.3 | BQ16: -965890.89 | BR16: 0 | BS16: 0 | BT16: 0 | BU16: 0 | BV16: 0 | BW16: 37528.7 | BX16: 37528.7
A17: 2130 | B17: Dunton Green Primary School | C17: 0 | D17: 177 | E17: 0 | F17: 5.916666667 | G17: No | H17: Primary | I17: 100-199 | J17: =IF(G17=Benchmarking!$I$4,1,0) -> 0 | K17: =IF(Benchmarking!$I$6="All",1,IF(Benchmarking!$I$6=H17,1,0)) -> 0 | L17: =IF(Benchmarking!$I$8="All",1,IF(Benchmarking!$I$8=I17,1,0)) -> 0 | M17: 0 | N17: 551948.21 | O17: 0 | P17: 200718.06 | Q17: 27622.77 | R17: 53620.84 | S17: 0 | T17: 0 | U17: 9428.32 | V17: 1887.25 | W17: 5515.72 | X17: 4085.16 | Y17: 10557.89 | Z17: 4267.74 | AA17: 18222.57 | AB17: 2941.05 | AC17: 32685.05 | AD17: 24576 | AE17: 5505.49 | AF17: 78672.92 | AG17: 8614.61 | AH17: 0 | AI17: 6115.51 | AJ17: 6388.37 | AK17: 2659.1 | AL17: 54299.17 | AM17: 26470.42 | AN17: 10507.86 | AO17: 33631.42 | AP17: 0 | AQ17: 0 | AR17: 0 | AS17: 0 | AT17: 0 | AU17: -797489.75 | AV17: -84466.92 | AW17: 0 | AX17: -37377.73 | AY17: 0 | AZ17: -82665 | BA17: -1200 | BB17: -16683.87 | BC17: -11611.3 | BD17: -26727.44 | BE17: -13348.82 | BF17: -30500 | BG17: -11584.96 | BH17: -21314.11 | BI17: -10334.63 | BJ17: 0 | BK17: 0 | BL17: 0 | BM17: -41570 | BN17: 0 | BO17: 0 | BP17: -11117.98 | BQ17: -919334.4 | BR17: 0 | BS17: 0 | BT17: 0 | BU17: 0 | BV17: 0 | BW17: 37377.73 | BX17: 37377.73
A18: 2132 | B18: Hadlow Primary School | C18: 0 | D18: 178 | E18: 0 | F18: 10.08333333 | G18: No | H18: Primary | I18: 100-199 | J18: =IF(G18=Benchmarking!$I$4,1,0) -> 0 | K18: =IF(Benchmarking!$I$6="All",1,IF(Benchmarking!$I$6=H18,1,0)) -> 0 | L18: =IF(Benchmarking!$I$8="All",1,IF(Benchmarking!$I$8=I18,1,0)) -> 0 | M18: 0 | N18: 571552.97 | O18: 2581.66 | P18: 228402.9 | Q18: 41222.44 | R18: 41904.69 | S18: 0 | T18: 12534.67 | U18: 4221.91 | V18: 2414.34 | W18: 4234.62 | X18: 4108.2 | Y18: 9358.6 | Z18: 5991.85 | AA18: 4951.49 | AB18: 6346.84 | AC18: 18221.14 | AD18: 24326 | AE18: 2799.06 | AF18: 98104.36 | AG18: 6562.12 | AH18: 0 | AI18: 20598.2 | AJ18: 6295.82 | AK18: 6196.71 | AL18: 50720.41 | AM18: 19101.95 | AN18: 4938.83 | AO18: 20518.88 | AP18: 0 | AQ18: 0 | AR18: 0 | AS18: 0 | AT18: 0 | AU18: -784511.38 | AV18: -114300.87 | AW18: 0 | AX18: -94964.96 | AY18: 0 | AZ18: -76840 | BA18: 0 | BB18: -32587.01 | BC18: -15364.43 | BD18: -13983.3 | BE18: 0 | BF18: 0 | BG18: 0 | BH18: -13813.7 | BI18: -45116.07 | BJ18: 0 | BK18: 0 | BL18: 0 | BM18: -40265 | BN18: 0 | BO18: 0 | BP18: -12780.3 | BQ18: -993777.21 | BR18: 0 | BS18: 0 | BT18: 0 | BU18: 0 | BV18: 0 | BW18: 94964.96 | BX18: 94964.96
A19: 2134 | B19: Four Elms Primary School | C19: 0 | D19: 108 | E19: 0 | F19: 3.75 | G19: No | H19: Primary | I19: 100-199 | J19: =IF(G19=Benchmarking!$I$4,1,0) -> 0 | K19: =IF(Benchmarking!$I$6="All",1,IF(Benchmarking!$I$6=H19,1,0)) -> 0 | L19: =IF(Benchmarking!$I$8="All",1,IF(Benchmarking!$I$8=I19,1,0)) -> 0 | M19: 0 | N19: 365931.6 | O19: 170 | P19: 61221.82 | Q19: 6494.49 | R19: 42497.97 | S19: 0 | T19: 0 | U19: 1911.54 | V19: 14497.93 | W19: 219.58 | X19: 6012.45 | Y19: 6487.89 | Z19: 2777.02 | AA19: 11391.36 | AB19: 1189.18 | AC19: 10781.06 | AD19: 13348 | AE19: 6593.89 | AF19: 48507.81 | AG19: 6659.86 | AH19: 0 | AI19: 12000.73 | AJ19: 4237.95 | AK19: 870.99 | AL19: 19848.98 | AM19: 10829.42 | AN19: 17034.66 | AO19: 20869.45 | AP19: 0 | AQ19: 0 | AR19: 66087.94 | AS19: 0 | AT19: 0 | AU19: -548271.73 | AV19: -59331.83 | AW19: 0 | AX19: -29090.13 | AY19: 0 | AZ19: -21080 | BA19: 0 | BB19: 0 | BC19: 0 | BD19: 0 | BE19: 0 | BF19: 0 | BG19: 0 | BH19: -11349.75 | BI19: -6342.51 | BJ19: 0 | BK19: 0 | BL19: 0 | BM19: -35259 | BN19: 0 | BO19: 0 | BP19: -4475.5 | BQ19: -636693.69 | BR19: 0 | BS19: 0 | BT19: 0 | BU19: 0 | BV19: 250.65 | BW19: 28839.48 | BX19: 29090.13
A20: 2136 | B20: Kemsing Primary School | C20: 0 | D20: 170 | E20: 0 | F20: 3.916666667 | G20: No | H20: Primary | I20: 100-199 | J20: =IF(G20=Benchmarking!$I$4,1,0) -> 0 | K20: =IF(Benchmarking!$I$6="All",1,IF(Benchmarking!$I$6=H20,1,0)) -> 0 | L20: =IF(Benchmarking!$I$8="All",1,IF(Benchmarking!$I$8=I20,1,0)) -> 0 | M20: 0 | N20: 473493.24 | O20: 0 | P20: 174074.16 | Q20: 32144.2 | R20: 73256.19 | S20: 0 | T20: 37437.17 | U20: 11633.77 | V20: 3229.96 | W20: 345.63 | X20: 3923.64 | Y20: 2714.2 | Z20: 9803.35 | AA20: 22105.36 | AB20: 2303.32 | AC20: 30762.89 | AD20: 21956 | AE20: 10322.71 | AF20: 34145.79 | AG20: 2955.57 | AH20: 0 | AI20: 13040.09 | AJ20: 6135.76 | AK20: 5607.72 | AL20: 30592.35 | AM20: 19588 | AN20: 17773.04 | AO20: 22252.65 | AP20: 0 | AQ20: 0 | AR20: 19952.31 | AS20: 0 | AT20: 0 | AU20: -760969.17 | AV20: -65591.61 | AW20: 0 | AX20: -32726.32 | AY20: 0 | AZ20: -33240 | BA20: -19952.31 | BB20: -5302.78 | BC20: -18074.76 | BD20: -20071.49 | BE20: 0 | BF20: 0 | BG20: -6345.46 | BH20: -9645.75 | BI20: -15503.1 | BJ20: 0 | BK20: 0 | BL20: 0 | BM20: -47135 | BN20: 0 | BO20: 0 | BP20: -8127.55 | BQ20: -859287.1 | BR20: 0 | BS20: 0 | BT20: 0 | BU20: 0 | BV20: 0 | BW20: 32726.32 | BX20: 32726.32
A21: 2137 | B21: Leigh Primary School | C21: 0 | D21: 162 | E21: 0 | F21: 5.333333333 | G21: No | H21: Primary | I21: 100-199 | J21: =IF(G21=Benchmarking!$I$4,1,0) -> 0 | K21: =IF(Benchmarking!$I$6="All",1,IF(Benchmarking!$I$6=H21,1,0)) -> 0 | L21: =IF(Benchmarking!$I$8="All",1,IF(Benchmarking!$I$8=I21,1,0)) -> 0 | M21: 0 | N21: 435279.18 | O21: 11332.52 | P21: 179402.57 | Q21: 2799.68 | R21: 46013.36 | S21: 0 | T21: 23702.3 | U21: 4651.41 | V21: 9346 | W21: 329.36 | X21: 6330.96 | Y21: 10713.06 | Z21: 1829.6 | AA21: 23372.25 | AB21: 2194.51 | AC21: 13854.15 | AD21: 12740 | AE21: 2725.35 | AF21: 84804.12 | AG21: 5213.78 | AH21: 0 | AI21: 13182.79 | AJ21: 3254.99 | AK21: 701.34 | AL21: 27849.91 | AM21: 25580.95 | AN21: 15350.5 | AO21: 10123.55 | AP21: 0 | AQ21: 0 | AR21: 7074 | AS21: 0 | AT21: 0 | AU21: -719764.01 | AV21: -59282.83 | AW21: 0 | AX21: -44766.37 | AY21: 0 | AZ21: -44625 | BA21: 0 | BB21: -9543.58 | BC21: -630 | BD21: -999.66 | BE21: 0 | BF21: -4500 | BG21: -225 | BH21: -34070.4 | BI21: -25398.26 | BJ21: 0 | BK21: 0 | BL21: 0 | BM21: -39179 | BN21: 0 | BO21: -1761 | BP21: -8314.13 | BQ21: -823813.21 | BR21: 0 | BS21: 0 | BT21: 0 | BU21: 0 | BV21: 382.72 | BW21: 44383.65 | BX21: 44766.37
A22: 2138 | B22: Otford Primary School | C22: 0 | D22: 368 | E22: 0 | F22: 2.166666667 | G22: No | H22: Primary | I22: 300-399 | J22: =IF(G22=Benchmarking!$I$4,1,0) -> 0 | K22: =IF(Benchmarking!$I$6="All",1,IF(Benchmarking!$I$6=H22,1,0)) -> 0 | L22: =IF(Benchmarking!$I$8="All",1,IF(Benchmarking!$I$8=I22,1,0)) -> 0 | M22: 0 | N22: 1005424.08 | O22: 7034.82 | P22: 209407.12 | Q22: 33172.22 | R22: 62203.08 | S22: 0 | T22: 9057.21 | U22: 8646.26 | V22: 3719 | W22: 7489.49 | X22: 8493.48 | Y22: 43673.21 | Z22: 3617.5 | AA22: 51084.28 | AB22: 3889.93 | AC22: 78065.22 | AD22: 29440 | AE22: 20498.44 | AF22: 128850.57 | AG22: 109414.83 | AH22: 0 | AI22: 17520.34 | AJ22: 13282.08 | AK22: 0 | AL22: 48779.68 | AM22: 18090 | AN22: 3444.05 | AO22: 32887.88 | AP22: 0 | AQ22: 0 | AR22: 0 | AS22: 0 | AT22: 0 | AU22: -1431288.66 | AV22: -212158.34 | AW22: 0 | AX22: -20119.78 | AY22: 0 | AZ22: -57485 | BA22: 0 | BB22: -94470.62 | BC22: -26936.24 | BD22: 0 | BE22: 0 | BF22: -1928.39 | BG22: 0 | BH22: -48480.24 | BI22: -13872.93 | BJ22: 0 | BK22: 0 | BL22: 0 | BM22: -66389 | BN22: 0 | BO22: 0 | BP22: -12635.42 | BQ22: -1663566.78 | BR22: 0 | BS22: 0 | BT22: 0 | BU22: 0 | BV22: 0 | BW22: 20119.78 | BX22: 20119.78
A23: 2139 | B23: Pembury School | C23: 0 | D23: 393 | E23: 0 | F23: 2.416666667 | G23: No | H23: Primary | I23: 300-399 | J23: =IF(G23=Benchmarking!$I$4,1,0) -> 0 | K23: =IF(Benchmarking!$I$6="All",1,IF(Benchmarking!$I$6=H23,1,0)) -> 0 | L23: =IF(Benchmarking!$I$8="All",1,IF(Benchmarking!$I$8=I23,1,0)) -> 0 | M23: 0 | N23: 950998.17 | O23: 36473.96 | P23: 272610.49 | Q23: 21622.74 | R23: 64360.09 | S23: 0 | T23: 40783.63 | U23: 5343.09 | V23: 5348.41 | W23: 17464.11 | X23: 9070.44 | Y23: 47235.87 | Z23: 14706.91 | AA23: 32147.28 | AB23: 11263 | AC23: 46715.48 | AD23: 42496 | AE23: 25475.26 | AF23: 73622.64 | AG23: 19604.11 | AH23: 0 | AI23: 12593.08 | AJ23: 13900.41 | AK23: 669.15 | AL23: 65174.05 | AM23: 40138 | AN23: 20950.41 | AO23: 35243.08 | AP23: 0 | AQ23: 0 | AR23: 24765.79 | AS23: 0 | AT23: 0 | AU23: -1476722.98 | AV23: -287322.02 | AW23: 0 | AX23: -29776.45 | AY23: 0 | AZ23: -61780 | BA23: 0 | BB23: -20161.7 | BC23: -18535.63 | BD23: -4277.86 | BE23: 0 | BF23: -825 | BG23: -20460.89 | BH23: -31515.75 | BI23: -27924.87 | BJ23: 0 | BK23: 0 | BL23: 0 | BM23: -74460 | BN23: 0 | BO23: 0 | BP23: -13045.88 | BQ23: -1793821.45 | BR23: 0 | BS23: 0 | BT23: 0 | BU23: 0 | BV23: 0 | BW23: 29776.45 | BX23: 29776.45
A24: 2142 | B24: Sandhurst Primary School | C24: 0 | D24: 160 | E24: 0 | F24: 7.666666667 | G24: No | H24: Primary | I24: 100-199 | J24: =IF(G24=Benchmarking!$I$4,1,0) -> 0 | K24: =IF(Benchmarking!$I$6="All",1,IF(Benchmarking!$I$6=H24,1,0)) -> 0 | L24: =IF(Benchmarking!$I$8="All",1,IF(Benchmarking!$I$8=I24,1,0)) -> 0 | M24: 0 | N24: 404003.28 | O24: 0 | P24: 203821.64 | Q24: 12576.93 | R24: 39322.5 | S24: 0 | T24: 23702.07 | U24: 4626.43 | V24: 8579.93 | W24: 3370.15 | X24: 3692.76 | Y24: 4447.55 | Z24: 6596.42 | AA24: 17039.4 | AB24: 2773.05 | AC24: 26886.25 | AD24: 21582 | AE24: 4180.91 | AF24: 69075.9 | AG24: 5107.92 | AH24: 0 | AI24: 10976.43 | AJ24: 5659.16 | AK24: 3717.2 | AL24: 33337.51 | AM24: 0 | AN24: 22176.21 | AO24: 20749.7 | AP24: 0 | AQ24: 0 | AR24: 8500 | AS24: 0 | AT24: 0 | AU24: -715100.9 | AV24: -67483.04 | AW24: 0 | AX24: -62571.93 | AY24: 0 | AZ24: -52385.05 | BA24: 0 | BB24: 0 | BC24: 0 | BD24: -23258.89 | BE24: -301.65 | BF24: 0 | BG24: -753.91 | BH24: -12811.01 | BI24: -2504.98 | BJ24: 0 | BK24: 0 | BL24: 0 | BM24: -38330 | BN24: 0 | BO24: 0 | BP24: -11683.33 | BQ24: -845155.87 | BR24: 0 | BS24: 0 | BT24: 0 | BU24: 0 | BV24: 0 | BW24: 62571.93 | BX24: 62571.93
A25: 2147 | B25: Weald Community Primary School | C25: 0 | D25: 117 | E25: 0 | F25: 1.833333333 | G25: No | H25: Primary | I25: 100-199 | J25: =IF(G25=Benchmarking!$I$4,1,0) -> 0 | K25: =IF(Benchmarking!$I$6="All",1,IF(Benchmarking!$I$6=H25,1,0)) -> 0 | L25: =IF(Benchmarking!$I$8="All",1,IF(Benchmarking!$I$8=I25,1,0)) -> 0 | M25: 0 | N25: 437908.23 | O25: 0 | P25: 107230.98 | Q25: 17091.83 | R25: 43382.3 | S25: 0 | T25: 2407.71 | U25: 3497.91 | V25: 3460.97 | W25: 2693.12 | X25: 2870.4 | Y25: 4935.63 | Z25: 4811.1 | AA25: 10646.17 | AB25: 8168.29 | AC25: 21401.92 | AD25: 15220 | AE25: 3866.27 | AF25: 46520.25 | AG25: 4624.2 | AH25: 0 | AI25: 10836.66 | AJ25: 4902.86 | AK25: 12894.29 | AL25: 22963.09 | AM25: 1190 | AN25: 5076.61 | AO25: 6692.9 | AP25: 0 | AQ25: 0 | AR25: 0 | AS25: 0 | AT25: 0 | AU25: -571232.94 | AV25: -48564.25 | AW25: 0 | AX25: -13216.65 | AY25: 0 | AZ25: -20775 | BA25: 0 | BB25: -9881.51 | BC25: -1319.96 | BD25: -31009.32 | BE25: 0 | BF25: -2850 | BG25: -3779.9 | BH25: -21834.66 | BI25: -14271.47 | BJ25: 0 | BK25: 0 | BL25: 0 | BM25: -34987 | BN25: 0 | BO25: 0 | BP25: -2626.05 | BQ25: -633013.84 | BR25: 0 | BS25: 0 | BT25: 0 | BU25: 0 | BV25: 2096.6 | BW25: 11120.05 | BX25: 13216.65
A26: 2148 | B26: Shoreham Village School | C26: 0 | D26: 92 | E26: 0 | F26: 5.416666667 | G26: No | H26: Primary | I26: 0-99 | J26: =IF(G26=Benchmarking!$I$4,1,0) -> 0 | K26: =IF(Benchmarking!$I$6="All",1,IF(Benchmarking!$I$6=H26,1,0)) -> 0 | L26: =IF(Benchmarking!$I$8="All",1,IF(Benchmarking!$I$8=I26,1,0)) -> 0 | M26: 0 | N26: 378634.57 | O26: 0 | P26: 89137.36 | Q26: 12774.99 | R26: 34380.86 | S26: 0 | T26: 29196.87 | U26: 2284.1 | V26: 2749.03 | W26: 187.05 | X26: 2123.4 | Y26: 9603.66 | Z26: 2469.84 | AA26: 8293.24 | AB26: 2698.8 | AC26: 18625.7 | AD26: 14097 | AE26: 3748.07 | AF26: 29073.91 | AG26: 5833.6 | AH26: 0 | AI26: 10373.95 | AJ26: 3413.89 | AK26: 5892.12 | AL26: 15792.8 | AM26: 875 | AN26: 837.99 | AO26: 11874.73 | AP26: 0 | AQ26: 0 | AR26: 43131.98 | AS26: 0 | AT26: 0 | AU26: -514540.14 | AV26: -41959.99 | AW26: 0 | AX26: -30067.92 | AY26: 0 | AZ26: -23545 | BA26: -1613.38 | BB26: -1550 | BC26: -3913.44 | BD26: -24740.09 | BE26: 0 | BF26: 0 | BG26: -8011.35 | BH26: -7259 | BI26: -4961.77 | BJ26: 0 | BK26: 0 | BL26: 0 | BM26: -27929 | BN26: 0 | BO26: 0 | BP26: -5840 | BQ26: -586568.05 | BR26: 0 | BS26: 0 | BT26: 0 | BU26: 0 | BV26: 9771.45 | BW26: 20296.47 | BX26: 30067.92
A27: 2155 | B27: Slade Primary School | C27: 0 | D27: 418 | E27: 9.083333333 | F27: 23.5 | G27: No | H27: Primary | I27: 400-499 | J27: =IF(G27=Benchmarking!$I$4,1,0) -> 0 | K27: =IF(Benchmarking!$I$6="All",1,IF(Benchmarking!$I$6=H27,1,0)) -> 0 | L27: =IF(Benchmarking!$I$8="All",1,IF(Benchmarking!$I$8=I27,1,0)) -> 0 | M27: 0 | N27: 1114204.01 | O27: 6691.72 | P27: 649785.29 | Q27: 45893.39 | R27: 122290.48 | S27: 0 | T27: 73998.31 | U27: 4628.16 | V27: 9186.72 | W27: 2339.28 | X27: 9647.4 | Y27: 56001.71 | Z27: 12200.25 | AA27: 41367.91 | AB27: 3454.94 | AC27: 38243.43 | AD27: 29952 | AE27: 9672.48 | AF27: 86059.37 | AG27: 26640.1 | AH27: 0 | AI27: 23103.46 | AJ27: 14784.62 | AK27: 1493.92 | AL27: 108533.82 | AM27: 10891.6 | AN27: 50494.52 | AO27: 26358.64 | AP27: 0 | AQ27: 0 | AR27: 0 | AS27: 0 | AT27: 0 | AU27: -1608583.04 | AV27: -312736.03 | AW27: -164778.25 | AX27: -209976.15 | AY27: 0 | AZ27: -71300 | BA27: 0 | BB27: -7727.4 | BC27: 0 | BD27: -61664.67 | BE27: -28314.24 | BF27: -3420 | BG27: -760 | BH27: -29230.44 | BI27: -141 | BJ27: 0 | BK27: 0 | BL27: 0 | BM27: -85444 | BN27: 0 | BO27: 0 | BP27: -14370.94 | BQ27: -2296073.47 | BR27: 0 | BS27: 51500 | BT27: 113278.25 | BU27: 164778.25 | BV27: 0 | BW27: 209976.15 | BX27: 209976.15
A28: 2156 | B28: Sussex Road Community Primary School | C28: 0 | D28: 448 | E28: 0 | F28: 7.25 | G28: No | H28: Primary | I28: 400-499 | J28: =IF(G28=Benchmarking!$I$4,1,0) -> 0 | K28: =IF(Benchmarking!$I$6="All",1,IF(Benchmarking!$I$6=H28,1,0)) -> 0 | L28: =IF(Benchmarking!$I$8="All",1,IF(Benchmarking!$I$8=I28,1,0)) -> 0 | M28: 0 | N28: 1132615.04 | O28: 29221.84 | P28: 311246.42 | Q28: 17646.44 | R28: 90815.45 | S28: 0 | T28: 23781.97 | U28: 7957.15 | V28: 10917.57 | W28: 10877.57 | X28: 10339.8 | Y28: 96742.81 | Z28: 66376.57 | AA28: 38880.5 | AB28: 2546.82 | AC28: 36962.75 | AD28: 44544 | AE28: 10916.41 | AF28: 117391.59 | AG28: 40476.98 | AH28: 0 | AI28: 9709.13 | AJ28: 15845.72 | AK28: 456 | AL28: 63072.6 | AM28: 13156.62 | AN28: 39671.78 | AO28: 26378.91 | AP28: 0 | AQ28: 0 | AR28: 0 | AS28: 0 | AT28: 0 | AU28: -1673598.69 | AV28: -337400.75 | AW28: 0 | AX28: -55023.79 | AY28: 0 | AZ28: -96549.99 | BA28: -985.95 | BB28: 0 | BC28: -9705 | BD28: -2480.06 | BE28: 0 | BF28: -1440 | BG28: -22255.39 | BH28: 0 | BI28: -9674.36 | BJ28: 0 | BK28: 0 | BL28: 0 | BM28: -67369 | BN28: 0 | BO28: 0 | BP28: -22178.9 | BQ28: -2066023.23 | BR28: 0 | BS28: 0 | BT28: 0 | BU28: 0 | BV28: 0 | BW28: 55023.79 | BX28: 55023.79
A29: 2161 | B29: Boughton Monchelsea Primary School | C29: 0 | D29: 208 | E29: 0 | F29: 11.75 | G29: No | H29: Primary | I29: 200-299 | J29: =IF(G29=Benchmarking!$I$4,1,0) -> 0 | K29: =IF(Benchmarking!$I$6="All",1,IF(Benchmarking!$I$6=H29,1,0)) -> 0 | L29: =IF(Benchmarking!$I$8="All",1,IF(Benchmarking!$I$8=I29,1,0)) -> 0 | M29: 0 | N29: 523518.97 | O29: 4875.16 | P29: 278491.73 | Q29: 23540.94 | R29: 61295.91 | S29: 0 | T29: 59406.26 | U29: 5180.16 | V29: 5466.99 | W29: 407.68 | X29: 4800.6 | Y29: 15500.95 | Z29: 6726.8 | AA29: 32688.45 | AB29: 3407.75 | AC29: 38223.18 | AD29: 22580 | AE29: 11319.36 | AF29: 77615.46 | AG29: 8550.91 | AH29: 0 | AI29: 13296.77 | AJ29: 7356.92 | AK29: 3838.95 | AL29: 31813.9 | AM29: 27048.95 | AN29: 20456.6 | AO29: 10575.78 | AP29: 0 | AQ29: 0 | AR29: 4413.8 | AS29: 0 | AT29: 0 | AU29: -891275.46 | AV29: -93990.65 | AW29: 0 | AX29: -119178.81 | AY29: 0 | AZ29: -42935 | BA29: -720 | BB29: 0 | BC29: -45401.24 | BD29: -26755.88 | BE29: 0 | BF29: 0 | BG29: -13325.48 | BH29: -15587.9 | BI29: -16877.9 | BJ29: 0 | BK29: 0 | BL29: 0 | BM29: -49551 | BN29: 0 | BO29: 0 | BP29: -8727.33 | BQ29: -1104444.92 | BR29: 0 | BS29: 0 | BT29: 0 | BU29: 0 | BV29: 0 | BW29: 119178.81 | BX29: 119178.81
A30: 2163 | B30: East Farleigh Primary School | C30: 0 | D30: 205 | E30: 0 | F30: 15.08333333 | G30: No | H30: Primary | I30: 200-299 | J30: =IF(G30=Benchmarking!$I$4,1,0) -> 0 | K30: =IF(Benchmarking!$I$6="All",1,IF(Benchmarking!$I$6=H30,1,0)) -> 0 | L30: =IF(Benchmarking!$I$8="All",1,IF(Benchmarking!$I$8=I30,1,0)) -> 0 | M30: 0 | N30: 512367.52 | O30: 0 | P30: 242114.12 | Q30: 39877.15 | R30: 46772.34 | S30: 0 | T30: 13233.15 | U30: 140 | V30: 7783.96 | W30: 9708.4 | X30: 4731.36 | Y30: 58151.55 | Z30: 6170.27 | AA30: 12508.86 | AB30: 7723.82 | AC30: 30429.52 | AD30: 16717 | AE30: 8854.15 | AF30: 68477.01 | AG30: 21378.93 | AH30: 0 | AI30: 9505.33 | AJ30: 7250.81 | AK30: 1420.25 | AL30: 34272.03 | AM30: 14775 | AN30: 39352 | AO30: 38218.79 | AP30: 0 | AQ30: 0 | AR30: 6000 | AS30: 0 | AT30: 0 | AU30: -884850.11 | AV30: -94534.29 | AW30: 0 | AX30: -123163.58 | AY30: 0 | AZ30: -42880 | BA30: -23428.88 | BB30: -22393.02 | BC30: 0 | BD30: -11661.6 | BE30: 0 | BF30: -1350 | BG30: 0 | BH30: -13244.82 | BI30: -2625.7 | BJ30: 0 | BK30: 0 | BL30: 0 | BM30: -50765 | BN30: 0 | BO30: 0 | BP30: -7976.38 | BQ30: -1102547.98 | BR30: 0 | BS30: 0 | BT30: 0 | BU30: 0 | BV30: 0 | BW30: 123163.58 | BX30: 123163.58
A31: 2164 | B31: East Peckham Primary School | C31: 0 | D31: 156 | E31: 0 | F31: 4.833333333 | G31: No | H31: Primary | I31: 100-199 | J31: =IF(G31=Benchmarking!$I$4,1,0) -> 0 | K31: =IF(Benchmarking!$I$6="All",1,IF(Benchmarking!$I$6=H31,1,0)) -> 0 | L31: =IF(Benchmarking!$I$8="All",1,IF(Benchmarking!$I$8=I31,1,0)) -> 0 | M31: 0 | N31: 469491.35 | O31: 4054.19 | P31: 161572.03 | Q31: 7819.72 | R31: 40951.47 | S31: 0 | T31: 0 | U31: 2487.39 | V31: 2907.17 | W31: 5708.76 | X31: 3600.48 | Y31: 17785.49 | Z31: 5724.67 | AA31: 11056.08 | AB31: 18973.95 | AC31: 19496.13 | AD31: 20709 | AE31: 5359.51 | AF31: 26777.19 | AG31: 5454.56 | AH31: 812.9 | AI31: 16916.15 | AJ31: 5517.72 | AK31: 0 | AL31: 25043.63 | AM31: 0 | AN31: 12095.08 | AO31: 19728.76 | AP31: 0 | AQ31: 0 | AR31: 47646.97 | AS31: 0 | AT31: 0 | AU31: -682399.86 | AV31: -70911.29 | AW31: 0 | AX31: -34063.13 | AY31: 0 | AZ31: -34440 | BA31: -1927.5 | BB31: -3732.01 | BC31: -10 | BD31: -7383.34 | BE31: -4507.5 | BF31: -5020 | BG31: 0 | BH31: -14666.54 | BI31: -4747.59 | BJ31: 0 | BK31: 0 | BL31: 0 | BM31: -44827 | BN31: 0 | BO31: 0 | BP31: -9392.39 | BQ31: -787374.28 | BR31: 0 | BS31: 0 | BT31: 0 | BU31: 0 | BV31: 0 | BW31: 34063.13 | BX31: 34063.13
A32: 2165 | B32: Headcorn Primary School | C32: 0 | D32: 350 | E32: 0 | F32: 10 | G32: No | H32: Primary | I32: 300-399 | J32: =IF(G32=Benchmarking!$I$4,1,0) -> 0 | K32: =IF(Benchmarking!$I$6="All",1,IF(Benchmarking!$I$6=H32,1,0)) -> 0 | L32: =IF(Benchmarking!$I$8="All",1,IF(Benchmarking!$I$8=I32,1,0)) -> 0 | M32: 0 | N32: 888126.05 | O32: 0 | P32: 391973.49 | Q32: 50341.64 | R32: 98049.32 | S32: 0 | T32: 63154.74 | U32: 8718.66 | V32: 9902.75 | W32: 5556 | X32: 8078.04 | Y32: 28512.7 | Z32: 3818.22 | AA32: 30331.82 | AB32: 5948.95 | AC32: 37641.81 | AD32: 40918 | AE32: 14837.56 | AF32: 86290.41 | AG32: 6820.03 | AH32: 0 | AI32: 26583.14 | AJ32: 12379.54 | AK32: 8672.67 | AL32: 71882.35 | AM32: 0 | AN32: 22145 | AO32: 14896.38 | AP32: 0 | AQ32: 0 | AR32: 65000 | AS32: 0 | AT32: 0 | AU32: -1389961.59 | AV32: -233187.41 | AW32: 0 | AX32: -74341.18 | AY32: 0 | AZ32: -92610 | BA32: -1200 | BB32: -5991.67 | BC32: -2941.2 | BD32: -53446.91 | BE32: 0 | BF32: -5214.24 | BG32: 0 | BH32: -18468 | BI32: -8974.18 | BJ32: 0 | BK32: 0 | BL32: 0 | BM32: -69645 | BN32: 0 | BO32: 0 | BP32: -18974.58 | BQ32: -1697490.18 | BR32: 0 | BS32: 0 | BT32: 0 | BU32: 0 | BV32: 0 | BW32: 74341.18 | BX32: 74341.18
A33: 2166 | B33: Hollingbourne Primary School | C33: 0 | D33: 100 | E33: 0 | F33: 5 | G33: No | H33: Primary | I33: 100-199 | J33: =IF(G33=Benchmarking!$I$4,1,0) -> 0 | K33: =IF(Benchmarking!$I$6="All",1,IF(Benchmarking!$I$6=H33,1,0)) -> 0 | L33: =IF(Benchmarking!$I$8="All",1,IF(Benchmarking!$I$8=I33,1,0)) -> 0 | M33: 0 | N33: 346610.8 | O33: 0 | P33: 97991.69 | Q33: 15452.26 | R33: 23488.66 | S33: 0 | T33: 2670.57 | U33: 1944.27 | V33: 2575 | W33: 3279.67 | X33: 2307.96 | Y33: 18140.91 | Z33: 6095 | AA33: 15039.55 | AB33: 4667.2 | AC33: 16698.39 | AD33: 13723 | AE33: 3957.11 | AF33: 34288.09 | AG33: 24925.26 | AH33: 0 | AI33: 6272.81 | AJ33: 3536.96 | AK33: 2950 | AL33: 18548.26 | AM33: 0 | AN33: 150 | AO33: 13408.14 | AP33: 0 | AQ33: 0 | AR33: 3109.25 | AS33: 0 | AT33: 0 | AU33: -522450.23 | AV33: -55499.66 | AW33: 0 | AX33: -43701.86 | AY33: 0 | AZ33: -28365 | BA33: -1200 | BB33: -48.45 | BC33: 0 | BD33: 0 | BE33: 0 | BF33: -128 | BG33: -4563.17 | BH33: -12261.85 | BI33: -3763.89 | BJ33: 0 | BK33: 0 | BL33: 0 | BM33: -31112 | BN33: 0 | BO33: 0 | BP33: -5330.75 | BQ33: -621651.75 | BR33: 0 | BS33: 0 | BT33: 0 | BU33: 0 | BV33: 2250 | BW33: 41451.86 | BX33: 43701.86
A34: 2167 | B34: Ightham Primary School | C34: 0 | D34: 200 | E34: 0 | F34: 7.75 | G34: No | H34: Primary | I34: 200-299 | J34: =IF(G34=Benchmarking!$I$4,1,0) -> 0 | K34: =IF(Benchmarking!$I$6="All",1,IF(Benchmarking!$I$6=H34,1,0)) -> 0 | L34: =IF(Benchmarking!$I$8="All",1,IF(Benchmarking!$I$8=I34,1,0)) -> 0 | M34: 0 | N34: 596299.02 | O34: 4904.31 | P34: 195805.16 | Q34: 14973.47 | R34: 44419.2 | S34: 0 | T34: 52669.69 | U34: 1874 | V34: 8222.12 | W34: 392 | X34: 10905.39 | Y34: 15479.05 | Z34: 2321.81 | AA34: 16674.28 | AB34: 1200.58 | AC34: 13388.16 | AD34: 21457 | AE34: 6995.75 | AF34: 73537.83 | AG34: 8505.03 | AH34: 0 | AI34: 15961.62 | AJ34: 7074.04 | AK34: 4317.11 | AL34: 31495.9 | AM34: 11034.75 | AN34: 6877.5 | AO34: 29641.67 | AP34: 0 | AQ34: 0 | AR34: 0 | AS34: 0 | AT34: 0 | AU34: -823877.6 | AV34: -96694.57 | AW34: 0 | AX34: -61903.44 | AY34: 0 | AZ34: -20360 | BA34: 0 | BB34: -2012.5 | BC34: 0 | BD34: -62465.92 | BE34: 0 | BF34: -4803.85 | BG34: -2505.04 | BH34: -30337.09 | BI34: -31378.27 | BJ34: 0 | BK34: 0 | BL34: 0 | BM34: -53680 | BN34: 0 | BO34: 0 | BP34: -4188.68 | BQ34: -982475.61 | BR34: 0 | BS34: 0 | BT34: 0 | BU34: 0 | BV34: 0 | BW34: 61903.44 | BX34: 61903.44
A35: 2168 | B35: Lenham Primary School | C35: 0 | D35: 208 | E35: 0 | F35: 5.75 | G35: No | H35: Primary | I35: =IFERROR(VLOOKUP($D35,$D$264:$F$269,3,TRUE),0) -> 200-299 | J35: =IF(G35=Benchmarking!$I$4,1,0) -> 0 | K35: =IF(Benchmarking!$I$6="All",1,IF(Benchmarking!$I$6=H35,1,0)) -> 0 | L35: =IF(Benchmarking!$I$8="All",1,IF(Benchmarking!$I$8=I35,1,0)) -> 0 | M35: 0 | N35: 570179.98 | O35: 2195.59 | P35: 175553.56 | Q35: 26139.53 | R35: 50189.46 | S35: 0 | T35: 12964.32 | U35: 4261.18 | V35: 2996 | W35: 407.68 | X35: 4801.12 | Y35: 5460.42 | Z35: 7681 | AA35: 18570.46 | AB35: 5334.37 | AC35: 21273.28 | AD35: 18837 | AE35: 7304.27 | AF35: 60765.8 | AG35: 16116.24 | AH35: 0 | AI35: 12335.6 | AJ35: 7356.92 | AK35: 695.05 | AL35: 38804.04 | AM35: 20236 | AN35: 11513.25 | AO35: 40927.94 | AP35: 0 | AQ35: 0 | AR35: 36415 | AS35: 0 | AT35: 0 | AU35: -851813.08 | AV35: -91639 | AW35: 0 | AX35: -40010.84 | AY35: 0 | AZ35: -69406 | BA35: 0 | BB35: -5054.64 | BC35: -560 | BD35: -12859.43 | BE35: 0 | BF35: -320 | BG35: 0 | BH35: -14716.24 | BI35: -1303.97 | BJ35: 0 | BK35: 0 | BL35: 0 | BM35: -47694 | BN35: 0 | BO35: 0 | BP35: -8156.38 | BQ35: -983462.92 | BR35: 0 | BS35: 0 | BT35: 0 | BU35: 0 | BV35: 0 | BW35: 40010.84 | BX35: 40010.84
A36: 2169 | B36: Platts Heath Primary School | C36: 0 | D36: 51 | E36: 0 | F36: 6.75 | G36: No | H36: Primary | I36: 0-99 | J36: =IF(G36=Benchmarking!$I$4,1,0) -> 0 | K36: =IF(Benchmarking!$I$6="All",1,IF(Benchmarking!$I$6=H36,1,0)) -> 0 | L36: =IF(Benchmarking!$I$8="All",1,IF(Benchmarking!$I$8=I36,1,0)) -> 0 | M36: 0 | N36: 96532.53 | O36: 8155 | P36: 111334.68 | Q36: 5822.4 | R36: 23302.81 | S36: 0 | T36: 2767.8 | U36: 1292.38 | V36: 1089.83 | W36: 6058.83 | X36: 1177.08 | Y36: 4302.35 | Z36: 1926.31 | AA36: 669.45 | AB36: 972.56 | AC36: 4046.89 | AD36: 2345 | AE36: 4546.3 | AF36: 16926.78 | AG36: 7281.23 | AH36: 0 | AI36: 10022.2 | AJ36: 1803.87 | AK36: 128593.58 | AL36: 8732.49 | AM36: 3024 | AN36: 6219.77 | AO36: 10316.52 | AP36: 0 | AQ36: 0 | AR36: 0 | AS36: 0 | AT36: 0 | AU36: -335973.48 | AV36: -35558.2 | AW36: 0 | AX36: -66877.44 | AY36: 0 | AZ36: -27275 | BA36: 0 | BB36: -3220 | BC36: 0 | BD36: -5263.6 | BE36: -271.6 | BF36: -2010 | BG36: 0 | BH36: -3884.7 | BI36: -2156.37 | BJ36: 0 | BK36: 0 | BL36: 0 | BM36: -19417 | BN36: 0 | BO36: 0 | BP36: -3345.08 | BQ36: -438409.12 | BR36: 0 | BS36: 0 | BT36: 0 | BU36: 0 | BV36: 16498.08 | BW36: 50379.36 | BX36: 66877.44
A37: 2171 | B37: Brunswick House Primary School | C37: 0 | D37: 419 | E37: 0 | F37: 26.16666667 | G37: No | H37: Primary | I37: 400-499 | J37: =IF(G37=Benchmarking!$I$4,1,0) -> 0 | K37: =IF(Benchmarking!$I$6="All",1,IF(Benchmarking!$I$6=H37,1,0)) -> 0 | L37: =IF(Benchmarking!$I$8="All",1,IF(Benchmarking!$I$8=I37,1,0)) -> 0 | M37: 0 | N37: 1060074.09 | O37: 5889.85 | P37: 558934.56 | Q37: 22107.42 | R37: 86758.73 | S37: 0 | T37: 42302.3 | U37: 8576.96 | V37: 18807.57 | W37: 11159.84 | X37: 9670.56 | Y37: 31286.36 | Z37: 7381.61 | AA37: 53742.02 | AB37: 7576.9 | AC37: 35618.31 | AD37: 66048 | AE37: 25136.53 | AF37: 109373.95 | AG37: 24636.5 | AH37: 0 | AI37: 37343.33 | AJ37: 14820.07 | AK37: 3134.02 | AL37: 64886.75 | AM37: 7028.03 | AN37: 33734.67 | AO37: 45411.84 | AP37: 0 | AQ37: 0 | AR37: 17822 | AS37: 0 | AT37: 0 | AU37: -1696770.93 | AV37: -292173.85 | AW37: 0 | AX37: -232041.08 | AY37: 0 | AZ37: -147750 | BA37: 0 | BB37: -1000 | BC37: -10626 | BD37: -24891.18 | BE37: 0 | BF37: -10544.47 | BG37: -7023.32 | BH37: -36849.79 | BI37: -486.22 | BJ37: 0 | BK37: 0 | BL37: 0 | BM37: -65757 | BN37: 0 | BO37: 0 | BP37: -22623.76 | BQ37: -2220985.86 | BR37: 0 | BS37: 0 | BT37: 0 | BU37: 0 | BV37: 0 | BW37: 232041.08 | BX37: 232041.08
A38: 2175 | B38: North Borough Junior School | C38: 0 | D38: 340 | E38: 0 | F38: 5.916666667 | G38: No | H38: Primary | I38: 300-399 | J38: =IF(G38=Benchmarking!$I$4,1,0) -> 0 | K38: =IF(Benchmarking!$I$6="All",1,IF(Benchmarking!$I$6=H38,1,0)) -> 0 | L38: =IF(Benchmarking!$I$8="All",1,IF(Benchmarking!$I$8=I38,1,0)) -> 0 | M38: 0 | N38: 932405.46 | O38: 0 | P38: 319789.48 | Q38: 28396.44 | R38: 81018.09 | S38: 0 | T38: 53901.57 | U38: 7524.45 | V38: 11102.97 | W38: 5208.4 | X38: 7847.16 | Y38: 9520.35 | Z38: 8992.5 | AA38: 18692.73 | AB38: 3775.24 | AC38: 37138.7 | AD38: 23328 | AE38: 11314.59 | AF38: 125641.88 | AG38: 8915.02 | AH38: 0 | AI38: 21333.77 | AJ38: 12025.76 | AK38: 12197.13 | AL38: 67767.79 | AM38: 66567.63 | AN38: 27273.43 | AO38: 35941.14 | AP38: 0 | AQ38: 0 | AR38: 0 | AS38: 0 | AT38: 0 | AU38: -1305310.86 | AV38: -214461.8 | AW38: 0 | AX38: -46844.35 | AY38: 0 | AZ38: -128820 | BA38: 0 | BB38: -35535.68 | BC38: -1666 | BD38: -70371.47 | BE38: -38685 | BF38: 0 | BG38: -13725.77 | BH38: -26657.27 | BI38: 0 | BJ38: 0 | BK38: 0 | BL38: 0 | BM38: -19378 | BN38: 0 | BO38: 0 | BP38: -30234.4 | BQ38: -1566617.01 | BR38: 0 | BS38: 0 | BT38: 0 | BU38: 0 | BV38: 0 | BW38: 46844.35 | BX38: 46844.35
A39: 2176 | B39: Park Way Primary School | C39: 0 | D39: 309 | E39: 0 | F39: 3.583333333 | G39: No | H39: Primary | I39: 300-399 | J39: =IF(G39=Benchmarking!$I$4,1,0) -> 0 | K39: =IF(Benchmarking!$I$6="All",1,IF(Benchmarking!$I$6=H39,1,0)) -> 0 | L39: =IF(Benchmarking!$I$8="All",1,IF(Benchmarking!$I$8=I39,1,0)) -> 0 | M39: 0 | N39: 841702.92 | O39: 0 | P39: 230008.96 | Q39: 49186.19 | R39: 91965.62 | S39: 0 | T39: 42561.34 | U39: 8029.95 | V39: 17968.95 | W39: 605.64 | X39: 7131.72 | Y39: 11244.44 | Z39: 7367.41 | AA39: 12215.44 | AB39: 4352.45 | AC39: 27023.89 | AD39: 28416 | AE39: 24016.27 | AF39: 39695.37 | AG39: 10681.6 | AH39: 0 | AI39: 15049.56 | AJ39: 10929.33 | AK39: 4869.41 | AL39: 55587.36 | AM39: 68288.08 | AN39: 44786.2 | AO39: 30297.42 | AP39: 0 | AQ39: 0 | AR39: 21234.05 | AS39: 0 | AT39: 0 | AU39: -1216313.12 | AV39: -222679.49 | AW39: 0 | AX39: -27197.59 | AY39: 0 | AZ39: -134950.5 | BA39: -1200 | BB39: -7958.21 | BC39: -10087.8 | BD39: -14702.56 | BE39: -497.52 | BF39: 0 | BG39: -8190.72 | BH39: 0 | BI39: -1680 | BJ39: 0 | BK39: 0 | BL39: 0 | BM39: -48688 | BN39: 0 | BO39: 0 | BP39: -17837.72 | BQ39: -1466190.2 | BR39: 0 | BS39: 0 | BT39: 0 | BU39: 0 | BV39: 0 | BW39: 27197.59 | BX39: 27197.59
A40: 2185 | B40: Mereworth Community Primary School | C40: 0 | D40: 209 | E40: 0 | F40: 7 | G40: No | H40: Primary | I40: 200-299 | J40: =IF(G40=Benchmarking!$I$4,1,0) -> 0 | K40: =IF(Benchmarking!$I$6="All",1,IF(Benchmarking!$I$6=H40,1,0)) -> 0 | L40: =IF(Benchmarking!$I$8="All",1,IF(Benchmarking!$I$8=I40,1,0)) -> 0 | M40: 0 | N40: 509217.11 | O40: 0 | P40: 199042 | Q40: 32422.33 | R40: 69951.74 | S40: 0 | T40: 43105.73 | U40: 4802.12 | V40: 4261.67 | W40: 409.64 | X40: 10538.76 | Y40: 10500.71 | Z40: 12299 | AA40: 1201.92 | AB40: 1950.07 | AC40: 27225.85 | AD40: 26365 | AE40: 7718.25 | AF40: 85731.88 | AG40: 12521.48 | AH40: 0 | AI40: 21652.17 | AJ40: 7392.37 | AK40: 8116.71 | AL40: 35727.02 | AM40: 0 | AN40: 40042.75 | AO40: 14521.41 | AP40: 0 | AQ40: 0 | AR40: 0 | AS40: 0 | AT40: 0 | AU40: -869295.28 | AV40: -93182.33 | AW40: 0 | AX40: -55806.35 | AY40: 0 | AZ40: -52270 | BA40: -3000 | BB40: -5742.12 | BC40: -4203.67 | BD40: -45982.19 | BE40: -4063.18 | BF40: 0 | BG40: -5327 | BH40: -25839.39 | BI40: -27889.76 | BJ40: 0 | BK40: 0 | BL40: 0 | BM40: -47290 | BN40: 0 | BO40: 0 | BP40: -10829.16 | BQ40: -1018283.96 | BR40: 0 | BS40: 0 | BT40: 0 | BU40: 0 | BV40: 0 | BW40: 55806.35 | BX40: 55806.35
A41: 2187 | B41: Offham Primary School | C41: 0 | D41: 213 | E41: 0 | F41: 6.5 | G41: No | H41: Junior | I41: 200-299 | J41: =IF(G41=Benchmarking!$I$4,1,0) -> 0 | K41: =IF(Benchmarking!$I$6="All",1,IF(Benchmarking!$I$6=H41,1,0)) -> 0 | L41: =IF(Benchmarking!$I$8="All",1,IF(Benchmarking!$I$8=I41,1,0)) -> 0 | M41: 0 | N41: 591589.55 | O41: 0 | P41: 176149.88 | Q41: 32411.15 | R41: 59921.34 | S41: 38832.79 | T41: 57547.88 | U41: 4836.7 | V41: 6438.6 | W41: 417.48 | X41: 5086.08 | Y41: 5785.91 | Z41: 5993.31 | AA41: 2505.15 | AB41: 2844.69 | AC41: 22083.49 | AD41: 23827 | AE41: 7146.77 | AF41: 77516.94 | AG41: 9129.07 | AH41: 0 | AI41: 26038.46 | AJ41: 8213.85 | AK41: 11618.42 | AL41: 45109.43 | AM41: 123.31 | AN41: 41535.11 | AO41: 23757.72 | AP41: 0 | AQ41: 0 | AR41: 0 | AS41: 0 | AT41: 0 | AU41: -857095.32 | AV41: -108762.25 | AW41: 0 | AX41: -46389.73 | AY41: 0 | AZ41: -15900 | BA41: 0 | BB41: 0 | BC41: -5557 | BD41: -96415.04 | BE41: -21409.44 | BF41: 0 | BG41: -40509.08 | BH41: -21833.83 | BI41: -13188.54 | BJ41: 0 | BK41: 0 | BL41: 0 | BM41: -54502 | BN41: 0 | BO41: 0 | BP41: -3569.38 | BQ41: -1012247.3 | BR41: 0 | BS41: 0 | BT41: 0 | BU41: 0 | BV41: 0 | BW41: 46389.73 | BX41: 46389.73
A42: 2188 | B42: Plaxtol Primary School | C42: 0 | D42: 98 | E42: 0 | F42: 1 | G42: No | H42: Primary | I42: 0-99 | J42: =IF(G42=Benchmarking!$I$4,1,0) -> 0 | K42: =IF(Benchmarking!$I$6="All",1,IF(Benchmarking!$I$6=H42,1,0)) -> 0 | L42: =IF(Benchmarking!$I$8="All",1,IF(Benchmarking!$I$8=I42,1,0)) -> 0 | M42: 0 | N42: 280008.92 | O42: 12485.64 | P42: 75427.42 | Q42: 872.76 | R42: 26858.78 | S42: 0 | T42: 5407.6 | U42: 5109.93 | V42: 4409.5 | W42: 2289.25 | X42: 2261.88 | Y42: 6771.09 | Z42: 4771.64 | AA42: 12353.88 | AB42: 1457.76 | AC42: 8462.9 | AD42: 13847.25 | AE42: 4452.37 | AF42: 26459.15 | AG42: 4411.87 | AH42: 0 | AI42: 6580.71 | AJ42: 3466.3 | AK42: 8950.41 | AL42: 16479.16 | AM42: 36274.5 | AN42: 17098.95 | AO42: 11647.62 | AP42: 0 | AQ42: 0 | AR42: 0 | AS42: 0 | AT42: 0 | AU42: -499998.71 | AV42: -30734.66 | AW42: 0 | AX42: -13925.16 | AY42: 0 | AZ42: -15235 | BA42: -788.05 | BB42: -220 | BC42: -734.85 | BD42: -14286.4 | BE42: 0 | BF42: -3184 | BG42: -3843.78 | BH42: -7392.95 | BI42: -9599.37 | BJ42: 0 | BK42: 0 | BL42: 0 | BM42: -33180 | BN42: 0 | BO42: 0 | BP42: -3225.13 | BQ42: -544658.53 | BR42: 0 | BS42: 0 | BT42: 0 | BU42: 0 | BV42: 2926.56 | BW42: 10998.6 | BX42: 13925.16
A43: 2189 | B43: Ryarsh Primary School | C43: 0 | D43: 210 | E43: 0 | F43: 11.16666667 | G43: No | H43: Primary | I43: 200-299 | J43: =IF(G43=Benchmarking!$I$4,1,0) -> 0 | K43: =IF(Benchmarking!$I$6="All",1,IF(Benchmarking!$I$6=H43,1,0)) -> 0 | L43: =IF(Benchmarking!$I$8="All",1,IF(Benchmarking!$I$8=I43,1,0)) -> 0 | M43: 0 | N43: 526250.8 | O43: 0 | P43: 312753.78 | Q43: 38330.58 | R43: 53157.4 | S43: 0 | T43: 47110.56 | U43: 3961.62 | V43: 10192.66 | W43: 411.6 | X43: 4846.8 | Y43: 3776.01 | Z43: 16611.87 | AA43: 2109.71 | AB43: 2916.01 | AC43: 19545.87 | AD43: 17964 | AE43: 9380.09 | AF43: 61085.81 | AG43: 13359.72 | AH43: 0 | AI43: 12334.18 | AJ43: 7427.7 | AK43: 29460.16 | AL43: 34328.55 | AM43: 0 | AN43: 6402.45 | AO43: 18864.63 | AP43: 0 | AQ43: 0 | AR43: 0 | AS43: 0 | AT43: 0 | AU43: -873262.93 | AV43: -104602.59 | AW43: 0 | AX43: -121169.17 | AY43: 0 | AZ43: -23850 | BA43: -1200 | BB43: 0 | BC43: 0 | BD43: -47251.31 | BE43: -521.68 | BF43: 0 | BG43: 0 | BH43: -13776.8 | BI43: -24724.83 | BJ43: 0 | BK43: 0 | BL43: 0 | BM43: -47312 | BN43: 0 | BO43: 0 | BP43: -3667.96 | BQ43: -1099034.69 | BR43: 0 | BS43: 0 | BT43: 0 | BU43: 0 | BV43: 0 | BW43: 121169.17 | BX43: 121169.17
A44: 2190 | B44: Shipbourne School | C44: 0 | D44: 60 | E44: 0 | F44: 6.416666667 | G44: No | H44: Primary | I44: 0-99 | J44: =IF(G44=Benchmarking!$I$4,1,0) -> 0 | K44: =IF(Benchmarking!$I$6="All",1,IF(Benchmarking!$I$6=H44,1,0)) -> 0 | L44: =IF(Benchmarking!$I$8="All",1,IF(Benchmarking!$I$8=I44,1,0)) -> 0 | M44: 0 | N44: 225291.02 | O44: 0 | P44: 121975.94 | Q44: 0 | R44: 26178.99 | S44: 0 | T44: 3977.07 | U44: 1322.79 | V44: 1916.9 | W44: 2679.18 | X44: 1384.8 | Y44: 1963.46 | Z44: 1967.52 | AA44: 11127.22 | AB44: 978.44 | AC44: 7641.39 | AD44: 6737 | AE44: 1179.06 | AF44: 53671.74 | AG44: 5688.01 | AH44: 0 | AI44: 3025.87 | AJ44: 2122.2 | AK44: 1779.65 | AL44: 12673.05 | AM44: 5325 | AN44: 1423.79 | AO44: 7398.75 | AP44: 0 | AQ44: 0 | AR44: 0 | AS44: 0 | AT44: 0 | AU44: -343099.4 | AV44: -20884.8 | AW44: 0 | AX44: -77719.36 | AY44: 0 | AZ44: -13850 | BA44: 0 | BB44: -3591.67 | BC44: 0 | BD44: -2292.26 | BE44: 0 | BF44: 0 | BG44: 0 | BH44: -13443.38 | BI44: -7592.23 | BJ44: 0 | BK44: 0 | BL44: 0 | BM44: -26449 | BN44: 0 | BO44: 0 | BP44: -3738.13 | BQ44: -441703.56 | BR44: 0 | BS44: 0 | BT44: 0 | BU44: 0 | BV44: 25098.92 | BW44: 52620.44 | BX44: 77719.36
A45: 2192 | B45: Staplehurst School | C45: 0 | D45: 370 | E45: 0 | F45: 9.083333333 | G45: No | H45: Primary | I45: 300-399 | J45: =IF(G45=Benchmarking!$I$4,1,0) -> 0 | K45: =IF(Benchmarking!$I$6="All",1,IF(Benchmarking!$I$6=H45,1,0)) -> 0 | L45: =IF(Benchmarking!$I$8="All",1,IF(Benchmarking!$I$8=I45,1,0)) -> 0 | M45: 0 | N45: 970306.81 | O45: 0 | P45: 304276.87 | Q45: 29204.03 | R45: 105462.83 | S45: 0 | T45: 82424.39 | U45: 8562.53 | V45: 10403.86 | W45: 5828.71 | X45: 7059.6 | Y45: 70072.94 | Z45: 4653.46 | AA45: 52835.17 | AB45: 7699.36 | AC45: 46231.55 | AD45: 37632 | AE45: 15333.85 | AF45: 107026.37 | AG45: 22204.69 | AH45: 0 | AI45: 21686.92 | AJ45: 14566.82 | AK45: 5893.13 | AL45: 37506.95 | AM45: 15315.4 | AN45: 68120.91 | AO45: 24836.7 | AP45: 0 | AQ45: 756.62 | AR45: 0 | AS45: 0 | AT45: 0 | AU45: -1411343.91 | AV45: -250414.44 | AW45: 0 | AX45: -90182.73 | AY45: 0 | AZ45: -98335 | BA45: -3976.1 | BB45: -25657.66 | BC45: -12362.61 | BD45: -39724.6 | BE45: -147 | BF45: 0 | BG45: -480 | BH45: -21219.16 | BI45: -3207.01 | BJ45: 0 | BK45: 0 | BL45: 0 | BM45: -78366 | BN45: 0 | BO45: 0 | BP45: -20608.17 | BQ45: -1751941.08 | BR45: 0 | BS45: 0 | BT45: 0 | BU45: 0 | BV45: 0 | BW45: 90182.73 | BX45: 90182.73
A46: 2193 | B46: Sutton Valence Primary School | C46: 0 | D46: 204 | E46: 0 | F46: 4.75 | G46: No | H46: Primary | I46: 200-299 | J46: =IF(G46=Benchmarking!$I$4,1,0) -> 0 | K46: =IF(Benchmarking!$I$6="All",1,IF(Benchmarking!$I$6=H46,1,0)) -> 0 | L46: =IF(Benchmarking!$I$8="All",1,IF(Benchmarking!$I$8=I46,1,0)) -> 0 | M46: 0 | N46: 536885.01 | O46: 0 | P46: 128089.25 | Q46: 34361.98 | R46: 89334.05 | S46: 28464.18 | T46: 9572.46 | U46: 6266.75 | V46: 8337 | W46: 399.84 | X46: 4708.32 | Y46: 105219.84 | Z46: 14480.94 | AA46: 5761.64 | AB46: 845.26 | AC46: 22748.82 | AD46: 19835 | AE46: 4696.35 | AF46: 32485.1 | AG46: 24372.96 | AH46: 0 | AI46: 8228.55 | AJ46: 7215.48 | AK46: 3269.76 | AL46: 29682.07 | AM46: 2057.25 | AN46: 27437.94 | AO46: 22622.64 | AP46: 0 | AQ46: 0 | AR46: 0 | AS46: 0 | AT46: 0 | AU46: -835956.41 | AV46: -85517.55 | AW46: 0 | AX46: -46673.07 | AY46: 0 | AZ46: -57018.98 | BA46: 0 | BB46: -1123.59 | BC46: -500 | BD46: -67714.85 | BE46: -15000 | BF46: 0 | BG46: -2767.61 | BH46: 0 | BI46: 0 | BJ46: 0 | BK46: 0 | BL46: 0 | BM46: -51963 | BN46: 0 | BO46: 0 | BP46: -12738.93 | BQ46: -968147.03 | BR46: 0 | BS46: 0 | BT46: 0 | BU46: 0 | BV46: 0 | BW46: 46673.07 | BX46: 46673.07
A47: 2226 | B47: Eastling Primary School | C47: 0 | D47: 97 | E47: 0 | F47: 8.5 | G47: No | H47: Primary | I47: 0-99 | J47: =IF(G47=Benchmarking!$I$4,1,0) -> 0 | K47: =IF(Benchmarking!$I$6="All",1,IF(Benchmarking!$I$6=H47,1,0)) -> 0 | L47: =IF(Benchmarking!$I$8="All",1,IF(Benchmarking!$I$8=I47,1,0)) -> 0 | M47: 0 | N47: 350657.83 | O47: 18960.7 | P47: 115348.56 | Q47: 24399.79 | R47: 40220.36 | S47: 0 | T47: 8220.46 | U47: 2079.92 | V47: 5315.24 | W47: 4690.12 | X47: 2408.76 | Y47: 6683.18 | Z47: 3560.9 | AA47: 2577.22 | AB47: 2262.78 | AC47: 16100.96 | AD47: 12974 | AE47: 3867.32 | AF47: 38478.92 | AG47: 10937.81 | AH47: 0 | AI47: 9968.02 | AJ47: 4360.89 | AK47: 3702.63 | AL47: 18733.12 | AM47: 0 | AN47: 3708.95 | AO47: 14756.72 | AP47: 0 | AQ47: 0 | AR47: 13617 | AS47: 0 | AT47: 0 | AU47: -528025.69 | AV47: -45591.5 | AW47: 0 | AX47: -67122.56 | AY47: 0 | AZ47: -24570 | BA47: 0 | BB47: -19896.5 | BC47: -5278.25 | BD47: 0 | BE47: 0 | BF47: -2100 | BG47: -5148.66 | BH47: -7504.07 | BI47: -5859.9 | BJ47: 0 | BK47: 0 | BL47: 0 | BM47: -28329 | BN47: 0 | BO47: 0 | BP47: -2725.42 | BQ47: -640739.75 | BR47: 0 | BS47: 0 | BT47: 0 | BU47: 0 | BV47: 12247.14 | BW47: 54875.42 | BX47: 67122.56
A48: 2227 | B48: Ethelbert Road Primary School | C48: 0 | D48: 209 | E48: 0 | F48: 6.5 | G48: No | H48: Primary | I48: 200-299 | J48: =IF(G48=Benchmarking!$I$4,1,0) -> 0 | K48: =IF(Benchmarking!$I$6="All",1,IF(Benchmarking!$I$6=H48,1,0)) -> 0 | L48: =IF(Benchmarking!$I$8="All",1,IF(Benchmarking!$I$8=I48,1,0)) -> 0 | M48: 0 | N48: 510722.1 | O48: 17209.61 | P48: 261535.84 | Q48: 21492.87 | R48: 42375.37 | S48: 0 | T48: 46239.17 | U48: 4061.12 | V48: 2977.5 | W48: 409.64 | X48: 4993.68 | Y48: 5930.68 | Z48: 2396.73 | AA48: 2303.04 | AB48: 3438.8 | AC48: 11592.38 | AD48: 12622 | AE48: 4333.04 | AF48: 49940.03 | AG48: 3666.62 | AH48: 0 | AI48: 8237.39 | AJ48: 8072.29 | AK48: 9970.34 | AL48: 33161.23 | AM48: 0 | AN48: 11105.7 | AO48: 45091.4 | AP48: 0 | AQ48: 0 | AR48: 42250 | AS48: 0 | AT48: 0 | AU48: -835794.17 | AV48: -102588.93 | AW48: 0 | AX48: -67249.5 | AY48: 0 | AZ48: -37645 | BA48: 0 | BB48: -3091.67 | BC48: 0 | BD48: -26843.74 | BE48: 0 | BF48: 0 | BG48: 0 | BH48: -13195.87 | BI48: -4634.1 | BJ48: 0 | BK48: 0 | BL48: 0 | BM48: -48491 | BN48: 0 | BO48: 0 | BP48: -5545.75 | BQ48: -1005632.6 | BR48: 0 | BS48: 0 | BT48: 0 | BU48: 0 | BV48: 0 | BW48: 67249.5 | BX48: 67249.5
A49: 2228 | B49: Davington Primary School | C49: 0 | D49: 413 | E49: 0 | F49: 6.333333333 | G49: No | H49: Primary | I49: 400-499 | J49: =IF(G49=Benchmarking!$I$4,1,0) -> 0 | K49: =IF(Benchmarking!$I$6="All",1,IF(Benchmarking!$I$6=H49,1,0)) -> 0 | L49: =IF(Benchmarking!$I$8="All",1,IF(Benchmarking!$I$8=I49,1,0)) -> 0 | M49: 0 | N49: 1182859.69 | O49: 18141.12 | P49: 370750.42 | Q49: 28207.04 | R49: 84142.87 | S49: 59371.03 | T49: 84292.17 | U49: 9552.16 | V49: 7368.49 | W49: 8616.75 | X49: 9787.08 | Y49: 21372.99 | Z49: 27663.7 | AA49: 37119.1 | AB49: 2990.58 | AC49: 49850.84 | AD49: 39424 | AE49: 18508.6 | AF49: 87929.42 | AG49: 17314.9 | AH49: 0 | AI49: 24027.84 | AJ49: 15627.85 | AK49: 24142.67 | AL49: 75711.79 | AM49: 0 | AN49: 12824.18 | AO49: 17722.61 | AP49: 0 | AQ49: 0 | AR49: 0 | AS49: 0 | AT49: 0 | AU49: -1561363.92 | AV49: -290439.15 | AW49: 0 | AX49: -51720.63 | AY49: 0 | AZ49: -111120 | BA49: 0 | BB49: -11838.33 | BC49: -2565 | BD49: -91306.05 | BE49: -79390.31 | BF49: -3614.64 | BG49: -671.6 | BH49: -39884 | BI49: -16003.71 | BJ49: 0 | BK49: 0 | BL49: 0 | BM49: -84851 | BN49: 0 | BO49: 0 | BP49: -23685.05 | BQ49: -1903523.7 | BR49: 0 | BS49: 0 | BT49: 0 | BU49: 0 | BV49: 0 | BW49: 51720.63 | BX49: 51720.63
A50: 2231 | B50: Lower Halstow School | C50: 0 | D50: 165 | E50: 0 | F50: 14.41666667 | G50: No | H50: Primary | I50: 100-199 | J50: =IF(G50=Benchmarking!$I$4,1,0) -> 0 | K50: =IF(Benchmarking!$I$6="All",1,IF(Benchmarking!$I$6=H50,1,0)) -> 0 | L50: =IF(Benchmarking!$I$8="All",1,IF(Benchmarking!$I$8=I50,1,0)) -> 0 | M50: 0 | N50: 454052.56 | O50: 0 | P50: 263152.27 | Q50: 16380.23 | R50: 50260.26 | S50: 0 | T50: 295.44 | U50: 3754.11 | V50: 6891.31 | W50: 2553.87 | X50: 3893.16 | Y50: 20054.39 | Z50: 23986.24 | AA50: 11965.54 | AB50: 3101.21 | AC50: 14900.63 | AD50: 20833 | AE50: 10169.33 | AF50: 61394.53 | AG50: 16096.84 | AH50: 0 | AI50: 12536.48 | AJ50: 6176.01 | AK50: 0 | AL50: 23451.02 | AM50: 19877.4 | AN50: 0 | AO50: 21766.43 | AP50: 0 | AQ50: 0 | AR50: 0 | AS50: 0 | AT50: 0 | AU50: -780299.66 | AV50: -68465.69 | AW50: 0 | AX50: -110958.07 | AY50: 0 | AZ50: -33628.33 | BA50: 0 | BB50: -5529.88 | BC50: -3071.5 | BD50: -593.64 | BE50: 0 | BF50: -1080 | BG50: 0 | BH50: -4144.8 | BI50: -17127.92 | BJ50: 0 | BK50: 0 | BL50: 0 | BM50: -44153 | BN50: 0 | BO50: 0 | BP50: -6728.6 | BQ50: -959723.42 | BR50: 0 | BS50: 0 | BT50: 0 | BU50: 0 | BV50: 0 | BW50: 110958.07 | BX50: 110958.07
A51: 2239 | B51: Rodmersham Primary School | C51: 0 | D51: 102 | E51: 0 | F51: 6.916666667 | G51: No | H51: Primary | I51: 100-199 | J51: =IF(G51=Benchmarking!$I$4,1,0) -> 0 | K51: =IF(Benchmarking!$I$6="All",1,IF(Benchmarking!$I$6=H51,1,0)) -> 0 | L51: =IF(Benchmarking!$I$8="All",1,IF(Benchmarking!$I$8=I51,1,0)) -> 0 | M51: 0 | N51: 356350.88 | O51: 0 | P51: 157764.82 | Q51: 7014.71 | R51: 22358.16 | S51: 0 | T51: 25256.92 | U51: 3923 | V51: 5619.39 | W51: 199.92 | X51: 2524.2 | Y51: 5072.61 | Z51: 3869.35 | AA51: 2825.77 | AB51: 4484.31 | AC51: 8742.28 | AD51: 5863 | AE51: 10922.54 | AF51: 37680.03 | AG51: 24776.41 | AH51: 0 | AI51: 10273.53 | AJ51: 4287.78 | AK51: 2492.44 | AL51: 27470.73 | AM51: 0 | AN51: 29269.64 | AO51: 9416.87 | AP51: 0 | AQ51: 0 | AR51: 0 | AS51: 0 | AT51: 0 | AU51: -497559.18 | AV51: -38048.23 | AW51: 0 | AX51: -114498.93 | AY51: 0 | AZ51: -6565 | BA51: -9806.22 | BB51: -1176.69 | BC51: 0 | BD51: -9907.35 | BE51: -7254.62 | BF51: 0 | BG51: 0 | BH51: -11879.82 | BI51: -978.12 | BJ51: 0 | BK51: 0 | BL51: 0 | BM51: -34562 | BN51: 0 | BO51: 0 | BP51: -2880.5 | BQ51: -650106.34 | BR51: 0 | BS51: 0 | BT51: 0 | BU51: 0 | BV51: 15183.19 | BW51: 99315.74 | BX51: 114498.93
A52: 2245 | B52: Rose Street School | C52: 25 | D52: 386 | E52: 0 | F52: 15.83333333 | G52: Yes | H52: Primary | I52: 300-399 | J52: =IF(G52=Benchmarking!$I$4,1,0) -> 0 | K52: =IF(Benchmarking!$I$6="All",1,IF(Benchmarking!$I$6=H52,1,0)) -> 0 | L52: =IF(Benchmarking!$I$8="All",1,IF(Benchmarking!$I$8=I52,1,0)) -> 0 | M52: 0 | N52: 1036751.61 | O52: 0 | P52: 473651.17 | Q52: 111657.59 | R52: 175631.6 | S52: 0 | T52: 102760.73 | U52: 7390.45 | V52: 20493.06 | W52: 756.56 | X52: 9008.88 | Y52: 86604.82 | Z52: 2971.25 | AA52: 9333.6 | AB52: 7363.38 | AC52: 50090.01 | AD52: 79872 | AE52: 6583.82 | AF52: 159659.09 | AG52: 24036.99 | AH52: 0 | AI52: 17188.75 | AJ52: 14052.82 | AK52: 0 | AL52: 70360.38 | AM52: 134084 | AN52: 12008.18 | AO52: 30791.67 | AP52: 0 | AQ52: 0 | AR52: 45000 | AS52: 0 | AT52: 0 | AU52: -1729032.36 | AV52: -442586.88 | AW52: 0 | AX52: -106596.27 | AY52: 0 | AZ52: -332872 | BA52: 0 | BB52: -80 | BC52: 0 | BD52: -12318.44 | BE52: 0 | BF52: 0 | BG52: -9552.72 | BH52: -9528 | BI52: -20 | BJ52: 0 | BK52: 0 | BL52: 0 | BM52: -33237 | BN52: 0 | BO52: 0 | BP52: -50187.31 | BQ52: -2278215.51 | BR52: 0 | BS52: 0 | BT52: 0 | BU52: 0 | BV52: 0 | BW52: 106596.27 | BX52: 106596.27
A53: 2254 | B53: Canterbury Road Primary School | C53: 0 | D53: 206 | E53: 0 | F53: 9.833333333 | G53: No | H53: Primary | I53: 200-299 | J53: =IF(G53=Benchmarking!$I$4,1,0) -> 0 | K53: =IF(Benchmarking!$I$6="All",1,IF(Benchmarking!$I$6=H53,1,0)) -> 0 | L53: =IF(Benchmarking!$I$8="All",1,IF(Benchmarking!$I$8=I53,1,0)) -> 0 | M53: 0 | N53: 562328.31 | O53: 0 | P53: 238767.24 | Q53: 29985.26 | R53: 66158.13 | S53: 0 | T53: 40015.89 | U53: 19754.18 | V53: 3300.22 | W53: 6479.84 | X53: 4839.48 | Y53: 26512.58 | Z53: 7865.11 | AA53: 4328.08 | AB53: 23.82 | AC53: 19186.37 | AD53: 29952 | AE53: 7742.24 | AF53: 68421.47 | AG53: 17439.19 | AH53: 0 | AI53: 10179.56 | AJ53: 7626.22 | AK53: 0 | AL53: 38730.6 | AM53: 19582 | AN53: 1132 | AO53: 23518.55 | AP53: 0 | AQ53: 0 | AR53: 0 | AS53: 0 | AT53: 0 | AU53: -866799.31 | AV53: -173974.85 | AW53: 0 | AX53: -55958.7 | AY53: 0 | AZ53: -82380 | BA53: 0 | BB53: -3815 | BC53: 0 | BD53: -7257.63 | BE53: 0 | BF53: 0 | BG53: -10348.41 | BH53: -16763.36 | BI53: -5186.79 | BJ53: 0 | BK53: 0 | BL53: 0 | BM53: -40008 | BN53: 0 | BO53: 0 | BP53: -17144.83 | BQ53: -1096732.86 | BR53: 0 | BS53: 0 | BT53: 0 | BU53: 0 | BV53: 0 | BW53: 55958.7 | BX53: 55958.7
A54: 2258 | B54: Blean Primary School | C54: 0 | D54: 427 | E54: 0 | F54: 11.58333333 | G54: No | H54: Primary | I54: 400-499 | J54: =IF(G54=Benchmarking!$I$4,1,0) -> 0 | K54: =IF(Benchmarking!$I$6="All",1,IF(Benchmarking!$I$6=H54,1,0)) -> 0 | L54: =IF(Benchmarking!$I$8="All",1,IF(Benchmarking!$I$8=I54,1,0)) -> 0 | M54: 0 | N54: 1044249.43 | O54: 0 | P54: 499894.32 | Q54: 97953.21 | R54: 136131.67 | S54: 0 | T54: 104607.29 | U54: 11305.28 | V54: 15440.32 | W54: 14599.29 | X54: 9855.12 | Y54: 8480.87 | Z54: 5701.83 | AA54: 3581.02 | AB54: 8528.85 | AC54: 47518.5 | AD54: 37632 | AE54: 18425.88 | AF54: 103330.03 | AG54: 8896.97 | AH54: 0 | AI54: 10778.73 | AJ54: 15102.95 | AK54: 26540.32 | AL54: 70585.02 | AM54: 0 | AN54: 13918 | AO54: 36369.19 | AP54: 0 | AQ54: 0 | AR54: 103000 | AS54: 0 | AT54: 0 | AU54: -1580477.48 | AV54: -327566.66 | AW54: 0 | AX54: -78847.21 | AY54: 0 | AZ54: -61331 | BA54: -36364 | BB54: -15449.09 | BC54: -12083.7 | BD54: -183573.72 | BE54: 0 | BF54: -26325 | BG54: -946.45 | BH54: -25233.28 | BI54: -21175.68 | BJ54: 0 | BK54: 0 | BL54: 0 | BM54: -92607 | BN54: 0 | BO54: 0 | BP54: -13219.75 | BQ54: -1986891.35 | BR54: 0 | BS54: 0 | BT54: 0 | BU54: 0 | BV54: 0 | BW54: 78847.21 | BX54: 78847.21
A55: 2263 | B55: Herne Bay Infant and Nursery School | C55: 33 | D55: 265 | E55: 0 | F55: 9.166666667 | G55: Yes | H55: Primary | I55: 200-299 | J55: =IF(G55=Benchmarking!$I$4,1,0) -> 0 | K55: =IF(Benchmarking!$I$6="All",1,IF(Benchmarking!$I$6=H55,1,0)) -> 0 | L55: =IF(Benchmarking!$I$8="All",1,IF(Benchmarking!$I$8=I55,1,0)) -> 0 | M55: 0 | N55: 719722.93 | O55: 23330.3 | P55: 420714.44 | Q55: 54039.93 | R55: 66819.13 | S55: 0 | T55: 46050.05 | U55: 11381.02 | V55: 10246.04 | W55: 8489.82 | X55: 6268.2 | Y55: 11952.17 | Z55: 1805.45 | AA55: 26997.62 | AB55: 3101.06 | AC55: 31698.04 | AD55: 15968 | AE55: 10134.51 | AF55: 41091.75 | AG55: 17905.32 | AH55: 0 | AI55: 17705.06 | AJ55: 9981.05 | AK55: 3313.05 | AL55: 79001.76 | AM55: 0 | AN55: 23955.83 | AO55: 31276.89 | AP55: 0 | AQ55: 0 | AR55: 31845.21 | AS55: 0 | AT55: 0 | AU55: -1215659.79 | AV55: -174096.78 | AW55: 0 | AX55: -100623.36 | AY55: 0 | AZ55: -139625 | BA55: 0 | BB55: -6570 | BC55: 0 | BD55: -26057.51 | BE55: -8708.33 | BF55: -2030 | BG55: -1643.81 | BH55: -930 | BI55: -8046.1 | BJ55: 0 | BK55: 0 | BL55: 0 | BM55: -78325 | BN55: 0 | BO55: 0 | BP55: -18279.25 | BQ55: -1490379.93 | BR55: 0 | BS55: 0 | BT55: 0 | BU55: 0 | BV55: 0 | BW55: 100623.36 | BX55: 100623.36
A56: 2265 | B56: Hoath Primary School | C56: 0 | D56: 95 | E56: 0 | F56: 4.5 | G56: No | H56: Primary | I56: 0-99 | J56: =IF(G56=Benchmarking!$I$4,1,0) -> 0 | K56: =IF(Benchmarking!$I$6="All",1,IF(Benchmarking!$I$6=H56,1,0)) -> 0 | L56: =IF(Benchmarking!$I$8="All",1,IF(Benchmarking!$I$8=I56,1,0)) -> 0 | M56: 0 | N56: 317044.24 | O56: 391.24 | P56: 142062.71 | Q56: 10747.33 | R56: 30846.21 | S56: 0 | T56: 1048.11 | U56: 2009.3 | V56: 3531.5 | W56: 3034.17 | X56: 2362.56 | Y56: 1015.86 | Z56: 2045 | AA56: 1072.62 | AB56: 2743.44 | AC56: 5773.07 | AD56: 14346 | AE56: 2742.98 | AF56: 18493.03 | AG56: 22191.65 | AH56: 0 | AI56: 10294.54 | AJ56: 4217.01 | AK56: 3454.02 | AL56: 16495.96 | AM56: 4652 | AN56: 10393.57 | AO56: 16877.54 | AP56: 0 | AQ56: 0 | AR56: 0 | AS56: 0 | AT56: 0 | AU56: -475709.03 | AV56: -48425.23 | AW56: 0 | AX56: -41015.73 | AY56: 0 | AZ56: -16620 | BA56: 0 | BB56: -26007.06 | BC56: 0 | BD56: -31739.15 | BE56: -4.9 | BF56: 0 | BG56: 0 | BH56: -3572.33 | BI56: -696 | BJ56: 0 | BK56: 0 | BL56: 0 | BM56: -26662 | BN56: 0 | BO56: 0 | BP56: -2519.75 | BQ56: -565149.99 | BR56: 0 | BS56: 0 | BT56: 0 | BU56: 0 | BV56: 5208.84 | BW56: 35806.89 | BX56: 41015.73
A57: 2268 | B57: Westmeads Community Infant School | C57: 2 | D57: 156 | E57: 0 | F57: 3.666666667 | G57: Yes | H57: Primary | I57: 100-199 | J57: =IF(G57=Benchmarking!$I$4,1,0) -> 0 | K57: =IF(Benchmarking!$I$6="All",1,IF(Benchmarking!$I$6=H57,1,0)) -> 0 | L57: =IF(Benchmarking!$I$8="All",1,IF(Benchmarking!$I$8=I57,1,0)) -> 0 | M57: 0 | N57: 451224.28 | O57: 0 | P57: 137514.81 | Q57: 43687.86 | R57: 54462.75 | S57: 37656.4 | T57: 64778.01 | U57: 3046.36 | V57: 5829.48 | W57: 305.76 | X57: 2197.2 | Y57: 5284.99 | Z57: 629 | AA57: 3354.88 | AB57: 2683.56 | AC57: 18827.06 | AD57: 19711 | AE57: 3936.73 | AF57: 26306.88 | AG57: 2789.34 | AH57: 0 | AI57: 15841.44 | AJ57: 5857.68 | AK57: 0 | AL57: 21272.63 | AM57: 0 | AN57: 8591 | AO57: 55263.43 | AP57: 0 | AQ57: 0 | AR57: 0 | AS57: 0 | AT57: 0 | AU57: -687985.33 | AV57: -66820.98 | AW57: 0 | AX57: -18064.8 | AY57: 0 | AZ57: -39805 | BA57: 0 | BB57: -32620.66 | BC57: -2289.07 | BD57: -39381.83 | BE57: 0 | BF57: 0 | BG57: -3717.1 | BH57: -4755.04 | BI57: -9001.34 | BJ57: 0 | BK57: 0 | BL57: 0 | BM57: -69187 | BN57: 0 | BO57: -4842.5 | BP57: -8750.09 | BQ57: -772871.11 | BR57: 0 | BS57: 0 | BT57: 0 | BU57: 0 | BV57: 0 | BW57: 18064.8 | BX57: 18064.8
A58: 2269 | B58: Whitstable Junior School | C58: 0 | D58: 255 | E58: 0 | F58: 11.91666667 | G58: No | H58: Primary | I58: 200-299 | J58: =IF(G58=Benchmarking!$I$4,1,0) -> 0 | K58: =IF(Benchmarking!$I$6="All",1,IF(Benchmarking!$I$6=H58,1,0)) -> 0 | L58: =IF(Benchmarking!$I$8="All",1,IF(Benchmarking!$I$8=I58,1,0)) -> 0 | M58: 0 | N58: 652732.93 | O58: 2487.55 | P58: 351023.34 | Q58: 49516.76 | R58: 55348.94 | S58: 0 | T58: 0 | U58: 504.54 | V58: 4114.15 | W58: 4812.56 | X58: 6055.44 | Y58: 12816.43 | Z58: 1793.9 | AA58: 2693.16 | AB58: 1164.23 | AC58: 54218.6 | AD58: 3865.6 | AE58: 7159.55 | AF58: 78264.99 | AG58: 3192.01 | AH58: 0 | AI58: 17082.3 | AJ58: 9699.39 | AK58: 3257.83 | AL58: 20178.41 | AM58: 15938 | AN58: 41954.21 | AO58: 44450.8 | AP58: 0 | AQ58: 760.28 | AR58: 0 | AS58: 0 | AT58: 0 | AU58: -1026301.26 | AV58: -133516.47 | AW58: 0 | AX58: -121365.75 | AY58: 0 | AZ58: -99307 | BA58: 0 | BB58: -5667.4 | BC58: -41927.1 | BD58: -1004.89 | BE58: -322.38 | BF58: -2380.2 | BG58: -15016.19 | BH58: -28486.6 | BI58: -22132.84 | BJ58: 0 | BK58: 0 | BL58: 0 | BM58: -18538 | BN58: 0 | BO58: 0 | BP58: -18937.96 | BQ58: -1281183.48 | BR58: 0 | BS58: 0 | BT58: 0 | BU58: 0 | BV58: 0 | BW58: 121365.75 | BX58: 121365.75
A59: 2270 | B59: Aldington Primary School | C59: 0 | D59: 202 | E59: 0 | F59: 2.666666667 | G59: No | H59: Primary | I59: 200-299 | J59: =IF(G59=Benchmarking!$I$4,1,0) -> 0 | K59: =IF(Benchmarking!$I$6="All",1,IF(Benchmarking!$I$6=H59,1,0)) -> 0 | L59: =IF(Benchmarking!$I$8="All",1,IF(Benchmarking!$I$8=I59,1,0)) -> 0 | M59: 0 | N59: 485697.3 | O59: 4860.39 | P59: 212115.51 | Q59: 10174.47 | R59: 46962.55 | S59: 0 | T59: 13893.29 | U59: 6148.1 | V59: 2571.5 | W59: 2846.92 | X59: 4662.12 | Y59: 10075.25 | Z59: 3991.83 | AA59: 15049.84 | AB59: 4106.8 | AC59: 23849.44 | AD59: 29952 | AE59: 5565.04 | AF59: 40608.1 | AG59: 6131.1 | AH59: 0 | AI59: 15508.4 | AJ59: 7144.7 | AK59: 3571.08 | AL59: 30536.05 | AM59: 36879.07 | AN59: 8912.09 | AO59: 20452.68 | AP59: 0 | AQ59: 0 | AR59: 4500 | AS59: 0 | AT59: 0 | AU59: -828541.19 | AV59: -88963.64 | AW59: 0 | AX59: -18824.86 | AY59: 0 | AZ59: -47495 | BA59: 0 | BB59: -1300 | BC59: -7317.1 | BD59: 0 | BE59: 0 | BF59: -2100 | BG59: -6229.63 | BH59: -13948.21 | BI59: -5273.96 | BJ59: 0 | BK59: 0 | BL59: 0 | BM59: -44053.34 | BN59: 0 | BO59: 0 | BP59: -8386.22 | BQ59: -936329.69 | BR59: 0 | BS59: 0 | BT59: 0 | BU59: 0 | BV59: 0 | BW59: 18824.86 | BX59: 18824.86
A60: 2275 | B60: Victoria Road Primary School | C60: 0 | D60: 210 | E60: 0 | F60: 11 | G60: No | H60: Primary | I60: 200-299 | J60: =IF(G60=Benchmarking!$I$4,1,0) -> 0 | K60: =IF(Benchmarking!$I$6="All",1,IF(Benchmarking!$I$6=H60,1,0)) -> 0 | L60: =IF(Benchmarking!$I$8="All",1,IF(Benchmarking!$I$8=I60,1,0)) -> 0 | M60: 0 | N60: 525795.15 | O60: 350 | P60: 259013.44 | Q60: 20412.12 | R60: 87622.33 | S60: 0 | T60: 49048.22 | U60: 8457.99 | V60: 7008 | W60: 3925.25 | X60: 840 | Y60: 16185.72 | Z60: 1570.26 | AA60: 18611.44 | AB60: 3101 | AC60: 19752.6 | AD60: 15095 | AE60: 5086.16 | AF60: 45358.92 | AG60: 3181.94 | AH60: 0 | AI60: 23931.78 | AJ60: 7427.7 | AK60: 743.1 | AL60: 51336.91 | AM60: 3400 | AN60: 29374 | AO60: 24571.16 | AP60: 0 | AQ60: 0 | AR60: 13171 | AS60: 0 | AT60: 0 | AU60: -891104.42 | AV60: -106678.02 | AW60: 0 | AX60: -72024.3 | AY60: 0 | AZ60: -82158 | BA60: 0 | BB60: -2896 | BC60: 0 | BD60: -17919.34 | BE60: -10439.7 | BF60: -3000 | BG60: 0 | BH60: -19614.7 | BI60: -1510.28 | BJ60: 0 | BK60: 0 | BL60: 0 | BM60: -47513 | BN60: 0 | BO60: 0 | BP60: -17506.59 | BQ60: -1069806.74 | BR60: 0 | BS60: 0 | BT60: 0 | BU60: 0 | BV60: 0 | BW60: 72024.3 | BX60: 72024.3
A61: 2276 | B61: Willesborough Infant School | C61: 0 | D61: 354 | E61: 0 | F61: 6.25 | G61: No | H61: Infant | I61: 300-399 | J61: =IF(G61=Benchmarking!$I$4,1,0) -> 0 | K61: =IF(Benchmarking!$I$6="All",1,IF(Benchmarking!$I$6=H61,1,0)) -> 0 | L61: =IF(Benchmarking!$I$8="All",1,IF(Benchmarking!$I$8=I61,1,0)) -> 0 | M61: 0 | N61: 1042349.61 | O61: 3858.55 | P61: 356891.53 | Q61: 54804.21 | R61: 84936.7 | S61: 0 | T61: 136210.24 | U61: 2262.26 | V61: 13370.2 | W61: 693.84 | X61: 7607.46 | Y61: 13156.74 | Z61: 7342.74 | AA61: 3815.24 | AB61: 13927.84 | AC61: 46826.19 | AD61: 23079 | AE61: 17041.17 | AF61: 58661.09 | AG61: 4628.31 | AH61: 0 | AI61: 20350.03 | AJ61: 12520.98 | AK61: 9924.25 | AL61: 113556.58 | AM61: 5595 | AN61: 14523.65 | AO61: 23165.49 | AP61: 0 | AQ61: 0 | AR61: 0 | AS61: 0 | AT61: 0 | AU61: -1340054.58 | AV61: -236068.42 | AW61: 0 | AX61: -60284.1 | AY61: 0 | AZ61: -86085 | BA61: 0 | BB61: -3975 | BC61: -959.67 | BD61: -197062.75 | BE61: 0 | BF61: 0 | BG61: -17998.39 | BH61: -7990 | BI61: -669.4 | BJ61: 0 | BK61: 0 | BL61: 0 | BM61: -118069 | BN61: 0 | BO61: 0 | BP61: -19119.06 | BQ61: -1636407.1 | BR61: 0 | BS61: 0 | BT61: 0 | BU61: 0 | BV61: 0 | BW61: 60284.1 | BX61: 60284.1
A62: 2278 | B62: Bethersden Primary School | C62: 0 | D62: 128 | E62: 0 | F62: 6.583333333 | G62: No | H62: Primary | I62: 100-199 | J62: =IF(G62=Benchmarking!$I$4,1,0) -> 0 | K62: =IF(Benchmarking!$I$6="All",1,IF(Benchmarking!$I$6=H62,1,0)) -> 0 | L62: =IF(Benchmarking!$I$8="All",1,IF(Benchmarking!$I$8=I62,1,0)) -> 0 | M62: 0 | N62: 436195.41 | O62: 12319.98 | P62: 156342.04 | Q62: 7929.34 | R62: 40087.28 | S62: 6266.47 | T62: 5870.97 | U62: 4808.72 | V62: 8878.99 | W62: 250.88 | X62: 2954.28 | Y62: 9095.85 | Z62: 3272.27 | AA62: 13484.96 | AB62: 3003.96 | AC62: 16853.02 | AD62: 10978 | AE62: 3438.06 | AF62: 45222.39 | AG62: 4556.56 | AH62: 0 | AI62: 9569.72 | AJ62: 4527.4 | AK62: 569.08 | AL62: 35509 | AM62: 10460 | AN62: 40013.04 | AO62: 32730.64 | AP62: 0 | AQ62: 0 | AR62: 0 | AS62: 0 | AT62: 0 | AU62: -602560.17 | AV62: -53511.33 | AW62: 0 | AX62: -69232.08 | AY62: 0 | AZ62: -41190 | BA62: 0 | BB62: -8000 | BC62: -54.15 | BD62: -9784.3 | BE62: -9875.17 | BF62: 0 | BG62: -32946.71 | BH62: -7886.5 | BI62: -5553.98 | BJ62: 0 | BK62: 0 | BL62: 0 | BM62: -36490 | BN62: 0 | BO62: 0 | BP62: -6672.67 | BQ62: -725303.58 | BR62: 0 | BS62: 0 | BT62: 0 | BU62: 0 | BV62: 4271.53 | BW62: 64960.55 | BX62: 69232.08
A63: 2279 | B63: Brook Community Primary School | C63: 0 | D63: 85 | E63: 0 | F63: 4.416666667 | G63: No | H63: Infant | I63: 0-99 | J63: =IF(G63=Benchmarking!$I$4,1,0) -> 0 | K63: =IF(Benchmarking!$I$6="All",1,IF(Benchmarking!$I$6=H63,1,0)) -> 0 | L63: =IF(Benchmarking!$I$8="All",1,IF(Benchmarking!$I$8=I63,1,0)) -> 0 | M63: 0 | N63: 285664.03 | O63: 0 | P63: 111715.09 | Q63: 968.27 | R63: 35787.08 | S63: 0 | T63: 4511.59 | U63: 247.74 | V63: 3183.36 | W63: 166.6 | X63: 1961.76 | Y63: 6825.12 | Z63: 1914.09 | AA63: 64 | AB63: 811.35 | AC63: 8977.89 | AD63: 8608 | AE63: 3399.12 | AF63: 15421.46 | AG63: 6014.65 | AH63: 0 | AI63: 7780.54 | AJ63: 3006.41 | AK63: 2233.29 | AL63: 15317.67 | AM63: 2838.08 | AN63: 11948.43 | AO63: 15715.85 | AP63: 0 | AQ63: 0 | AR63: 0 | AS63: 0 | AT63: 0 | AU63: -463076.91 | AV63: -23313.56 | AW63: 0 | AX63: -34549.17 | AY63: 0 | AZ63: -14670 | BA63: -390 | BB63: -4508.22 | BC63: 0 | BD63: -8167.41 | BE63: -5435.64 | BF63: 0 | BG63: 0 | BH63: -1962.4 | BI63: -930.32 | BJ63: 0 | BK63: 0 | BL63: 0 | BM63: -31535 | BN63: 0 | BO63: -1350 | BP63: -3578 | BQ63: -520939.64 | BR63: 0 | BS63: 0 | BT63: 0 | BU63: 0 | BV63: 16203.16 | BW63: 18346.01 | BX63: 34549.17
A64: 2280 | B64: Challock Primary School | C64: 0 | D64: 209 | E64: 0 | F64: 7.916666667 | G64: No | H64: Junior | I64: 200-299 | J64: =IF(G64=Benchmarking!$I$4,1,0) -> 0 | K64: =IF(Benchmarking!$I$6="All",1,IF(Benchmarking!$I$6=H64,1,0)) -> 0 | L64: =IF(Benchmarking!$I$8="All",1,IF(Benchmarking!$I$8=I64,1,0)) -> 0 | M64: 0 | N64: 593690.26 | O64: 3626.4 | P64: 164338.2 | Q64: 29722.41 | R64: 55456.54 | S64: 0 | T64: 17984.08 | U64: 231 | V64: 5474.43 | W64: 7340.42 | X64: 4823.76 | Y64: 12324.64 | Z64: 6346.59 | AA64: 4179.68 | AB64: 1313.97 | AC64: 24268.62 | AD64: 19711 | AE64: 7020.87 | AF64: 63691.79 | AG64: 13372.22 | AH64: 0 | AI64: 10022.33 | AJ64: 7392.37 | AK64: 7392.9 | AL64: 34920.58 | AM64: 0 | AN64: 18259.56 | AO64: 11223.54 | AP64: 0 | AQ64: 0 | AR64: 16400 | AS64: 0 | AT64: 0 | AU64: -851069.12 | AV64: -103529.59 | AW64: 0 | AX64: -47932.77 | AY64: 0 | AZ64: -25293 | BA64: -1200 | BB64: -3924.88 | BC64: 0 | BD64: -10446.39 | BE64: -76 | BF64: -3600 | BG64: -5821.32 | BH64: -26736.68 | BI64: -9153.91 | BJ64: 0 | BK64: 0 | BL64: 0 | BM64: -51675 | BN64: 0 | BO64: 0 | BP64: -3858.02 | BQ64: -1002531.48 | BR64: 0 | BS64: 0 | BT64: 0 | BU64: 0 | BV64: 0 | BW64: 47932.77 | BX64: 47932.77
A65: 2282 | B65: Great Chart Primary School | C65: 0 | D65: 422 | E65: 0 | F65: 15.41666667 | G65: =IF(C65=0,"No","Yes") -> No | H65: Primary | I65: 400-499 | J65: =IF(G65=Benchmarking!$I$4,1,0) -> 0 | K65: =IF(Benchmarking!$I$6="All",1,IF(Benchmarking!$I$6=H65,1,0)) -> 0 | L65: =IF(Benchmarking!$I$8="All",1,IF(Benchmarking!$I$8=I65,1,0)) -> 0 | M65: =IF(SUM(J65:L65)=3,1,0) -> 0 | N65: 1131690.65 | O65: 6557.35 | P65: 500808.52 | Q65: 101936.87 | R65: 132152.25 | S65: 0 | T65: 40330.52 | U65: 8776.1 | V65: 8762.91 | W65: 7183.77 | X65: 9739.8 | Y65: 7950.71 | Z65: 5439.68 | AA65: 2411.77 | AB65: 12843 | AC65: 56800 | AD65: 38656 | AE65: 12681.37 | AF65: 60508.36 | AG65: 24693.38 | AH65: 0 | AI65: 26935.23 | AJ65: 14926.18 | AK65: 4969.16 | AL65: 116899.27 | AM65: 7715 | AN65: 29457.12 | AO65: 16657.64 | AP65: 0 | AQ65: 0 | AR65: 0 | AS65: 0 | AT65: 0 | AU65: =BQ65-AV65-AW65-AX65 -> -1588092.59 | AV65: -307151.1 | AW65: =-BU65 -> 0 | AX65: =-BX65 -> -116156.21 | AY65: 0 | AZ65: -114770 | BA65: 0 | BB65: -4017 | BC65: -6171.7 | BD65: -43648.47 | BE65: -45252.05 | BF65: -692 | BG65: -1670.42 | BH65: -18303.5 | BI65: -12697.35 | BJ65: 0 | BK65: 0 | BL65: 0 | BM65: -86733 | BN65: 0 | BO65: 0 | BP65: -22300.72 | BQ65: -2011399.9 | BR65: 0 | BS65: 0 | BT65: 0 | BU65: =SUM(BR65:BT65) -> 0 | BV65: 0 | BW65: 116156.21 | BX65: =SUM(BV65:BW65) -> 116156.21
A66: 2285 | B66: Mersham Primary School | C66: 0 | D66: 177 | E66: 0 | F66: 4.333333333 | G66: No | H66: Primary | I66: 100-199 | J66: =IF(G66=Benchmarking!$I$4,1,0) -> 0 | K66: =IF(Benchmarking!$I$6="All",1,IF(Benchmarking!$I$6=H66,1,0)) -> 0 | L66: =IF(Benchmarking!$I$8="All",1,IF(Benchmarking!$I$8=I66,1,0)) -> 0 | M66: 0 | N66: 478663.27 | O66: 768.75 | P66: 166631.84 | Q66: 24517.08 | R66: 50448 | S66: 0 | T66: 0 | U66: 295.4 | V66: 3027.5 | W66: 2206.79 | X66: 4085.16 | Y66: 2452.52 | Z66: 1236.14 | AA66: 15133.47 | AB66: 3477.78 | AC66: 21642.99 | AD66: 7859.25 | AE66: 8817.02 | AF66: 50058.45 | AG66: 14853.92 | AH66: 0 | AI66: 15362.2 | AJ66: 6260.49 | AK66: 626.89 | AL66: 41620.01 | AM66: 21584.57 | AN66: 35391.05 | AO66: 11821.15 | AP66: 0 | AQ66: 0 | AR66: 0 | AS66: 0 | AT66: 0 | AU66: -726026.79 | AV66: -82104.14 | AW66: 0 | AX66: -27311.47 | AY66: 0 | AZ66: -40165 | BA66: 0 | BB66: -8294.16 | BC66: 0 | BD66: -18279.36 | BE66: -12330.05 | BF66: -500 | BG66: -7019.11 | BH66: -22752.36 | BI66: -10844.35 | BJ66: 0 | BK66: 0 | BL66: 0 | BM66: -35994 | BN66: 0 | BO66: 0 | BP66: -6369.84 | BQ66: -835442.4 | BR66: 0 | BS66: 0 | BT66: 0 | BU66: 0 | BV66: 0 | BW66: 27311.47 | BX66: 27311.47
A67: 2289 | B67: Smeeth Community Primary School | C67: 0 | D67: 128 | E67: 0 | F67: 2 | G67: No | H67: Primary | I67: =IFERROR(VLOOKUP($D67,$D$264:$F$269,3,TRUE),0) -> 100-199 | J67: =IF(G67=Benchmarking!$I$4,1,0) -> 0 | K67: =IF(Benchmarking!$I$6="All",1,IF(Benchmarking!$I$6=H67,1,0)) -> 0 | L67: =IF(Benchmarking!$I$8="All",1,IF(Benchmarking!$I$8=I67,1,0)) -> 0 | M67: 0 | N67: 340957.53 | O67: 0 | P67: 87242.07 | Q67: 10816.14 | R67: 35633.47 | S67: 0 | T67: 19276.68 | U67: 1196.36 | V67: 5334.53 | W67: 518.47 | X67: 2954.28 | Y67: 10632.1 | Z67: 7999.31 | AA67: 13113.44 | AB67: 1406.83 | AC67: 20834.05 | AD67: 14845 | AE67: 6222.5 | AF67: 32703.22 | AG67: 13910.21 | AH67: 0 | AI67: 3447.88 | AJ67: 4527.4 | AK67: 3244.73 | AL67: 20826.49 | AM67: 27883.76 | AN67: 18160.52 | AO67: 18760.04 | AP67: 0 | AQ67: 0 | AR67: 0 | AS67: 0 | AT67: 0 | AU67: -571475.57 | AV67: -44479.7 | AW67: 0 | AX67: -6375.9 | AY67: 0 | AZ67: -24570 | BA67: -3115.3 | BB67: 0 | BC67: -2800 | BD67: -8232.3 | BE67: 0 | BF67: 0 | BG67: -2800 | BH67: -13618.5 | BI67: -4869.87 | BJ67: 0 | BK67: 0 | BL67: 0 | BM67: -34367 | BN67: 0 | BO67: 0 | BP67: -3558.63 | BQ67: -622331.17 | BR67: 0 | BS67: 0 | BT67: 0 | BU67: 0 | BV67: 3104.16 | BW67: 3271.74 | BX67: 6375.9
A68: 2298 | B68: Hawkinge Primary School | C68: 0 | D68: 395 | E68: 0 | F68: 9.666666667 | G68: No | H68: Infant | I68: 300-399 | J68: =IF(G68=Benchmarking!$I$4,1,0) -> 0 | K68: =IF(Benchmarking!$I$6="All",1,IF(Benchmarking!$I$6=H68,1,0)) -> 0 | L68: =IF(Benchmarking!$I$8="All",1,IF(Benchmarking!$I$8=I68,1,0)) -> 0 | M68: 0 | N68: 1006858.99 | O68: 14499.76 | P68: 406242.93 | Q68: 22505.87 | R68: 56180.17 | S68: 0 | T68: 56203.07 | U68: 3558.24 | V68: 15194.54 | W68: 3853.2 | X68: 9116.64 | Y68: 29930.27 | Z68: 22558.04 | AA68: 28901.21 | AB68: 4499.6 | AC68: 49108.97 | AD68: 8243 | AE68: 9656.23 | AF68: 154616.71 | AG68: 33371.6 | AH68: 0 | AI68: 17416.08 | AJ68: 13971.19 | AK68: 0 | AL68: 96163.97 | AM68: 0 | AN68: 0 | AO68: 28782.19 | AP68: 0 | AQ68: 0 | AR68: 0 | AS68: 0 | AT68: 0 | AU68: -1469309.16 | AV68: -277239.44 | AW68: 0 | AX68: -86473.06 | AY68: 0 | AZ68: -118763.45 | BA68: 0 | BB68: -7722.03 | BC68: 0 | BD68: -9165 | BE68: -19677.9 | BF68: 0 | BG68: -1411.44 | BH68: -12170 | BI68: 0 | BJ68: 0 | BK68: 0 | BL68: 0 | BM68: -85027 | BN68: 0 | BO68: 0 | BP68: -13830.29 | BQ68: -1833021.66 | BR68: 0 | BS68: 0 | BT68: 0 | BU68: 0 | BV68: 0 | BW68: 86473.06 | BX68: 86473.06
A69: 2300 | B69: Sellindge Primary School | C69: 0 | D69: 118 | E69: 0 | F69: 5.916666667 | G69: No | H69: Primary | I69: 100-199 | J69: =IF(G69=Benchmarking!$I$4,1,0) -> 0 | K69: =IF(Benchmarking!$I$6="All",1,IF(Benchmarking!$I$6=H69,1,0)) -> 0 | L69: =IF(Benchmarking!$I$8="All",1,IF(Benchmarking!$I$8=I69,1,0)) -> 0 | M69: 0 | N69: 445418.09 | O69: 0 | P69: 120240.65 | Q69: 19571.52 | R69: 34817.24 | S69: 0 | T69: 17161.66 | U69: 2483.33 | V69: 1764.51 | W69: 1717.47 | X69: 2723.4 | Y69: 1699.7 | Z69: 2640 | AA69: 13088.87 | AB69: 1432.5 | AC69: 26080 | AD69: 18984.72 | AE69: 3724.41 | AF69: 31772.42 | AG69: 7592.97 | AH69: 0 | AI69: 12697.13 | AJ69: 4173.62 | AK69: 6285.16 | AL69: 40167.14 | AM69: 1969 | AN69: 15231.63 | AO69: 7639.96 | AP69: 0 | AQ69: 0 | AR69: 0 | AS69: 0 | AT69: 0 | AU69: -629646.78 | AV69: -34669.74 | AW69: 0 | AX69: -50018.07 | AY69: 0 | AZ69: -18605 | BA69: 0 | BB69: -10193.13 | BC69: -2767.57 | BD69: -23403.68 | BE69: -11996.42 | BF69: -800 | BG69: -3457.86 | BH69: -6381.6 | BI69: -2224.93 | BJ69: 0 | BK69: 0 | BL69: 0 | BM69: -39746 | BN69: 0 | BO69: 0 | BP69: -4627.63 | BQ69: -714334.59 | BR69: 0 | BS69: 0 | BT69: 0 | BU69: 0 | BV69: 14987.39 | BW69: 35030.68 | BX69: 50018.07
A70: 2312 | B70: River Primary School | C70: 0 | D70: 411 | E70: 11.33333333 | F70: 13.33333333 | G70: No | H70: Primary | I70: 400-499 | J70: =IF(G70=Benchmarking!$I$4,1,0) -> 0 | K70: =IF(Benchmarking!$I$6="All",1,IF(Benchmarking!$I$6=H70,1,0)) -> 0 | L70: =IF(Benchmarking!$I$8="All",1,IF(Benchmarking!$I$8=I70,1,0)) -> 0 | M70: 0 | N70: 1155350.35 | O70: 15307.46 | P70: 526485.39 | Q70: 28354.5 | R70: 88830.26 | S70: 0 | T70: 34198.17 | U70: 10130.3 | V70: 16132.55 | W70: 805.56 | X70: 9485.88 | Y70: 31069.03 | Z70: 24577.88 | AA70: 38439.77 | AB70: 4615.88 | AC70: 42509.96 | AD70: 40960 | AE70: 13729.73 | AF70: 103533.62 | AG70: 24644.75 | AH70: 0 | AI70: 16329.56 | AJ70: 14537.07 | AK70: 10819.75 | AL70: 65360.26 | AM70: 9646 | AN70: 29213 | AO70: 24498.31 | AP70: 0 | AQ70: 0 | AR70: 20000 | AS70: 0 | AT70: 0 | AU70: -1552934.49 | AV70: -294407.44 | AW70: -116200 | AX70: -131484.1 | AY70: 0 | AZ70: -102625 | BA70: -4944.72 | BB70: -4740 | BC70: -1713.75 | BD70: -24631.83 | BE70: 0 | BF70: -398.52 | BG70: 0 | BH70: -34922.3 | BI70: -2686.92 | BJ70: 0 | BK70: 0 | BL70: 0 | BM70: -65929 | BN70: 0 | BO70: 0 | BP70: -19290.35 | BQ70: -2095026.03 | BR70: 0 | BS70: 72000 | BT70: 44200 | BU70: 116200 | BV70: 0 | BW70: 131484.1 | BX70: 131484.1
A71: 2318 | B71: Langdon Primary School | C71: 0 | D71: 88 | E71: 0 | F71: 2.416666667 | G71: No | H71: Primary | I71: 0-99 | J71: =IF(G71=Benchmarking!$I$4,1,0) -> 0 | K71: =IF(Benchmarking!$I$6="All",1,IF(Benchmarking!$I$6=H71,1,0)) -> 0 | L71: =IF(Benchmarking!$I$8="All",1,IF(Benchmarking!$I$8=I71,1,0)) -> 0 | M71: 0 | N71: 313549.76 | O71: 10724.03 | P71: 93823.59 | Q71: 22929.5 | R71: 27611.27 | S71: 0 | T71: 10609.61 | U71: 2836.71 | V71: 5126.58 | W71: 4052.68 | X71: 4613.84 | Y71: 3736.18 | Z71: 7082.78 | AA71: 954.31 | AB71: 1314.14 | AC71: 7532.31 | AD71: 33154.22 | AE71: 12673.11 | AF71: 36916.15 | AG71: 3027.34 | AH71: 0 | AI71: 10374.81 | AJ71: 3966.56 | AK71: 4833.98 | AL71: 23677.67 | AM71: 0 | AN71: 11356.76 | AO71: 10606.59 | AP71: 0 | AQ71: 0 | AR71: 35445.19 | AS71: 0 | AT71: 0 | AU71: -466382.8 | AV71: -38884.37 | AW71: 0 | AX71: -27946.35 | AY71: 0 | AZ71: -27260 | BA71: 0 | BB71: -13086.67 | BC71: 0 | BD71: -11495.83 | BE71: -6374.45 | BF71: 0 | BG71: -10117.11 | BH71: -18901.33 | BI71: -1720.95 | BJ71: 0 | BK71: 0 | BL71: 0 | BM71: -31010 | BN71: 0 | BO71: 0 | BP71: -6023.93 | BQ71: -533213.52 | BR71: 0 | BS71: 0 | BT71: 0 | BU71: 0 | BV71: 5102.84 | BW71: 22843.51 | BX71: 27946.35
A72: 2320 | B72: Eythorne Elvington Community Primary School | C72: 0 | D72: 110 | E72: 0 | F72: 7.666666667 | G72: No | H72: Primary | I72: 100-199 | J72: =IF(G72=Benchmarking!$I$4,1,0) -> 0 | K72: =IF(Benchmarking!$I$6="All",1,IF(Benchmarking!$I$6=H72,1,0)) -> 0 | L72: =IF(Benchmarking!$I$8="All",1,IF(Benchmarking!$I$8=I72,1,0)) -> 0 | M72: 0 | N72: 333685.74 | O72: 2575 | P72: 156771.69 | Q72: 28719.15 | R72: 66140.89 | S72: 0 | T72: 10363.84 | U72: 3737.17 | V72: 7612.5 | W72: 2217.6 | X72: 2538.84 | Y72: 16465.25 | Z72: 7101.9 | AA72: 1756.01 | AB72: 3027.84 | AC72: 25882.13 | AD72: 17340 | AE72: 6927.57 | AF72: 38677.9 | AG72: 3604.89 | AH72: 0 | AI72: 16317.35 | AJ72: 3890.74 | AK72: 1067.95 | AL72: 26118.41 | AM72: 0 | AN72: 32418.26 | AO72: 11032.6 | AP72: 0 | AQ72: 0 | AR72: 9724.57 | AS72: 0 | AT72: 0 | AU72: -584656.66 | AV72: -75180.42 | AW72: 0 | AX72: -55430.91 | AY72: 0 | AZ72: -81995 | BA72: 0 | BB72: -934.7 | BC72: -180 | BD72: -16490.22 | BE72: 0 | BF72: 0 | BG72: 0 | BH72: -6179.15 | BI72: -1103.15 | BJ72: 0 | BK72: 0 | BL72: 0 | BM72: -25337 | BN72: 0 | BO72: 0 | BP72: -9730.42 | BQ72: -715267.99 | BR72: 0 | BS72: 0 | BT72: 0 | BU72: 0 | BV72: 0 | BW72: 55430.91 | BX72: 55430.91
A73: 2321 | B73: Lydden Primary School | C73: 0 | D73: 81 | E73: 0 | F73: 3.916666667 | G73: No | H73: Primary | I73: 0-99 | J73: =IF(G73=Benchmarking!$I$4,1,0) -> 0 | K73: =IF(Benchmarking!$I$6="All",1,IF(Benchmarking!$I$6=H73,1,0)) -> 0 | L73: =IF(Benchmarking!$I$8="All",1,IF(Benchmarking!$I$8=I73,1,0)) -> 0 | M73: 0 | N73: 271645.56 | O73: 4238.17 | P73: 89043.66 | Q73: 11083.72 | R73: 28395.34 | S73: 0 | T73: 24896.71 | U73: 2320.71 | V73: 4484.57 | W73: 158.76 | X73: 1545.48 | Y73: 10225.35 | Z73: 3163.08 | AA73: 5417.41 | AB73: 1949.37 | AC73: 14924.45 | AD73: 8937.63 | AE73: 3141.54 | AF73: 36650.55 | AG73: 7073.89 | AH73: 0 | AI73: 9546.81 | AJ73: 3188.97 | AK73: 1619.15 | AL73: 14407.31 | AM73: 170.4 | AN73: 4068.33 | AO73: 8037.9 | AP73: 0 | AQ73: 0 | AR73: 13338.94 | AS73: 0 | AT73: 0 | AU73: -432226.67 | AV73: -28648.34 | AW73: 0 | AX73: -41292.67 | AY73: 0 | AZ73: -25810 | BA73: 0 | BB73: -1800 | BC73: -493.15 | BD73: -21418.12 | BE73: 0 | BF73: 0 | BG73: 0 | BH73: -5351.92 | BI73: -1020.95 | BJ73: 0 | BK73: 0 | BL73: 0 | BM73: -28180 | BN73: 0 | BO73: 0 | BP73: -6718.54 | BQ73: -502167.68 | BR73: 0 | BS73: 0 | BT73: 0 | BU73: 0 | BV73: 12279.22 | BW73: 29013.45 | BX73: 41292.67
A74: 2322 | B74: Preston Primary School | C74: 0 | D74: 130 | E74: 0 | F74: 2.25 | G74: No | H74: Primary | I74: 100-199 | J74: =IF(G74=Benchmarking!$I$4,1,0) -> 0 | K74: =IF(Benchmarking!$I$6="All",1,IF(Benchmarking!$I$6=H74,1,0)) -> 0 | L74: =IF(Benchmarking!$I$8="All",1,IF(Benchmarking!$I$8=I74,1,0)) -> 0 | M74: 0 | N74: 356455.57 | O74: 13971.19 | P74: 142123.46 | Q74: 3582.95 | R74: 31864.43 | S74: 0 | T74: 22815.17 | U74: 2425.47 | V74: 3899.6 | W74: 254.8 | X74: 3000.36 | Y74: 8030.1 | Z74: 3092.63 | AA74: 16743.63 | AB74: 1751.69 | AC74: 11849.94 | AD74: 17964 | AE74: 7770.01 | AF74: 69434.17 | AG74: 12175.35 | AH74: 0 | AI74: 7329.4 | AJ74: 4598.06 | AK74: 1317.26 | AL74: 14304.84 | AM74: 0 | AN74: 390 | AO74: 6524.54 | AP74: 0 | AQ74: 0 | AR74: 0 | AS74: 0 | AT74: 0 | AU74: -587530.11 | AV74: -51920.56 | AW74: 0 | AX74: -16135.35 | AY74: 0 | AZ74: -31135 | BA74: 0 | BB74: -1367.98 | BC74: 0 | BD74: -29702.11 | BE74: 0 | BF74: 0 | BG74: -650 | BH74: -16360.35 | BI74: -13823.92 | BJ74: 0 | BK74: 0 | BL74: 0 | BM74: -34326 | BN74: 0 | BO74: 0 | BP74: -5898.08 | BQ74: -655586.02 | BR74: 0 | BS74: 0 | BT74: 0 | BU74: 0 | BV74: 1817.91 | BW74: 14317.44 | BX74: 16135.35
A75: 2326 | B75: Wingham Primary School | C75: 0 | D75: 195 | E75: 0 | F75: 7.916666667 | G75: No | H75: Primary | I75: 100-199 | J75: =IF(G75=Benchmarking!$I$4,1,0) -> 0 | K75: =IF(Benchmarking!$I$6="All",1,IF(Benchmarking!$I$6=H75,1,0)) -> 0 | L75: =IF(Benchmarking!$I$8="All",1,IF(Benchmarking!$I$8=I75,1,0)) -> 0 | M75: 0 | N75: 515908.65 | O75: 9024.74 | P75: 223008.04 | Q75: 7821.29 | R75: 51558.77 | S75: 0 | T75: 37899.36 | U75: 6774.12 | V75: 4885.11 | W75: 382.2 | X75: 4500.6 | Y75: 6240.37 | Z75: 5843.29 | AA75: 30788.91 | AB75: 6088.58 | AC75: 26707.84 | AD75: 31232 | AE75: 8163.12 | AF75: 58455.26 | AG75: 26116.04 | AH75: 0 | AI75: 5179.17 | AJ75: 6897.15 | AK75: 2306.97 | AL75: 33603.48 | AM75: 0 | AN75: 977.85 | AO75: 15007.12 | AP75: 0 | AQ75: 0 | AR75: 0 | AS75: 0 | AT75: 0 | AU75: -837299.73 | AV75: -79100.99 | AW75: 0 | AX75: -72186.13 | AY75: 0 | AZ75: -56350 | BA75: 0 | BB75: -214.08 | BC75: 0 | BD75: -46072.74 | BE75: 0 | BF75: 0 | BG75: -5321.29 | BH75: -17164.44 | BI75: -13635.52 | BJ75: 0 | BK75: 0 | BL75: 0 | BM75: -47942 | BN75: 0 | BO75: 0 | BP75: -11611.55 | BQ75: -988586.85 | BR75: 0 | BS75: 0 | BT75: 0 | BU75: 0 | BV75: 0 | BW75: 72186.13 | BX75: 72186.13
A76: 2328 | B76: St Mildreds Primary Infant School | C76: 0 | D76: 270 | E76: 0 | F76: 16 | G76: No | H76: Primary | I76: 200-299 | J76: =IF(G76=Benchmarking!$I$4,1,0) -> 0 | K76: =IF(Benchmarking!$I$6="All",1,IF(Benchmarking!$I$6=H76,1,0)) -> 0 | L76: =IF(Benchmarking!$I$8="All",1,IF(Benchmarking!$I$8=I76,1,0)) -> 0 | M76: 0 | N76: 642710.39 | O76: 0 | P76: 339819.04 | Q76: 71117.36 | R76: 81565.76 | S76: 42829.17 | T76: 52251.19 | U76: 863.96 | V76: 9494.92 | W76: 7913.73 | X76: 6231.6 | Y76: 26994.13 | Z76: 1071.21 | AA76: 2691.9 | AB76: 3736 | AC76: 29341.33 | AD76: 24950 | AE76: 10458.9 | AF76: 63036.31 | AG76: 21676 | AH76: 0 | AI76: 25270.05 | AJ76: 9549.9 | AK76: 1419.58 | AL76: 64673.28 | AM76: 11160.95 | AN76: 2737.08 | AO76: 42427.48 | AP76: 0 | AQ76: 0 | AR76: 2873 | AS76: 0 | AT76: 0 | AU76: -1122016.5 | AV76: -146406.75 | AW76: 0 | AX76: -73460.28 | AY76: 0 | AZ76: -89305 | BA76: -2525 | BB76: -18259.33 | BC76: -1065 | BD76: -40665.27 | BE76: -1627 | BF76: -594.08 | BG76: -9921.48 | BH76: -119 | BI76: -1111.75 | BJ76: 0 | BK76: 0 | BL76: 0 | BM76: -95463 | BN76: 0 | BO76: 0 | BP76: -19367.48 | BQ76: -1341883.53 | BR76: 0 | BS76: 0 | BT76: 0 | BU76: 0 | BV76: 0 | BW76: 73460.28 | BX76: 73460.28
A77: 2329 | B77: Callis Grange Nursery & Infant School | C77: 26 | D77: 257 | E77: 0 | F77: 3.333333333 | G77: Yes | H77: Primary | I77: 200-299 | J77: =IF(G77=Benchmarking!$I$4,1,0) -> 0 | K77: =IF(Benchmarking!$I$6="All",1,IF(Benchmarking!$I$6=H77,1,0)) -> 0 | L77: =IF(Benchmarking!$I$8="All",1,IF(Benchmarking!$I$8=I77,1,0)) -> 0 | M77: 0 | N77: 696744.01 | O77: 0 | P77: 266662.01 | Q77: 38114.6 | R77: 74325.22 | S77: 0 | T77: 32579.15 | U77: 4929.13 | V77: 4500 | W77: 3766.72 | X77: 6035.52 | Y77: 10332.51 | Z77: 3916.82 | AA77: 50543.8 | AB77: 7857.46 | AC77: 27902.64 | AD77: 43520 | AE77: 10412.8 | AF77: 19009.34 | AG77: 14877.47 | AH77: 0 | AI77: 13568.75 | AJ77: 9506.05 | AK77: 782.06 | AL77: 79911.04 | AM77: 0 | AN77: 11595.89 | AO77: 44673.34 | AP77: 0 | AQ77: 0 | AR77: 15000 | AS77: 0 | AT77: 0 | AU77: -1151765.02 | AV77: -155160.11 | AW77: 0 | AX77: -30495.89 | AY77: 0 | AZ77: -95555 | BA77: 0 | BB77: -14367.26 | BC77: -751.38 | BD77: -25311.42 | BE77: 0 | BF77: 0 | BG77: -2652.08 | BH77: 0 | BI77: -966.67 | BJ77: 0 | BK77: 0 | BL77: 0 | BM77: -79425 | BN77: 0 | BO77: 0 | BP77: -15986.96 | BQ77: -1337421.02 | BR77: 0 | BS77: 0 | BT77: 0 | BU77: 0 | BV77: 0 | BW77: 30495.89 | BX77: 30495.89
A78: 2337 | B78: St Crispins Community Primary Infant School | C78: 0 | D78: 268 | E78: 0 | F78: 11.08333333 | G78: No | H78: Primary | I78: 200-299 | J78: =IF(G78=Benchmarking!$I$4,1,0) -> 0 | K78: =IF(Benchmarking!$I$6="All",1,IF(Benchmarking!$I$6=H78,1,0)) -> 0 | L78: =IF(Benchmarking!$I$8="All",1,IF(Benchmarking!$I$8=I78,1,0)) -> 0 | M78: 0 | N78: 659057.05 | O78: 4366.64 | P78: 292879.55 | Q78: 51075 | R78: 73547.02 | S78: 0 | T78: 97722.14 | U78: 5433.6 | V78: 8276.25 | W78: 4456.82 | X78: 7579.4 | Y78: 16813.26 | Z78: 5057.68 | AA78: 2588.62 | AB78: 6066.81 | AC78: 28389.02 | AD78: 20084.75 | AE78: 6747.76 | AF78: 73833.74 | AG78: 13509 | AH78: 0 | AI78: 16805.26 | AJ78: 9479.12 | AK78: 8618.64 | AL78: 71661.5 | AM78: 30847.51 | AN78: 250 | AO78: 26835.52 | AP78: 0 | AQ78: 0 | AR78: 15842 | AS78: 0 | AT78: 0 | AU78: -1093703.52 | AV78: -141825.94 | AW78: 0 | AX78: -97152.9 | AY78: 0 | AZ78: -116451.98 | BA78: 0 | BB78: -10882.09 | BC78: 0 | BD78: -26832.74 | BE78: -577.11 | BF78: -282 | BG78: -8064.25 | BH78: -362 | BI78: -1525.25 | BJ78: 0 | BK78: 0 | BL78: 0 | BM78: -82111 | BN78: 0 | BO78: 0 | BP78: -13817.5 | BQ78: -1332682.36 | BR78: 0 | BS78: 0 | BT78: 0 | BU78: 0 | BV78: 0 | BW78: 97152.9 | BX78: 97152.9
A79: 2340 | B79: Ellington Infant School | C79: 0 | D79: 107 | E79: 0 | F79: 7.833333333 | G79: No | H79: Primary | I79: 100-199 | J79: =IF(G79=Benchmarking!$I$4,1,0) -> 0 | K79: =IF(Benchmarking!$I$6="All",1,IF(Benchmarking!$I$6=H79,1,0)) -> 0 | L79: =IF(Benchmarking!$I$8="All",1,IF(Benchmarking!$I$8=I79,1,0)) -> 0 | M79: 0 | N79: 441016.87 | O79: 0 | P79: 205329.71 | Q79: 43208.97 | R79: 63395.83 | S79: 0 | T79: 41556.27 | U79: 4361.28 | V79: 2632.25 | W79: 15703.57 | X79: 2675.4 | Y79: 11591.09 | Z79: 2291.52 | AA79: 2635.15 | AB79: 2430.37 | AC79: 22842.93 | AD79: 27648 | AE79: 2939.24 | AF79: 23235.22 | AG79: 5463.16 | AH79: 0 | AI79: 10120.29 | AJ79: 3927.3 | AK79: 14216.81 | AL79: 36400.16 | AM79: 0 | AN79: 18657.12 | AO79: 15494.63 | AP79: 0 | AQ79: 0 | AR79: 26516 | AS79: 0 | AT79: 0 | AU79: -543917.4 | AV79: -94356.79 | AW79: 0 | AX79: -105310.2 | AY79: 0 | AZ79: -63845 | BA79: 0 | BB79: -18286.67 | BC79: -4100.36 | BD79: -38014.64 | BE79: 0 | BF79: -20880 | BG79: 0 | BH79: -2018.6 | BI79: 0 | BJ79: 0 | BK79: 0 | BL79: 0 | BM79: -43612 | BN79: 0 | BO79: 0 | BP79: -11117.22 | BQ79: -743584.39 | BR79: 0 | BS79: 0 | BT79: 0 | BU79: 0 | BV79: 0 | BW79: 105310.2 | BX79: 105310.2
A80: 2345 | B80: Priory Infant School | C80: 0 | D80: 157 | E80: 0 | F80: 11.66666667 | G80: No | H80: Primary | I80: 100-199 | J80: =IF(G80=Benchmarking!$I$4,1,0) -> 0 | K80: =IF(Benchmarking!$I$6="All",1,IF(Benchmarking!$I$6=H80,1,0)) -> 0 | L80: =IF(Benchmarking!$I$8="All",1,IF(Benchmarking!$I$8=I80,1,0)) -> 0 | M80: 0 | N80: 448844.48 | O80: 2116.72 | P80: 283291.92 | Q80: 45774.99 | R80: 35350.16 | S80: 0 | T80: 73368.18 | U80: 4979.6 | V80: 4037.02 | W80: 307.72 | X80: 3623.52 | Y80: 701.16 | Z80: 5697.57 | AA80: 1157.19 | AB80: 2025.85 | AC80: 19909.64 | AD80: 30976 | AE80: 12149.5 | AF80: 29214.49 | AG80: 4935.52 | AH80: 0 | AI80: 14229.5 | AJ80: 5553.05 | AK80: 3339.09 | AL80: 50870.47 | AM80: 3655.44 | AN80: 14942.7 | AO80: 26541.61 | AP80: 0 | AQ80: 0 | AR80: 22461.8 | AS80: 0 | AT80: 0 | AU80: -722823.24 | AV80: -146991.78 | AW80: 0 | AX80: -102200.41 | AY80: 0 | AZ80: -70635 | BA80: 0 | BB80: -2024 | BC80: 0 | BD80: -13977.17 | BE80: 0 | BF80: -1038.87 | BG80: 0 | BH80: 0 | BI80: -1760.64 | BJ80: 0 | BK80: 0 | BL80: 0 | BM80: -61088 | BN80: 0 | BO80: 0 | BP80: -10596.63 | BQ80: -972015.43 | BR80: 0 | BS80: 0 | BT80: 0 | BU80: 0 | BV80: 0 | BW80: 102200.41 | BX80: 102200.41
A81: 2431 | B81: Shears Green Junior School | C81: 0 | D81: 473 | E81: 0 | F81: 12.16666667 | G81: No | H81: Primary | I81: 400-499 | J81: =IF(G81=Benchmarking!$I$4,1,0) -> 0 | K81: =IF(Benchmarking!$I$6="All",1,IF(Benchmarking!$I$6=H81,1,0)) -> 0 | L81: =IF(Benchmarking!$I$8="All",1,IF(Benchmarking!$I$8=I81,1,0)) -> 0 | M81: 0 | N81: 1138104.8 | O81: 10109.57 | P81: 509125.22 | Q81: 52156.58 | R81: 130799.49 | S81: 49025.5 | T81: 98208.49 | U81: 1511.94 | V81: 14522.74 | W81: 8285.29 | X81: 11120.88 | Y81: 49755.05 | Z81: 18787.8 | AA81: 45102.71 | AB81: 10616.62 | AC81: 36927.12 | AD81: 21760 | AE81: 8456.05 | AF81: 134970.71 | AG81: 13042.73 | AH81: 0 | AI81: 26641.31 | AJ81: 16730.05 | AK81: 1929.83 | AL81: 41349.76 | AM81: 0 | AN81: 54389.75 | AO81: 27956.72 | AP81: 0 | AQ81: 0 | AR81: 7721.23 | AS81: 0 | AT81: 0 | AU81: -1777295.16 | AV81: -331772.98 | AW81: 0 | AX81: -56351.2 | AY81: 0 | AZ81: -193469.33 | BA81: 0 | BB81: -11350.17 | BC81: -4159.25 | BD81: -23620.81 | BE81: -49079.16 | BF81: -1400 | BG81: -10115.89 | BH81: -15374 | BI81: -7490.53 | BJ81: 0 | BK81: 0 | BL81: 0 | BM81: -20769 | BN81: 0 | BO81: 0 | BP81: -34200.13 | BQ81: -2165419.34 | BR81: 0 | BS81: 0 | BT81: 0 | BU81: 0 | BV81: 0 | BW81: 56351.2 | BX81: 56351.2
A82: 2434 | B82: West Minster Primary School | C82: 27 | D82: 481 | E82: 14.83333333 | F82: 25.41666667 | G82: Yes | H82: Primary | I82: 400-499 | J82: =IF(G82=Benchmarking!$I$4,1,0) -> 0 | K82: =IF(Benchmarking!$I$6="All",1,IF(Benchmarking!$I$6=H82,1,0)) -> 0 | L82: =IF(Benchmarking!$I$8="All",1,IF(Benchmarking!$I$8=I82,1,0)) -> 0 | M82: 0 | N82: 1452939.46 | O82: 0 | P82: 726696.93 | Q82: 118064.44 | R82: 192871.5 | S82: 0 | T82: 124935.38 | U82: 10459.13 | V82: 21833.47 | W82: 942.76 | X82: 11322.48 | Y82: 32007.68 | Z82: 3489.75 | AA82: 16230.24 | AB82: 6324 | AC82: 57697.65 | AD82: 80384 | AE82: 15269.84 | AF82: 162620.45 | AG82: 28370.61 | AH82: 0 | AI82: 23037.29 | AJ82: 17896.97 | AK82: 0 | AL82: 87858.19 | AM82: 47818 | AN82: 27114.03 | AO82: 41172.99 | AP82: 0 | AQ82: 0 | AR82: 45000 | AS82: 0 | AT82: 0 | AU82: -2104674.06 | AV82: -463154.29 | AW82: -192895.2 | AX82: -143155.37 | AY82: 0 | AZ82: -380814 | BA82: -850 | BB82: -4950 | BC82: 0 | BD82: -13823.84 | BE82: 0 | BF82: 0 | BG82: -585.33 | BH82: -8528 | BI82: -1252 | BJ82: 0 | BK82: 0 | BL82: 0 | BM82: -38682 | BN82: 0 | BO82: 0 | BP82: -57041.44 | BQ82: -2903878.92 | BR82: 24000 | BS82: 114000 | BT82: 54895.2 | BU82: 192895.2 | BV82: 0 | BW82: 143155.37 | BX82: 143155.37
A83: 2454 | B83: Aycliffe Community Primary School | C83: 0 | D83: 110 | E83: 0 | F83: 9.583333333 | G83: No | H83: Primary | I83: 100-199 | J83: =IF(G83=Benchmarking!$I$4,1,0) -> 0 | K83: =IF(Benchmarking!$I$6="All",1,IF(Benchmarking!$I$6=H83,1,0)) -> 0 | L83: =IF(Benchmarking!$I$8="All",1,IF(Benchmarking!$I$8=I83,1,0)) -> 0 | M83: 0 | N83: 365354.12 | O83: 19439.97 | P83: 192936.42 | Q83: 47190.15 | R83: 50854.59 | S83: 0 | T83: 12660.8 | U83: 3246.42 | V83: 2757.59 | W83: 8180.28 | X83: 2538.84 | Y83: 9969.16 | Z83: 6352.03 | AA83: 1112.64 | AB83: 1526.14 | AC83: 30350.25 | AD83: 22829 | AE83: 4387.78 | AF83: 26088.31 | AG83: 14440.95 | AH83: 0 | AI83: 5017.42 | AJ83: 3890.74 | AK83: 3647.97 | AL83: 21036.75 | AM83: 3467.5 | AN83: 23430.9 | AO83: 13832.21 | AP83: 0 | AQ83: 0 | AR83: 8000 | AS83: 0 | AT83: 0 | AU83: -585123.3 | AV83: -99971.55 | AW83: 0 | AX83: -83850.45 | AY83: 0 | AZ83: -81675 | BA83: -5677.8 | BB83: -7905.08 | BC83: 0 | BD83: -20654.77 | BE83: 0 | BF83: -13957.3 | BG83: 0 | BH83: -5104 | BI83: -130.53 | BJ83: 0 | BK83: 0 | BL83: 0 | BM83: -21895 | BN83: 0 | BO83: 0 | BP83: -14681.63 | BQ83: -768945.3 | BR83: 0 | BS83: 0 | BT83: 0 | BU83: 0 | BV83: 0 | BW83: 83850.45 | BX83: 83850.45
A84: 2459 | B84: Riverhead Infant School | C84: 0 | D84: 269 | E84: 0 | F84: 2 | G84: No | H84: Primary | I84: 200-299 | J84: =IF(G84=Benchmarking!$I$4,1,0) -> 0 | K84: =IF(Benchmarking!$I$6="All",1,IF(Benchmarking!$I$6=H84,1,0)) -> 0 | L84: =IF(Benchmarking!$I$8="All",1,IF(Benchmarking!$I$8=I84,1,0)) -> 0 | M84: 0 | N84: 687822.83 | O84: 0 | P84: 258679.93 | Q84: 28655.11 | R84: 98125.34 | S84: 0 | T84: 130154.14 | U84: 6672.73 | V84: 13117.18 | W84: 546.91 | X84: 6208.56 | Y84: 2759.09 | Z84: 3587.73 | AA84: 38645.09 | AB84: 4632.26 | AC84: 24093.85 | AD84: 38912 | AE84: 12140.41 | AF84: 19816.56 | AG84: 5820.64 | AH84: 0 | AI84: 12943.78 | AJ84: 9708.92 | AK84: 13861.94 | AL84: 104695.43 | AM84: 6295 | AN84: 18486.74 | AO84: 13992.08 | AP84: 0 | AQ84: 0 | AR84: 4941.51 | AS84: 0 | AT84: 0 | AU84: -1086868.11 | AV84: -131378.89 | AW84: 0 | AX84: -22814.9 | AY84: 0 | AZ84: -20735 | BA84: 0 | BB84: -2816.62 | BC84: -9928.5 | BD84: -203505.74 | BE84: -840 | BF84: 0 | BG84: 0 | BH84: 0 | BI84: -1045.31 | BJ84: 0 | BK84: 0 | BL84: 0 | BM84: -134985 | BN84: 0 | BO84: 0 | BP84: -2403 | BQ84: -1241061.9 | BR84: 0 | BS84: 0 | BT84: 0 | BU84: 0 | BV84: 0 | BW84: 22814.9 | BX84: 22814.9
A85: 2465 | B85: Claremont Primary School | C85: 0 | D85: 435 | E85: 0 | F85: 6.833333333 | G85: No | H85: Primary | I85: 400-499 | J85: =IF(G85=Benchmarking!$I$4,1,0) -> 0 | K85: =IF(Benchmarking!$I$6="All",1,IF(Benchmarking!$I$6=H85,1,0)) -> 0 | L85: =IF(Benchmarking!$I$8="All",1,IF(Benchmarking!$I$8=I85,1,0)) -> 0 | M85: 0 | N85: 1120403.02 | O85: 15987.66 | P85: 381267.04 | Q85: 43502.5 | R85: 122562.21 | S85: 0 | T85: 42809.11 | U85: 10974.66 | V85: 8742.17 | W85: 10014.6 | X85: 10039.8 | Y85: 10741.79 | Z85: 11172.36 | AA85: 32229.1 | AB85: 28952.33 | AC85: 36622.97 | AD85: 38656 | AE85: 13764.88 | AF85: 126570.64 | AG85: 10982.79 | AH85: 0 | AI85: 15892.34 | AJ85: 15385.95 | AK85: 7219.36 | AL85: 76734.46 | AM85: 25404.65 | AN85: 24795.42 | AO85: 56228.05 | AP85: 0 | AQ85: 0 | AR85: 43921.56 | AS85: 0 | AT85: 0 | AU85: -1627944.88 | AV85: -346497.92 | AW85: 0 | AX85: -50023.73 | AY85: 0 | AZ85: -27645 | BA85: -1200 | BB85: -29938.18 | BC85: -5989.5 | BD85: -32441.3 | BE85: 0 | BF85: -1520 | BG85: -724.99 | BH85: -45154.58 | BI85: -35844.8 | BJ85: 0 | BK85: 0 | BL85: 0 | BM85: -93005 | BN85: 0 | BO85: 0 | BP85: -6334.97 | BQ85: -2024466.53 | BR85: 0 | BS85: 0 | BT85: 0 | BU85: 0 | BV85: 0 | BW85: 50023.73 | BX85: 50023.73
A86: 2471 | B86: Whitfield Aspen School | C86: 1 | D86: 526 | E86: 154.75 | F86: 14.41666667 | G86: Yes | H86: Infant | I86: 500+ | J86: =IF(G86=Benchmarking!$I$4,1,0) -> 0 | K86: =IF(Benchmarking!$I$6="All",1,IF(Benchmarking!$I$6=H86,1,0)) -> 0 | L86: =IF(Benchmarking!$I$8="All",1,IF(Benchmarking!$I$8=I86,1,0)) -> 0 | M86: 0 | N86: 2403259.73 | O86: 115981.09 | P86: 1927663.12 | Q86: 169731.57 | R86: 256126.48 | S86: 0 | T86: 62286.87 | U86: 37623.35 | V86: 17620.73 | W86: 1030.96 | X86: 12565.08 | Y86: 86217.85 | Z86: 8217.54 | AA86: 10837.9 | AB86: 14746.38 | AC86: 116728.71 | AD86: 157696 | AE86: 36059.84 | AF86: 332579.85 | AG86: 29393.44 | AH86: 0 | AI86: 22022.78 | AJ86: 20304.62 | AK86: 4457.3 | AL86: 109517.03 | AM86: 327551.74 | AN86: 18123 | AO86: 55113.48 | AP86: 0 | AQ86: 0 | AR86: 0 | AS86: 0 | AT86: 832.65 | AU86: -2438384.65 | AV86: -427423.8 | AW86: -2322175.56 | AX86: -137860.22 | AY86: 0 | AZ86: -243080 | BA86: 0 | BB86: -42149.2 | BC86: -924 | BD86: -343359.5 | BE86: -1574.66 | BF86: 0 | BG86: -31209.35 | BH86: -17193.26 | BI86: -1118 | BJ86: 0 | BK86: 0 | BL86: 0 | BM86: -78486 | BN86: 0 | BO86: 0 | BP86: -86800.97 | BQ86: -5325844.23 | BR86: 0 | BS86: 816000 | BT86: 1506175.56 | BU86: 2322175.56 | BV86: 0 | BW86: 137860.22 | BX86: 137860.22
A87: 2474 | B87: St Pauls Infant School, Maidstone | C87: 0 | D87: 252 | E87: 0 | F87: 10.25 | G87: No | H87: Infant | I87: 200-299 | J87: =IF(G87=Benchmarking!$I$4,1,0) -> 0 | K87: =IF(Benchmarking!$I$6="All",1,IF(Benchmarking!$I$6=H87,1,0)) -> 0 | L87: =IF(Benchmarking!$I$8="All",1,IF(Benchmarking!$I$8=I87,1,0)) -> 0 | M87: 0 | N87: 744521.5 | O87: 7224.52 | P87: 225943.45 | Q87: 19137.23 | R87: 75852.95 | S87: 0 | T87: 45989.6 | U87: 5018.16 | V87: 8352.04 | W87: 9101.92 | X87: 5816.16 | Y87: 9589.15 | Z87: 6993.86 | AA87: 22090.91 | AB87: 3088.27 | AC87: 37429.87 | AD87: 11477 | AE87: 10281.76 | AF87: 56525.52 | AG87: 24527.06 | AH87: 0 | AI87: 9801.61 | AJ87: 8913.24 | AK87: 693 | AL87: 72323.2 | AM87: 4067.25 | AN87: 13603.64 | AO87: 34816.55 | AP87: 0 | AQ87: 0 | AR87: 38938 | AS87: 0 | AT87: 0 | AU87: -1013083.28 | AV87: -162281.87 | AW87: 0 | AX87: -89904.88 | AY87: 0 | AZ87: -102100 | BA87: 0 | BB87: -12661.67 | BC87: 0 | BD87: -3488.28 | BE87: -1011.02 | BF87: -5580 | BG87: -20435.97 | BH87: 0 | BI87: 0 | BJ87: 0 | BK87: 0 | BL87: 0 | BM87: -90529 | BN87: 0 | BO87: 0 | BP87: -16495.75 | BQ87: -1265270.03 | BR87: 0 | BS87: 0 | BT87: 0 | BU87: 0 | BV87: 0 | BW87: 89904.88 | BX87: 89904.88
A88: 2482 | B88: Langton Green Primary School | C88: 0 | D88: 407 | E88: 0 | F88: 12.58333333 | G88: No | H88: Infant | I88: 400-499 | J88: =IF(G88=Benchmarking!$I$4,1,0) -> 0 | K88: =IF(Benchmarking!$I$6="All",1,IF(Benchmarking!$I$6=H88,1,0)) -> 0 | L88: =IF(Benchmarking!$I$8="All",1,IF(Benchmarking!$I$8=I88,1,0)) -> 0 | M88: 0 | N88: 1013406.41 | O88: 2900.68 | P88: 296239.4 | Q88: 19197.61 | R88: 96762.7 | S88: 0 | T88: 60377.34 | U88: 10506.94 | V88: 11019.99 | W88: 7899.19 | X88: 9393.6 | Y88: 112576.57 | Z88: 8212.24 | AA88: 32157.03 | AB88: 2104.8 | AC88: 30028.74 | AD88: 39168 | AE88: 19192 | AF88: 197719.23 | AG88: 29183.62 | AH88: 0 | AI88: 16498.74 | AJ88: 14395.63 | AK88: 0 | AL88: 64048.2 | AM88: 4675 | AN88: 62060.94 | AO88: 21537.91 | AP88: 0 | AQ88: 0 | AR88: 0 | AS88: 0 | AT88: 0 | AU88: -1508895.36 | AV88: -313631.94 | AW88: 0 | AX88: -92232.19 | AY88: 0 | AZ88: -30775 | BA88: 0 | BB88: -24878.91 | BC88: -3510 | BD88: -1291.8 | BE88: 0 | BF88: 0 | BG88: 0 | BH88: 0 | BI88: -70183.08 | BJ88: 0 | BK88: 0 | BL88: 0 | BM88: -86013 | BN88: 0 | BO88: 0 | BP88: -7549.5 | BQ88: -1914759.49 | BR88: 0 | BS88: 0 | BT88: 0 | BU88: 0 | BV88: 0 | BW88: 92232.19 | BX88: 92232.19
A89: 2490 | B89: Bishops Down Primary School | C89: 18 | D89: 203 | E89: 6.5 | F89: 4.416666667 | G89: Yes | H89: Infant | I89: 200-299 | J89: =IF(G89=Benchmarking!$I$4,1,0) -> 0 | K89: =IF(Benchmarking!$I$6="All",1,IF(Benchmarking!$I$6=H89,1,0)) -> 0 | L89: =IF(Benchmarking!$I$8="All",1,IF(Benchmarking!$I$8=I89,1,0)) -> 0 | M89: 0 | N89: 632970.16 | O89: 2930.5 | P89: 339862.44 | Q89: 31615.34 | R89: 78865.66 | S89: 0 | T89: 107017.95 | U89: 9084.67 | V89: 7027 | W89: 397.88 | X89: 4797.24 | Y89: 18640.03 | Z89: 5946.89 | AA89: 24527.94 | AB89: 7083.22 | AC89: 35381.52 | AD89: 31232 | AE89: 12286.68 | AF89: 49926.14 | AG89: 11002.66 | AH89: 0 | AI89: 23223.96 | AJ89: 7628.11 | AK89: 13934.3 | AL89: 36581.78 | AM89: 53225.77 | AN89: 11288.13 | AO89: 28447.16 | AP89: 0 | AQ89: 0 | AR89: 0 | AS89: 0 | AT89: 0 | AU89: -967931.99 | AV89: -88625.65 | AW89: -126903.69 | AX89: -45757.4 | AY89: 0 | AZ89: -46370 | BA89: -1200 | BB89: -26703.34 | BC89: -7675.8 | BD89: -159322.58 | BE89: -651.28 | BF89: 0 | BG89: -770.38 | BH89: -13241.74 | BI89: -3263.17 | BJ89: 0 | BK89: 0 | BL89: 0 | BM89: -45780 | BN89: 0 | BO89: 0 | BP89: -6616.57 | BQ89: -1229218.73 | BR89: 1666.67 | BS89: 44500 | BT89: 80737.02 | BU89: 126903.69 | BV89: 0 | BW89: 45757.4 | BX89: 45757.4
A90: 2509 | B90: Singlewell Primary School | C90: 0 | D90: 370 | E90: 0 | F90: 8 | G90: No | H90: Infant | I90: 300-399 | J90: =IF(G90=Benchmarking!$I$4,1,0) -> 0 | K90: =IF(Benchmarking!$I$6="All",1,IF(Benchmarking!$I$6=H90,1,0)) -> 0 | L90: =IF(Benchmarking!$I$8="All",1,IF(Benchmarking!$I$8=I90,1,0)) -> 0 | M90: 0 | N90: 1097271.57 | O90: 19341.22 | P90: 273610.39 | Q90: 48363.02 | R90: 97440.98 | S90: 0 | T90: 80766.53 | U90: 8269.54 | V90: 15193.44 | W90: 12342.35 | X90: 8539.56 | Y90: 13324.81 | Z90: 6975.43 | AA90: 27319.19 | AB90: 6138.91 | AC90: 33545.21 | AD90: 51712 | AE90: 18520.37 | AF90: 60217.23 | AG90: 19757.52 | AH90: 0 | AI90: 7356.1 | AJ90: 13086.86 | AK90: 2716.98 | AL90: 62206.64 | AM90: 35332.7 | AN90: 34833.52 | AO90: 24032.05 | AP90: 0 | AQ90: 0 | AR90: 14068.2 | AS90: 0 | AT90: 0 | AU90: -1465453.22 | AV90: -249473.78 | AW90: 0 | AX90: -62743.5 | AY90: 0 | AZ90: -105260 | BA90: 0 | BB90: -519.79 | BC90: 0 | BD90: -50553.83 | BE90: 0 | BF90: -23630 | BG90: -4374.3 | BH90: -6792.5 | BI90: -9271.38 | BJ90: 0 | BK90: 0 | BL90: 0 | BM90: -69206 | BN90: 0 | BO90: 0 | BP90: -23873.26 | BQ90: -1777670.5 | BR90: 0 | BS90: 0 | BT90: 0 | BU90: 0 | BV90: 0 | BW90: 62743.5 | BX90: 62743.5
A91: 2510 | B91: Cheriton Primary School | C91: 0 | D91: 390 | E91: 0 | F91: 10.33333333 | G91: No | H91: Junior | I91: 300-399 | J91: =IF(G91=Benchmarking!$I$4,1,0) -> 0 | K91: =IF(Benchmarking!$I$6="All",1,IF(Benchmarking!$I$6=H91,1,0)) -> 0 | L91: =IF(Benchmarking!$I$8="All",1,IF(Benchmarking!$I$8=I91,1,0)) -> 0 | M91: 0 | N91: 1195887.72 | O91: 7810.42 | P91: 368234.07 | Q91: 66375.29 | R91: 65561.33 | S91: 0 | T91: 69461.82 | U91: 1002.23 | V91: 6198 | W91: 764.4 | X91: 15165.4 | Y91: 90852.58 | Z91: 10118.83 | AA91: 3497.36 | AB91: 13522.97 | AC91: 30814.53 | AD91: 8909 | AE91: 29729.27 | AF91: 95508.07 | AG91: 23480.72 | AH91: 0 | AI91: 9198.81 | AJ91: 13794.3 | AK91: 3923.26 | AL91: 90780.47 | AM91: 20542.8 | AN91: 45755.76 | AO91: 32127 | AP91: 0 | AQ91: 0 | AR91: 0 | AS91: 0 | AT91: 0 | AU91: -1465684.36 | AV91: -260116.19 | AW91: 0 | AX91: -113032.71 | AY91: 0 | AZ91: -170210 | BA91: 0 | BB91: -104475 | BC91: 0 | BD91: -14940.89 | BE91: -29258.51 | BF91: -11332.11 | BG91: 0 | BH91: -21290.05 | BI91: -1168 | BJ91: 0 | BK91: 0 | BL91: 0 | BM91: -72110 | BN91: 0 | BO91: 0 | BP91: -27388.35 | BQ91: -1838833.26 | BR91: 0 | BS91: 0 | BT91: 0 | BU91: 0 | BV91: 0 | BW91: 113032.71 | BX91: 113032.71
A92: 2514 | B92: Brookfield Infant School | C92: 0 | D92: 176 | E92: 0 | F92: 3.083333333 | G92: No | H92: Primary | I92: 100-199 | J92: =IF(G92=Benchmarking!$I$4,1,0) -> 0 | K92: =IF(Benchmarking!$I$6="All",1,IF(Benchmarking!$I$6=H92,1,0)) -> 0 | L92: =IF(Benchmarking!$I$8="All",1,IF(Benchmarking!$I$8=I92,1,0)) -> 0 | M92: 0 | N92: 455083.1 | O92: 0 | P92: 267427.25 | Q92: 12246.16 | R92: 51235.39 | S92: 50334.78 | T92: 30922.63 | U92: 6326.92 | V92: 5751 | W92: 3314.56 | X92: 4062.12 | Y92: 6161.76 | Z92: 1223.14 | AA92: 24021.16 | AB92: 1476 | AC92: 26136.18 | AD92: 20210 | AE92: 6379.32 | AF92: 41519.55 | AG92: 10667.8 | AH92: 0 | AI92: 9701.51 | AJ92: 6225.16 | AK92: 62946.6 | AL92: 65444.42 | AM92: 1892.1 | AN92: 3269.38 | AO92: 15883.85 | AP92: 0 | AQ92: 0 | AR92: 7550.41 | AS92: 0 | AT92: 0 | AU92: -739257.32 | AV92: -96290.62 | AW92: 0 | AX92: -27787.63 | AY92: 0 | AZ92: -58390 | BA92: 0 | BB92: -3200 | BC92: -700 | BD92: -85538.65 | BE92: -40564 | BF92: -1860 | BG92: 0 | BH92: -2656 | BI92: -25754.86 | BJ92: 0 | BK92: 0 | BL92: 0 | BM92: -75873 | BN92: 0 | BO92: 0 | BP92: -9751.16 | BQ92: -863335.57 | BR92: 0 | BS92: 0 | BT92: 0 | BU92: 0 | BV92: 0 | BW92: 27787.63 | BX92: 27787.63
A93: 2519 | B93: Vigo Village School | C93: 0 | D93: 162 | E93: 0 | F93: 4.5 | G93: No | H93: Primary | I93: 100-199 | J93: =IF(G93=Benchmarking!$I$4,1,0) -> 0 | K93: =IF(Benchmarking!$I$6="All",1,IF(Benchmarking!$I$6=H93,1,0)) -> 0 | L93: =IF(Benchmarking!$I$8="All",1,IF(Benchmarking!$I$8=I93,1,0)) -> 0 | M93: 0 | N93: 398432.4 | O93: 0 | P93: 150359.9 | Q93: 34340.36 | R93: 47540.56 | S93: 0 | T93: 37940.51 | U93: 2592.15 | V93: 2359 | W93: 317.52 | X93: 3738.96 | Y93: 25395.79 | Z93: 5584.64 | AA93: 3709.89 | AB93: 2460 | AC93: 27824.26 | AD93: 22080.75 | AE93: 1966.32 | AF93: 26645.99 | AG93: 3085 | AH93: 0 | AI93: 14899.41 | AJ93: 5729.94 | AK93: 0 | AL93: 22091.21 | AM93: 2886.5 | AN93: 1636.5 | AO93: 18619.14 | AP93: 0 | AQ93: 0 | AR93: 0 | AS93: 0 | AT93: 0 | AU93: -693698.3 | AV93: -64591.05 | AW93: 0 | AX93: -29501.06 | AY93: 0 | AZ93: -31710 | BA93: 0 | BB93: -6691.35 | BC93: -359.64 | BD93: -25577.88 | BE93: 0 | BF93: 0 | BG93: -11494.17 | BH93: -2472.93 | BI93: -11785.35 | BJ93: 0 | BK93: 0 | BL93: 0 | BM93: -32110 | BN93: 0 | BO93: 0 | BP93: -6692.77 | BQ93: -787790.41 | BR93: 0 | BS93: 0 | BT93: 0 | BU93: 0 | BV93: 0 | BW93: 29501.06 | BX93: 29501.06
A94: 2520 | B94: Madginford Primary School | C94: 0 | D94: 641 | E94: 0 | F94: 13.75 | G94: No | H94: Infant | I94: 500+ | J94: =IF(G94=Benchmarking!$I$4,1,0) -> 0 | K94: =IF(Benchmarking!$I$6="All",1,IF(Benchmarking!$I$6=H94,1,0)) -> 0 | L94: =IF(Benchmarking!$I$8="All",1,IF(Benchmarking!$I$8=I94,1,0)) -> 0 | M94: 0 | N94: 1675214.82 | O94: 0 | P94: 641130.01 | Q94: 94672.32 | R94: 85163.3 | S94: 73664.85 | T94: 140590.73 | U94: 13422.36 | V94: 9023.8 | W94: 19844.55 | X94: 14879.28 | Y94: 18083.66 | Z94: 9341.34 | AA94: 13386.24 | AB94: 11168.93 | AC94: 50830.04 | AD94: 58880 | AE94: 10898.5 | AF94: 135815.65 | AG94: 24824.46 | AH94: 0 | AI94: 54237.98 | AJ94: 23012.17 | AK94: 20384.85 | AL94: 57435.88 | AM94: 39682.53 | AN94: 13315.35 | AO94: 35152.51 | AP94: 0 | AQ94: 0 | AR94: 1272.38 | AS94: 0 | AT94: 0 | AU94: -2316077.49 | AV94: -549663.38 | AW94: 0 | AX94: -119542.56 | AY94: 0 | AZ94: -87025 | BA94: 0 | BB94: -4916.67 | BC94: -1937.65 | BD94: -81510.51 | BE94: -30738.8 | BF94: -18050 | BG94: -8252.72 | BH94: -36530.5 | BI94: -1063.2 | BJ94: 0 | BK94: 0 | BL94: 0 | BM94: -99749 | BN94: 0 | BO94: 0 | BP94: -11402.32 | BQ94: -2985283.43 | BR94: 0 | BS94: 0 | BT94: 0 | BU94: 0 | BV94: 0 | BW94: 119542.56 | BX94: 119542.56
A95: 2524 | B95: Palmarsh Primary School | C95: 0 | D95: 184 | E95: 0 | F95: 4.833333333 | G95: No | H95: Primary | I95: 100-199 | J95: =IF(G95=Benchmarking!$I$4,1,0) -> 0 | K95: =IF(Benchmarking!$I$6="All",1,IF(Benchmarking!$I$6=H95,1,0)) -> 0 | L95: =IF(Benchmarking!$I$8="All",1,IF(Benchmarking!$I$8=I95,1,0)) -> 0 | M95: 0 | N95: 483915.35 | O95: 0 | P95: 217075.82 | Q95: 12905.92 | R95: 27848.15 | S95: 0 | T95: 52803.19 | U95: 3647.15 | V95: 1789 | W95: 2347.35 | X95: 4246.68 | Y95: 6175.21 | Z95: 1745.58 | AA95: 1174.49 | AB95: 6362.94 | AC95: 23214.57 | AD95: 16218 | AE95: 11546.38 | AF95: 71205.67 | AG95: 5751.81 | AH95: 0 | AI95: 11567.48 | AJ95: 6508.04 | AK95: 16659.21 | AL95: 42477.97 | AM95: 2138.38 | AN95: 1482 | AO95: 27549.57 | AP95: 0 | AQ95: 0 | AR95: 0 | AS95: 0 | AT95: 0 | AU95: -768583.28 | AV95: -104450.86 | AW95: 0 | AX95: -47611.04 | AY95: 0 | AZ95: -74580 | BA95: 0 | BB95: -655 | BC95: -4125 | BD95: -19970.81 | BE95: 0 | BF95: -9919.57 | BG95: 0 | BH95: -8965.55 | BI95: -1200 | BJ95: 0 | BK95: 0 | BL95: 0 | BM95: -43378 | BN95: 0 | BO95: 0 | BP95: -9282.83 | BQ95: -920645.18 | BR95: 0 | BS95: 0 | BT95: 0 | BU95: 0 | BV95: 0 | BW95: 47611.04 | BX95: 47611.04
A96: 2525 | B96: Painters Ash Primary School | C96: 0 | D96: 387 | E96: 0 | F96: 5.166666667 | G96: No | H96: Primary | I96: 300-399 | J96: =IF(G96=Benchmarking!$I$4,1,0) -> 0 | K96: =IF(Benchmarking!$I$6="All",1,IF(Benchmarking!$I$6=H96,1,0)) -> 0 | L96: =IF(Benchmarking!$I$8="All",1,IF(Benchmarking!$I$8=I96,1,0)) -> 0 | M96: 0 | N96: 1072853.46 | O96: 30027.58 | P96: 330566.04 | Q96: 65499.92 | R96: 95698.68 | S96: 0 | T96: 85002.66 | U96: 1096 | V96: 12305.76 | W96: 13202.26 | X96: 8931.96 | Y96: 12362.59 | Z96: 8774.39 | AA96: 21717.96 | AB96: 13003 | AC96: 46303.28 | AD96: 41728 | AE96: 14857.16 | AF96: 143099.47 | AG96: 11191.37 | AH96: 0 | AI96: 24296.68 | AJ96: 13688.19 | AK96: 12867 | AL96: 63476.19 | AM96: 4251.95 | AN96: 31839.24 | AO96: 30709.78 | AP96: 0 | AQ96: 0 | AR96: 27397.56 | AS96: 0 | AT96: 0 | AU96: -1503851.05 | AV96: -263952.14 | AW96: 0 | AX96: -37492.28 | AY96: 0 | AZ96: -114955 | BA96: 0 | BB96: -500 | BC96: -1420 | BD96: -29447.42 | BE96: 0 | BF96: -949 | BG96: -15848.14 | BH96: -25856.89 | BI96: -10910.32 | BJ96: 0 | BK96: 0 | BL96: 0 | BM96: -67792 | BN96: 0 | BO96: 0 | BP96: -30777.52 | BQ96: -1805295.47 | BR96: 0 | BS96: 0 | BT96: 0 | BU96: 0 | BV96: 0 | BW96: 37492.28 | BX96: 37492.28
A97: 2530 | B97: Tunbury Primary School | C97: 0 | D97: 589 | E97: 0 | F97: 4.916666667 | G97: No | H97: Infant | I97: 500+ | J97: =IF(G97=Benchmarking!$I$4,1,0) -> 0 | K97: =IF(Benchmarking!$I$6="All",1,IF(Benchmarking!$I$6=H97,1,0)) -> 0 | L97: =IF(Benchmarking!$I$8="All",1,IF(Benchmarking!$I$8=I97,1,0)) -> 0 | M97: 0 | N97: 1419999.44 | O97: 0 | P97: 553274.85 | Q97: 88241.88 | R97: 67337.85 | S97: 0 | T97: 55406.92 | U97: 11695.68 | V97: 13274.5 | W97: 1154.44 | X97: 13594.08 | Y97: 64586.59 | Z97: 9059.87 | AA97: 5344.02 | AB97: 5027.66 | AC97: 44812.59 | AD97: 46336 | AE97: 21975.95 | AF97: 116878.76 | AG97: 33158.89 | AH97: 0 | AI97: 38990.27 | AJ97: 20832.89 | AK97: 2189.9 | AL97: 83615.99 | AM97: 78587.79 | AN97: 56531 | AO97: 48652.36 | AP97: 0 | AQ97: 0 | AR97: 75000 | AS97: 0 | AT97: 0 | AU97: -2128089.65 | AV97: -498100.35 | AW97: 0 | AX97: -31288.49 | AY97: 0 | AZ97: -66822 | BA97: -4496 | BB97: -619.12 | BC97: -2458.02 | BD97: -7759.33 | BE97: 0 | BF97: 0 | BG97: -25817.69 | BH97: -22750 | BI97: -3727.84 | BJ97: 0 | BK97: 0 | BL97: 0 | BM97: -93760 | BN97: 0 | BO97: 0 | BP97: -13614.28 | BQ97: -2657478.49 | BR97: 0 | BS97: 0 | BT97: 0 | BU97: 0 | BV97: 0 | BW97: 31288.49 | BX97: 31288.49
A98: 2532 | B98: St Margarets-at-Cliffe Primary School | C98: 0 | D98: 198 | E98: 0 | F98: 7.25 | G98: No | H98: Primary | I98: 100-199 | J98: =IF(G98=Benchmarking!$I$4,1,0) -> 0 | K98: =IF(Benchmarking!$I$6="All",1,IF(Benchmarking!$I$6=H98,1,0)) -> 0 | L98: =IF(Benchmarking!$I$8="All",1,IF(Benchmarking!$I$8=I98,1,0)) -> 0 | M98: 0 | N98: 550141.58 | O98: 9821.68 | P98: 227458.5 | Q98: 29016.98 | R98: 84521.16 | S98: 0 | T98: 43271.75 | U98: 6053.63 | V98: 6190.73 | W98: 7368.34 | X98: 4561.8 | Y98: 6957.97 | Z98: 7829.47 | AA98: 2889.02 | AB98: 3287.38 | AC98: 24347.56 | AD98: 18713 | AE98: 10151.69 | AF98: 59522.73 | AG98: 6060.77 | AH98: 0 | AI98: 23334.38 | AJ98: 6971.22 | AK98: 3711.7 | AL98: 35131.67 | AM98: 8573.9 | AN98: 19169.05 | AO98: 16941.61 | AP98: 0 | AQ98: 0 | AR98: 0 | AS98: 0 | AT98: 0 | AU98: -820896.55 | AV98: -89845.27 | AW98: 0 | AX98: -75617.55 | AY98: 0 | AZ98: -28305 | BA98: -1800 | BB98: -16890.97 | BC98: 0 | BD98: -106714.36 | BE98: 0 | BF98: -2760 | BG98: -6914.99 | BH98: -23335.43 | BI98: -2793.19 | BJ98: 0 | BK98: 0 | BL98: 0 | BM98: -43753 | BN98: 0 | BO98: 0 | BP98: -4337.58 | BQ98: -986359.37 | BR98: 0 | BS98: 0 | BT98: 0 | BU98: 0 | BV98: 0 | BW98: 75617.55 | BX98: 75617.55
A99: 2539 | B99: Stocks Green Primary School | C99: 0 | D99: 205 | E99: 0 | F99: 5.666666667 | G99: No | H99: Primary | I99: =IFERROR(VLOOKUP($D99,$D$264:$F$269,3,TRUE),0) -> 200-299 | J99: =IF(G99=Benchmarking!$I$4,1,0) -> 0 | K99: =IF(Benchmarking!$I$6="All",1,IF(Benchmarking!$I$6=H99,1,0)) -> 0 | L99: =IF(Benchmarking!$I$8="All",1,IF(Benchmarking!$I$8=I99,1,0)) -> 0 | M99: 0 | N99: 484904.35 | O99: 4845.22 | P99: 171844.32 | Q99: 21090.51 | R99: 56161.79 | S99: 0 | T99: 31700.2 | U99: 8587.03 | V99: 6587 | W99: 5553.71 | X99: 4731.36 | Y99: 25392.31 | Z99: 15805.49 | AA99: 17881.17 | AB99: 4378.25 | AC99: 25517.42 | AD99: 23204 | AE99: 10738.37 | AF99: 72104.65 | AG99: 19343.73 | AH99: 0 | AI99: 18893.5 | AJ99: 7250.81 | AK99: 696.95 | AL99: 37415.33 | AM99: 26454 | AN99: 19818.04 | AO99: 15118.01 | AP99: 0 | AQ99: 0 | AR99: 0 | AS99: 0 | AT99: 0 | AU99: -828505.86 | AV99: -99707.92 | AW99: 0 | AX99: -47025.07 | AY99: 0 | AZ99: -23850 | BA99: 0 | BB99: -6437.82 | BC99: -7061 | BD99: -18924.9 | BE99: 0 | BF99: -2805 | BG99: -600 | BH99: -29837.34 | BI99: -12090.11 | BJ99: 0 | BK99: 0 | BL99: 0 | BM99: -55445 | BN99: 0 | BO99: 0 | BP99: -4187.71 | BQ99: -975238.85 | BR99: 0 | BS99: 0 | BT99: 0 | BU99: 0 | BV99: 0 | BW99: 47025.07 | BX99: 47025.07
A100: 2545 | B100: Sandgate Primary School | C100: 0 | D100: 420 | E100: 0 | F100: 6.666666667 | G100: No | H100: Primary | I100: 400-499 | J100: =IF(G100=Benchmarking!$I$4,1,0) -> 0 | K100: =IF(Benchmarking!$I$6="All",1,IF(Benchmarking!$I$6=H100,1,0)) -> 0 | L100: =IF(Benchmarking!$I$8="All",1,IF(Benchmarking!$I$8=I100,1,0)) -> 0 | M100: 0 | N100: 1075358.44 | O100: 20335.42 | P100: 367766.72 | Q100: 58537.02 | R100: 105411.28 | S100: 0 | T100: 56212.38 | U100: 12113.9 | V100: 6170.4 | W100: 823.2 | X100: 9693.6 | Y100: 17647.04 | Z100: 9657.95 | AA100: 5099.64 | AB100: 7040.65 | AC100: 39431.36 | AD100: 46592 | AE100: 17769.03 | AF100: 108628.8 | AG100: 20482.66 | AH100: 0 | AI100: 42423.47 | AJ100: 14855.4 | AK100: 9595.15 | AL100: 111844.26 | AM100: 55785.38 | AN100: 17230.18 | AO100: 30511.79 | AP100: 0 | AQ100: 0 | AR100: 0 | AS100: 0 | AT100: 0 | AU100: -1571675.3 | AV100: -314411.7 | AW100: 0 | AX100: -73622.91 | AY100: 0 | AZ100: -76990 | BA100: 0 | BB100: 0 | BC100: -10175 | BD100: -48920.71 | BE100: -38197.5 | BF100: 0 | BG100: -14339.13 | BH100: -32635.33 | BI100: -6688.06 | BJ100: 0 | BK100: 0 | BL100: 0 | BM100: -81470 | BN100: 0 | BO100: 0 | BP100: -17517.05 | BQ100: -1959709.91 | BR100: 0 | BS100: 0 | BT100: 0 | BU100: 0 | BV100: 0 | BW100: 73622.91 | BX100: 73622.91
A101: 2552 | B101: Sandling Primary School | C101: 0 | D101: 418 | E101: 0 | F101: 5.416666667 | G101: No | H101: Primary | I101: 400-499 | J101: =IF(G101=Benchmarking!$I$4,1,0) -> 0 | K101: =IF(Benchmarking!$I$6="All",1,IF(Benchmarking!$I$6=H101,1,0)) -> 0 | L101: =IF(Benchmarking!$I$8="All",1,IF(Benchmarking!$I$8=I101,1,0)) -> 0 | M101: 0 | N101: 907577.16 | O101: 19800.33 | P101: 397094.12 | Q101: 22805.71 | R101: 99930.37 | S101: 0 | T101: 56795.32 | U101: 10217.99 | V101: 12221.17 | W101: 4579.77 | X101: 9647.4 | Y101: 35447.02 | Z101: 8122.34 | AA101: 31239.61 | AB101: 6994.76 | AC101: 36585.88 | AD101: 30720 | AE101: 8688.73 | AF101: 88850.44 | AG101: 30873.51 | AH101: 0 | AI101: 14334.36 | AJ101: 14784.62 | AK101: 0 | AL101: 61124.91 | AM101: 34380.62 | AN101: 14158.59 | AO101: 30421.46 | AP101: 0 | AQ101: 0 | AR101: 23097 | AS101: 0 | AT101: 0 | AU101: -1539974.54 | AV101: -322612.96 | AW101: 0 | AX101: -58176.11 | AY101: 0 | AZ101: -40085 | BA101: 0 | BB101: -1499 | BC101: -6773.75 | BD101: -12107.12 | BE101: 0 | BF101: -540 | BG101: -32.42 | BH101: 0 | BI101: -14097.25 | BJ101: 0 | BK101: 0 | BL101: 0 | BM101: -83278 | BN101: 0 | BO101: 0 | BP101: -9722.47 | BQ101: -1920763.61 | BR101: 0 | BS101: 0 | BT101: 0 | BU101: 0 | BV101: 0 | BW101: 58176.11 | BX101: 58176.11
A102: 2559 | B102: Capel-le-Ferne Primary School | C102: 1 | D102: 195 | E102: 0 | F102: 8.416666667 | G102: Yes | H102: Infant | I102: 100-199 | J102: =IF(G102=Benchmarking!$I$4,1,0) -> 0 | K102: =IF(Benchmarking!$I$6="All",1,IF(Benchmarking!$I$6=H102,1,0)) -> 0 | L102: =IF(Benchmarking!$I$8="All",1,IF(Benchmarking!$I$8=I102,1,0)) -> 0 | M102: 0 | N102: 537481.59 | O102: 9106.76 | P102: 172741.47 | Q102: 31997.32 | R102: 55082.35 | S102: 0 | T102: 16097.16 | U102: 5156.38 | V102: 4138 | W102: 382.2 | X102: 4634.84 | Y102: 7532.58 | Z102: 5280.12 | AA102: 3458.06 | AB102: 4996.36 | AC102: 29401.84 | AD102: 19336 | AE102: 9619.53 | AF102: 47929.45 | AG102: 6558 | AH102: 0 | AI102: 14357.58 | AJ102: 7237.11 | AK102: 603.56 | AL102: 43534.58 | AM102: 14341 | AN102: 31483.29 | AO102: 26506.09 | AP102: 0 | AQ102: 0 | AR102: 0 | AS102: 0 | AT102: 0 | AU102: -827702.53 | AV102: -89255.07 | AW102: 0 | AX102: -51508.69 | AY102: 0 | AZ102: -65960.09 | BA102: -1500 | BB102: -3846.29 | BC102: -1823.25 | BD102: -3821.72 | BE102: -13306.76 | BF102: 0 | BG102: -10072.37 | BH102: -16049.71 | BI102: -3933.9 | BJ102: 0 | BK102: 0 | BL102: 0 | BM102: -35610 | BN102: 0 | BO102: 0 | BP102: -13099.75 | BQ102: -968466.29 | BR102: 0 | BS102: 0 | BT102: 0 | BU102: 0 | BV102: 0 | BW102: 51508.69 | BX102: 51508.69
A103: 2562 | B103: Lunsford Primary School | C103: 0 | D103: 205 | E103: 0 | F103: 3.583333333 | G103: No | H103: Primary | I103: 200-299 | J103: =IF(G103=Benchmarking!$I$4,1,0) -> 0 | K103: =IF(Benchmarking!$I$6="All",1,IF(Benchmarking!$I$6=H103,1,0)) -> 0 | L103: =IF(Benchmarking!$I$8="All",1,IF(Benchmarking!$I$8=I103,1,0)) -> 0 | M103: 0 | N103: 563400.13 | O103: 19595.42 | P103: 168668.86 | Q103: 18703.69 | R103: 65484.55 | S103: 0 | T103: 4420.54 | U103: 5948.78 | V103: 2504 | W103: 5285.76 | X103: 5762.43 | Y103: 1768.61 | Z103: 2227.84 | AA103: 14939.74 | AB103: 8994.97 | AC103: 25363.31 | AD103: 19087 | AE103: 4298.07 | AF103: 55040.9 | AG103: 13831.22 | AH103: 0 | AI103: 17659.79 | AJ103: 7250.81 | AK103: 4714.1 | AL103: 35377.76 | AM103: 72 | AN103: 20563.95 | AO103: 15350.14 | AP103: 0 | AQ103: 0 | AR103: 0 | AS103: 0 | AT103: 0 | AU103: -831551 | AV103: -100260.74 | AW103: 0 | AX103: -25006.89 | AY103: 0 | AZ103: -53295 | BA103: -1200 | BB103: -2875.09 | BC103: -620 | BD103: -10238.86 | BE103: 0 | BF103: -1650 | BG103: 0 | BH103: -25098.69 | BI103: -4782.26 | BJ103: 0 | BK103: 0 | BL103: 0 | BM103: -47052 | BN103: 0 | BO103: 0 | BP103: -11059.34 | BQ103: -956818.63 | BR103: 0 | BS103: 0 | BT103: 0 | BU103: 0 | BV103: 0 | BW103: 25006.89 | BX103: 25006.89
A104: 2574 | B104: Downs View Infant School | C104: 0 | D104: 255 | E104: 0 | F104: 6.333333333 | G104: No | H104: Primary | I104: 200-299 | J104: =IF(G104=Benchmarking!$I$4,1,0) -> 0 | K104: =IF(Benchmarking!$I$6="All",1,IF(Benchmarking!$I$6=H104,1,0)) -> 0 | L104: =IF(Benchmarking!$I$8="All",1,IF(Benchmarking!$I$8=I104,1,0)) -> 0 | M104: 0 | N104: 651660.75 | O104: 8290.13 | P104: 278291.12 | Q104: 43331.17 | R104: 61788.02 | S104: 0 | T104: 108111 | U104: 7441.87 | V104: 4303.5 | W104: 499.8 | X104: 5885.4 | Y104: 8385.39 | Z104: 4151.27 | AA104: 3716.3 | AB104: 8431.73 | AC104: 39362.59 | AD104: 27648 | AE104: 10523.43 | AF104: 19859.52 | AG104: 9999.92 | AH104: 0 | AI104: 19726.08 | AJ104: 9019.35 | AK104: 1372.8 | AL104: 88875.61 | AM104: 0 | AN104: 8495.77 | AO104: 17677.32 | AP104: 0 | AQ104: 0 | AR104: 0 | AS104: 0 | AT104: 0 | AU104: -1015332.74 | AV104: -135015.05 | AW104: 0 | AX104: -56638.28 | AY104: 0 | AZ104: -69642.6 | BA104: -1200 | BB104: -3790.85 | BC104: -7346 | BD104: -23200.42 | BE104: -514.6 | BF104: 0 | BG104: 0 | BH104: -3674.33 | BI104: -1416.22 | BJ104: 0 | BK104: 0 | BL104: 0 | BM104: -109113 | BN104: 0 | BO104: -10631.81 | BP104: -14777.89 | BQ104: -1206986.07 | BR104: 0 | BS104: 0 | BT104: 0 | BU104: 0 | BV104: 0 | BW104: 56638.28 | BX104: 56638.28
A105: 2578 | B105: Kingswood Primary School | C105: 0 | D105: 128 | E105: 0 | F105: 6.583333333 | G105: No | H105: Primary | I105: 100-199 | J105: =IF(G105=Benchmarking!$I$4,1,0) -> 0 | K105: =IF(Benchmarking!$I$6="All",1,IF(Benchmarking!$I$6=H105,1,0)) -> 0 | L105: =IF(Benchmarking!$I$8="All",1,IF(Benchmarking!$I$8=I105,1,0)) -> 0 | M105: 0 | N105: 887039.43 | O105: 0 | P105: 91745.69 | Q105: 36734.83 | R105: 35755.75 | S105: 0 | T105: 30009.08 | U105: 2329.95 | V105: 1080 | W105: 4681.88 | X105: 3039.24 | Y105: 10134.33 | Z105: 4031.76 | AA105: 2022.02 | AB105: 2417.14 | AC105: 19562.45 | AD105: 16092.75 | AE105: 8651.18 | AF105: 15335.02 | AG105: 7410.57 | AH105: 0 | AI105: 12188.08 | AJ105: 4867.36 | AK105: 250656.93 | AL105: 27275.21 | AM105: 2362 | AN105: 12663.92 | AO105: 13744.15 | AP105: 0 | AQ105: 0 | AR105: 0 | AS105: 0 | AT105: 0 | AU105: -593829.31 | AV105: -54325.31 | AW105: 0 | AX105: -50487.83 | AY105: 0 | AZ105: -31555 | BA105: -299 | BB105: -1720 | BC105: 0 | BD105: -769161.77 | BE105: -3732.39 | BF105: 0 | BG105: 0 | BH105: -7317.2 | BI105: -1335.95 | BJ105: 0 | BK105: 0 | BL105: 0 | BM105: -37816 | BN105: 0 | BO105: 0 | BP105: -3069.91 | BQ105: -698642.45 | BR105: 0 | BS105: 0 | BT105: 0 | BU105: 0 | BV105: 3735.91 | BW105: 46751.92 | BX105: 50487.83
A106: 2586 | B106: Senacre Wood Primary School | C106: 0 | D106: 209 | E106: 0 | F106: 4.833333333 | G106: No | H106: Primary | I106: 200-299 | J106: =IF(G106=Benchmarking!$I$4,1,0) -> 0 | K106: =IF(Benchmarking!$I$6="All",1,IF(Benchmarking!$I$6=H106,1,0)) -> 0 | L106: =IF(Benchmarking!$I$8="All",1,IF(Benchmarking!$I$8=I106,1,0)) -> 0 | M106: 0 | N106: 607762.51 | O106: 25023.17 | P106: 221247.22 | Q106: 25264.72 | R106: 56927.87 | S106: 0 | T106: 35495.15 | U106: 5008.77 | V106: 3035.32 | W106: 2427.44 | X106: 4822.96 | Y106: 6854.39 | Z106: 7968.2 | AA106: 10816.53 | AB106: 3188.68 | AC106: 14859.58 | AD106: 21332 | AE106: 5697.48 | AF106: 38253.14 | AG106: 14792.76 | AH106: 0 | AI106: 18391.62 | AJ106: 7392.37 | AK106: 8590.86 | AL106: 34421.15 | AM106: 1726 | AN106: 41755.71 | AO106: 30298.22 | AP106: 0 | AQ106: 0 | AR106: 49000 | AS106: 0 | AT106: 0 | AU106: -864240.14 | AV106: -147177.37 | AW106: 0 | AX106: -43407.23 | AY106: 0 | AZ106: -90795 | BA106: 0 | BB106: -5955 | BC106: 0 | BD106: -11710.36 | BE106: -2237.77 | BF106: 0 | BG106: -2989.83 | BH106: -11357.47 | BI106: -5035 | BJ106: 0 | BK106: 0 | BL106: 0 | BM106: -45926 | BN106: 0 | BO106: 0 | BP106: -14928.54 | BQ106: -1054824.74 | BR106: 0 | BS106: 0 | BT106: 0 | BU106: 0 | BV106: 0 | BW106: 43407.23 | BX106: 43407.23
A107: 2603 | B107: Bromstone Primary School | C107: 0 | D107: 419 | E107: 30 | F107: 12.5 | G107: No | H107: Primary | I107: 400-499 | J107: =IF(G107=Benchmarking!$I$4,1,0) -> 0 | K107: =IF(Benchmarking!$I$6="All",1,IF(Benchmarking!$I$6=H107,1,0)) -> 0 | L107: =IF(Benchmarking!$I$8="All",1,IF(Benchmarking!$I$8=I107,1,0)) -> 0 | M107: 0 | N107: 1152914.74 | O107: 0 | P107: 696676.64 | Q107: 81034.87 | R107: 177745.1 | S107: 69279.61 | T107: 17878.22 | U107: 4663.48 | V107: 13116.53 | W107: 821.24 | X107: 9840.48 | Y107: 37154.71 | Z107: 12394.83 | AA107: 41061.31 | AB107: 19493.96 | AC107: 42931.93 | AD107: 45056 | AE107: 15763.08 | AF107: 64220.68 | AG107: 25042.19 | AH107: 0 | AI107: 60490.15 | AJ107: 15499.99 | AK107: 23100.77 | AL107: 81759.48 | AM107: 5057 | AN107: 886 | AO107: 104335.12 | AP107: 0 | AQ107: 0 | AR107: 14533.98 | AS107: 0 | AT107: 0 | AU107: -1712847.37 | AV107: -331184.36 | AW107: -322197.6 | AX107: -66669.69 | AY107: 0 | AZ107: -243425 | BA107: -1200 | BB107: -59089.82 | BC107: 0 | BD107: -39108.01 | BE107: -20161.37 | BF107: 0 | BG107: 0 | BH107: -12337.45 | BI107: -9816.68 | BJ107: 0 | BK107: 0 | BL107: 0 | BM107: -63708 | BN107: 0 | BO107: 0 | BP107: -60058.18 | BQ107: -2432899.02 | BR107: 0 | BS107: 120000 | BT107: 202197.6 | BU107: 322197.6 | BV107: 0 | BW107: 66669.69 | BX107: 66669.69
A108: 2607 | B108: Parkside Community Primary School | C108: 0 | D108: 126 | E108: 0 | F108: 9.75 | G108: No | H108: Primary | I108: 100-199 | J108: =IF(G108=Benchmarking!$I$4,1,0) -> 0 | K108: =IF(Benchmarking!$I$6="All",1,IF(Benchmarking!$I$6=H108,1,0)) -> 0 | L108: =IF(Benchmarking!$I$8="All",1,IF(Benchmarking!$I$8=I108,1,0)) -> 0 | M108: 0 | N108: 413677.87 | O108: 0 | P108: 170212.14 | Q108: 59037.15 | R108: 29532.36 | S108: 0 | T108: 2661.96 | U108: 1524.55 | V108: 4734.66 | W108: 2595.96 | X108: 2993.04 | Y108: 5441.7 | Z108: 9113.06 | AA108: 1951.15 | AB108: 5106.82 | AC108: 45215.17 | AD108: 20958 | AE108: 16328.28 | AF108: 43997.68 | AG108: 10651.5 | AH108: 0 | AI108: 15018.97 | AJ108: 4796.58 | AK108: 6164.34 | AL108: 48554.16 | AM108: 44480.96 | AN108: 49396.11 | AO108: 32551.59 | AP108: 0 | AQ108: 0 | AR108: 56988.58 | AS108: 0 | AT108: 0 | AU108: -611614.91 | AV108: -176861.61 | AW108: 0 | AX108: -70273.74 | AY108: 0 | AZ108: -124550 | BA108: 0 | BB108: -51954.91 | BC108: -25000 | BD108: -4762.29 | BE108: -1149.45 | BF108: 0 | BG108: -3144.58 | BH108: -23 | BI108: 0 | BJ108: 0 | BK108: 0 | BL108: 0 | BM108: -24196 | BN108: 0 | BO108: 0 | BP108: -15750.63 | BQ108: -858750.26 | BR108: 0 | BS108: 0 | BT108: 0 | BU108: 0 | BV108: 0 | BW108: 70273.74 | BX108: 70273.74
A109: 2615 | B109: High Firs Primary School | C109: 0 | D109: 201 | E109: 0 | F109: 3.916666667 | G109: No | H109: Primary | I109: 200-299 | J109: =IF(G109=Benchmarking!$I$4,1,0) -> 0 | K109: =IF(Benchmarking!$I$6="All",1,IF(Benchmarking!$I$6=H109,1,0)) -> 0 | L109: =IF(Benchmarking!$I$8="All",1,IF(Benchmarking!$I$8=I109,1,0)) -> 0 | M109: 0 | N109: 534072.6 | O109: 8600.57 | P109: 210829.39 | Q109: 27339.24 | R109: 56337.6 | S109: 0 | T109: 36393.98 | U109: 5101.36 | V109: 3783 | W109: 10020.11 | X109: 4639.08 | Y109: 9173.4 | Z109: 4520.11 | AA109: 12489.82 | AB109: 2405.31 | AC109: 15394.94 | AD109: 24950 | AE109: 5400.98 | AF109: 55273.62 | AG109: 6989.54 | AH109: 0 | AI109: 22286.93 | AJ109: 7254.59 | AK109: 9963.19 | AL109: 32343.3 | AM109: 2060 | AN109: 43628.23 | AO109: 31049.85 | AP109: 0 | AQ109: 0 | AR109: 48107.84 | AS109: 0 | AT109: 0 | AU109: -850742.89 | AV109: -132079.51 | AW109: 0 | AX109: -31626.55 | AY109: 0 | AZ109: -50260 | BA109: 0 | BB109: -5068.89 | BC109: -2987.5 | BD109: -26516.82 | BE109: 0 | BF109: -986.07 | BG109: -9662.46 | BH109: -21981.51 | BI109: -4373.97 | BJ109: 0 | BK109: 0 | BL109: 0 | BM109: -42490 | BN109: 0 | BO109: 0 | BP109: -9314.28 | BQ109: -1014448.95 | BR109: 0 | BS109: 0 | BT109: 0 | BU109: 0 | BV109: 0 | BW109: 31626.55 | BX109: 31626.55
A110: 2627 | B110: Sandwich Junior School | C110: 0 | D110: 210 | E110: 0 | F110: 10.5 | G110: No | H110: Primary | I110: 200-299 | J110: =IF(G110=Benchmarking!$I$4,1,0) -> 0 | K110: =IF(Benchmarking!$I$6="All",1,IF(Benchmarking!$I$6=H110,1,0)) -> 0 | L110: =IF(Benchmarking!$I$8="All",1,IF(Benchmarking!$I$8=I110,1,0)) -> 0 | M110: 0 | N110: 547446.75 | O110: 0 | P110: 262806.21 | Q110: 36293.21 | R110: 42275.38 | S110: 0 | T110: 24850.18 | U110: 4464.4 | V110: 3667.5 | W110: 7368.3 | X110: 4846.8 | Y110: 19722.17 | Z110: 10980.74 | AA110: 4239.94 | AB110: 4309.16 | AC110: 17063.07 | AD110: 28160 | AE110: 4660.69 | AF110: 52479.63 | AG110: 14064.01 | AH110: 0 | AI110: 12724.66 | AJ110: 7427.7 | AK110: 4304.87 | AL110: 22959.9 | AM110: 19674.79 | AN110: 7414.68 | AO110: 19334.1 | AP110: 0 | AQ110: 0 | AR110: 0 | AS110: 0 | AT110: 0 | AU110: -900818.63 | AV110: -94234.51 | AW110: 0 | AX110: -79485.3 | AY110: 0 | AZ110: -72645 | BA110: 0 | BB110: -1380 | BC110: -2067.5 | BD110: -4544.31 | BE110: 0 | BF110: -2760 | BG110: 0 | BH110: -6460.52 | BI110: -2472.08 | BJ110: 0 | BK110: 0 | BL110: 0 | BM110: -18116 | BN110: 0 | BO110: 0 | BP110: -15223.7 | BQ110: -1074538.44 | BR110: 0 | BS110: 0 | BT110: 0 | BU110: 0 | BV110: 0 | BW110: 79485.3 | BX110: 79485.3
A111: 2632 | B111: Sevenoaks Primary School | C111: 0 | D111: 606 | E111: 0 | F111: 18.16666667 | G111: No | H111: Primary | I111: 500+ | J111: =IF(G111=Benchmarking!$I$4,1,0) -> 0 | K111: =IF(Benchmarking!$I$6="All",1,IF(Benchmarking!$I$6=H111,1,0)) -> 0 | L111: =IF(Benchmarking!$I$8="All",1,IF(Benchmarking!$I$8=I111,1,0)) -> 0 | M111: 0 | N111: 1628763.4 | O111: 5492.46 | P111: 634082.57 | Q111: 49196.98 | R111: 163109.29 | S111: 0 | T111: 69159.17 | U111: 2054.63 | V111: 13820.51 | W111: 1232.06 | X111: 13986.48 | Y111: 28782.49 | Z111: 18487.42 | AA111: 57212 | AB111: 6923.65 | AC111: 60615.62 | AD111: 75264 | AE111: 16655.17 | AF111: 158845.45 | AG111: 19046.9 | AH111: 0 | AI111: 68919.56 | AJ111: 21872.06 | AK111: 8926.97 | AL111: 143167.3 | AM111: 90764.67 | AN111: 3199.08 | AO111: 42279.86 | AP111: 0 | AQ111: 164.17 | AR111: 149723.99 | AS111: 0 | AT111: 0 | AU111: -2309620.9 | AV111: -423095.86 | AW111: 0 | AX111: -119078.87 | AY111: 0 | AZ111: -118335 | BA111: 0 | BB111: -54087.98 | BC111: -33122.5 | BD111: -107876.49 | BE111: -63796.77 | BF111: 0 | BG111: -20413.17 | BH111: -72713.2 | BI111: -11906.51 | BJ111: 0 | BK111: 0 | BL111: 0 | BM111: -104098 | BN111: 0 | BO111: 0 | BP111: -26164.62 | BQ111: -2851795.63 | BR111: 0 | BS111: 0 | BT111: 0 | BU111: 0 | BV111: 0 | BW111: 119078.87 | BX111: 119078.87
A112: 2643 | B112: Swalecliffe Community Primary School | C112: 0 | D112: 584 | E112: 0 | F112: 15.08333333 | G112: No | H112: Primary | I112: 500+ | J112: =IF(G112=Benchmarking!$I$4,1,0) -> 0 | K112: =IF(Benchmarking!$I$6="All",1,IF(Benchmarking!$I$6=H112,1,0)) -> 0 | L112: =IF(Benchmarking!$I$8="All",1,IF(Benchmarking!$I$8=I112,1,0)) -> 0 | M112: 0 | N112: 1573278.58 | O112: 101991.14 | P112: 600838.42 | Q112: 117833.62 | R112: 214874.99 | S112: 80182.97 | T112: 77838.23 | U112: 3775.2 | V112: 9881.26 | W112: 1144.64 | X112: 13563.72 | Y112: 47935.65 | Z112: 11625.72 | AA112: 11078.71 | AB112: 12603.89 | AC112: 58394.56 | AD112: 11980.8 | AE112: 24463.01 | AF112: 92916.39 | AG112: 30881.58 | AH112: 0 | AI112: 27903.21 | AJ112: 20996.08 | AK112: 34732.79 | AL112: 95260.74 | AM112: 0 | AN112: 12439.08 | AO112: 49772.56 | AP112: 0 | AQ112: 0 | AR112: 18564 | AS112: 0 | AT112: 0 | AU112: -2169763.98 | AV112: -466396.87 | AW112: 0 | AX112: -104476.14 | AY112: 0 | AZ112: -151540 | BA112: 0 | BB112: -6748.33 | BC112: -14903 | BD112: -94876.67 | BE112: -54669.25 | BF112: 0 | BG112: 0 | BH112: -29131.78 | BI112: -10112.93 | BJ112: 0 | BK112: 0 | BL112: 0 | BM112: -98132 | BN112: 0 | BO112: 0 | BP112: -26141.58 | BQ112: -2740636.99 | BR112: 0 | BS112: 0 | BT112: 0 | BU112: 0 | BV112: 0 | BW112: 104476.14 | BX112: 104476.14
A113: 2648 | B113: Aylesham Primary School | C113: 0 | D113: 355 | E113: 0 | F113: 14.66666667 | G113: No | H113: Primary | I113: 300-399 | J113: =IF(G113=Benchmarking!$I$4,1,0) -> 0 | K113: =IF(Benchmarking!$I$6="All",1,IF(Benchmarking!$I$6=H113,1,0)) -> 0 | L113: =IF(Benchmarking!$I$8="All",1,IF(Benchmarking!$I$8=I113,1,0)) -> 0 | M113: 0 | N113: 1059432.97 | O113: 1028.36 | P113: 512594.45 | Q113: 31504.58 | R113: 115779.87 | S113: 0 | T113: 100955.49 | U113: 10885.33 | V113: 13979.03 | W113: 695.7 | X113: 8903.36 | Y113: 22766.32 | Z113: 5649.1 | AA113: 36423.37 | AB113: 9534.48 | AC113: 31792.96 | AD113: 27136 | AE113: 17008.31 | AF113: 79003.7 | AG113: 26331.9 | AH113: 0 | AI113: 26989.98 | AJ113: 11846.31 | AK113: 15907.84 | AL113: 95961.95 | AM113: 5544.23 | AN113: 45243.15 | AO113: 16375.1 | AP113: 0 | AQ113: 0 | AR113: 0 | AS113: 0 | AT113: 0 | AU113: -1419345.28 | AV113: -241626.38 | AW113: 0 | AX113: -165363.46 | AY113: 0 | AZ113: -204915 | BA113: 0 | BB113: -799.8 | BC113: -559.88 | BD113: -53182.32 | BE113: -14455.19 | BF113: 0 | BG113: 0 | BH113: -32881.9 | BI113: -16030.87 | BJ113: 0 | BK113: 0 | BL113: 0 | BM113: -69369.76 | BN113: 0 | BO113: 0 | BP113: -42275.96 | BQ113: -1826335.12 | BR113: 0 | BS113: 0 | BT113: 0 | BU113: 0 | BV113: 0 | BW113: 165363.46 | BX113: 165363.46
A114: 2651 | B114: Broadwater Down Primary School | C114: 0 | D114: 137 | E114: 0 | F114: 13.58333333 | G114: No | H114: Primary | I114: 100-199 | J114: =IF(G114=Benchmarking!$I$4,1,0) -> 0 | K114: =IF(Benchmarking!$I$6="All",1,IF(Benchmarking!$I$6=H114,1,0)) -> 0 | L114: =IF(Benchmarking!$I$8="All",1,IF(Benchmarking!$I$8=I114,1,0)) -> 0 | M114: 0 | N114: 554703.68 | O114: 0 | P114: 142151.75 | Q114: 12576.94 | R114: 29558.77 | S114: 0 | T114: 36377.97 | U114: 3630.92 | V114: 2050.5 | W114: 7351.6 | X114: 3162 | Y114: 7559.86 | Z114: 11541.13 | AA114: 22970.23 | AB114: 3551.7 | AC114: 20534.56 | AD114: 18837.25 | AE114: 6291.77 | AF114: 36969.51 | AG114: 12565.25 | AH114: 0 | AI114: 15981.94 | AJ114: 4845.73 | AK114: 1923.23 | AL114: 29804.08 | AM114: 70877.35 | AN114: 35079.64 | AO114: 28606.55 | AP114: 0 | AQ114: 0 | AR114: 0 | AS114: 0 | AT114: 0 | AU114: -715700.4 | AV114: -99149.77 | AW114: 0 | AX114: -99093.97 | AY114: 0 | AZ114: -73906.5 | BA114: 0 | BB114: -57646.03 | BC114: -52.21 | BD114: -11220.93 | BE114: 0 | BF114: -360 | BG114: -7864.24 | BH114: -2559.01 | BI114: -5569.91 | BJ114: 0 | BK114: 0 | BL114: 0 | BM114: -31311 | BN114: 0 | BO114: 0 | BP114: -17127.13 | BQ114: -913944.14 | BR114: 0 | BS114: 0 | BT114: 0 | BU114: 0 | BV114: 0 | BW114: 99093.97 | BX114: 99093.97
A115: 2653 | B115: West Borough Primary School | C115: 44 | D115: 452 | E115: 0 | F115: 17.83333333 | G115: Yes | H115: Primary | I115: 400-499 | J115: =IF(G115=Benchmarking!$I$4,1,0) -> 0 | K115: =IF(Benchmarking!$I$6="All",1,IF(Benchmarking!$I$6=H115,1,0)) -> 0 | L115: =IF(Benchmarking!$I$8="All",1,IF(Benchmarking!$I$8=I115,1,0)) -> 0 | M115: 0 | N115: 1329222.79 | O115: 51715.83 | P115: 593451.72 | Q115: 68754.96 | R115: 95839.79 | S115: 0 | T115: 92740.26 | U115: 18317.45 | V115: 14761.7 | W115: 885.92 | X115: 10705.2 | Y115: 23443.58 | Z115: 19025.21 | AA115: 4853.64 | AB115: 8030.74 | AC115: 42214.42 | AD115: 58368 | AE115: 15116.83 | AF115: 122727.85 | AG115: 27971.62 | AH115: 0 | AI115: 26237.53 | AJ115: 17396.88 | AK115: 14557.33 | AL115: 77499.64 | AM115: 8849 | AN115: 53912.82 | AO115: 20708.58 | AP115: 0 | AQ115: 0 | AR115: 31265.15 | AS115: 0 | AT115: 0 | AU115: -1915594.83 | AV115: -321468.56 | AW115: 0 | AX115: -110554.87 | AY115: 0 | AZ115: -152990 | BA115: 0 | BB115: -56632.88 | BC115: -5154.23 | BD115: -127817.33 | BE115: 0 | BF115: 0 | BG115: -1838.84 | BH115: -54484 | BI115: -4188.79 | BJ115: 0 | BK115: 0 | BL115: 0 | BM115: -66143 | BN115: 0 | BO115: 0 | BP115: -31288.05 | BQ115: -2347618.26 | BR115: 0 | BS115: 0 | BT115: 0 | BU115: 0 | BV115: 0 | BW115: 110554.87 | BX115: 110554.87
A116: 2662 | B116: Long Mead Community Primary School | C116: 10 | D116: 117 | E116: 0 | F116: 7.75 | G116: Yes | H116: Infant | I116: 100-199 | J116: =IF(G116=Benchmarking!$I$4,1,0) -> 0 | K116: =IF(Benchmarking!$I$6="All",1,IF(Benchmarking!$I$6=H116,1,0)) -> 0 | L116: =IF(Benchmarking!$I$8="All",1,IF(Benchmarking!$I$8=I116,1,0)) -> 0 | M116: 0 | N116: 399695.74 | O116: 0 | P116: 178606.24 | Q116: 10396.63 | R116: 38501.4 | S116: 5288.11 | T116: 9916.07 | U116: 994.61 | V116: 6395.09 | W116: 3500.32 | X116: 2865.36 | Y116: 15232.07 | Z116: 4349.15 | AA116: 27518.58 | AB116: 3229.9 | AC116: 22209.33 | AD116: 18463 | AE116: 2639.24 | AF116: 42889.02 | AG116: 14004.99 | AH116: 0 | AI116: 11269.96 | AJ116: 4798.29 | AK116: 5442.55 | AL116: 24483.42 | AM116: 14972.94 | AN116: 25484.01 | AO116: 32950.11 | AP116: 0 | AQ116: 0 | AR116: 0 | AS116: 0 | AT116: 0 | AU116: -627413.73 | AV116: -108939.05 | AW116: 0 | AX116: -53514.48 | AY116: 0 | AZ116: -98655 | BA116: 0 | BB116: -9497.75 | BC116: 0 | BD116: -16309.78 | BE116: -167 | BF116: 0 | BG116: 0 | BH116: -9501.35 | BI116: -3404.04 | BJ116: 0 | BK116: 0 | BL116: 0 | BM116: -21137 | BN116: 0 | BO116: 0 | BP116: -22024.93 | BQ116: -789867.26 | BR116: 0 | BS116: 0 | BT116: 0 | BU116: 0 | BV116: 0 | BW116: 53514.48 | BX116: 53514.48
A117: 2674 | B117: Kings Farm Primary School | C117: 52 | D117: 376 | E117: 11.41666667 | F117: 11.33333333 | G117: Yes | H117: Primary | I117: 300-399 | J117: =IF(G117=Benchmarking!$I$4,1,0) -> 0 | K117: =IF(Benchmarking!$I$6="All",1,IF(Benchmarking!$I$6=H117,1,0)) -> 0 | L117: =IF(Benchmarking!$I$8="All",1,IF(Benchmarking!$I$8=I117,1,0)) -> 0 | M117: 0 | N117: 1499277.4 | O117: 0 | P117: 636080.99 | Q117: 47442.34 | R117: 113176.53 | S117: 68913.87 | T117: 0 | U117: 9095.11 | V117: 20096.63 | W117: 736.96 | X117: 9620.19 | Y117: 28606.84 | Z117: 7607.84 | AA117: 43263.63 | AB117: 5612.22 | AC117: 53033.86 | AD117: 43264 | AE117: 13020.71 | AF117: 152020.2 | AG117: 21516.49 | AH117: 0 | AI117: 23076.57 | AJ117: 14701.16 | AK117: 44799.66 | AL117: 58742.82 | AM117: 83406.19 | AN117: 14867.96 | AO117: 47716.45 | AP117: 0 | AQ117: 0 | AR117: 0 | AS117: 0 | AT117: 0 | AU117: -1745571.79 | AV117: -539498.97 | AW117: -178159.13 | AX117: -93968.35 | AY117: 0 | AZ117: -293785.89 | BA117: 0 | BB117: -32233.47 | BC117: -99.25 | BD117: -63353.34 | BE117: -18544.98 | BF117: 0 | BG117: -1509.55 | BH117: -9189.67 | BI117: -3998.75 | BJ117: 0 | BK117: 0 | BL117: 0 | BM117: -48058 | BN117: 0 | BO117: 0 | BP117: -63202.01 | BQ117: -2557198.24 | BR117: 8000 | BS117: 72000 | BT117: 98159.13 | BU117: 178159.13 | BV117: 0 | BW117: 93968.35 | BX117: 93968.35
A118: 2680 | B118: Kings Hill School | C118: 58 | D118: 416 | E118: 0 | F118: 15.66666667 | G118: Yes | H118: Primary | I118: 400-499 | J118: =IF(G118=Benchmarking!$I$4,1,0) -> 0 | K118: =IF(Benchmarking!$I$6="All",1,IF(Benchmarking!$I$6=H118,1,0)) -> 0 | L118: =IF(Benchmarking!$I$8="All",1,IF(Benchmarking!$I$8=I118,1,0)) -> 0 | M118: 0 | N118: 1196954.23 | O118: 6365.31 | P118: 512214.21 | Q118: 59426.57 | R118: 141972.16 | S118: 0 | T118: 112547.76 | U118: 16284.91 | V118: 12981.29 | W118: 815.36 | X118: 9825.24 | Y118: 42608.15 | Z118: 17676.71 | AA118: 49875.29 | AB118: 3041.92 | AC118: 50890.21 | AD118: 52224 | AE118: 16722.75 | AF118: 148702.74 | AG118: 37393.48 | AH118: 0 | AI118: 31594.91 | AJ118: 15609.88 | AK118: 23751.56 | AL118: 84410.73 | AM118: 7920 | AN118: 36809.85 | AO118: 30435.93 | AP118: 0 | AQ118: 1396.43 | AR118: 0 | AS118: 0 | AT118: 0 | AU118: -1799893.08 | AV118: -314352.67 | AW118: 0 | AX118: -127595.08 | AY118: 0 | AZ118: -78671.2 | BA118: 0 | BB118: -15296.29 | BC118: -9638.14 | BD118: -103464.58 | BE118: -2030.7 | BF118: 0 | BG118: 0 | BH118: -121932.45 | BI118: -3094.93 | BJ118: 0 | BK118: 0 | BL118: 0 | BM118: -82805 | BN118: 0 | BO118: 0 | BP118: -15899.47 | BQ118: -2241840.83 | BR118: 0 | BS118: 0 | BT118: 0 | BU118: 0 | BV118: 0 | BW118: 127595.08 | BX118: 127595.08
A119: 2682 | B119: New Ash Green Primary School | C119: 0 | D119: 409 | E119: 0 | F119: 8.666666667 | G119: No | H119: Primary | I119: 400-499 | J119: =IF(G119=Benchmarking!$I$4,1,0) -> 0 | K119: =IF(Benchmarking!$I$6="All",1,IF(Benchmarking!$I$6=H119,1,0)) -> 0 | L119: =IF(Benchmarking!$I$8="All",1,IF(Benchmarking!$I$8=I119,1,0)) -> 0 | M119: 0 | N119: 1010906.67 | O119: 7390.48 | P119: 459206.22 | Q119: 52777.86 | R119: 89705.42 | S119: 0 | T119: 92157.27 | U119: 8880.41 | V119: 5810.2 | W119: 831.54 | X119: 9439.68 | Y119: 34699.63 | Z119: 6137.92 | AA119: 41468.76 | AB119: 14386.51 | AC119: 50659.4 | AD119: 33792 | AE119: 28802.02 | AF119: 116694.72 | AG119: 22520.82 | AH119: 0 | AI119: 18686.32 | AJ119: 14761.79 | AK119: 3335.65 | AL119: 59686.07 | AM119: 17864.8 | AN119: 15765.04 | AO119: 55834.65 | AP119: 0 | AQ119: 0 | AR119: 0 | AS119: 0 | AT119: 0 | AU119: -1579643.3 | AV119: -247854.7 | AW119: 0 | AX119: -80405.36 | AY119: 0 | AZ119: -94269 | BA119: 0 | BB119: -18577.29 | BC119: -7452.24 | BD119: -37259.25 | BE119: 0 | BF119: 0 | BG119: -1416.33 | BH119: -33598.35 | BI119: -8394.48 | BJ119: 0 | BK119: 0 | BL119: 0 | BM119: -68055 | BN119: 0 | BO119: 0 | BP119: -16066.24 | BQ119: -1907903.36 | BR119: 0 | BS119: 0 | BT119: 0 | BU119: 0 | BV119: 0 | BW119: 80405.36 | BX119: 80405.36
A120: 2689 | B120: Craylands School, The | C120: 0 | D120: 388 | E120: 0 | F120: 12.75 | G120: No | H120: Infant | I120: 300-399 | J120: =IF(G120=Benchmarking!$I$4,1,0) -> 0 | K120: =IF(Benchmarking!$I$6="All",1,IF(Benchmarking!$I$6=H120,1,0)) -> 0 | L120: =IF(Benchmarking!$I$8="All",1,IF(Benchmarking!$I$8=I120,1,0)) -> 0 | M120: 0 | N120: 972945.67 | O120: 17554.36 | P120: 493036.41 | Q120: 15245.73 | R120: 52939.57 | S120: 0 | T120: 42781.95 | U120: 7187.82 | V120: 4550.2 | W120: 6493.28 | X120: 8799.84 | Y120: 25417.60448 | Z120: 2972.754629 | AA120: 53550.84875 | AB120: 1305.334132 | AC120: 13115.54 | AD120: 61952 | AE120: 2464.73 | AF120: 159195.04 | AG120: 12639.16 | AH120: 0 | AI120: 48776.71 | AJ120: 28004.37317 | AK120: 107753.6793 | AL120: 63431.66611 | AM120: 32289.09 | AN120: 24544.72 | AO120: 41361.34947 | AP120: 0 | AQ120: 0 | AR120: 0 | AS120: 0 | AT120: 0 | AU120: -1705832.57 | AV120: -248226.91 | AW120: 0 | AX120: -69194.89 | AY120: 0 | AZ120: -144405 | BA120: 0 | BB120: -19783.72 | BC120: 0 | BD120: 0 | BE120: 0 | BF120: -650 | BG120: 0 | BH120: -2410 | BI120: -34735.49 | BJ120: 0 | BK120: 0 | BL120: 0 | BM120: -68665 | BN120: 0 | BO120: 0 | BP120: -20285.38 | BQ120: -2023254.37 | BR120: 0 | BS120: 0 | BT120: 0 | BU120: 0 | BV120: 0 | BW120: 69194.89 | BX120: 69194.89
A121: 2692 | B121: Churchill School, The, Hawkinge | C121: 0 | D121: 378 | E121: 0 | F121: 9.416666667 | G121: No | H121: Primary | I121: 300-399 | J121: =IF(G121=Benchmarking!$I$4,1,0) -> 0 | K121: =IF(Benchmarking!$I$6="All",1,IF(Benchmarking!$I$6=H121,1,0)) -> 0 | L121: =IF(Benchmarking!$I$8="All",1,IF(Benchmarking!$I$8=I121,1,0)) -> 0 | M121: 0 | N121: 1023997.34 | O121: 21215.98 | P121: 452116.07 | Q121: 69184.41 | R121: 90071.89 | S121: 0 | T121: 37614.29 | U121: 1248.21 | V121: 3720 | W121: 740.88 | X121: 8894.28 | Y121: 16574.89 | Z121: 10469.23 | AA121: 7362.52 | AB121: 6558.99 | AC121: 23887.28 | AD121: 12595 | AE121: 13835.52 | AF121: 100351.85 | AG121: 26627.81 | AH121: 0 | AI121: 6465.63 | AJ121: 14049.9 | AK121: 1276.19 | AL121: 73504.59 | AM121: 3868 | AN121: 16061.72 | AO121: 18701.29 | AP121: 0 | AQ121: 588.82 | AR121: 7005.65 | AS121: 0 | AT121: 0 | AU121: -1426026.63 | AV121: -251473.16 | AW121: 0 | AX121: -69811.85 | AY121: 0 | AZ121: -124133.33 | BA121: 0 | BB121: -2650 | BC121: -6336 | BD121: -51608.95 | BE121: 0 | BF121: 0 | BG121: -5087.31 | BH121: -28069.43 | BI121: -14646.62 | BJ121: 0 | BK121: 0 | BL121: 0 | BM121: -69577 | BN121: 0 | BO121: 0 | BP121: -23744.08 | BQ121: -1747311.64 | BR121: 0 | BS121: 0 | BT121: 0 | BU121: 0 | BV121: 0 | BW121: 69811.85 | BX121: 69811.85
A122: 3010 | B122: St Pauls CEP School | C122: 0 | D122: 108 | E122: 0 | F122: 4.583333333 | G122: No | H122: Infant | I122: 100-199 | J122: =IF(G122=Benchmarking!$I$4,1,0) -> 0 | K122: =IF(Benchmarking!$I$6="All",1,IF(Benchmarking!$I$6=H122,1,0)) -> 0 | L122: =IF(Benchmarking!$I$8="All",1,IF(Benchmarking!$I$8=I122,1,0)) -> 0 | M122: 0 | N122: 322197.05 | O122: 0 | P122: 132466.5 | Q122: 20903.32 | R122: 76103.08 | S122: 0 | T122: 0 | U122: 2162.34 | V122: 10650.4 | W122: 219.58 | X122: 2577.8 | Y122: 11366.9 | Z122: 6855.39 | AA122: 1453.07 | AB122: 10138.9 | AC122: 12105.57 | AD122: 10729 | AE122: 1917.68 | AF122: 57080.65 | AG122: 12967.94 | AH122: 0 | AI122: 16378.13 | AJ122: 4237.72 | AK122: 7419.38 | AL122: 21454.92 | AM122: 0 | AN122: 18495.17 | AO122: 17527.35 | AP122: 0 | AQ122: 0 | AR122: 0 | AS122: 0 | AT122: 0 | AU122: -516228.31 | AV122: -42538.31 | AW122: 0 | AX122: -41558.49 | AY122: 0 | AZ122: -27100 | BA122: 0 | BB122: -27.12 | BC122: -320 | BD122: -52100.63 | BE122: 0 | BF122: 0 | BG122: -8032.59 | BH122: -17749.3 | BI122: -275 | BJ122: 0 | BK122: 0 | BL122: 0 | BM122: -33212 | BN122: 0 | BO122: 0 | BP122: -5453.83 | BQ122: -600325.11 | BR122: 0 | BS122: 0 | BT122: 0 | BU122: 0 | BV122: 8003.05 | BW122: 33555.44 | BX122: 41558.49
A123: 3015 | B123: Fawkham CEP School | C123: 0 | D123: 103 | E123: 0 | F123: 2.25 | G123: No | H123: Junior | I123: 100-199 | J123: =IF(G123=Benchmarking!$I$4,1,0) -> 0 | K123: =IF(Benchmarking!$I$6="All",1,IF(Benchmarking!$I$6=H123,1,0)) -> 0 | L123: =IF(Benchmarking!$I$8="All",1,IF(Benchmarking!$I$8=I123,1,0)) -> 0 | M123: 0 | N123: 338436.01 | O123: 0 | P123: 78798.79 | Q123: 1106.13 | R123: 36964.35 | S123: 0 | T123: 6188.3 | U123: 2027.3 | V123: 2241 | W123: 209.41 | X123: 2377.2 | Y123: 6415.97 | Z123: 3550.62 | AA123: 12908.13 | AB123: 1212.56 | AC123: 11256.1 | AD123: 21083 | AE123: 2886.15 | AF123: 29800 | AG123: 4134.72 | AH123: 0 | AI123: 22192.68 | AJ123: 3717.49 | AK123: 0 | AL123: 18317.97 | AM123: 0 | AN123: 2430.66 | AO123: 13533.58 | AP123: 0 | AQ123: 0 | AR123: 0 | AS123: 0 | AT123: 0 | AU123: -506238.47 | AV123: -35347.86 | AW123: 0 | AX123: -15785.36 | AY123: 0 | AZ123: -6925 | BA123: 0 | BB123: -748.33 | BC123: 0 | BD123: -181.59 | BE123: 0 | BF123: 0 | BG123: 0 | BH123: 0 | BI123: -6445.76 | BJ123: 0 | BK123: 0 | BL123: 0 | BM123: -29081 | BN123: 0 | BO123: 0 | BP123: -3358.37 | BQ123: -557371.69 | BR123: 0 | BS123: 0 | BT123: 0 | BU123: 0 | BV123: 5546.61 | BW123: 10238.75 | BX123: 15785.36
A124: 3022 | B124: Benenden CEP School | C124: 0 | D124: 205 | E124: 0 | F124: 6.25 | G124: No | H124: Primary | I124: 200-299 | J124: =IF(G124=Benchmarking!$I$4,1,0) -> 0 | K124: =IF(Benchmarking!$I$6="All",1,IF(Benchmarking!$I$6=H124,1,0)) -> 0 | L124: =IF(Benchmarking!$I$8="All",1,IF(Benchmarking!$I$8=I124,1,0)) -> 0 | M124: 0 | N124: 545291.2 | O124: 352.89 | P124: 199109.72 | Q124: 8934.74 | R124: 76749.53 | S124: 0 | T124: 19911.99 | U124: 4198.66 | V124: 2823.4 | W124: 4909.08 | X124: 4816.44 | Y124: 3920.6 | Z124: 8238.16 | AA124: 21291.91 | AB124: 2117.55 | AC124: 21427.98 | AD124: 34431 | AE124: 5822.02 | AF124: 76828.24 | AG124: 10561.58 | AH124: 0 | AI124: 14317.65 | AJ124: 7840.89 | AK124: 1726.19 | AL124: 57001.36 | AM124: 0 | AN124: 29838.56 | AO124: 18282.68 | AP124: 0 | AQ124: 0 | AR124: 42882.5 | AS124: 0 | AT124: 0 | AU124: -851403 | AV124: -96885.94 | AW124: 0 | AX124: -45325.12 | AY124: 0 | AZ124: -30110 | BA124: 0 | BB124: -32615.17 | BC124: -960 | BD124: -50946.5 | BE124: -23443.2 | BF124: -400 | BG124: -374.73 | BH124: -20464.05 | BI124: -10878.19 | BJ124: 0 | BK124: 0 | BL124: 0 | BM124: -49966 | BN124: 0 | BO124: 0 | BP124: -9970.26 | BQ124: -993614.06 | BR124: 0 | BS124: 0 | BT124: 0 | BU124: 0 | BV124: 0 | BW124: 45325.12 | BX124: 45325.12
A125: 3023 | B125: Bidborough CEP School | C125: 0 | D125: 202 | E125: 0 | F125: 5.5 | G125: No | H125: Primary | I125: 200-299 | J125: =IF(G125=Benchmarking!$I$4,1,0) -> 0 | K125: =IF(Benchmarking!$I$6="All",1,IF(Benchmarking!$I$6=H125,1,0)) -> 0 | L125: =IF(Benchmarking!$I$8="All",1,IF(Benchmarking!$I$8=I125,1,0)) -> 0 | M125: 0 | N125: 504155.33 | O125: 3563.41 | P125: 168626.94 | Q125: 14816.11 | R125: 33867.53 | S125: 0 | T125: 3944.48 | U125: 3146.86 | V125: 10158.63 | W125: 395.92 | X125: 4662.12 | Y125: 10003.2 | Z125: 2379.42 | AA125: 22808.48 | AB125: 376.11 | AC125: 18293.53 | AD125: 14970 | AE125: 5664.66 | AF125: 36183.79 | AG125: 6076.76 | AH125: 0 | AI125: 15310.95 | AJ125: 7144.7 | AK125: 0 | AL125: 37016.47 | AM125: 21606.5 | AN125: 14045.02 | AO125: 18182.63 | AP125: 0 | AQ125: 0 | AR125: 34595.89 | AS125: 0 | AT125: 0 | AU125: -809989.18 | AV125: -97429.58 | AW125: 0 | AX125: -32059.01 | AY125: 0 | AZ125: -19040 | BA125: 0 | BB125: -720 | BC125: -5427.12 | BD125: -7174.56 | BE125: -428.79 | BF125: 0 | BG125: 0 | BH125: 0 | BI125: -696 | BJ125: 0 | BK125: 0 | BL125: 0 | BM125: -49377 | BN125: 0 | BO125: 0 | BP125: -5035.34 | BQ125: -939477.77 | BR125: 0 | BS125: 0 | BT125: 0 | BU125: 0 | BV125: 0 | BW125: 32059.01 | BX125: 32059.01
A126: 3027 | B126: Cranbrook CEP School | C126: 0 | D126: 204 | E126: 0 | F126: 10.75 | G126: No | H126: Primary | I126: 200-299 | J126: =IF(G126=Benchmarking!$I$4,1,0) -> 0 | K126: =IF(Benchmarking!$I$6="All",1,IF(Benchmarking!$I$6=H126,1,0)) -> 0 | L126: =IF(Benchmarking!$I$8="All",1,IF(Benchmarking!$I$8=I126,1,0)) -> 0 | M126: 0 | N126: 505938 | O126: 0 | P126: 316888.61 | Q126: 15336.74 | R126: 57021.64 | S126: 0 | T126: 64487.06 | U126: 4316.3 | V126: 7651.75 | W126: 4149.84 | X126: 4708.32 | Y126: 20679.66 | Z126: 7556.4 | AA126: 16669.8 | AB126: 4900.61 | AC126: 43306.81 | AD126: 26112 | AE126: 15491.04 | AF126: 55865.97 | AG126: 10062.89 | AH126: 0 | AI126: 8996.55 | AJ126: 7215.48 | AK126: 727.87 | AL126: 39777 | AM126: 0 | AN126: 5730.05 | AO126: 31019.95 | AP126: 0 | AQ126: 0 | AR126: 0 | AS126: 0 | AT126: 0 | AU126: -893080.17 | AV126: -97610.67 | AW126: 0 | AX126: -111640.99 | AY126: 0 | AZ126: -102090 | BA126: 0 | BB126: -17922.46 | BC126: -7184.5 | BD126: -11622.68 | BE126: 0 | BF126: 0 | BG126: -3127.92 | BH126: -14089.82 | BI126: -3553 | BJ126: 0 | BK126: 0 | BL126: 0 | BM126: -41626 | BN126: 0 | BO126: 0 | BP126: -21365.72 | BQ126: -1102331.83 | BR126: 0 | BS126: 0 | BT126: 0 | BU126: 0 | BV126: 0 | BW126: 111640.99 | BX126: 111640.99
A127: 3029 | B127: Goudhurst & Kilndown CEP School | C127: 0 | D127: 211 | E127: 0 | F127: 8.166666667 | G127: =IF(C127=0,"No","Yes") -> No | H127: Primary | I127: =IFERROR(VLOOKUP($D127,$D$264:$F$269,3,TRUE),0) -> 200-299 | J127: =IF(G127=Benchmarking!$I$4,1,0) -> 0 | K127: =IF(Benchmarking!$I$6="All",1,IF(Benchmarking!$I$6=H127,1,0)) -> 0 | L127: =IF(Benchmarking!$I$8="All",1,IF(Benchmarking!$I$8=I127,1,0)) -> 0 | M127: =IF(SUM(J127:L127)=3,1,0) -> 0 | N127: 665621 | O127: 6089.45 | P127: 211394.65 | Q127: 7940.01 | R127: 64760.25 | S127: 0 | T127: 7068.53 | U127: 4155.07 | V127: 5200.84 | W127: 6278.75 | X127: 4954.92 | Y127: 13865.47 | Z127: 7456.65 | AA127: 21029.59 | AB127: 4320.01 | AC127: 29378.89 | AD127: 27904 | AE127: 6096.92 | AF127: 72984.78 | AG127: 11682.49 | AH127: 0 | AI127: 16171.56 | AJ127: 7803.11 | AK127: 2443.97 | AL127: 37812.84 | AM127: 0 | AN127: 34211.93 | AO127: 21748.72 | AP127: 0 | AQ127: 0 | AR127: 27729.77 | AS127: 0 | AT127: 0 | AU127: =BQ127-AV127-AW127-AX127 -> -875151.57 | AV127: -100972.29 | AW127: =-BU127 -> 0 | AX127: =-BX127 -> -67772.8 | AY127: 0 | AZ127: -36995 | BA127: 0 | BB127: -12221.86 | BC127: -5615 | BD127: -165803.66 | BE127: 0 | BF127: -4600 | BG127: 0 | BH127: -31138.24 | BI127: -15218.04 | BJ127: 0 | BK127: 0 | BL127: 0 | BM127: -49023 | BN127: 0 | BO127: 0 | BP127: -7600.75 | BQ127: -1043896.66 | BR127: 0 | BS127: 0 | BT127: 0 | BU127: =SUM(BR127:BT127) -> 0 | BV127: 0 | BW127: 67772.8 | BX127: =SUM(BV127:BW127) -> 67772.8
A128: 3032 | B128: Hawkhurst CEP School | C128: 0 | D128: 194 | E128: 0 | F128: 4.583333333 | G128: No | H128: Primary | I128: 100-199 | J128: =IF(G128=Benchmarking!$I$4,1,0) -> 0 | K128: =IF(Benchmarking!$I$6="All",1,IF(Benchmarking!$I$6=H128,1,0)) -> 0 | L128: =IF(Benchmarking!$I$8="All",1,IF(Benchmarking!$I$8=I128,1,0)) -> 0 | M128: 0 | N128: 499221.98 | O128: 30978.48 | P128: 178521.29 | Q128: 15495.62 | R128: 58326.06 | S128: 0 | T128: 43103.19 | U128: 4178.74 | V128: 3084 | W128: 9880.55 | X128: 4477.56 | Y128: 36154.34 | Z128: 4364.8 | AA128: 19448.79 | AB128: 4133.07 | AC128: 13200.45 | AD128: 34560 | AE128: 6532.09 | AF128: 49176.83 | AG128: 21999.97 | AH128: 0 | AI128: 12852.46 | AJ128: 6861.82 | AK128: 4654.6 | AL128: 35879.96 | AM128: 11630.67 | AN128: 40090.78 | AO128: 19428.14 | AP128: 0 | AQ128: 0 | AR128: 0 | AS128: 0 | AT128: 0 | AU128: -838962.19 | AV128: -89720.85 | AW128: 0 | AX128: -45582.1 | AY128: 0 | AZ128: -117145 | BA128: -15498.23 | BB128: -1000 | BC128: -1678 | BD128: -8482.49 | BE128: -81.79 | BF128: -9000 | BG128: 0 | BH128: -10695.98 | BI128: -21525.03 | BJ128: 0 | BK128: 0 | BL128: 0 | BM128: -31955 | BN128: 0 | BO128: 0 | BP128: -18858.3 | BQ128: -974265.14 | BR128: 0 | BS128: 0 | BT128: 0 | BU128: 0 | BV128: 0 | BW128: 45582.1 | BX128: 45582.1
A129: 3033 | B129: Hildenborough CEP School | C129: 0 | D129: 187 | E129: 0 | F129: 4.416666667 | G129: No | H129: Primary | I129: 100-199 | J129: =IF(G129=Benchmarking!$I$4,1,0) -> 0 | K129: =IF(Benchmarking!$I$6="All",1,IF(Benchmarking!$I$6=H129,1,0)) -> 0 | L129: =IF(Benchmarking!$I$8="All",1,IF(Benchmarking!$I$8=I129,1,0)) -> 0 | M129: 0 | N129: 516534.35 | O129: 9333.17 | P129: 177636.72 | Q129: 19286.49 | R129: 30607.25 | S129: 0 | T129: 11633.61 | U129: 4620.89 | V129: 2097.67 | W129: 5697.63 | X129: 4315.92 | Y129: 26409.83 | Z129: 4382.72 | AA129: 26450.76 | AB129: 1522.07 | AC129: 44000.1 | AD129: 22580 | AE129: 9283.24 | AF129: 55289.38 | AG129: 14539.74 | AH129: 0 | AI129: 13812.3 | AJ129: 6614.15 | AK129: 11712.2 | AL129: 28722.08 | AM129: 0 | AN129: 4859.03 | AO129: 25318.09 | AP129: 0 | AQ129: 0 | AR129: 2127 | AS129: 0 | AT129: 0 | AU129: -764007.69 | AV129: -82275.24 | AW129: 0 | AX129: -44353.2 | AY129: 0 | AZ129: -18670 | BA129: 0 | BB129: -13570 | BC129: -21084.65 | BD129: -5591.39 | BE129: 0 | BF129: -1725 | BG129: -13811.34 | BH129: -18894.43 | BI129: -27712.69 | BJ129: 0 | BK129: 0 | BL129: 0 | BM129: -44124 | BN129: 0 | BO129: 0 | BP129: -5489.02 | BQ129: -890636.13 | BR129: 0 | BS129: 0 | BT129: 0 | BU129: 0 | BV129: 0 | BW129: 44353.2 | BX129: 44353.2
A130: 3034 | B130: Lamberhurst St Marys CEP School | C130: 0 | D130: 199 | E130: 0 | F130: 3.166666667 | G130: No | H130: Primary | I130: 100-199 | J130: =IF(G130=Benchmarking!$I$4,1,0) -> 0 | K130: =IF(Benchmarking!$I$6="All",1,IF(Benchmarking!$I$6=H130,1,0)) -> 0 | L130: =IF(Benchmarking!$I$8="All",1,IF(Benchmarking!$I$8=I130,1,0)) -> 0 | M130: 0 | N130: 605692.77 | O130: 11073.65 | P130: 136041.75 | Q130: 28510.06 | R130: 38675.97 | S130: 0 | T130: 25701.73 | U130: 4185.44 | V130: 7496.13 | W130: 5877.74 | X130: 4592.88 | Y130: 8027.09 | Z130: 137.7 | AA130: 1629.08 | AB130: 1563.04 | AC130: 23435.45 | AD130: 27904 | AE130: 3206.55 | AF130: 57967.56 | AG130: 39180.92 | AH130: 0 | AI130: 17576.3 | AJ130: 7038.59 | AK130: 2932.6 | AL130: 33972.25 | AM130: 0 | AN130: 5636.99 | AO130: 18214.55 | AP130: 0 | AQ130: 0 | AR130: 14544.22 | AS130: 0 | AT130: 0 | AU130: -809525.4 | AV130: -91388.6 | AW130: 0 | AX130: -27032.62 | AY130: 0 | AZ130: -25345 | BA130: 0 | BB130: -31766.67 | BC130: 0 | BD130: -69608.76 | BE130: 0 | BF130: 0 | BG130: -684 | BH130: -10544.5 | BI130: -14452.5 | BJ130: 0 | BK130: 0 | BL130: 0 | BM130: -53266 | BN130: 0 | BO130: 0 | BP130: -4802.59 | BQ130: -927946.62 | BR130: 0 | BS130: 0 | BT130: 0 | BU130: 0 | BV130: 0 | BW130: 27032.62 | BX130: 27032.62
A131: 3035 | B131: Seal CEP School | C131: 39 | D131: 351 | E131: 0 | F131: 23.83333333 | G131: Yes | H131: Primary | I131: 300-399 | J131: =IF(G131=Benchmarking!$I$4,1,0) -> 0 | K131: =IF(Benchmarking!$I$6="All",1,IF(Benchmarking!$I$6=H131,1,0)) -> 0 | L131: =IF(Benchmarking!$I$8="All",1,IF(Benchmarking!$I$8=I131,1,0)) -> 0 | M131: 0 | N131: 937741.36 | O131: 0 | P131: 429556.13 | Q131: 44376.36 | R131: 83457.78 | S131: 0 | T131: 130057.09 | U131: 13255.25 | V131: 16008.77 | W131: 4676.4 | X131: 8430.12 | Y131: 1994.61 | Z131: 6481.37 | AA131: 37054.09 | AB131: 5212.57 | AC131: 84946.74 | AD131: 17839 | AE131: 20610.04 | AF131: 163949 | AG131: 12171.09 | AH131: 196.2 | AI131: 12292.97 | AJ131: 13908.43 | AK131: 39279.75 | AL131: 66616.79 | AM131: 139487.51 | AN131: 4825.74 | AO131: 38106.94 | AP131: 0 | AQ131: 0 | AR131: 210071 | AS131: 0 | AT131: 0 | AU131: -1591309.63 | AV131: -175938.58 | AW131: 0 | AX131: -146950.66 | AY131: 0 | AZ131: -129232.83 | BA131: -2625 | BB131: -1486.18 | BC131: -11269.69 | BD131: -130167.91 | BE131: 0 | BF131: 0 | BG131: -5485.76 | BH131: -45565.01 | BI131: -10920.15 | BJ131: 0 | BK131: 0 | BL131: 0 | BM131: -64471.35 | BN131: 0 | BO131: 0 | BP131: -26685.07 | BQ131: -1914198.87 | BR131: 0 | BS131: 0 | BT131: 0 | BU131: 0 | BV131: 0 | BW131: 146950.66 | BX131: 146950.66
A132: 3037 | B132: St Johns CEP School, Sevenoaks | C132: 0 | D132: 205 | E132: 0 | F132: 3.333333333 | G132: No | H132: Primary | I132: 200-299 | J132: =IF(G132=Benchmarking!$I$4,1,0) -> 0 | K132: =IF(Benchmarking!$I$6="All",1,IF(Benchmarking!$I$6=H132,1,0)) -> 0 | L132: =IF(Benchmarking!$I$8="All",1,IF(Benchmarking!$I$8=I132,1,0)) -> 0 | M132: 0 | N132: 583908.53 | O132: 27631.11 | P132: 193116.24 | Q132: 50362.97 | R132: 49430.07 | S132: 0 | T132: 40805.98 | U132: 4457.38 | V132: 6763.01 | W132: 4886.82 | X132: 5838.85 | Y132: 18733.79 | Z132: 7551.93 | AA132: 1992.56 | AB132: 878.68 | AC132: 24924.18 | AD132: 22330.25 | AE132: 5816.97 | AF132: 93247.1 | AG132: 9027.01 | AH132: 0 | AI132: 14718.9 | AJ132: 7739 | AK132: 5029.05 | AL132: 31142.65 | AM132: 7226 | AN132: 13215.94 | AO132: 21936.4 | AP132: 0 | AQ132: 0 | AR132: 0 | AS132: 0 | AT132: 0 | AU132: -854814.78 | AV132: -92396.09 | AW132: 0 | AX132: -26166.12 | AY132: 0 | AZ132: -27340 | BA132: 0 | BB132: -12002.12 | BC132: -1808.51 | BD132: -38860.34 | BE132: 0 | BF132: -15376.1 | BG132: 0 | BH132: -51189.3 | BI132: -28727.99 | BJ132: 0 | BK132: 0 | BL132: 0 | BM132: -46236 | BN132: 0 | BO132: 0 | BP132: -3345.08 | BQ132: -973376.99 | BR132: 0 | BS132: 0 | BT132: 0 | BU132: 0 | BV132: 0 | BW132: 26166.12 | BX132: 26166.12
A133: 3042 | B133: Speldhurst CEP School | C133: 0 | D133: 212 | E133: 0 | F133: 2.75 | G133: No | H133: Primary | I133: 200-299 | J133: =IF(G133=Benchmarking!$I$4,1,0) -> 0 | K133: =IF(Benchmarking!$I$6="All",1,IF(Benchmarking!$I$6=H133,1,0)) -> 0 | L133: =IF(Benchmarking!$I$8="All",1,IF(Benchmarking!$I$8=I133,1,0)) -> 0 | M133: 0 | N133: 485327.58 | O133: 2637.98 | P133: 159604.58 | Q133: 12370.51 | R133: 50889.74 | S133: 0 | T133: 29931.63 | U133: 626 | V133: 6013.53 | W133: 9249.47 | X133: 4893 | Y133: 3818.09 | Z133: 6431.12 | AA133: 13738.97 | AB133: 2806.96 | AC133: 15945.17 | AD133: 3840 | AE133: 4568.12 | AF133: 61688.21 | AG133: 12663.58 | AH133: 0 | AI133: 13048.35 | AJ133: 7498.48 | AK133: 751.9 | AL133: 37389.31 | AM133: 9817.38 | AN133: 48755.86 | AO133: 18445.02 | AP133: 0 | AQ133: 2154.08 | AR133: 27642.42 | AS133: 0 | AT133: 0 | AU133: -826553.41 | AV133: -106748.59 | AW133: 0 | AX133: -11552.32 | AY133: 0 | AZ133: -21440 | BA133: 0 | BB133: -14582.82 | BC133: -4663.87 | BD133: -2063.82 | BE133: 0 | BF133: -1500 | BG133: -135.91 | BH133: -16791.4 | BI133: -14326.51 | BJ133: 0 | BK133: 0 | BL133: 0 | BM133: -53282 | BN133: 0 | BO133: 0 | BP133: -4642.3 | BQ133: -944854.32 | BR133: 0 | BS133: 0 | BT133: 0 | BU133: 0 | BV133: 0 | BW133: 11552.32 | BX133: 11552.32
A134: 3043 | B134: Sundridge & Brasted CEP School | C134: 0 | D134: 61 | E134: 0 | F134: 3.5 | G134: No | H134: Primary | I134: 0-99 | J134: =IF(G134=Benchmarking!$I$4,1,0) -> 0 | K134: =IF(Benchmarking!$I$6="All",1,IF(Benchmarking!$I$6=H134,1,0)) -> 0 | L134: =IF(Benchmarking!$I$8="All",1,IF(Benchmarking!$I$8=I134,1,0)) -> 0 | M134: 0 | N134: 265946.13 | O134: 0 | P134: 88836.79 | Q134: 7018.8 | R134: 35716.27 | S134: 0 | T134: 9472.59 | U134: 2301.04 | V134: 5048.82 | W134: 2553.81 | X134: 1407.84 | Y134: 3638.48 | Z134: 343.32 | AA134: 11534.21 | AB134: 839.52 | AC134: 9373.05 | AD134: 7485 | AE134: 4462.02 | AF134: 26857.85 | AG134: 5994.94 | AH134: 0 | AI134: 8895.67 | AJ134: 2201.6 | AK134: 2976.17 | AL134: 14110.21 | AM134: 16635 | AN134: 670.83 | AO134: 15090.41 | AP134: 0 | AQ134: 0 | AR134: 30812.48 | AS134: 0 | AT134: 0 | AU134: -408723.31 | AV134: -33939.51 | AW134: 0 | AX134: -37440.82 | AY134: 0 | AZ134: -28725 | BA134: -8812.48 | BB134: -97.5 | BC134: 0 | BD134: -10523.26 | BE134: 0 | BF134: 0 | BG134: -7289.69 | BH134: -2606.63 | BI134: -1561.49 | BJ134: 0 | BK134: 0 | BL134: 0 | BM134: -24040 | BN134: 0 | BO134: 0 | BP134: -6493.93 | BQ134: -480103.64 | BR134: 0 | BS134: 0 | BT134: 0 | BU134: 0 | BV134: 9121.14 | BW134: 28319.68 | BX134: 37440.82
A135: 3050 | B135: St Johns CEP School, Tunbridge Wells | C135: 0 | D135: 633 | E135: 0 | F135: 9.5 | G135: No | H135: Primary | I135: 500+ | J135: =IF(G135=Benchmarking!$I$4,1,0) -> 0 | K135: =IF(Benchmarking!$I$6="All",1,IF(Benchmarking!$I$6=H135,1,0)) -> 0 | L135: =IF(Benchmarking!$I$8="All",1,IF(Benchmarking!$I$8=I135,1,0)) -> 0 | M135: 0 | N135: 1673392.3 | O135: 72026.13 | P135: 535209.87 | Q135: 55882.26 | R135: 167476.18 | S135: 0 | T135: 88795.58 | U135: 10816.2 | V135: 15827.21 | W135: 1240.68 | X135: 14694.6 | Y135: 34728.13 | Z135: 15465.34 | AA135: 55699.78 | AB135: 19329.63 | AC135: 30929.26 | AD135: 73216 | AE135: 28941.6 | AF135: 130262.9 | AG135: 39887.13 | AH135: 0 | AI135: 34961.57 | AJ135: 22729.17 | AK135: 37798.44 | AL135: 118598.95 | AM135: 35885.51 | AN135: 20137.6 | AO135: 37790.47 | AP135: 0 | AQ135: 0 | AR135: 45000 | AS135: 0 | AT135: 0 | AU135: -2310610.89 | AV135: -532143.11 | AW135: 0 | AX135: -101565.84 | AY135: 0 | AZ135: -108470 | BA135: 0 | BB135: -52131.29 | BC135: -11357.16 | BD135: -33047.45 | BE135: -10000 | BF135: 0 | BG135: -3225.39 | BH135: -66196.38 | BI135: -12996.4 | BJ135: 0 | BK135: 0 | BL135: 0 | BM135: -120561 | BN135: 0 | BO135: 0 | BP135: -21519.37 | BQ135: -2944319.84 | BR135: 0 | BS135: 0 | BT135: 0 | BU135: 0 | BV135: 0 | BW135: 101565.84 | BX135: 101565.84
A136: 3052 | B136: St Marks CEP School, Tunbridge Wells | C136: 0 | D136: 354 | E136: 0 | F136: 12.16666667 | G136: No | H136: Primary | I136: 300-399 | J136: =IF(G136=Benchmarking!$I$4,1,0) -> 0 | K136: =IF(Benchmarking!$I$6="All",1,IF(Benchmarking!$I$6=H136,1,0)) -> 0 | L136: =IF(Benchmarking!$I$8="All",1,IF(Benchmarking!$I$8=I136,1,0)) -> 0 | M136: 0 | N136: 967041.8 | O136: 2805 | P136: 300389.98 | Q136: 31691.95 | R136: 84709.74 | S136: 0 | T136: 25700.3 | U136: 6848.81 | V136: 9100.14 | W136: 7126.78 | X136: 8170.32 | Y136: 33125.84 | Z136: 9855.01 | AA136: 38661.49 | AB136: 2856 | AC136: 45252.67 | AD136: 45568 | AE136: 12989.06 | AF136: 85371.92 | AG136: 7676.63 | AH136: 0 | AI136: 22057.09 | AJ136: 12520.98 | AK136: 7694.49 | AL136: 73656.9 | AM136: 27344.46 | AN136: 16761.04 | AO136: 27242.62 | AP136: 0 | AQ136: 0 | AR136: 35195.99 | AS136: 0 | AT136: 0 | AU136: -1389539.38 | AV136: -224310.17 | AW136: 0 | AX136: -74002.84 | AY136: 0 | AZ136: -124290 | BA136: -200.62 | BB136: -6571.89 | BC136: -6427.08 | BD136: -58563.55 | BE136: -584.1 | BF136: -160 | BG136: -7596.82 | BH136: -27607.22 | BI136: -4849.39 | BJ136: 0 | BK136: 0 | BL136: 0 | BM136: -67344 | BN136: 0 | BO136: 0 | BP136: -27910.85 | BQ136: -1687852.39 | BR136: 0 | BS136: 0 | BT136: 0 | BU136: 0 | BV136: 0 | BW136: 74002.84 | BX136: 74002.84
A137: 3053 | B137: St Peters CEP School, Tunbridge Wells | C137: 0 | D137: 209 | E137: 0 | F137: 4.583333333 | G137: No | H137: Primary | I137: 200-299 | J137: =IF(G137=Benchmarking!$I$4,1,0) -> 0 | K137: =IF(Benchmarking!$I$6="All",1,IF(Benchmarking!$I$6=H137,1,0)) -> 0 | L137: =IF(Benchmarking!$I$8="All",1,IF(Benchmarking!$I$8=I137,1,0)) -> 0 | M137: 0 | N137: 519677.06 | O137: 0 | P137: 157042.46 | Q137: 14818.38 | R137: 41540.61 | S137: 4781.66 | T137: 4569.74 | U137: 4089.05 | V137: 8172.66 | W137: 4864.99 | X137: 4823.76 | Y137: 3669.08 | Z137: 10801.31 | AA137: 14655.92 | AB137: 771.85 | AC137: 21611.07 | AD137: 36677 | AE137: 10051.25 | AF137: 54512.61 | AG137: 8889.69 | AH137: 0 | AI137: 19809.76 | AJ137: 7392.37 | AK137: 553.32 | AL137: 43890.52 | AM137: 57871 | AN137: 50072.95 | AO137: 17129.39 | AP137: 0 | AQ137: 0 | AR137: 0 | AS137: 0 | AT137: 0 | AU137: -862235.46 | AV137: -96474.64 | AW137: 0 | AX137: -42986.67 | AY137: 0 | AZ137: -42895 | BA137: 0 | BB137: -6846.34 | BC137: -2534 | BD137: -2702.63 | BE137: -7.7 | BF137: -3600 | BG137: -625.63 | BH137: -14879.66 | BI137: -4832.08 | BJ137: 0 | BK137: 0 | BL137: 0 | BM137: -52051 | BN137: 0 | BO137: 0 | BP137: -9849.88 | BQ137: -1001696.77 | BR137: 0 | BS137: 0 | BT137: 0 | BU137: 0 | BV137: 0 | BW137: 42986.67 | BX137: 42986.67
A138: 3054 | B138: Crockham Hill CEP School | C138: 0 | D138: 137 | E138: 0 | F138: 3.916666667 | G138: No | H138: Primary | I138: 100-199 | J138: =IF(G138=Benchmarking!$I$4,1,0) -> 0 | K138: =IF(Benchmarking!$I$6="All",1,IF(Benchmarking!$I$6=H138,1,0)) -> 0 | L138: =IF(Benchmarking!$I$8="All",1,IF(Benchmarking!$I$8=I138,1,0)) -> 0 | M138: 0 | N138: 412246.09 | O138: 7181.9 | P138: 110672.02 | Q138: 18509.67 | R138: 14166.19 | S138: 0 | T138: 0 | U138: 3157.03 | V138: 2823.5 | W138: 1499.34 | X138: 3162 | Y138: 6000.39 | Z138: 4458.37 | AA138: 8943.89 | AB138: 4231.5 | AC138: 10890 | AD138: 17964 | AE138: 20364.7 | AF138: 56987.66 | AG138: 14490.75 | AH138: 0 | AI138: 9960.62 | AJ138: 4944.71 | AK138: 0 | AL138: 22576.18 | AM138: 721 | AN138: 4490.61 | AO138: 27927.72 | AP138: 0 | AQ138: 0 | AR138: 0 | AS138: 0 | AT138: 0 | AU138: -639068.1 | AV138: -46055.71 | AW138: 0 | AX138: -19658.41 | AY138: 0 | AZ138: -9884 | BA138: -1200 | BB138: -2500 | BC138: -8343 | BD138: -12490.17 | BE138: 0 | BF138: 0 | BG138: 0 | BH138: -23001 | BI138: -10655.55 | BJ138: 0 | BK138: 0 | BL138: 0 | BM138: -43910 | BN138: 0 | BO138: 0 | BP138: -1952.75 | BQ138: -704782.22 | BR138: 0 | BS138: 0 | BT138: 0 | BU138: 0 | BV138: 5461.4 | BW138: 14197.01 | BX138: 19658.41
A139: 3055 | B139: Churchill CEP School, Westerham | C139: 0 | D139: 204 | E139: 0 | F139: 4.25 | G139: No | H139: Primary | I139: 200-299 | J139: =IF(G139=Benchmarking!$I$4,1,0) -> 0 | K139: =IF(Benchmarking!$I$6="All",1,IF(Benchmarking!$I$6=H139,1,0)) -> 0 | L139: =IF(Benchmarking!$I$8="All",1,IF(Benchmarking!$I$8=I139,1,0)) -> 0 | M139: 0 | N139: 626526.05 | O139: 4439.43 | P139: 194816.4 | Q139: 26902.63 | R139: 72853.44 | S139: 0 | T139: 39547.41 | U139: 4232.1 | V139: 695.35 | W139: 414.75 | X139: 4708.32 | Y139: 8578.88 | Z139: 9768.98 | AA139: 30009.97 | AB139: 5846.31 | AC139: 31376.59 | AD139: 28928 | AE139: 8157.04 | AF139: 36119.38 | AG139: 11537.97 | AH139: 0 | AI139: 15138.95 | AJ139: 7362.87 | AK139: 4793.49 | AL139: 40287.59 | AM139: 26538 | AN139: 20008.66 | AO139: 14924.01 | AP139: 0 | AQ139: 0 | AR139: 15015 | AS139: 0 | AT139: 0 | AU139: -881445.28 | AV139: -106036.77 | AW139: 0 | AX139: -36195.54 | AY139: 0 | AZ139: -85015 | BA139: -2000 | BB139: -5696.5 | BC139: -22936.5 | BD139: -38820.73 | BE139: 0 | BF139: -3750 | BG139: 0 | BH139: -11483.39 | BI139: -12538.04 | BJ139: 0 | BK139: 0 | BL139: 0 | BM139: -42803 | BN139: 0 | BO139: 0 | BP139: -14176.46 | BQ139: -1023677.59 | BR139: 0 | BS139: 0 | BT139: 0 | BU139: 0 | BV139: 0 | BW139: 36195.54 | BX139: 36195.54
A140: 3057 | B140: St Peters CEP School, Aylesford | C140: 0 | D140: 183 | E140: 0 | F140: 7.25 | G140: No | H140: Primary | I140: 100-199 | J140: =IF(G140=Benchmarking!$I$4,1,0) -> 0 | K140: =IF(Benchmarking!$I$6="All",1,IF(Benchmarking!$I$6=H140,1,0)) -> 0 | L140: =IF(Benchmarking!$I$8="All",1,IF(Benchmarking!$I$8=I140,1,0)) -> 0 | M140: 0 | N140: 538740.04 | O140: 4156.86 | P140: 159709.34 | Q140: 23476.49 | R140: 78893.28 | S140: 0 | T140: 19281.97 | U140: 4311.38 | V140: 6209.53 | W140: 5573.99 | X140: 4171.63 | Y140: 9762.58 | Z140: 1147.72 | AA140: 8823.46 | AB140: 2916.37 | AC140: 13959.08 | AD140: 16342.25 | AE140: 13734.91 | AF140: 49097.48 | AG140: 21349.41 | AH140: 0 | AI140: 10953.89 | AJ140: 8121.64 | AK140: 0 | AL140: 33250.95 | AM140: 176.5 | AN140: 14060.4 | AO140: 12651.25 | AP140: 0 | AQ140: 0 | AR140: 0 | AS140: 0 | AT140: 0 | AU140: -785743.43 | AV140: -80053.8 | AW140: 0 | AX140: -56075.71 | AY140: 0 | AZ140: -49890 | BA140: -1200 | BB140: -9690.37 | BC140: -13464 | BD140: -4261.19 | BE140: 0 | BF140: -1650 | BG140: -11167.19 | BH140: -11214.79 | BI140: -1663.17 | BJ140: 0 | BK140: 0 | BL140: 0 | BM140: -44811 | BN140: 0 | BO140: -198.75 | BP140: -9118.22 | BQ140: -921872.94 | BR140: 0 | BS140: 0 | BT140: 0 | BU140: 0 | BV140: 0 | BW140: 56075.71 | BX140: 56075.71
A141: 3061 | B141: Bredhurst CEP School | C141: 0 | D141: 124 | E141: 0 | F141: 1 | G141: No | H141: Primary | I141: 100-199 | J141: =IF(G141=Benchmarking!$I$4,1,0) -> 0 | K141: =IF(Benchmarking!$I$6="All",1,IF(Benchmarking!$I$6=H141,1,0)) -> 0 | L141: =IF(Benchmarking!$I$8="All",1,IF(Benchmarking!$I$8=I141,1,0)) -> 0 | M141: 0 | N141: 387502.37 | O141: 0 | P141: 119295.29 | Q141: 25856.47 | R141: 35797.87 | S141: 0 | T141: 4921.17 | U141: 2806.12 | V141: 1766 | W141: 1632.04 | X141: 2861.88 | Y141: 1236.27 | Z141: 4055.19 | AA141: 3076.57 | AB141: 3303.12 | AC141: 10954.65 | AD141: 15220 | AE141: 2145.82 | AF141: 46493.08 | AG141: 3167.95 | AH141: 0 | AI141: 5414.58 | AJ141: 4385.84 | AK141: 3586.01 | AL141: 26568.46 | AM141: 0 | AN141: 2194.08 | AO141: 11310.4 | AP141: 0 | AQ141: 0 | AR141: 10866.73 | AS141: 0 | AT141: 0 | AU141: -551479.27 | AV141: -38709.6 | AW141: 0 | AX141: -5402.26 | AY141: 0 | AZ141: -32425 | BA141: 0 | BB141: -2183.49 | BC141: -446 | BD141: -9164.9 | BE141: -6165.07 | BF141: -819.23 | BG141: -9755.26 | BH141: -15388.68 | BI141: -23851.36 | BJ141: 0 | BK141: 0 | BL141: 0 | BM141: -42456 | BN141: 0 | BO141: 0 | BP141: -2508.33 | BQ141: -595591.13 | BR141: 0 | BS141: 0 | BT141: 0 | BU141: 0 | BV141: 2129.04 | BW141: 3273.22 | BX141: 5402.26
A142: 3062 | B142: Burham CEP School | C142: 0 | D142: 154 | E142: 0 | F142: 1.666666667 | G142: No | H142: Primary | I142: 100-199 | J142: =IF(G142=Benchmarking!$I$4,1,0) -> 0 | K142: =IF(Benchmarking!$I$6="All",1,IF(Benchmarking!$I$6=H142,1,0)) -> 0 | L142: =IF(Benchmarking!$I$8="All",1,IF(Benchmarking!$I$8=I142,1,0)) -> 0 | M142: 0 | N142: 423003.86 | O142: 4600.18 | P142: 103074.73 | Q142: 1379.17 | R142: 44506.45 | S142: 0 | T142: 29952.88 | U142: 37594.9 | V142: 3270.67 | W142: 2799.84 | X142: 3554.28 | Y142: 12430.23 | Z142: 4451.36 | AA142: 17513.65 | AB142: 2626.03 | AC142: 9356.38 | AD142: 22081 | AE142: 7067.16 | AF142: 28469.56 | AG142: 10723.9 | AH142: 0 | AI142: 7654.8 | AJ142: 5446.94 | AK142: 3041.14 | AL142: 20888.71 | AM142: 8682.44 | AN142: 14438 | AO142: 37343.65 | AP142: 0 | AQ142: 0 | AR142: 0 | AS142: 0 | AT142: 0 | AU142: -655949.4 | AV142: -57598.86 | AW142: 0 | AX142: -12900.25 | AY142: 0 | AZ142: -26475.18 | BA142: 0 | BB142: -3000 | BC142: 0 | BD142: -19526.52 | BE142: 0 | BF142: 0 | BG142: -4717.02 | BH142: -6747 | BI142: -2719.18 | BJ142: 0 | BK142: 0 | BL142: 0 | BM142: -33146 | BN142: 0 | BO142: 0 | BP142: -2891.33 | BQ142: -726448.51 | BR142: 0 | BS142: 0 | BT142: 0 | BU142: 0 | BV142: 400.2 | BW142: 12500.05 | BX142: 12900.25
A143: 3067 | B143: Harrietsham CEP School | C143: 0 | D143: 260 | E143: 0 | F143: 4.166666667 | G143: No | H143: Primary | I143: 200-299 | J143: =IF(G143=Benchmarking!$I$4,1,0) -> 0 | K143: =IF(Benchmarking!$I$6="All",1,IF(Benchmarking!$I$6=H143,1,0)) -> 0 | L143: =IF(Benchmarking!$I$8="All",1,IF(Benchmarking!$I$8=I143,1,0)) -> 0 | M143: 0 | N143: 839619.87 | O143: 670.55 | P143: 204633.75 | Q143: 28440.64 | R143: 68489.02 | S143: 0 | T143: 25315.89 | U143: 5250.72 | V143: 3527.66 | W143: 6394.6 | X143: 6000.84 | Y143: 19979.12 | Z143: 6263.28 | AA143: 18723.17 | AB143: 5657.37 | AC143: 26766.29 | AD143: 31232 | AE143: 14109.09 | AF143: 34331.72 | AG143: 15853.92 | AH143: 0 | AI143: 17782.96 | AJ143: 9196.24 | AK143: 976.46 | AL143: 50137.89 | AM143: 20388.5 | AN143: 4444 | AO143: 21061.86 | AP143: 0 | AQ143: 0 | AR143: 0 | AS143: 0 | AT143: 0 | AU143: -1081467.98 | AV143: -144613.02 | AW143: 0 | AX143: -23043.96 | AY143: 0 | AZ143: -65400 | BA143: 0 | BB143: -720 | BC143: -7994.65 | BD143: -1662.59 | BE143: -175.24 | BF143: 0 | BG143: -12289.91 | BH143: -15205.13 | BI143: -6444.05 | BJ143: 0 | BK143: 0 | BL143: 0 | BM143: -58599 | BN143: 0 | BO143: 0 | BP143: -14509.81 | BQ143: -1249124.96 | BR143: 0 | BS143: 0 | BT143: 0 | BU143: 0 | BV143: 0 | BW143: 23043.96 | BX143: 23043.96
A144: 3069 | B144: Leeds & Broomfield CEP School | C144: 0 | D144: 66 | E144: 0 | F144: 13.75 | G144: No | H144: Primary | I144: 0-99 | J144: =IF(G144=Benchmarking!$I$4,1,0) -> 0 | K144: =IF(Benchmarking!$I$6="All",1,IF(Benchmarking!$I$6=H144,1,0)) -> 0 | L144: =IF(Benchmarking!$I$8="All",1,IF(Benchmarking!$I$8=I144,1,0)) -> 0 | M144: 0 | N144: 157436.57 | O144: 0 | P144: 189485.23 | Q144: 3232.6 | R144: 23416.67 | S144: 0 | T144: 17242.02 | U144: 1915.38 | V144: 2164.29 | W144: 5808.3 | X144: 1523.28 | Y144: 5132.89 | Z144: 1421.95 | AA144: 9163.19 | AB144: 72.13 | AC144: 8520.26 | AD144: 5489 | AE144: 5591.7 | AF144: 25756.38 | AG144: 8183.93 | AH144: 0 | AI144: 9472.24 | AJ144: 2334.42 | AK144: 187611.51 | AL144: 15760.96 | AM144: 350 | AN144: 8020.16 | AO144: 13793.95 | AP144: 0 | AQ144: 0 | AR144: 3000 | AS144: 0 | AT144: 0 | AU144: -425399.22 | AV144: -34280.85 | AW144: 0 | AX144: -143330.8 | AY144: 0 | AZ144: -31309 | BA144: 0 | BB144: -94.04 | BC144: 0 | BD144: -23612.42 | BE144: -262.64 | BF144: -1611.75 | BG144: 0 | BH144: -5050.74 | BI144: -3476.62 | BJ144: 0 | BK144: 0 | BL144: 0 | BM144: -26835 | BN144: 0 | BO144: 0 | BP144: -2941.3 | BQ144: -603010.87 | BR144: 0 | BS144: 0 | BT144: 0 | BU144: 0 | BV144: 35364.45 | BW144: 107966.35 | BX144: 143330.8
A145: 3072 | B145: St Michaels CEJ School, Maidstone | C145: 0 | D145: 174 | E145: 0 | F145: 3.333333333 | G145: No | H145: Primary | I145: 100-199 | J145: =IF(G145=Benchmarking!$I$4,1,0) -> 0 | K145: =IF(Benchmarking!$I$6="All",1,IF(Benchmarking!$I$6=H145,1,0)) -> 0 | L145: =IF(Benchmarking!$I$8="All",1,IF(Benchmarking!$I$8=I145,1,0)) -> 0 | M145: 0 | N145: 454671.63 | O145: 0 | P145: 164563.07 | Q145: 15951.72 | R145: 50904.42 | S145: 0 | T145: 22983.14 | U145: 3430.94 | V145: 3885.49 | W145: 341.04 | X145: 4015.92 | Y145: 7048.48 | Z145: 1321.98 | AA145: 14451.38 | AB145: 1926.2 | AC145: 15603.47 | AD145: 10230 | AE145: 5423.42 | AF145: 54219.39 | AG145: 10281.01 | AH145: 0 | AI145: 16000.27 | AJ145: 6154.38 | AK145: 6965.56 | AL145: 12422.08 | AM145: 0 | AN145: 4571.54 | AO145: 12392.73 | AP145: 0 | AQ145: 0 | AR145: 20000 | AS145: 0 | AT145: 0 | AU145: -717813.36 | AV145: -84650.9 | AW145: 0 | AX145: -14362.04 | AY145: 0 | AZ145: -42215 | BA145: 0 | BB145: -1880 | BC145: 0 | BD145: -9786.2 | BE145: 0 | BF145: 0 | BG145: 0 | BH145: -10225.25 | BI145: -617.51 | BJ145: 0 | BK145: 0 | BL145: 0 | BM145: -17734 | BN145: 0 | BO145: 0 | BP145: -10460.22 | BQ145: -816826.3 | BR145: 0 | BS145: 0 | BT145: 0 | BU145: 0 | BV145: 0 | BW145: 14362.04 | BX145: 14362.04
A146: 3073 | B146: St Michaels Infant School | C146: 0 | D146: 119 | E146: 0 | F146: 2.416666667 | G146: No | H146: Primary | I146: 100-199 | J146: =IF(G146=Benchmarking!$I$4,1,0) -> 0 | K146: =IF(Benchmarking!$I$6="All",1,IF(Benchmarking!$I$6=H146,1,0)) -> 0 | L146: =IF(Benchmarking!$I$8="All",1,IF(Benchmarking!$I$8=I146,1,0)) -> 0 | M146: 0 | N146: 331443.75 | O146: 0 | P146: 134345.82 | Q146: 16168.32 | R146: 32485.97 | S146: 0 | T146: 19464.82 | U146: 3562.31 | V146: 5670.14 | W146: 233.24 | X146: 2746.56 | Y146: 3354.95 | Z146: 1782.73 | AA146: 9640.22 | AB146: 1351.08 | AC146: 8142 | AD146: 10105 | AE146: 4675.3 | AF146: 40137.1 | AG146: 8176.79 | AH146: 0 | AI146: 14465.26 | AJ146: 4209.07 | AK146: 6188.59 | AL146: 43739.61 | AM146: 0 | AN146: 4554.69 | AO146: 13275.17 | AP146: 0 | AQ146: 0 | AR146: 0 | AS146: 0 | AT146: 0 | AU146: -530822.72 | AV146: -69529.83 | AW146: 0 | AX146: -16933.96 | AY146: 0 | AZ146: -28725 | BA146: 0 | BB146: 0 | BC146: 0 | BD146: -12435.57 | BE146: 0 | BF146: 0 | BG146: 0 | BH146: 0 | BI146: -299.98 | BJ146: 0 | BK146: 0 | BL146: 0 | BM146: -49043 | BN146: 0 | BO146: 0 | BP146: -4518.5 | BQ146: -617286.51 | BR146: 0 | BS146: 0 | BT146: 0 | BU146: 0 | BV146: 0 | BW146: 16933.96 | BX146: 16933.96
A147: 3081 | B147: Thurnham CEI School | C147: 0 | D147: 270 | E147: 0 | F147: 2.916666667 | G147: No | H147: Primary | I147: 200-299 | J147: =IF(G147=Benchmarking!$I$4,1,0) -> 0 | K147: =IF(Benchmarking!$I$6="All",1,IF(Benchmarking!$I$6=H147,1,0)) -> 0 | L147: =IF(Benchmarking!$I$8="All",1,IF(Benchmarking!$I$8=I147,1,0)) -> 0 | M147: 0 | N147: 650162.13 | O147: 49034.01 | P147: 221863.18 | Q147: 28533.44 | R147: 69020.79 | S147: 0 | T147: 39750.96 | U147: 7066.29 | V147: 8786.04 | W147: 8301.99 | X147: 6231.6 | Y147: 19200.01 | Z147: 25495.21 | AA147: 13129.74 | AB147: 2365.05 | AC147: 25702.51 | AD147: 26368 | AE147: 14148.97 | AF147: 39359.04 | AG147: 15653.55 | AH147: 0 | AI147: 26205.69 | AJ147: 9549.9 | AK147: 86.44 | AL147: 89428.12 | AM147: 8875 | AN147: 23042.5 | AO147: 13952.33 | AP147: 0 | AQ147: 0 | AR147: 3738.54 | AS147: 0 | AT147: 0 | AU147: -1038011.42 | AV147: -170393.58 | AW147: 0 | AX147: -25509.89 | AY147: 0 | AZ147: -16925 | BA147: -720 | BB147: 0 | BC147: 0 | BD147: -14404.08 | BE147: -99.21 | BF147: -2690.07 | BG147: -8012.97 | BH147: -5704.95 | BI147: -6821.95 | BJ147: 0 | BK147: 0 | BL147: 0 | BM147: -130139 | BN147: 0 | BO147: 0 | BP147: -3696.68 | BQ147: -1233914.89 | BR147: 0 | BS147: 0 | BT147: 0 | BU147: 0 | BV147: 0 | BW147: 25509.89 | BX147: 25509.89
A148: 3082 | B148: Trottiscliffe CEP School | C148: 0 | D148: 88 | E148: 0 | F148: 1.75 | G148: No | H148: Primary | I148: 0-99 | J148: =IF(G148=Benchmarking!$I$4,1,0) -> 0 | K148: =IF(Benchmarking!$I$6="All",1,IF(Benchmarking!$I$6=H148,1,0)) -> 0 | L148: =IF(Benchmarking!$I$8="All",1,IF(Benchmarking!$I$8=I148,1,0)) -> 0 | M148: 0 | N148: 300024.89 | O148: 0 | P148: 67011.53 | Q148: 2525.95 | R148: 11012.05 | S148: 0 | T148: 2274.15 | U148: 1852.44 | V148: 2382.77 | W148: 172.48 | X148: 2116.08 | Y148: 736.28 | Z148: 1792.49 | AA148: 6162.72 | AB148: 4455.78 | AC148: 8955.78 | AD148: 6362 | AE148: 3067.12 | AF148: 44479.14 | AG148: 7009.26 | AH148: 0 | AI148: 8754.47 | AJ148: 3452.6 | AK148: 873.25 | AL148: 15338.66 | AM148: 549 | AN148: 15703.64 | AO148: 16066.98 | AP148: 0 | AQ148: 0 | AR148: 13877.89 | AS148: 0 | AT148: 0 | AU148: -462840.82 | AV148: -36156.14 | AW148: 0 | AX148: -18591.27 | AY148: 0 | AZ148: -17413 | BA148: -1200 | BB148: -720 | BC148: 0 | BD148: -1797.76 | BE148: 0 | BF148: 0 | BG148: 0 | BH148: -10165.35 | BI148: -14123.89 | BJ148: 0 | BK148: 0 | BL148: 0 | BM148: -32858 | BN148: 0 | BO148: 0 | BP148: -2259.88 | BQ148: -517588.23 | BR148: 0 | BS148: 0 | BT148: 0 | BU148: 0 | BV148: 4172.7 | BW148: 14418.57 | BX148: 18591.27
A149: 3083 | B149: Ulcombe CEP School | C149: 0 | D149: 61 | E149: 0 | F149: 9.166666667 | G149: No | H149: Primary | I149: 0-99 | J149: =IF(G149=Benchmarking!$I$4,1,0) -> 0 | K149: =IF(Benchmarking!$I$6="All",1,IF(Benchmarking!$I$6=H149,1,0)) -> 0 | L149: =IF(Benchmarking!$I$8="All",1,IF(Benchmarking!$I$8=I149,1,0)) -> 0 | M149: 0 | N149: 145402.6 | O149: 20546.69 | P149: 77835.3 | Q149: 7412.96 | R149: 24409.15 | S149: 0 | T149: 5706.14 | U149: 1750.04 | V149: 1357 | W149: 5363.2 | X149: 1407.84 | Y149: 10440.84 | Z149: 2929.86 | AA149: 721.04 | AB149: 2357.3 | AC149: 11742.99 | AD149: 7236 | AE149: 5169.24 | AF149: 25294.31 | AG149: 9986.25 | AH149: 0 | AI149: 7702.75 | AJ149: 2157.53 | AK149: 181686.31 | AL149: 12772.85 | AM149: 4741 | AN149: 8823.35 | AO149: 9918.7 | AP149: 0 | AQ149: 0 | AR149: 72094.84 | AS149: 0 | AT149: 0 | AU149: -463288.84 | AV149: -49915.77 | AW149: 0 | AX149: -52046.55 | AY149: 0 | AZ149: -44320 | BA149: 0 | BB149: -1720 | BC149: 0 | BD149: -7827.77 | BE149: 0 | BF149: 0 | BG149: -1552.54 | BH149: -4028.26 | BI149: -822.25 | BJ149: 0 | BK149: 0 | BL149: 0 | BM149: -19504 | BN149: 0 | BO149: 0 | BP149: -5241.72 | BQ149: -565251.16 | BR149: 0 | BS149: 0 | BT149: 0 | BU149: 0 | BV149: 9244.4 | BW149: 42802.15 | BX149: 52046.55
A150: 3084 | B150: Wateringbury CEP School | C150: 0 | D150: 170 | E150: 0 | F150: 4 | G150: No | H150: Primary | I150: 100-199 | J150: =IF(G150=Benchmarking!$I$4,1,0) -> 0 | K150: =IF(Benchmarking!$I$6="All",1,IF(Benchmarking!$I$6=H150,1,0)) -> 0 | L150: =IF(Benchmarking!$I$8="All",1,IF(Benchmarking!$I$8=I150,1,0)) -> 0 | M150: 0 | N150: 430650.45 | O150: 2127.5 | P150: 138627.53 | Q150: 15549.67 | R150: 41079.4 | S150: 0 | T150: 10525 | U150: 280 | V150: 4727.84 | W150: 4620.49 | X150: 3923.64 | Y150: 3715.62 | Z150: 4789.19 | AA150: 25939.62 | AB150: 3810.26 | AC150: 26066.81 | AD150: 4890 | AE150: 10877.43 | AF150: 53066.77 | AG150: 21308.62 | AH150: 0 | AI150: 7378.32 | AJ150: 6012.94 | AK150: 0 | AL150: 29876.29 | AM150: 26125.88 | AN150: 22331.98 | AO150: 16156.13 | AP150: 0 | AQ150: 0 | AR150: 2969.75 | AS150: 0 | AT150: 0 | AU150: -705777.01 | AV150: -62615.45 | AW150: 0 | AX150: -36564.5 | AY150: 0 | AZ150: -43960 | BA150: -1200 | BB150: -3975 | BC150: -1212.5 | BD150: -846 | BE150: -1293 | BF150: -79.2 | BG150: -1400 | BH150: -30785 | BI150: -6363.24 | BJ150: 0 | BK150: 0 | BL150: 0 | BM150: -37374 | BN150: 0 | BO150: 0 | BP150: -9357.83 | BQ150: -804956.96 | BR150: 0 | BS150: 0 | BT150: 0 | BU150: 0 | BV150: 0 | BW150: 36564.5 | BX150: 36564.5
A151: 3088 | B151: Wouldham, All Saints CE School | C151: 0 | D151: 419 | E151: 0 | F151: 4.916666667 | G151: No | H151: Junior | I151: 400-499 | J151: =IF(G151=Benchmarking!$I$4,1,0) -> 0 | K151: =IF(Benchmarking!$I$6="All",1,IF(Benchmarking!$I$6=H151,1,0)) -> 0 | L151: =IF(Benchmarking!$I$8="All",1,IF(Benchmarking!$I$8=I151,1,0)) -> 0 | M151: 0 | N151: 1082109.45 | O151: 20318.18 | P151: 446517.6 | Q151: 78873.38 | R151: 61817.04 | S151: 55329.32 | T151: 79995.11 | U151: 10087.87 | V151: 8503.15 | W151: 821.24 | X151: 9925.56 | Y151: 11513.85 | Z151: 5084.61 | AA151: 4831.93 | AB151: 11000 | AC151: 51711.19 | AD151: 70656 | AE151: 21066.19 | AF151: 115869.68 | AG151: 35594.49 | AH151: 0 | AI151: 26782.86 | AJ151: 16599.57 | AK151: 17593.62 | AL151: 40414.26 | AM151: 8327.81 | AN151: 35892 | AO151: 41967.75 | AP151: 0 | AQ151: 0 | AR151: 0 | AS151: 0 | AT151: 0 | AU151: -1612832.03 | AV151: -303461.77 | AW151: 0 | AX151: -34264.51 | AY151: 0 | AZ151: -110501.38 | BA151: 0 | BB151: 0 | BC151: -19567.95 | BD151: -144436.17 | BE151: -26081.65 | BF151: 0 | BG151: -4403.81 | BH151: -44190.5 | BI151: 0 | BJ151: 0 | BK151: 0 | BL151: 0 | BM151: -75089 | BN151: 0 | BO151: 0 | BP151: -24846.3 | BQ151: -1950558.31 | BR151: 0 | BS151: 0 | BT151: 0 | BU151: 0 | BV151: 0 | BW151: 34264.51 | BX151: 34264.51
A152: 3089 | B152: St Georges CEP School, Wrotham | C152: 0 | D152: 199 | E152: 0 | F152: 5.416666667 | G152: No | H152: Primary | I152: 100-199 | J152: =IF(G152=Benchmarking!$I$4,1,0) -> 0 | K152: =IF(Benchmarking!$I$6="All",1,IF(Benchmarking!$I$6=H152,1,0)) -> 0 | L152: =IF(Benchmarking!$I$8="All",1,IF(Benchmarking!$I$8=I152,1,0)) -> 0 | M152: 0 | N152: 594869.17 | O152: 2167 | P152: 152114.15 | Q152: 23136.12 | R152: 71460.33 | S152: 0 | T152: 25465.97 | U152: 3360.88 | V152: 6139.27 | W152: 405.04 | X152: 5196.96 | Y152: 7078.65 | Z152: 4521.03 | AA152: 16713.56 | AB152: 6332.76 | AC152: 17318.58 | AD152: 18214 | AE152: 3084.01 | AF152: 71320.96 | AG152: 7552.79 | AH152: 0 | AI152: 13846.68 | AJ152: 5618.67 | AK152: 8460.85 | AL152: 37124.58 | AM152: 0 | AN152: 14161.56 | AO152: 16072.86 | AP152: 0 | AQ152: 28.54 | AR152: 12000 | AS152: 0 | AT152: 0 | AU152: -823001.29 | AV152: -91251.8 | AW152: 0 | AX152: -55433.72 | AY152: 0 | AZ152: -57810 | BA152: 0 | BB152: -3159.34 | BC152: 0 | BD152: -9532.85 | BE152: 0 | BF152: 0 | BG152: 0 | BH152: 0 | BI152: -23891 | BJ152: 0 | BK152: 0 | BL152: 0 | BM152: -48018 | BN152: 0 | BO152: 0 | BP152: -20299.59 | BQ152: -969686.81 | BR152: 0 | BS152: 0 | BT152: 0 | BU152: 0 | BV152: 0 | BW152: 55433.72 | BX152: 55433.72
A153: 3090 | B153: St Margarets Collier Street School | C153: 0 | D153: 123 | E153: 0 | F153: 5 | G153: No | H153: Primary | I153: 100-199 | J153: =IF(G153=Benchmarking!$I$4,1,0) -> 0 | K153: =IF(Benchmarking!$I$6="All",1,IF(Benchmarking!$I$6=H153,1,0)) -> 0 | L153: =IF(Benchmarking!$I$8="All",1,IF(Benchmarking!$I$8=I153,1,0)) -> 0 | M153: 0 | N153: 358761.62 | O153: 3420.15 | P153: 124315.99 | Q153: 4461.86 | R153: 32071.8 | S153: 0 | T153: 14609.35 | U153: 3157.83 | V153: 6500.75 | W153: 3320.36 | X153: 2838.84 | Y153: 9361.91 | Z153: 25969.91 | AA153: 18413.76 | AB153: 3428.74 | AC153: 13020.33 | AD153: 13972 | AE153: 6254.74 | AF153: 35117.15 | AG153: 5996.81 | AH153: 0 | AI153: 8646.05 | AJ153: 4350.51 | AK153: 8337.03 | AL153: 17339.95 | AM153: 0 | AN153: 15525.82 | AO153: 9857.23 | AP153: 0 | AQ153: 0 | AR153: 0 | AS153: 0 | AT153: 0 | AU153: -574601.1 | AV153: -60578.66 | AW153: 0 | AX153: -38455.02 | AY153: 0 | AZ153: -5540 | BA153: -1200 | BB153: -4695 | BC153: -200 | BD153: -13515.67 | BE153: -288.96 | BF153: -160 | BG153: -2028.53 | BH153: -9615.4 | BI153: -7919.68 | BJ153: 0 | BK153: 0 | BL153: 0 | BM153: -37513.88 | BN153: 0 | BO153: 0 | BP153: -2880.5 | BQ153: -673634.78 | BR153: 0 | BS153: 0 | BT153: 0 | BU153: 0 | BV153: 0 | BW153: 38455.02 | BX153: 38455.02
A154: 3091 | B154: Laddingford St Marys CEP School | C154: 0 | D154: 74 | E154: 0 | F154: 4.583333333 | G154: No | H154: Primary | I154: 0-99 | J154: =IF(G154=Benchmarking!$I$4,1,0) -> 0 | K154: =IF(Benchmarking!$I$6="All",1,IF(Benchmarking!$I$6=H154,1,0)) -> 0 | L154: =IF(Benchmarking!$I$8="All",1,IF(Benchmarking!$I$8=I154,1,0)) -> 0 | M154: 0 | N154: 311746.71 | O154: 4087.52 | P154: 108775.02 | Q154: 5026.58 | R154: 27993.84 | S154: 0 | T154: 0 | U154: 2231.81 | V154: 2500.5 | W154: 145.04 | X154: 1707.96 | Y154: 1250.15 | Z154: 1335.93 | AA154: 11530.21 | AB154: 4549.71 | AC154: 4548.43 | AD154: 5240 | AE154: 11255.68 | AF154: 26655.94 | AG154: 10471.12 | AH154: 0 | AI154: 14408.08 | AJ154: 2617.42 | AK154: 397.34 | AL154: 17104.32 | AM154: 2852 | AN154: 21713.15 | AO154: 19953.49 | AP154: 0 | AQ154: 0 | AR154: 0 | AS154: 0 | AT154: 0 | AU154: -431153.32 | AV154: -47733.42 | AW154: 0 | AX154: -40602.16 | AY154: 0 | AZ154: -27700 | BA154: 0 | BB154: -2676.52 | BC154: 0 | BD154: -9045.35 | BE154: -5143 | BF154: 0 | BG154: 0 | BH154: -11854.88 | BI154: -6577 | BJ154: 0 | BK154: 0 | BL154: 0 | BM154: -25158 | BN154: 0 | BO154: 0 | BP154: -5763.22 | BQ154: -519488.9 | BR154: 0 | BS154: 0 | BT154: 0 | BU154: 0 | BV154: 5622.1 | BW154: 34980.06 | BX154: 40602.16
A155: 3092 | B155: Yalding, St Peter & St Paul CEP School | C155: 0 | D155: 171 | E155: 0 | F155: 1.583333333 | G155: No | H155: Primary | I155: 100-199 | J155: =IF(G155=Benchmarking!$I$4,1,0) -> 0 | K155: =IF(Benchmarking!$I$6="All",1,IF(Benchmarking!$I$6=H155,1,0)) -> 0 | L155: =IF(Benchmarking!$I$8="All",1,IF(Benchmarking!$I$8=I155,1,0)) -> 0 | M155: 0 | N155: 515274.8 | O155: 0 | P155: 110095.66 | Q155: 6194.67 | R155: 36697.85 | S155: 0 | T155: 19971.41 | U155: 342 | V155: 1974.5 | W155: 335.16 | X155: 3946.68 | Y155: 5647.18 | Z155: 3162.17 | AA155: 19995.93 | AB155: 1881.02 | AC155: 18070.56 | AD155: 14222 | AE155: 3067.27 | AF155: 50295.34 | AG155: 6232.09 | AH155: 0 | AI155: 9471.68 | AJ155: 6048.27 | AK155: 64.06 | AL155: 25751.06 | AM155: 985 | AN155: 10150 | AO155: 18420.24 | AP155: 0 | AQ155: 0 | AR155: 0 | AS155: 0 | AT155: 0 | AU155: -705971.71 | AV155: -60928.71 | AW155: 0 | AX155: -9796.82 | AY155: 0 | AZ155: -33545 | BA155: 0 | BB155: 0 | BC155: 0 | BD155: -13073.88 | BE155: 0 | BF155: 0 | BG155: 0 | BH155: -16646.93 | BI155: -583 | BJ155: 0 | BK155: 0 | BL155: 0 | BM155: -45584 | BN155: 0 | BO155: 0 | BP155: -7893.01 | BQ155: -776697.24 | BR155: 0 | BS155: 0 | BT155: 0 | BU155: 0 | BV155: 0 | BW155: 9796.82 | BX155: 9796.82
A156: 3108 | B156: Ospringe CEP School | C156: 0 | D156: 206 | E156: 0 | F156: 9 | G156: No | H156: Primary | I156: 200-299 | J156: =IF(G156=Benchmarking!$I$4,1,0) -> 0 | K156: =IF(Benchmarking!$I$6="All",1,IF(Benchmarking!$I$6=H156,1,0)) -> 0 | L156: =IF(Benchmarking!$I$8="All",1,IF(Benchmarking!$I$8=I156,1,0)) -> 0 | M156: 0 | N156: 607009.19 | O156: 15713.38 | P156: 256639.99 | Q156: 35990.16 | R156: 92301.06 | S156: 13890.92 | T156: 40281.58 | U156: 4323.09 | V156: 5515.56 | W156: 4874.58 | X156: 4924.44 | Y156: 21784.13 | Z156: 5549.33 | AA156: 13351.47 | AB156: 4591.71 | AC156: 32391.56 | AD156: 23079 | AE156: 8172.75 | AF156: 85916.95 | AG156: 16161.24 | AH156: 0 | AI156: 19892.37 | AJ156: 7966.18 | AK156: 4967.32 | AL156: 46228.94 | AM156: 4308 | AN156: 1732.5 | AO156: 23052.09 | AP156: 0 | AQ156: 0 | AR156: 0 | AS156: 0 | AT156: 0 | AU156: -873451.22 | AV156: -137576.22 | AW156: 0 | AX156: -95594.05 | AY156: 0 | AZ156: -103075 | BA156: 0 | BB156: -10537 | BC156: -1672.4 | BD156: -36271.78 | BE156: -10542.8 | BF156: 0 | BG156: 0 | BH156: -18201.8 | BI156: -4487.22 | BJ156: 0 | BK156: 0 | BL156: 0 | BM156: -44318 | BN156: 0 | BO156: 0 | BP156: -22410.64 | BQ156: -1106621.49 | BR156: 0 | BS156: 0 | BT156: 0 | BU156: 0 | BV156: 0 | BW156: 95594.05 | BX156: 95594.05
A157: 3109 | B157: Hernhill CEP School | C157: 0 | D157: 201 | E157: 0 | F157: 10.08333333 | G157: No | H157: Primary | I157: 200-299 | J157: =IF(G157=Benchmarking!$I$4,1,0) -> 0 | K157: =IF(Benchmarking!$I$6="All",1,IF(Benchmarking!$I$6=H157,1,0)) -> 0 | L157: =IF(Benchmarking!$I$8="All",1,IF(Benchmarking!$I$8=I157,1,0)) -> 0 | M157: 0 | N157: 567562.39 | O157: 9226.08 | P157: 283421.26 | Q157: 36036.39 | R157: 31260.91 | S157: 0 | T157: 16343.02 | U157: 3067.6 | V157: 4804.45 | W157: 393.96 | X157: 5068.9 | Y157: 4158.5 | Z157: 6366.44 | AA157: 790.16 | AB157: 3135.06 | AC157: 22710.81 | AD157: 31744 | AE157: 4520.36 | AF157: 79041.43 | AG157: 8108.36 | AH157: 0 | AI157: 10810.54 | AJ157: 7227.08 | AK157: 45 | AL157: 35405.29 | AM157: 0 | AN157: 5802.34 | AO157: 24171.13 | AP157: 0 | AQ157: 0 | AR157: 0 | AS157: 0 | AT157: 0 | AU157: -855111.73 | AV157: -93064.27 | AW157: 0 | AX157: -81989.74 | AY157: 0 | AZ157: -32578.8 | BA157: -12429.3 | BB157: -9600 | BC157: 0 | BD157: -31396.83 | BE157: 0 | BF157: -1650 | BG157: -320 | BH157: -34478 | BI157: -2647.86 | BJ157: 0 | BK157: 0 | BL157: 0 | BM157: -56549 | BN157: 0 | BO157: 0 | BP157: -6735.58 | BQ157: -1030165.74 | BR157: 0 | BS157: 0 | BT157: 0 | BU157: 0 | BV157: 0 | BW157: 81989.74 | BX157: 81989.74
A158: 3111 | B158: Newington CEP School | C158: 0 | D158: 192 | E158: 0 | F158: 16.41666667 | G158: No | H158: Primary | I158: 100-199 | J158: =IF(G158=Benchmarking!$I$4,1,0) -> 0 | K158: =IF(Benchmarking!$I$6="All",1,IF(Benchmarking!$I$6=H158,1,0)) -> 0 | L158: =IF(Benchmarking!$I$8="All",1,IF(Benchmarking!$I$8=I158,1,0)) -> 0 | M158: 0 | N158: 616230.96 | O158: 0 | P158: 300483.05 | Q158: 32024.52 | R158: 41563.13 | S158: 0 | T158: 0 | U158: 3551.45 | V158: 5581.66 | W158: 4226.27 | X158: 4516.32 | Y158: 27662.48 | Z158: 62614.24 | AA158: 5953.2 | AB158: 1299.94 | AC158: 20566.26 | AD158: 34048 | AE158: 10706.76 | AF158: 69027.42 | AG158: 25029.19 | AH158: 0 | AI158: 12963.86 | AJ158: 7131 | AK158: 0 | AL158: 36339.53 | AM158: 32519.76 | AN158: 0 | AO158: 19157.06 | AP158: 0 | AQ158: 0 | AR158: 0 | AS158: 0 | AT158: 0 | AU158: -934531.75 | AV158: -126462.62 | AW158: 0 | AX158: -132716.11 | AY158: 0 | AZ158: -99615 | BA158: 0 | BB158: -6110.49 | BC158: -15754.14 | BD158: -808.71 | BE158: 0 | BF158: -8232 | BG158: -250 | BH158: -3192.55 | BI158: -33367.32 | BJ158: 0 | BK158: 0 | BL158: 0 | BM158: -40002 | BN158: 0 | BO158: 0 | BP158: -20582.89 | BQ158: -1193710.48 | BR158: 0 | BS158: 0 | BT158: 0 | BU158: 0 | BV158: 0 | BW158: 132716.11 | BX158: 132716.11
A159: 3117 | B159: Teynham Parochial CEP School | C159: 0 | D159: 207 | E159: 0 | F159: 1.416666667 | G159: No | H159: Primary | I159: 200-299 | J159: =IF(G159=Benchmarking!$I$4,1,0) -> 0 | K159: =IF(Benchmarking!$I$6="All",1,IF(Benchmarking!$I$6=H159,1,0)) -> 0 | L159: =IF(Benchmarking!$I$8="All",1,IF(Benchmarking!$I$8=I159,1,0)) -> 0 | M159: 0 | N159: 572939.84 | O159: 359.74 | P159: 195213.56 | Q159: 31198.44 | R159: 35861.41 | S159: 0 | T159: 23993.34 | U159: 3988.71 | V159: 4185 | W159: 405.72 | X159: 4862.52 | Y159: 10661.05 | Z159: 11320.27 | AA159: 2219.36 | AB159: 0 | AC159: 22262.25 | AD159: 23827 | AE159: 11367.14 | AF159: 60826.59 | AG159: 7739.06 | AH159: 0 | AI159: 19429.2 | AJ159: 7661.55 | AK159: 9650.66 | AL159: 31333.35 | AM159: 2864 | AN159: 27806 | AO159: 35655.42 | AP159: 0 | AQ159: 0 | AR159: 7500 | AS159: 0 | AT159: 0 | AU159: -854787.93 | AV159: -142300.93 | AW159: 0 | AX159: -4324.63 | AY159: 0 | AZ159: -82115 | BA159: 0 | BB159: -968 | BC159: -3195 | BD159: -16173.4 | BE159: -936.24 | BF159: 0 | BG159: -927.5 | BH159: -9430.76 | BI159: -1236.1 | BJ159: 0 | BK159: 0 | BL159: 0 | BM159: -35341 | BN159: 0 | BO159: 0 | BP159: -19157.88 | BQ159: -1001413.49 | BR159: 0 | BS159: 0 | BT159: 0 | BU159: 0 | BV159: 0 | BW159: 4324.63 | BX159: 4324.63
A160: 3120 | B160: Barham CEP School | C160: 0 | D160: 210 | E160: 0 | F160: 7.25 | G160: No | H160: Primary | I160: 200-299 | J160: =IF(G160=Benchmarking!$I$4,1,0) -> 0 | K160: =IF(Benchmarking!$I$6="All",1,IF(Benchmarking!$I$6=H160,1,0)) -> 0 | L160: =IF(Benchmarking!$I$8="All",1,IF(Benchmarking!$I$8=I160,1,0)) -> 0 | M160: 0 | N160: 554521.29 | O160: 10217.52 | P160: 171358.8 | Q160: 28575.43 | R160: 48106.79 | S160: 0 | T160: 19872.8 | U160: 4308.48 | V160: 4276.19 | W160: 8449.6 | X160: 840 | Y160: 13038.68 | Z160: 2776.86 | AA160: 8862.44 | AB160: 1740.34 | AC160: 34072.62 | AD160: 28672 | AE160: 4275.42 | AF160: 60966.63 | AG160: 25497.83 | AH160: 0 | AI160: 12915.49 | AJ160: 7427.7 | AK160: 895.58 | AL160: 36022.25 | AM160: 0 | AN160: 18415.08 | AO160: 9641.3 | AP160: 0 | AQ160: 0 | AR160: 0 | AS160: 0 | AT160: 0 | AU160: -861936.77 | AV160: -102721.27 | AW160: 0 | AX160: -41003.79 | AY160: 0 | AZ160: -29750 | BA160: 0 | BB160: -3783.33 | BC160: 0 | BD160: -2824.36 | BE160: 0 | BF160: -5000 | BG160: 0 | BH160: 0 | BI160: -17553.53 | BJ160: 0 | BK160: 0 | BL160: 0 | BM160: -51738 | BN160: 0 | BO160: 0 | BP160: -6371.8 | BQ160: -1005661.83 | BR160: 0 | BS160: 0 | BT160: 0 | BU160: 0 | BV160: 0 | BW160: 41003.79 | BX160: 41003.79
A161: 3122 | B161: Bridge and Patrixbourne CEP School | C161: 0 | D161: 409 | E161: 0 | F161: 12.16666667 | G161: No | H161: Primary | I161: 400-499 | J161: =IF(G161=Benchmarking!$I$4,1,0) -> 0 | K161: =IF(Benchmarking!$I$6="All",1,IF(Benchmarking!$I$6=H161,1,0)) -> 0 | L161: =IF(Benchmarking!$I$8="All",1,IF(Benchmarking!$I$8=I161,1,0)) -> 0 | M161: 0 | N161: 1131754.82 | O161: 3528 | P161: 428765.1 | Q161: 53380.25 | R161: 85470.31 | S161: 66697.84 | T161: 65503.41 | U161: 8339.73 | V161: 8502.98 | W161: 801.64 | X161: 9609.72 | Y161: 14756.92 | Z161: 6825.08 | AA161: 5679.38 | AB161: 5768.74 | AC161: 33797.18 | AD161: 35072 | AE161: 14108.27 | AF161: 177869.65 | AG161: 10575.7 | AH161: 0 | AI161: 39605.81 | AJ161: 15146.33 | AK161: 17393.85 | AL161: 65635.92 | AM161: 705 | AN161: 14180 | AO161: 49379.78 | AP161: 0 | AQ161: 0 | AR161: 6564.11 | AS161: 0 | AT161: 0 | AU161: -1509618.58 | AV161: -318599.92 | AW161: 0 | AX161: -85522 | AY161: 0 | AZ161: -16835 | BA161: 0 | BB161: -692.19 | BC161: -4815.91 | BD161: -127640.86 | BE161: -38402.05 | BF161: 0 | BG161: -66781.1 | BH161: -39896.43 | BI161: -7719.62 | BJ161: 0 | BK161: 0 | BL161: 0 | BM161: -97142 | BN161: 0 | BO161: 0 | BP161: -5544.35 | BQ161: -1913740.5 | BR161: 0 | BS161: 0 | BT161: 0 | BU161: 0 | BV161: 0 | BW161: 85522 | BX161: 85522
A162: 3123 | B162: Chislet CEP School | C162: 0 | D162: 98 | E162: 0 | F162: 4.916666667 | G162: No | H162: Junior | I162: 0-99 | J162: =IF(G162=Benchmarking!$I$4,1,0) -> 0 | K162: =IF(Benchmarking!$I$6="All",1,IF(Benchmarking!$I$6=H162,1,0)) -> 0 | L162: =IF(Benchmarking!$I$8="All",1,IF(Benchmarking!$I$8=I162,1,0)) -> 0 | M162: 0 | N162: 311427.49 | O162: 1820.72 | P162: 138021.76 | Q162: 1800.28 | R162: 30458.98 | S162: 0 | T162: 3244.63 | U162: 2148.8 | V162: 3722.5 | W162: 6301.65 | X162: 2261.88 | Y162: 4633.22 | Z162: 1662.26 | AA162: 3917.39 | AB162: 1537.21 | AC162: 6573.97 | AD162: 6113 | AE162: 7109.91 | AF162: 22048.98 | AG162: 7087.26 | AH162: 0 | AI162: 9212.62 | AJ162: 3466.3 | AK162: 1612.37 | AL162: 11756.45 | AM162: 15680 | AN162: 11703.63 | AO162: 16842.08 | AP162: 0 | AQ162: 0 | AR162: 7113 | AS162: 0 | AT162: 0 | AU162: -489198.58 | AV162: -52002.54 | AW162: 0 | AX162: -50166.04 | AY162: 0 | AZ162: -24930 | BA162: 0 | BB162: -1220 | BC162: 0 | BD162: -36485.53 | BE162: 0 | BF162: -3337.5 | BG162: -1043.69 | BH162: -5529.15 | BI162: -2453.04 | BJ162: 0 | BK162: 0 | BL162: 0 | BM162: -29044 | BN162: 0 | BO162: 0 | BP162: -2965.46 | BQ162: -591367.16 | BR162: 0 | BS162: 0 | BT162: 0 | BU162: 0 | BV162: 3932.35 | BW162: 46233.69 | BX162: 50166.04
A163: 3126 | B163: Littlebourne CEP School | C163: 0 | D163: 103 | E163: 0 | F163: 1.5 | G163: No | H163: Infant | I163: 100-199 | J163: =IF(G163=Benchmarking!$I$4,1,0) -> 0 | K163: =IF(Benchmarking!$I$6="All",1,IF(Benchmarking!$I$6=H163,1,0)) -> 0 | L163: =IF(Benchmarking!$I$8="All",1,IF(Benchmarking!$I$8=I163,1,0)) -> 0 | M163: 0 | N163: 360348.6 | O163: 940.53 | P163: 96448.04 | Q163: 10733.73 | R163: 32551.86 | S163: 0 | T163: 0 | U163: 2084.92 | V163: 4375.34 | W163: 2986.64 | X163: 2377.2 | Y163: 3197.49 | Z163: 5261.09 | AA163: 14933.18 | AB163: 4030.5 | AC163: 11246.39 | AD163: 11228 | AE163: 7096.56 | AF163: 32656.77 | AG163: 2933 | AH163: 0 | AI163: 4930.69 | AJ163: 3643.07 | AK163: 1441.84 | AL163: 20483.7 | AM163: 0 | AN163: 30104.81 | AO163: 17707.36 | AP163: 0 | AQ163: 0 | AR163: 29475 | AS163: 0 | AT163: 0 | AU163: -485985.68 | AV163: -67004.63 | AW163: 0 | AX163: -3746.88 | AY163: 0 | AZ163: -44527.5 | BA163: -30675 | BB163: 0 | BC163: -1080.39 | BD163: -10572.89 | BE163: 0 | BF163: -840 | BG163: -1441 | BH163: -4035.83 | BI163: -9419.75 | BJ163: 0 | BK163: 0 | BL163: 0 | BM163: -31814 | BN163: 0 | BO163: 0 | BP163: -7509.13 | BQ163: -556737.19 | BR163: 0 | BS163: 0 | BT163: 0 | BU163: 0 | BV163: 0 | BW163: 3746.88 | BX163: 3746.88
A164: 3129 | B164: St Alphege CEI School | C164: 28 | D164: 142 | E164: 0 | F164: 9.833333333 | G164: Yes | H164: Infant | I164: 100-199 | J164: =IF(G164=Benchmarking!$I$4,1,0) -> 0 | K164: =IF(Benchmarking!$I$6="All",1,IF(Benchmarking!$I$6=H164,1,0)) -> 0 | L164: =IF(Benchmarking!$I$8="All",1,IF(Benchmarking!$I$8=I164,1,0)) -> 0 | M164: 0 | N164: 477647.8 | O164: 0 | P164: 372204.09 | Q164: 46429.86 | R164: 78753.89 | S164: 0 | T164: 43227.09 | U164: 5040.15 | V164: 4323.81 | W164: 3276.77 | X164: 3393.36 | Y164: 9980.9 | Z164: 183.11 | AA164: 8275.48 | AB164: 1813.64 | AC164: 26158.58 | AD164: 31488 | AE164: 9068.33 | AF164: 23740.96 | AG164: 4334.98 | AH164: 0 | AI164: 12813.84 | AJ164: 5486.54 | AK164: 3603.08 | AL164: 57563.33 | AM164: 0 | AN164: 73251.71 | AO164: 12016.7 | AP164: 0 | AQ164: 0 | AR164: 0 | AS164: 0 | AT164: 0 | AU164: -847155.4 | AV164: -69639.65 | AW164: 0 | AX164: -132670.53 | AY164: 0 | AZ164: -54760 | BA164: 0 | BB164: -9662.49 | BC164: 0 | BD164: -54546.08 | BE164: -2870.11 | BF164: -1500 | BG164: -3152.95 | BH164: -10788.85 | BI164: -915.3 | BJ164: 0 | BK164: 0 | BL164: 0 | BM164: -72006 | BN164: 0 | BO164: 0 | BP164: -10755.05 | BQ164: -1049465.58 | BR164: 0 | BS164: 0 | BT164: 0 | BU164: 0 | BV164: 0 | BW164: 132670.53 | BX164: 132670.53
A165: 3130 | B165: Wickhambreaux CEP School | C165: 0 | D165: 129 | E165: 0 | F165: 4.583333333 | G165: No | H165: Primary | I165: 100-199 | J165: =IF(G165=Benchmarking!$I$4,1,0) -> 0 | K165: =IF(Benchmarking!$I$6="All",1,IF(Benchmarking!$I$6=H165,1,0)) -> 0 | L165: =IF(Benchmarking!$I$8="All",1,IF(Benchmarking!$I$8=I165,1,0)) -> 0 | M165: 0 | N165: 420113.66 | O165: 20287.8 | P165: 84941.46 | Q165: 0 | R165: 22644.21 | S165: 0 | T165: 12888.79 | U165: 2686.41 | V165: 3591.76 | W165: 3326.24 | X165: 2977.32 | Y165: 4687.37 | Z165: 1041.61 | AA165: 11515.52 | AB165: 7632 | AC165: 8316.92 | AD165: 8733 | AE165: 7074.48 | AF165: 43315.02 | AG165: 5668.09 | AH165: 0 | AI165: 17757.43 | AJ165: 5037.73 | AK165: 1662.84 | AL165: 19390.37 | AM165: 0 | AN165: 16379.64 | AO165: 17344.66 | AP165: 0 | AQ165: 0 | AR165: 11470.81 | AS165: 0 | AT165: 0 | AU165: -564273.98 | AV165: -32162.12 | AW165: 0 | AX165: -62198.52 | AY165: 0 | AZ165: -18005 | BA165: 0 | BB165: -1095.25 | BC165: 0 | BD165: -13626.39 | BE165: -1004.7 | BF165: 0 | BG165: 0 | BH165: -13755 | BI165: -2279.9 | BJ165: 0 | BK165: 0 | BL165: 0 | BM165: -39280 | BN165: 0 | BO165: 0 | BP165: -4055.38 | BQ165: -658634.62 | BR165: 0 | BS165: 0 | BT165: 0 | BU165: 0 | BV165: 12758.9 | BW165: 49439.62 | BX165: 62198.52
A166: 3134 | B166: John Mayne CEP School | C166: 0 | D166: 97 | E166: 0 | F166: 5 | G166: No | H166: Primary | I166: 0-99 | J166: =IF(G166=Benchmarking!$I$4,1,0) -> 0 | K166: =IF(Benchmarking!$I$6="All",1,IF(Benchmarking!$I$6=H166,1,0)) -> 0 | L166: =IF(Benchmarking!$I$8="All",1,IF(Benchmarking!$I$8=I166,1,0)) -> 0 | M166: 0 | N166: 326006.89 | O166: 0 | P166: 137132.13 | Q166: 7986.6 | R166: 41475.85 | S166: 0 | T166: 282.44 | U166: 1975.36 | V166: 4529.5 | W166: 4835.59 | X166: 2335.71 | Y166: 6329.13 | Z166: 3836.77 | AA166: 14181.72 | AB166: 1564.29 | AC166: 20987.84 | AD166: 14222 | AE166: 4490.45 | AF166: 22366.64 | AG166: 4760.89 | AH166: 0 | AI166: 5872 | AJ166: 3818.84 | AK166: 269.67 | AL166: 18196.95 | AM166: 21112.81 | AN166: 18085.56 | AO166: 43189.54 | AP166: 0 | AQ166: 0 | AR166: 0 | AS166: 0 | AT166: 0 | AU166: -505389.34 | AV166: -38809.18 | AW166: 0 | AX166: -39388.38 | AY166: 0 | AZ166: -18670 | BA166: -25000 | BB166: -3975 | BC166: 0 | BD166: -6844.55 | BE166: 0 | BF166: -15400 | BG166: 0 | BH166: -10086.5 | BI166: -2258.89 | BJ166: 0 | BK166: 0 | BL166: 0 | BM166: -34071 | BN166: 0 | BO166: 0 | BP166: -3667.63 | BQ166: -583586.9 | BR166: 0 | BS166: 0 | BT166: 0 | BU166: 0 | BV166: 10595.4 | BW166: 28792.98 | BX166: 39388.38
A167: 3136 | B167: Brabourne CEP School | C167: 0 | D167: 102 | E167: 0 | F167: 3.5 | G167: No | H167: Primary | I167: 100-199 | J167: =IF(G167=Benchmarking!$I$4,1,0) -> 0 | K167: =IF(Benchmarking!$I$6="All",1,IF(Benchmarking!$I$6=H167,1,0)) -> 0 | L167: =IF(Benchmarking!$I$8="All",1,IF(Benchmarking!$I$8=I167,1,0)) -> 0 | M167: 0 | N167: 303983.17 | O167: 14656.07 | P167: 112085.74 | Q167: 2398.68 | R167: 27651.36 | S167: 0 | T167: 0 | U167: 2622.15 | V167: 2498.33 | W167: 1993.92 | X167: 2354.16 | Y167: 4774.41 | Z167: 3620.48 | AA167: 13162.06 | AB167: 545.68 | AC167: 13625.53 | AD167: 6312.88 | AE167: 6770.27 | AF167: 33961.74 | AG167: 7566 | AH167: 0 | AI167: 6228.84 | AJ167: 3607.74 | AK167: 596.46 | AL167: 20615.98 | AM167: 1404 | AN167: 20681.16 | AO167: 22571.64 | AP167: 0 | AQ167: 0 | AR167: 0 | AS167: 0 | AT167: 0 | AU167: -471173.92 | AV167: -28885.3 | AW167: 0 | AX167: -46689.18 | AY167: 0 | AZ167: -17895.4 | BA167: -800 | BB167: -720 | BC167: 0 | BD167: -16992.9 | BE167: 0 | BF167: -1389.86 | BG167: 0 | BH167: -6976.65 | BI167: -10752.61 | BJ167: 0 | BK167: 0 | BL167: 0 | BM167: -35550 | BN167: 0 | BO167: 0 | BP167: -3265.63 | BQ167: -546748.4 | BR167: 0 | BS167: 0 | BT167: 0 | BU167: 0 | BV167: 10890.18 | BW167: 35799 | BX167: 46689.18
A168: 3137 | B168: Brookland CEP School | C168: 0 | D168: 88 | E168: 0 | F168: 2.666666667 | G168: No | H168: Primary | I168: 0-99 | J168: =IF(G168=Benchmarking!$I$4,1,0) -> 0 | K168: =IF(Benchmarking!$I$6="All",1,IF(Benchmarking!$I$6=H168,1,0)) -> 0 | L168: =IF(Benchmarking!$I$8="All",1,IF(Benchmarking!$I$8=I168,1,0)) -> 0 | M168: 0 | N168: 346142.53 | O168: 9916.38 | P168: 89080.99 | Q168: 3090.54 | R168: 36574.57 | S168: 0 | T168: 16588.29 | U168: 2408.51 | V168: 3530.05 | W168: 3010.83 | X168: 2328 | Y168: 300.51 | Z168: 2607.36 | AA168: 12602.17 | AB168: 569.57 | AC168: 6965.49 | AD168: 11976 | AE168: 5221.01 | AF168: 26691.03 | AG168: 2586.67 | AH168: 0 | AI168: 5046.73 | AJ168: 3112.52 | AK168: 619.05 | AL168: 16965.4 | AM168: 0 | AN168: 1782 | AO168: 13237.59 | AP168: 0 | AQ168: 0 | AR168: 0 | AS168: 0 | AT168: 0 | AU168: -443179.54 | AV168: -44083.01 | AW168: 0 | AX168: -28566.19 | AY168: 0 | AZ168: -18325 | BA168: 0 | BB168: -8099.22 | BC168: 0 | BD168: -18779.2 | BE168: -6442.81 | BF168: 0 | BG168: 0 | BH168: -4059.9 | BI168: -1563.75 | BJ168: 0 | BK168: 0 | BL168: 0 | BM168: -30105 | BN168: 0 | BO168: 0 | BP168: -4554.75 | BQ168: -515828.74 | BR168: 0 | BS168: 0 | BT168: 0 | BU168: 0 | BV168: 4244.48 | BW168: 24321.71 | BX168: 28566.19
A169: 3138 | B169: Chilham, St Marys CEP School | C169: 0 | D169: 88 | E169: 0 | F169: 3.416666667 | G169: No | H169: Primary | I169: 0-99 | J169: =IF(G169=Benchmarking!$I$4,1,0) -> 0 | K169: =IF(Benchmarking!$I$6="All",1,IF(Benchmarking!$I$6=H169,1,0)) -> 0 | L169: =IF(Benchmarking!$I$8="All",1,IF(Benchmarking!$I$8=I169,1,0)) -> 0 | M169: 0 | N169: 320665.62 | O169: 5644.05 | P169: 90697.35 | Q169: 8321.94 | R169: 46076.28 | S169: 0 | T169: 6411.15 | U169: 2010 | V169: 4526.04 | W169: 4124.93 | X169: 2031 | Y169: 8803.49 | Z169: 2215.25 | AA169: 13774.68 | AB169: 2901.03 | AC169: 24038.32 | AD169: 8358 | AE169: 15758.7 | AF169: 19911.42 | AG169: 8666.85 | AH169: 0 | AI169: 7857.47 | AJ169: 3112.52 | AK169: 0 | AL169: 19079.24 | AM169: 22284.72 | AN169: 8524.4 | AO169: 4809.26 | AP169: 0 | AQ169: 0 | AR169: 0 | AS169: 0 | AT169: 0 | AU169: -486881.63 | AV169: -42105.79 | AW169: 0 | AX169: -32309.57 | AY169: 0 | AZ169: -34625 | BA169: 0 | BB169: -2303.34 | BC169: 0 | BD169: -6194.31 | BE169: -362.17 | BF169: -8558.91 | BG169: 0 | BH169: -940.56 | BI169: -17050.62 | BJ169: 0 | BK169: 0 | BL169: 0 | BM169: -29122 | BN169: 0 | BO169: 0 | BP169: -7313.88 | BQ169: -561296.99 | BR169: 0 | BS169: 0 | BT169: 0 | BU169: 0 | BV169: 6113.92 | BW169: 26195.65 | BX169: 32309.57
A170: 3139 | B170: High Halden CEP School | C170: 0 | D170: 100 | E170: 0 | F170: 7 | G170: No | H170: Primary | I170: 100-199 | J170: =IF(G170=Benchmarking!$I$4,1,0) -> 0 | K170: =IF(Benchmarking!$I$6="All",1,IF(Benchmarking!$I$6=H170,1,0)) -> 0 | L170: =IF(Benchmarking!$I$8="All",1,IF(Benchmarking!$I$8=I170,1,0)) -> 0 | M170: 0 | N170: 316989.6 | O170: 0 | P170: 142992.67 | Q170: 0 | R170: 38542.22 | S170: 0 | T170: 7492.64 | U170: 2456.39 | V170: 4267.46 | W170: 196 | X170: 2307.96 | Y170: 11780.18 | Z170: 7385.72 | AA170: 8027 | AB170: 2223.46 | AC170: 14707.8 | AD170: 15968 | AE170: 5313.96 | AF170: 41349.58 | AG170: 10125.02 | AH170: 0 | AI170: 11465.04 | AJ170: 3536.96 | AK170: 6544.13 | AL170: 26779.98 | AM170: 3980.63 | AN170: 12251.32 | AO170: 10559.18 | AP170: 0 | AQ170: 0 | AR170: 0 | AS170: 0 | AT170: 0 | AU170: -520577.92 | AV170: -43270.21 | AW170: 0 | AX170: -64752.78 | AY170: 0 | AZ170: -23865 | BA170: 0 | BB170: -3379.13 | BC170: 0 | BD170: -6540.94 | BE170: -11418.43 | BF170: 0 | BG170: 0 | BH170: -5488.7 | BI170: -8341.41 | BJ170: 0 | BK170: 0 | BL170: 0 | BM170: -33454 | BN170: 0 | BO170: 0 | BP170: -4307.22 | BQ170: -628600.91 | BR170: 0 | BS170: 0 | BT170: 0 | BU170: 0 | BV170: 11711.28 | BW170: 53041.5 | BX170: 64752.78
A171: 3145 | B171: Woodchurch CEP School | C171: 0 | D171: 162 | E171: 0 | F171: 11.58333333 | G171: No | H171: Primary | I171: 100-199 | J171: =IF(G171=Benchmarking!$I$4,1,0) -> 0 | K171: =IF(Benchmarking!$I$6="All",1,IF(Benchmarking!$I$6=H171,1,0)) -> 0 | L171: =IF(Benchmarking!$I$8="All",1,IF(Benchmarking!$I$8=I171,1,0)) -> 0 | M171: 0 | N171: 440185.05 | O171: 0 | P171: 206436.83 | Q171: 4982.28 | R171: 41126.89 | S171: 0 | T171: 16326.73 | U171: 4525.37 | V171: 3969.92 | W171: 317.52 | X171: 3738.96 | Y171: 13824.55 | Z171: 3246.97 | AA171: 12784.92 | AB171: 2721.68 | AC171: 20411.88 | AD171: 12226 | AE171: 7558.97 | AF171: 41021.19 | AG171: 5927.83 | AH171: 0 | AI171: 15075.57 | AJ171: 5729.94 | AK171: 3801.84 | AL171: 29929.44 | AM171: 63008.33 | AN171: 66363.6 | AO171: 21662.29 | AP171: 0 | AQ171: 0 | AR171: 18406 | AS171: 0 | AT171: 0 | AU171: -735252.3 | AV171: -79432.18 | AW171: 0 | AX171: -97433.69 | AY171: 0 | AZ171: -66053 | BA171: 0 | BB171: -500 | BC171: -508.11 | BD171: -7569.06 | BE171: 0 | BF171: 0 | BG171: -10808.34 | BH171: -8512.27 | BI171: -5017.15 | BJ171: 0 | BK171: 0 | BL171: 0 | BM171: -39625 | BN171: 0 | BO171: 0 | BP171: -10728.71 | BQ171: -912118.17 | BR171: 0 | BS171: 0 | BT171: 0 | BU171: 0 | BV171: 0 | BW171: 97433.69 | BX171: 97433.69
A172: 3146 | B172: Bodsham CEP School | C172: 0 | D172: 75 | E172: 0 | F172: 1.916666667 | G172: No | H172: Primary | I172: 0-99 | J172: =IF(G172=Benchmarking!$I$4,1,0) -> 0 | K172: =IF(Benchmarking!$I$6="All",1,IF(Benchmarking!$I$6=H172,1,0)) -> 0 | L172: =IF(Benchmarking!$I$8="All",1,IF(Benchmarking!$I$8=I172,1,0)) -> 0 | M172: 0 | N172: 294574.43 | O172: 5620.09 | P172: 83125.68 | Q172: 11644.1 | R172: 36927.49 | S172: 96 | T172: 6757.85 | U172: 1516.18 | V172: 1397 | W172: 3384.64 | X172: 2365.04 | Y172: 5097.66 | Z172: 1575.12 | AA172: 624.35 | AB172: 1117.17 | AC172: 7435.26 | AD172: 9647.58 | AE172: 6208.23 | AF172: 26257.96 | AG172: 4106.1 | AH172: 0 | AI172: 5641.71 | AJ172: 2992.71 | AK172: 455.72 | AL172: 15310.84 | AM172: 6225 | AN172: 5245.55 | AO172: 10166.44 | AP172: 0 | AQ172: 0 | AR172: 0 | AS172: 0 | AT172: 0 | AU172: -429656.29 | AV172: -25504.71 | AW172: 0 | AX172: -22096.73 | AY172: 0 | AZ172: -5540 | BA172: 0 | BB172: -20687.58 | BC172: 0 | BD172: -5492.17 | BE172: -1008.21 | BF172: -3150 | BG172: -1050 | BH172: -11455.7 | BI172: -2850.82 | BJ172: 0 | BK172: 0 | BL172: 0 | BM172: -32279 | BN172: 0 | BO172: 0 | BP172: -2259.88 | BQ172: -477257.73 | BR172: 0 | BS172: 0 | BT172: 0 | BU172: 0 | BV172: 6611.58 | BW172: 15485.15 | BX172: 22096.73
A173: 3149 | B173: St Martins CEP School, Folkestone | C173: 0 | D173: 208 | E173: 0 | F173: 10.91666667 | G173: No | H173: Primary | I173: 200-299 | J173: =IF(G173=Benchmarking!$I$4,1,0) -> 0 | K173: =IF(Benchmarking!$I$6="All",1,IF(Benchmarking!$I$6=H173,1,0)) -> 0 | L173: =IF(Benchmarking!$I$8="All",1,IF(Benchmarking!$I$8=I173,1,0)) -> 0 | M173: 0 | N173: 562246.12 | O173: 3797.74 | P173: 281389.82 | Q173: 19914.48 | R173: 34053.89 | S173: 0 | T173: 46156.27 | U173: 3881.54 | V173: 7153.34 | W173: 7489.72 | X173: 4800.6 | Y173: 5679.65 | Z173: 4950 | AA173: 19793.25 | AB173: 2328.59 | AC173: 21174.68 | AD173: 19511 | AE173: 8850.22 | AF173: 70714.98 | AG173: 5314.49 | AH173: 0 | AI173: 21373.79 | AJ173: 7356.92 | AK173: 1888.43 | AL173: 56153.45 | AM173: 895 | AN173: 15624.4 | AO173: 26120.54 | AP173: 0 | AQ173: 0 | AR173: 2121.79 | AS173: 0 | AT173: 0 | AU173: -892205.3 | AV173: -89287.35 | AW173: 0 | AX173: -80077.07 | AY173: 0 | AZ173: -62755 | BA173: 0 | BB173: -1250 | BC173: 0 | BD173: -12789.81 | BE173: -13230.33 | BF173: 0 | BG173: 0 | BH173: -6083.7 | BI173: -3000 | BJ173: 0 | BK173: 0 | BL173: 0 | BM173: -50166 | BN173: 0 | BO173: 0 | BP173: -10506.91 | BQ173: -1061569.72 | BR173: 0 | BS173: 0 | BT173: 0 | BU173: 0 | BV173: 0 | BW173: 80077.07 | BX173: 80077.07
A174: 3150 | B174: St Peters CEP School, Folkestone | C174: 0 | D174: 104 | E174: 0 | F174: 5.416666667 | G174: No | H174: Primary | I174: 100-199 | J174: =IF(G174=Benchmarking!$I$4,1,0) -> 0 | K174: =IF(Benchmarking!$I$6="All",1,IF(Benchmarking!$I$6=H174,1,0)) -> 0 | L174: =IF(Benchmarking!$I$8="All",1,IF(Benchmarking!$I$8=I174,1,0)) -> 0 | M174: 0 | N174: 480383.98 | O174: 6598.9 | P174: 124043.6 | Q174: 21825.32 | R174: 27446.41 | S174: 0 | T174: 5837.41 | U174: 4337.36 | V174: 4992.83 | W174: 4611.99 | X174: 2400.36 | Y174: 7434.98 | Z174: 1143.12 | AA174: 8197.07 | AB174: 3626.79 | AC174: 10005.67 | AD174: 2138 | AE174: 37155.11 | AF174: 37999.7 | AG174: 6563.95 | AH174: 0 | AI174: 13736.75 | AJ174: 3678.52 | AK174: 2354.45 | AL174: 24815.37 | AM174: 0 | AN174: 7169 | AO174: 12338.28 | AP174: 0 | AQ174: 0 | AR174: 0 | AS174: 0 | AT174: 0 | AU174: -518015.39 | AV174: -117321.62 | AW174: 0 | AX174: -56907.33 | AY174: 0 | AZ174: -65735 | BA174: 0 | BB174: -8411.66 | BC174: 0 | BD174: -46880.39 | BE174: 0 | BF174: -608 | BG174: 0 | BH174: -7036.45 | BI174: -2991.5 | BJ174: 0 | BK174: 0 | BL174: 0 | BM174: -27441 | BN174: 0 | BO174: 0 | BP174: -14139.97 | BQ174: -692244.34 | BR174: 0 | BS174: 0 | BT174: 0 | BU174: 0 | BV174: 0 | BW174: 56907.33 | BX174: 56907.33
A175: 3153 | B175: Seabrook CEP School | C175: 0 | D175: 106 | E175: 0 | F175: 7.25 | G175: No | H175: Primary | I175: 100-199 | J175: =IF(G175=Benchmarking!$I$4,1,0) -> 0 | K175: =IF(Benchmarking!$I$6="All",1,IF(Benchmarking!$I$6=H175,1,0)) -> 0 | L175: =IF(Benchmarking!$I$8="All",1,IF(Benchmarking!$I$8=I175,1,0)) -> 0 | M175: 0 | N175: 335661.41 | O175: 775.78 | P175: 151546.43 | Q175: 8332.55 | R175: 24704.61 | S175: 0 | T175: 26772.92 | U175: 2456.18 | V175: 4221.18 | W175: 3966.62 | X175: 2446.44 | Y175: 8043.76 | Z175: 103.55 | AA175: 8921.21 | AB175: 1536.58 | AC175: 11063.49 | AD175: 509 | AE175: 8670.47 | AF175: 51871.89 | AG175: 7310.41 | AH175: 0 | AI175: 11642.36 | AJ175: 3749.18 | AK175: 72.91 | AL175: 17651.44 | AM175: 0 | AN175: 5037.19 | AO175: 17168.46 | AP175: 0 | AQ175: 0 | AR175: 0 | AS175: 0 | AT175: 0 | AU175: -497332.54 | AV175: -42193.14 | AW175: 0 | AX175: -54589.5 | AY175: 0 | AZ175: -21615 | BA175: 0 | BB175: -5304.55 | BC175: 0 | BD175: -8919.26 | BE175: 0 | BF175: 0 | BG175: 0 | BH175: -11984.76 | BI175: -3491.77 | BJ175: 0 | BK175: 0 | BL175: 0 | BM175: -35244 | BN175: 0 | BO175: 0 | BP175: -5319.18 | BQ175: -594115.18 | BR175: 0 | BS175: 0 | BT175: 0 | BU175: 0 | BV175: 12909.93 | BW175: 41679.57 | BX175: 54589.5
A176: 3154 | B176: Lyminge CEP School | C176: 0 | D176: 196 | E176: 0 | F176: 6 | G176: No | H176: Primary | I176: 100-199 | J176: =IF(G176=Benchmarking!$I$4,1,0) -> 0 | K176: =IF(Benchmarking!$I$6="All",1,IF(Benchmarking!$I$6=H176,1,0)) -> 0 | L176: =IF(Benchmarking!$I$8="All",1,IF(Benchmarking!$I$8=I176,1,0)) -> 0 | M176: 0 | N176: 494259.85 | O176: 2340.14 | P176: 188371.62 | Q176: 37786.73 | R176: 41654.19 | S176: 0 | T176: 11293.09 | U176: 3173.68 | V176: 4882.81 | W176: 3874.51 | X176: 4523.64 | Y176: 7367.01 | Z176: 4704.04 | AA176: 1861.15 | AB176: 3260.6 | AC176: 18288.61 | AD176: 28160 | AE176: 6304.19 | AF176: 42784.93 | AG176: 11227.09 | AH176: 0 | AI176: 15866.5 | AJ176: 6932.48 | AK176: 1031.57 | AL176: 29289.82 | AM176: 0 | AN176: 15951 | AO176: 15639.8 | AP176: 0 | AQ176: 0 | AR176: 0 | AS176: 0 | AT176: 0 | AU176: -809682.87 | AV176: -89110.26 | AW176: 0 | AX176: -26930.69 | AY176: 0 | AZ176: -33185 | BA176: 0 | BB176: -5344.93 | BC176: -30 | BD176: -7225.71 | BE176: 0 | BF176: -240 | BG176: 0 | BH176: -7076.76 | BI176: -10466 | BJ176: 0 | BK176: 0 | BL176: 0 | BM176: -48380 | BN176: 0 | BO176: 0 | BP176: -5368.27 | BQ176: -925723.82 | BR176: 0 | BS176: 0 | BT176: 0 | BU176: 0 | BV176: 0 | BW176: 26930.69 | BX176: 26930.69
A177: 3155 | B177: Lympne CEP School | C177: 0 | D177: 200 | E177: 0 | F177: 1 | G177: No | H177: Primary | I177: 200-299 | J177: =IF(G177=Benchmarking!$I$4,1,0) -> 0 | K177: =IF(Benchmarking!$I$6="All",1,IF(Benchmarking!$I$6=H177,1,0)) -> 0 | L177: =IF(Benchmarking!$I$8="All",1,IF(Benchmarking!$I$8=I177,1,0)) -> 0 | M177: 0 | N177: 475737.49 | O177: 0 | P177: 200497.93 | Q177: 14662.15 | R177: 51612.36 | S177: 0 | T177: 27731.23 | U177: 5529.81 | V177: 8006.37 | W177: 2720 | X177: 4616.04 | Y177: 7815.63 | Z177: 6412.64 | AA177: 10869.91 | AB177: 4125.3 | AC177: 22854.14 | AD177: 45824 | AE177: 6975.08 | AF177: 50283.91 | AG177: 14193.67 | AH177: 0 | AI177: 8568.71 | AJ177: 7074.04 | AK177: 759.87 | AL177: 27190.92 | AM177: 7249 | AN177: 25920.09 | AO177: 27254.03 | AP177: 0 | AQ177: 1549.22 | AR177: 0 | AS177: 0 | AT177: 0 | AU177: -830073.74 | AV177: -93402.26 | AW177: 0 | AX177: -2347.83 | AY177: 0 | AZ177: -24425 | BA177: -1500 | BB177: 0 | BC177: 0 | BD177: -21817.59 | BE177: -677.42 | BF177: -5966.1 | BG177: -662.9 | BH177: -7276 | BI177: -6367.06 | BJ177: 0 | BK177: 0 | BL177: 0 | BM177: -56385 | BN177: 0 | BO177: 0 | BP177: -5337.26 | BQ177: -925823.83 | BR177: 0 | BS177: 0 | BT177: 0 | BU177: 0 | BV177: 0 | BW177: 2347.83 | BX177: 2347.83
A178: 3158 | B178: Stelling Minnis CEP School | C178: 0 | D178: 75 | E178: 0 | F178: 4.583333333 | G178: No | H178: Primary | I178: 0-99 | J178: =IF(G178=Benchmarking!$I$4,1,0) -> 0 | K178: =IF(Benchmarking!$I$6="All",1,IF(Benchmarking!$I$6=H178,1,0)) -> 0 | L178: =IF(Benchmarking!$I$8="All",1,IF(Benchmarking!$I$8=I178,1,0)) -> 0 | M178: 0 | N178: 316933.71 | O178: 11144.53 | P178: 101460.62 | Q178: 1981.44 | R178: 36941.58 | S178: 0 | T178: 19079.79 | U178: 2070.62 | V178: 3027 | W178: 3344.7 | X178: 1731 | Y178: 5674.7 | Z178: 2310 | AA178: 13611.96 | AB178: 1131.36 | AC178: 12979.47 | AD178: 14097 | AE178: 2924.79 | AF178: 29374.21 | AG178: 11087.47 | AH178: 0 | AI178: 6101.53 | AJ178: 2652.75 | AK178: 0 | AL178: 21869.49 | AM178: 10004.82 | AN178: 13923.34 | AO178: 14398.33 | AP178: 0 | AQ178: 0 | AR178: 0 | AS178: 0 | AT178: 0 | AU178: -448593.2 | AV178: -32737.82 | AW178: 0 | AX178: -61321.09 | AY178: 0 | AZ178: -20590 | BA178: -1200 | BB178: -9716.67 | BC178: 0 | BD178: -16366.93 | BE178: -3773.55 | BF178: -900 | BG178: -12980.06 | BH178: -7796.58 | BI178: -9168.67 | BJ178: 0 | BK178: 0 | BL178: 0 | BM178: -31066 | BN178: 0 | BO178: 0 | BP178: -4952.8 | BQ178: -542652.11 | BR178: 0 | BS178: 0 | BT178: 0 | BU178: 0 | BV178: 12495.45 | BW178: 48825.64 | BX178: 61321.09
A179: 3159 | B179: Stowting CEP School | C179: 0 | D179: 106 | E179: 0 | F179: 5.416666667 | G179: No | H179: Primary | I179: 100-199 | J179: =IF(G179=Benchmarking!$I$4,1,0) -> 0 | K179: =IF(Benchmarking!$I$6="All",1,IF(Benchmarking!$I$6=H179,1,0)) -> 0 | L179: =IF(Benchmarking!$I$8="All",1,IF(Benchmarking!$I$8=I179,1,0)) -> 0 | M179: 0 | N179: 322098.31 | O179: 3522.95 | P179: 132290.49 | Q179: 6915.5 | R179: 29819.43 | S179: 0 | T179: 17406.71 | U179: 2796.49 | V179: 4962.73 | W179: 2176.76 | X179: 2446.44 | Y179: 4210.95 | Z179: 5858.09 | AA179: 13720.14 | AB179: 2440.7 | AC179: 11926.36 | AD179: 13972 | AE179: 5004.14 | AF179: 38170.51 | AG179: 4873.14 | AH179: 0 | AI179: 7392.84 | AJ179: 3749.18 | AK179: 1897.88 | AL179: 32876.59 | AM179: 0 | AN179: 24293.15 | AO179: 22483.2 | AP179: 0 | AQ179: 0 | AR179: 79309.77 | AS179: 0 | AT179: 0 | AU179: -526017.78 | AV179: -28160.36 | AW179: 0 | AX179: -70305.71 | AY179: 0 | AZ179: -25900 | BA179: -21910.44 | BB179: -3975 | BC179: -786 | BD179: -30127.44 | BE179: -9940.1 | BF179: 0 | BG179: 0 | BH179: -10310.8 | BI179: -37977.1 | BJ179: 0 | BK179: 0 | BL179: 0 | BM179: -37423 | BN179: 0 | BO179: 0 | BP179: -3924.46 | BQ179: -624483.85 | BR179: 0 | BS179: 0 | BT179: 0 | BU179: 0 | BV179: 17246.45 | BW179: 53059.26 | BX179: 70305.71
A180: 3160 | B180: Selsted CEP School | C180: 0 | D180: 101 | E180: 0 | F180: 2.75 | G180: No | H180: Primary | I180: 100-199 | J180: =IF(G180=Benchmarking!$I$4,1,0) -> 0 | K180: =IF(Benchmarking!$I$6="All",1,IF(Benchmarking!$I$6=H180,1,0)) -> 0 | L180: =IF(Benchmarking!$I$8="All",1,IF(Benchmarking!$I$8=I180,1,0)) -> 0 | M180: 0 | N180: 328368.67 | O180: 2430 | P180: 102242.32 | Q180: 1807.65 | R180: 23222.27 | S180: 0 | T180: 51.97 | U180: 1983.42 | V180: 4742.56 | W180: 367.39 | X180: 4965.37 | Y180: 18901.26 | Z180: 2232.22 | AA180: 11996.09 | AB180: 3956.27 | AC180: 20695.53 | AD180: 10978 | AE180: 13753.1 | AF180: 50501.25 | AG180: 5365.93 | AH180: 0 | AI180: 6752.29 | AJ180: 4347.99 | AK180: 2468.47 | AL180: 25029.56 | AM180: 0 | AN180: 404 | AO180: 12637 | AP180: 0 | AQ180: 0 | AR180: 0 | AS180: 0 | AT180: 0 | AU180: -502798.3 | AV180: -40880.64 | AW180: 0 | AX180: -25505.5 | AY180: 0 | AZ180: -27477.38 | BA180: 0 | BB180: -3734.69 | BC180: -1070 | BD180: -4115.49 | BE180: -7365.08 | BF180: -1000 | BG180: -1637.39 | BH180: -6678 | BI180: -6702.61 | BJ180: 0 | BK180: 0 | BL180: 0 | BM180: -34398 | BN180: 0 | BO180: 0 | BP180: -1947.29 | BQ180: -569184.44 | BR180: 0 | BS180: 0 | BT180: 0 | BU180: 0 | BV180: 5257.89 | BW180: 20247.61 | BX180: 25505.5
A181: 3167 | B181: Eastry CEP School | C181: 0 | D181: 181 | E181: 0 | F181: 10.83333333 | G181: No | H181: Primary | I181: 100-199 | J181: =IF(G181=Benchmarking!$I$4,1,0) -> 0 | K181: =IF(Benchmarking!$I$6="All",1,IF(Benchmarking!$I$6=H181,1,0)) -> 0 | L181: =IF(Benchmarking!$I$8="All",1,IF(Benchmarking!$I$8=I181,1,0)) -> 0 | M181: 0 | N181: 563702.41 | O181: 8597.25 | P181: 215410 | Q181: 39414.66 | R181: 59562.73 | S181: 0 | T181: 14114.85 | U181: 3674.33 | V181: 4585.5 | W181: 3433.76 | X181: 723.96 | Y181: 9733.8 | Z181: 5988.08 | AA181: 2911.06 | AB181: 1657.23 | AC181: 16296.25 | AD181: 17465 | AE181: 4025.37 | AF181: 51777.77 | AG181: 16301.31 | AH181: 0 | AI181: 9633.13 | AJ181: 6401.93 | AK181: 1597.95 | AL181: 35421.81 | AM181: 1189 | AN181: 0 | AO181: 11927.76 | AP181: 0 | AQ181: 0 | AR181: 0 | AS181: 0 | AT181: 0 | AU181: -790377.19 | AV181: -99817.97 | AW181: 0 | AX181: -72489.45 | AY181: 0 | AZ181: -63695 | BA181: -175 | BB181: -2.35 | BC181: 0 | BD181: -9007.33 | BE181: 0 | BF181: -1300 | BG181: 0 | BH181: -12528.67 | BI181: -11963.56 | BJ181: 0 | BK181: 0 | BL181: 0 | BM181: -39424 | BN181: 0 | BO181: 0 | BP181: -13653.08 | BQ181: -962684.61 | BR181: 0 | BS181: 0 | BT181: 0 | BU181: 0 | BV181: 0 | BW181: 72489.45 | BX181: 72489.45
A182: 3168 | B182: Goodnestone CEP School | C182: 0 | D182: 45 | E182: 0 | F182: 8.416666667 | G182: No | H182: Infant | I182: 0-99 | J182: =IF(G182=Benchmarking!$I$4,1,0) -> 0 | K182: =IF(Benchmarking!$I$6="All",1,IF(Benchmarking!$I$6=H182,1,0)) -> 0 | L182: =IF(Benchmarking!$I$8="All",1,IF(Benchmarking!$I$8=I182,1,0)) -> 0 | M182: 0 | N182: 239725.15 | O182: 1066.22 | P182: 128027.34 | Q182: 82.19 | R182: 20343.27 | S182: 0 | T182: 22765.29 | U182: 1906.91 | V182: 2880.7 | W182: 3997.31 | X182: 1038.6 | Y182: 1963.23 | Z182: 2651.56 | AA182: 5866.7 | AB182: 599.46 | AC182: 8392.9 | AD182: 3443 | AE182: 4217.79 | AF182: 15052.29 | AG182: 7638.61 | AH182: 0 | AI182: 10676.83 | AJ182: 1591.65 | AK182: 581.84 | AL182: 12207.61 | AM182: 868.77 | AN182: 3309.4 | AO182: 13926.18 | AP182: 0 | AQ182: 0 | AR182: 71571 | AS182: 0 | AT182: 0 | AU182: -344076.8 | AV182: -47615.24 | AW182: 0 | AX182: -86285.6 | AY182: 0 | AZ182: -12105 | BA182: 0 | BB182: -2964.87 | BC182: 0 | BD182: -4301.02 | BE182: -93.33 | BF182: -130 | BG182: -553.17 | BH182: -2334.3 | BI182: -250 | BJ182: 0 | BK182: 0 | BL182: 0 | BM182: -27728 | BN182: 0 | BO182: 0 | BP182: -3129.13 | BQ182: -477977.64 | BR182: 0 | BS182: 0 | BT182: 0 | BU182: 0 | BV182: 10424.21 | BW182: 75861.39 | BX182: 86285.6
A183: 3169 | B183: Guston CEP School | C183: 0 | D183: 148 | E183: 0 | F183: 2.25 | G183: No | H183: Primary | I183: 100-199 | J183: =IF(G183=Benchmarking!$I$4,1,0) -> 0 | K183: =IF(Benchmarking!$I$6="All",1,IF(Benchmarking!$I$6=H183,1,0)) -> 0 | L183: =IF(Benchmarking!$I$8="All",1,IF(Benchmarking!$I$8=I183,1,0)) -> 0 | M183: 0 | N183: 516974.49 | O183: 463 | P183: 167792.14 | Q183: 31490.59 | R183: 45409.79 | S183: 0 | T183: 0 | U183: 3407.03 | V183: 3866.79 | W183: 2371.37 | X183: 3415.8 | Y183: 3825.16 | Z183: 3794.27 | AA183: 797.35 | AB183: 4632.81 | AC183: 16507.89 | AD183: 19461 | AE183: 7686.82 | AF183: 32549.97 | AG183: 24619.23 | AH183: 0 | AI183: 7781.75 | AJ183: 5238.88 | AK183: 5457.65 | AL183: 25774.8 | AM183: 1345.8 | AN183: 15710.7 | AO183: 17358.69 | AP183: 0 | AQ183: 0 | AR183: 0 | AS183: 0 | AT183: 0 | AU183: -703149.05 | AV183: -99691.56 | AW183: 0 | AX183: -17895.3 | AY183: 0 | AZ183: -48500 | BA183: -17582.82 | BB183: -4580.68 | BC183: -329 | BD183: -5904.11 | BE183: 0 | BF183: 0 | BG183: 0 | BH183: -7452.33 | BI183: -222.93 | BJ183: 0 | BK183: 0 | BL183: 0 | BM183: -42836 | BN183: 0 | BO183: 0 | BP183: -5832.59 | BQ183: -820735.91 | BR183: 0 | BS183: 0 | BT183: 0 | BU183: 0 | BV183: 0 | BW183: 17895.3 | BX183: 17895.3
A184: 3171 | B184: Nonington CEP School | C184: 0 | D184: 45 | E184: 0 | F184: 5.916666667 | G184: No | H184: Primary | I184: 0-99 | J184: =IF(G184=Benchmarking!$I$4,1,0) -> 0 | K184: =IF(Benchmarking!$I$6="All",1,IF(Benchmarking!$I$6=H184,1,0)) -> 0 | L184: =IF(Benchmarking!$I$8="All",1,IF(Benchmarking!$I$8=I184,1,0)) -> 0 | M184: 0 | N184: 181300.62 | O184: 0 | P184: 87780.26 | Q184: 6103.49 | R184: 24373.34 | S184: 0 | T184: 17712.94 | U184: 1970.58 | V184: 2745.7 | W184: 3791.17 | X184: 1038.6 | Y184: 7200.94 | Z184: 3336.11 | AA184: 1810.86 | AB184: 912.65 | AC184: 19099.88 | AD184: 9606 | AE184: 3132.07 | AF184: 21048.43 | AG184: 11108.79 | AH184: 0 | AI184: 7775.44 | AJ184: 1591.65 | AK184: 6695.27 | AL184: 11833.65 | AM184: 25177.19 | AN184: 2311 | AO184: 14338.3 | AP184: 0 | AQ184: 0 | AR184: 31580 | AS184: 0 | AT184: 0 | AU184: -315538.53 | AV184: -41421.77 | AW184: 0 | AX184: -68654.55 | AY184: 0 | AZ184: -29085 | BA184: 0 | BB184: -10005.64 | BC184: 0 | BD184: -547.3 | BE184: 0 | BF184: -2531 | BG184: 0 | BH184: -1820.65 | BI184: -200 | BJ184: 0 | BK184: 0 | BL184: 0 | BM184: -18839 | BN184: 0 | BO184: 0 | BP184: -3542.75 | BQ184: -425614.85 | BR184: 0 | BS184: 0 | BT184: 0 | BU184: 0 | BV184: 10992.22 | BW184: 57662.33 | BX184: 68654.55
A185: 3175 | B185: Sibertswold CEP School | C185: 0 | D185: 200 | E185: 0 | F185: 4 | G185: No | H185: Primary | I185: 200-299 | J185: =IF(G185=Benchmarking!$I$4,1,0) -> 0 | K185: =IF(Benchmarking!$I$6="All",1,IF(Benchmarking!$I$6=H185,1,0)) -> 0 | L185: =IF(Benchmarking!$I$8="All",1,IF(Benchmarking!$I$8=I185,1,0)) -> 0 | M185: 0 | N185: 537992.14 | O185: 3875.7 | P185: 180114.81 | Q185: 40847.97 | R185: 61829.04 | S185: 0 | T185: 27101.22 | U185: 3288.61 | V185: 3085.6 | W185: 2524 | X185: 4616.04 | Y185: 17913.78 | Z185: 8955.63 | AA185: 3466.25 | AB185: 4034.79 | AC185: 16446.04 | AD185: 27136 | AE185: 6470.09 | AF185: 64308.78 | AG185: 7979.57 | AH185: 0 | AI185: 9652.53 | AJ185: 7074.04 | AK185: 6479 | AL185: 31119 | AM185: 1800 | AN185: 16831.96 | AO185: 18878.22 | AP185: 0 | AQ185: 0 | AR185: 11158.93 | AS185: 0 | AT185: 0 | AU185: -812602.73 | AV185: -91991.27 | AW185: 0 | AX185: -36258.52 | AY185: 0 | AZ185: -34392.5 | BA185: -391.16 | BB185: -20457.54 | BC185: 0 | BD185: -42576.23 | BE185: 0 | BF185: -14788 | BG185: 0 | BH185: -23485.12 | BI185: -16645.38 | BJ185: 0 | BK185: 0 | BL185: 0 | BM185: -49523 | BN185: 0 | BO185: 0 | BP185: -6907.05 | BQ185: -940852.52 | BR185: 0 | BS185: 0 | BT185: 0 | BU185: 0 | BV185: 0 | BW185: 36258.52 | BX185: 36258.52
A186: 3178 | B186: Birchington CEP School | C186: 0 | D186: 473 | E186: 0 | F186: 7.333333333 | G186: No | H186: Primary | I186: 400-499 | J186: =IF(G186=Benchmarking!$I$4,1,0) -> 0 | K186: =IF(Benchmarking!$I$6="All",1,IF(Benchmarking!$I$6=H186,1,0)) -> 0 | L186: =IF(Benchmarking!$I$8="All",1,IF(Benchmarking!$I$8=I186,1,0)) -> 0 | M186: 0 | N186: 1192247.43 | O186: 0 | P186: 463169.92 | Q186: 61143.07 | R186: 121520.73 | S186: 0 | T186: 84822.6 | U186: 8829.39 | V186: 14644 | W186: 10973.08 | X186: 11256.84 | Y186: 30277.61 | Z186: 6610.68 | AA186: 56454.21 | AB186: 8914.12 | AC186: 52986.77 | AD186: 67072 | AE186: 21093.86 | AF186: 81243.77 | AG186: 27540.25 | AH186: 0 | AI186: 17743.64 | AJ186: 18090.01 | AK186: 388.6 | AL186: 77001.56 | AM186: 0 | AN186: 100831.85 | AO186: 32552.45 | AP186: 0 | AQ186: 0 | AR186: 0 | AS186: 0 | AT186: 0 | AU186: -1802350.57 | AV186: -343531.23 | AW186: 0 | AX186: -64393.7 | AY186: 0 | AZ186: -165025 | BA186: -1200 | BB186: -21319.34 | BC186: -26951.15 | BD186: -25524.84 | BE186: 0 | BF186: -660 | BG186: -6523.56 | BH186: -7302.83 | BI186: -3172.26 | BJ186: 0 | BK186: 0 | BL186: 0 | BM186: -76584 | BN186: 0 | BO186: 0 | BP186: -31922.77 | BQ186: -2210275.5 | BR186: 0 | BS186: 0 | BT186: 0 | BU186: 0 | BV186: 0 | BW186: 64393.7 | BX186: 64393.7
A187: 3179 | B187: Holy Trinity & St Johns CEP School | C187: 0 | D187: 395 | E187: 5.75 | F187: 14 | G187: No | H187: Primary | I187: 300-399 | J187: =IF(G187=Benchmarking!$I$4,1,0) -> 0 | K187: =IF(Benchmarking!$I$6="All",1,IF(Benchmarking!$I$6=H187,1,0)) -> 0 | L187: =IF(Benchmarking!$I$8="All",1,IF(Benchmarking!$I$8=I187,1,0)) -> 0 | M187: 0 | N187: 1263198.11 | O187: 0 | P187: 775343.02 | Q187: 52751.74 | R187: 121474.71 | S187: 0 | T187: 808.31 | U187: 12875.15 | V187: 22458.29 | W187: 9573.28 | X187: 9286.56 | Y187: 32000.68 | Z187: 11176.51 | AA187: 44033.83 | AB187: 7438 | AC187: 36071.66 | AD187: 31488 | AE187: 14356.47 | AF187: 123800.95 | AG187: 14066.71 | AH187: 0 | AI187: 25578.08 | AJ187: 14651.11 | AK187: 2542.53 | AL187: 90799.42 | AM187: 79783.12 | AN187: 46112.88 | AO187: 28661.91 | AP187: 0 | AQ187: 0 | AR187: 64749.66 | AS187: 0 | AT187: 0 | AU187: -1574252.08 | AV187: -545961.3 | AW187: -134053.22 | AX187: -116608.31 | AY187: 0 | AZ187: -319910 | BA187: -2720 | BB187: -36540.29 | BC187: -800 | BD187: -28747.85 | BE187: 0 | BF187: -21739.82 | BG187: 0 | BH187: -16624.8 | BI187: -2246.45 | BJ187: 0 | BK187: 0 | BL187: 0 | BM187: -44745 | BN187: 0 | BO187: 0 | BP187: -65496.98 | BQ187: -2370874.91 | BR187: 32000 | BS187: 48000 | BT187: 54053.22 | BU187: 134053.22 | BV187: 0 | BW187: 116608.31 | BX187: 116608.31
A188: 3181 | B188: St Saviours CEJ School | C188: 0 | D188: 367 | E188: 0 | F188: 2.583333333 | G188: No | H188: Primary | I188: 300-399 | J188: =IF(G188=Benchmarking!$I$4,1,0) -> 0 | K188: =IF(Benchmarking!$I$6="All",1,IF(Benchmarking!$I$6=H188,1,0)) -> 0 | L188: =IF(Benchmarking!$I$8="All",1,IF(Benchmarking!$I$8=I188,1,0)) -> 0 | M188: 0 | N188: 1099417.64 | O188: 8535.03 | P188: 227789.99 | Q188: 82449.75 | R188: 74273.36 | S188: 0 | T188: 85654.62 | U188: 8250.29 | V188: 4797.35 | W188: 3329.32 | X188: 8459.19 | Y188: 3612.15 | Z188: 7945.19 | AA188: 2051.05 | AB188: 4169.84 | AC188: 32354.86 | AD188: 50150 | AE188: 14148.45 | AF188: 66450.57 | AG188: 37368.35 | AH188: 0 | AI188: 17753.72 | AJ188: 14379.36 | AK188: 8088.34 | AL188: 25750.39 | AM188: 8162.99 | AN188: 41394.89 | AO188: 35127.03 | AP188: 0 | AQ188: 0 | AR188: 0 | AS188: 0 | AT188: 0 | AU188: -1429747.13 | AV188: -233555.87 | AW188: 0 | AX188: -25839.56 | AY188: 0 | AZ188: -153210 | BA188: 0 | BB188: -10814.56 | BC188: 0 | BD188: -22885.14 | BE188: 0 | BF188: 0 | BG188: -10065.75 | BH188: -16421.22 | BI188: -7911.85 | BJ188: 0 | BK188: 0 | BL188: 0 | BM188: -19714 | BN188: 0 | BO188: 0 | BP188: -32748.59 | BQ188: -1689142.56 | BR188: 0 | BS188: 0 | BT188: 0 | BU188: 0 | BV188: 0 | BW188: 25839.56 | BX188: 25839.56
A189: 3182 | B189: Minster CEP School | C189: 0 | D189: 389 | E189: 0 | F189: 14.08333333 | G189: No | H189: Primary | I189: 300-399 | J189: =IF(G189=Benchmarking!$I$4,1,0) -> 0 | K189: =IF(Benchmarking!$I$6="All",1,IF(Benchmarking!$I$6=H189,1,0)) -> 0 | L189: =IF(Benchmarking!$I$8="All",1,IF(Benchmarking!$I$8=I189,1,0)) -> 0 | M189: 0 | N189: 1117842.92 | O189: 4944.69 | P189: 405929.92 | Q189: 90480.45 | R189: 106084.81 | S189: 0 | T189: 25892.15 | U189: 8620.45 | V189: 7572.36 | W189: 13638.98 | X189: 8978.16 | Y189: 14463.63 | Z189: 4503.2 | AA189: 2815.19 | AB189: 1998 | AC189: 29691.64 | AD189: 35072 | AE189: 15602.49 | AF189: 124506.66 | AG189: 36440 | AH189: 0 | AI189: 10242.16 | AJ189: 14161.29 | AK189: 21300.58 | AL189: 106940.5 | AM189: 6509 | AN189: 39556.42 | AO189: 24942.55 | AP189: 0 | AQ189: 0 | AR189: 8638.5 | AS189: 0 | AT189: 0 | AU189: -1489472.47 | AV189: -264216.82 | AW189: 0 | AX189: -125895.01 | AY189: 0 | AZ189: -123225 | BA189: 0 | BB189: -2660.1 | BC189: 0 | BD189: -63392.88 | BE189: -29362 | BF189: -2200 | BG189: -12990.61 | BH189: -55450.96 | BI189: -13199.32 | BJ189: 0 | BK189: 0 | BL189: 0 | BM189: -79089 | BN189: 0 | BO189: 0 | BP189: -27382.25 | BQ189: -1879584.3 | BR189: 0 | BS189: 0 | BT189: 0 | BU189: 0 | BV189: 0 | BW189: 125895.01 | BX189: 125895.01
A190: 3183 | B190: Monkton CEP School | C190: 0 | D190: 104 | E190: 0 | F190: 3.083333333 | G190: No | H190: Primary | I190: 100-199 | J190: =IF(G190=Benchmarking!$I$4,1,0) -> 0 | K190: =IF(Benchmarking!$I$6="All",1,IF(Benchmarking!$I$6=H190,1,0)) -> 0 | L190: =IF(Benchmarking!$I$8="All",1,IF(Benchmarking!$I$8=I190,1,0)) -> 0 | M190: 0 | N190: 287498.58 | O190: 114.5 | P190: 86026 | Q190: 10059.62 | R190: 58478.71 | S190: 0 | T190: 18629.14 | U190: 1802.81 | V190: 3858.6 | W190: 5192.72 | X190: 2400.36 | Y190: 6472.45 | Z190: 14236.45 | AA190: 11180.94 | AB190: 963 | AC190: 21489.11 | AD190: 19087 | AE190: 3512.65 | AF190: 11664.07 | AG190: 3694.77 | AH190: 0 | AI190: 11092.65 | AJ190: 3883.42 | AK190: 9704.74 | AL190: 21331.93 | AM190: 1156.39 | AN190: 56367.12 | AO190: 20951.26 | AP190: 0 | AQ190: 0 | AR190: 22662.79 | AS190: 0 | AT190: 0 | AU190: -492902.27 | AV190: -57289.91 | AW190: 0 | AX190: -22517.4 | AY190: 0 | AZ190: -34905 | BA190: -18335 | BB190: -13813.34 | BC190: 0 | BD190: -11100.4 | BE190: 0 | BF190: -270 | BG190: 0 | BH190: -8070.4 | BI190: -15996.17 | BJ190: 0 | BK190: 0 | BL190: 0 | BM190: -32681 | BN190: 0 | BO190: 0 | BP190: -8260.33 | BQ190: -572709.58 | BR190: 0 | BS190: 0 | BT190: 0 | BU190: 0 | BV190: 835.46 | BW190: 21681.94 | BX190: 22517.4
A191: 3186 | B191: St Nicholas-at-Wade CEP School | C191: 0 | D191: 187 | E191: 0 | F191: 7.166666667 | G191: =IF(C191=0,"No","Yes") -> No | H191: Primary | I191: =IFERROR(VLOOKUP($D191,$D$264:$F$269,3,TRUE),0) -> 100-199 | J191: =IF(G191=Benchmarking!$I$4,1,0) -> 0 | K191: =IF(Benchmarking!$I$6="All",1,IF(Benchmarking!$I$6=H191,1,0)) -> 0 | L191: =IF(Benchmarking!$I$8="All",1,IF(Benchmarking!$I$8=I191,1,0)) -> 0 | M191: =IF(SUM(J191:L191)=3,1,0) -> 0 | N191: 581878.6 | O191: 1677.78 | P191: 172964.82 | Q191: 12843.49 | R191: 34165.96 | S191: 0 | T191: 1365.15 | U191: 3806.53 | V191: 4924.75 | W191: 566.52 | X191: 4315.92 | Y191: 5340.14 | Z191: 3865.65 | AA191: 24338.92 | AB191: 2166.69 | AC191: 11125.49 | AD191: 13473 | AE191: 8442.29 | AF191: 54382.83 | AG191: 9312.78 | AH191: 0 | AI191: 4557.6 | AJ191: 6614.15 | AK191: 870.01 | AL191: 26715.85 | AM191: 42.98 | AN191: 7470 | AO191: 33827.41 | AP191: 0 | AQ191: 0 | AR191: 0 | AS191: 0 | AT191: 0 | AU191: =BQ191-AV191-AW191-AX191 -> -776557.87 | AV191: -78512.6 | AW191: =-BU191 -> 0 | AX191: =-BX191 -> -56970.82 | AY191: 0 | AZ191: -31837.5 | BA191: 0 | BB191: -11937.33 | BC191: 0 | BD191: -2418.67 | BE191: 0 | BF191: -1830 | BG191: 0 | BH191: -18179.37 | BI191: -3814 | BJ191: 0 | BK191: 0 | BL191: 0 | BM191: -42110 | BN191: 0 | BO191: 0 | BP191: -5153.25 | BQ191: -912041.29 | BR191: 0 | BS191: 0 | BT191: 0 | BU191: =SUM(BR191:BT191) -> 0 | BV191: 0 | BW191: 56970.82 | BX191: =SUM(BV191:BW191) -> 56970.82
A192: 3198 | B192: Frittenden CEP School | C192: 0 | D192: 101 | E192: 0 | F192: 4.416666667 | G192: No | H192: Primary | I192: 100-199 | J192: =IF(G192=Benchmarking!$I$4,1,0) -> 0 | K192: =IF(Benchmarking!$I$6="All",1,IF(Benchmarking!$I$6=H192,1,0)) -> 0 | L192: =IF(Benchmarking!$I$8="All",1,IF(Benchmarking!$I$8=I192,1,0)) -> 0 | M192: 0 | N192: 288746.2 | O192: 1774.76 | P192: 126645 | Q192: 0 | R192: 32500.04 | S192: 0 | T192: 0 | U192: 2264.91 | V192: 6738.4 | W192: 1884.08 | X192: 2331.12 | Y192: 9351.24 | Z192: 1353 | AA192: 15362.22 | AB192: 6816.65 | AC192: 15201.66 | AD192: 12974 | AE192: 4247.25 | AF192: 26893.53 | AG192: 25344.99 | AH192: 0 | AI192: 9295.21 | AJ192: 3572.41 | AK192: 0 | AL192: 15712.72 | AM192: 20000.37 | AN192: 4730 | AO192: 30501.8 | AP192: 0 | AQ192: 0 | AR192: 0 | AS192: 0 | AT192: 0 | AU192: -518999.96 | AV192: -50462.54 | AW192: 0 | AX192: -40467.23 | AY192: 0 | AZ192: -24930 | BA192: 0 | BB192: 0 | BC192: 0 | BD192: -2577.34 | BE192: 0 | BF192: -1248 | BG192: -1533.16 | BH192: -12260 | BI192: -2194.75 | BJ192: 0 | BK192: 0 | BL192: 0 | BM192: -30189 | BN192: 0 | BO192: 0 | BP192: -4941.88 | BQ192: -609929.73 | BR192: 0 | BS192: 0 | BT192: 0 | BU192: 0 | BV192: 4212.44 | BW192: 36254.79 | BX192: 40467.23
A193: 3199 | B193: Egerton CEP School | C193: 0 | D193: 184 | E193: 0 | F193: 7.75 | G193: No | H193: Primary | I193: 100-199 | J193: =IF(G193=Benchmarking!$I$4,1,0) -> 0 | K193: =IF(Benchmarking!$I$6="All",1,IF(Benchmarking!$I$6=H193,1,0)) -> 0 | L193: =IF(Benchmarking!$I$8="All",1,IF(Benchmarking!$I$8=I193,1,0)) -> 0 | M193: 0 | N193: 468106.93 | O193: 796.25 | P193: 165956.55 | Q193: 30779.88 | R193: 62608.19 | S193: 0 | T193: 10733.63 | U193: 5023.7 | V193: 3740 | W193: 3962.94 | X193: 4246.68 | Y193: 6700.04 | Z193: 9741.54 | AA193: 1475.29 | AB193: 4346.36 | AC193: 18429.67 | AD193: 11103 | AE193: 4157.66 | AF193: 72446.73 | AG193: 42528.61 | AH193: 0 | AI193: 20764.14 | AJ193: 6508.04 | AK193: 12567 | AL193: 53409.61 | AM193: 52442.89 | AN193: 67181.15 | AO193: 16047.57 | AP193: 0 | AQ193: 0 | AR193: 0 | AS193: 0 | AT193: 0 | AU193: -773232.7 | AV193: -99708.21 | AW193: 0 | AX193: -36939.17 | AY193: 0 | AZ193: -49860 | BA193: 0 | BB193: -31307.67 | BC193: -28 | BD193: -35702.84 | BE193: -15216.73 | BF193: 0 | BG193: 0 | BH193: -5932 | BI193: -7972.4 | BJ193: 0 | BK193: 0 | BL193: 0 | BM193: -45317 | BN193: 0 | BO193: 0 | BP193: -8101.7 | BQ193: -909880.08 | BR193: 0 | BS193: 0 | BT193: 0 | BU193: 0 | BV193: 0 | BW193: 36939.17 | BX193: 36939.17
A194: 3201 | B194: St Lawrence CEP School, Sevenoaks | C194: 0 | D194: 81 | E194: 0 | F194: 2 | G194: No | H194: Primary | I194: 0-99 | J194: =IF(G194=Benchmarking!$I$4,1,0) -> 0 | K194: =IF(Benchmarking!$I$6="All",1,IF(Benchmarking!$I$6=H194,1,0)) -> 0 | L194: =IF(Benchmarking!$I$8="All",1,IF(Benchmarking!$I$8=I194,1,0)) -> 0 | M194: 0 | N194: 289748.01 | O194: 0 | P194: 73599.57 | Q194: 10453.78 | R194: 31998.85 | S194: 0 | T194: 0 | U194: 1984.79 | V194: 4190 | W194: 1591.68 | X194: 1869.48 | Y194: 2354.11 | Z194: 1816.5 | AA194: 6430.16 | AB194: 2564.16 | AC194: 9655.14 | AD194: 6861 | AE194: 2652.13 | AF194: 24183.08 | AG194: 6695.19 | AH194: 0 | AI194: 6462.74 | AJ194: 2923.49 | AK194: 1747.88 | AL194: 15061.78 | AM194: 0 | AN194: 4951.08 | AO194: 13055.9 | AP194: 0 | AQ194: 0 | AR194: 2437 | AS194: 0 | AT194: 0 | AU194: -413301.25 | AV194: -26709.15 | AW194: 0 | AX194: -24048.96 | AY194: 0 | AZ194: -5540 | BA194: 0 | BB194: -4853 | BC194: -282.98 | BD194: 0 | BE194: 0 | BF194: 0 | BG194: -3293.05 | BH194: 0 | BI194: -13257.7 | BJ194: 0 | BK194: 0 | BL194: 0 | BM194: -29630 | BN194: 0 | BO194: 0 | BP194: -2918 | BQ194: -464059.36 | BR194: 0 | BS194: 0 | BT194: 0 | BU194: 0 | BV194: 6658.08 | BW194: 17390.88 | BX194: 24048.96
A195: 3282 | B195: Boughton-under-Blean & Dunkirk Primary School | C195: 0 | D195: 198 | E195: 0 | F195: 8.833333333 | G195: No | H195: Primary | I195: 100-199 | J195: =IF(G195=Benchmarking!$I$4,1,0) -> 0 | K195: =IF(Benchmarking!$I$6="All",1,IF(Benchmarking!$I$6=H195,1,0)) -> 0 | L195: =IF(Benchmarking!$I$8="All",1,IF(Benchmarking!$I$8=I195,1,0)) -> 0 | M195: 0 | N195: 582326.6 | O195: 4524.86 | P195: 228139.82 | Q195: 37202.91 | R195: 42969.82 | S195: 0 | T195: 76465 | U195: 4641.86 | V195: 4940 | W195: 1919.12 | X195: 4739.88 | Y195: 12934.52 | Z195: 2368.59 | AA195: 3303.17 | AB195: 3441.92 | AC195: 27702.43 | AD195: 18338 | AE195: 5608.08 | AF195: 36643.08 | AG195: 6178.74 | AH195: 0 | AI195: 11231.19 | AJ195: 7683.3 | AK195: 10714.98 | AL195: 34134.87 | AM195: 0 | AN195: 2459.5 | AO195: 23535.56 | AP195: 0 | AQ195: 0 | AR195: 0 | AS195: 0 | AT195: 0 | AU195: -836298.84 | AV195: -92281.48 | AW195: 0 | AX195: -54332.25 | AY195: 0 | AZ195: -65180 | BA195: 0 | BB195: -720 | BC195: -2281.41 | BD195: -59915.7 | BE195: 0 | BF195: -520 | BG195: 0 | BH195: -16515.5 | BI195: -4468.58 | BJ195: 0 | BK195: 0 | BL195: 0 | BM195: -43377 | BN195: 0 | BO195: 0 | BP195: -7320.13 | BQ195: -982912.57 | BR195: 0 | BS195: 0 | BT195: 0 | BU195: 0 | BV195: 0 | BW195: 54332.25 | BX195: 54332.25
A196: 3284 | B196: Lady Joanna Thornhill (Endowed) Primary School | C196: 0 | D196: 402 | E196: 0 | F196: 11.66666667 | G196: No | H196: Primary | I196: 400-499 | J196: =IF(G196=Benchmarking!$I$4,1,0) -> 0 | K196: =IF(Benchmarking!$I$6="All",1,IF(Benchmarking!$I$6=H196,1,0)) -> 0 | L196: =IF(Benchmarking!$I$8="All",1,IF(Benchmarking!$I$8=I196,1,0)) -> 0 | M196: 0 | N196: 1076233.17 | O196: 0 | P196: 480244.13 | Q196: 50747.3 | R196: 113200.46 | S196: 0 | T196: 36193.59 | U196: 12178.5 | V196: 22495.97 | W196: 10838.92 | X196: 9282.12 | Y196: 20830.69 | Z196: 3380.83 | AA196: 42670.91 | AB196: 115618.3 | AC196: 29635.4 | AD196: 42496 | AE196: 14736.19 | AF196: 112032.02 | AG196: 16556.22 | AH196: 0 | AI196: 29472.4 | AJ196: 14234.7 | AK196: 0 | AL196: 99869.3 | AM196: 0 | AN196: 15446.25 | AO196: 33139.9 | AP196: 0 | AQ196: 0 | AR196: 17226.06 | AS196: 0 | AT196: 0 | AU196: -1508040.01 | AV196: -300741.66 | AW196: 0 | AX196: -91008.71 | AY196: 0 | AZ196: -63795 | BA196: 0 | BB196: -43700.01 | BC196: -1554.7 | BD196: -43400.44 | BE196: -34522.42 | BF196: 0 | BG196: -14682.38 | BH196: -49873.11 | BI196: -9106.83 | BJ196: 0 | BK196: 0 | BL196: 0 | BM196: -85360 | BN196: 0 | BO196: 0 | BP196: -12758.07 | BQ196: -1899790.38 | BR196: 0 | BS196: 0 | BT196: 0 | BU196: 0 | BV196: 0 | BW196: 91008.71 | BX196: 91008.71
